{"text_format":"2","workbook":"xlsx","n_sheets":2,"sheets":["Patentics","分析库"],"not_rendered":{"charts":0,"images":162,"macros":0,"external_links":0,"defined_names":1,"comments":0,"pivot_tables":0},"unopened":[],"bounds":{"document_bytes":16777216,"sheet_cells":100000,"run_cost":"one","rows_first":2000,"rows_last":500,"rows_between":2000,"halvings":0,"cell_chars":16384,"cell_head_chars":4096},"cells_cut":0,"cells_raw":0,"read":"whole","date_system":"1900"}

{"sheet":"Patentics","index":0,"n_rows":163,"n_cols":62,"rows_kept":163,"cut":false,"hidden":false,"merged":[]}
["公开号","申请号","专利局","首图","标题","摘要","主权项","对偶主权项","申请人","标准申请人","标准专利权人","发明人","第一发明人","优先权日","申请日","公开/公告日","申请公开日","授权日","国际分类","国际主分类","CPC主分类/小类","CPC主分类/小组","专利度","独权度","方法度","特征度","质量","功能1","功能2","功能3","功能4","Y标签","专利类型","优先权国家/地区","优先权","引用","引用数","自引用数","非自引用数","引用公司数","被引用","被引用数","影响因子","被自引用","非被自引用数","被引用公司数","被引用国家数","同族","同族数","同族国家数","索引词 1","索引词 2","索引词 3","索引词 4","等级","相关度","法律状态","法律描述","诉讼信息","律师、代理","省市","通信地址"]
[{"$f":"HYPERLINK(\"https://www.patentics.cn/invokexml.do?sx=showpatent_cn&sf=ShowPatent&spn=CN114723982A_CN&sx=showpatent_cn&sv=8e10dfe4\",\"CN114723982A\")","v":"CN114723982A"},"CN202011543380.5","CN",null,"植株授粉信息确定方法、装置、设备及存储介质","本发明实施例提供了一种植株授粉信息确定方法、装置、设备及存储介质，方法包括：获取目标植株的环境温度数据和雌花图像信息；将目标植株的雌花图像信息输入到预先训练的第一预测模型中，得到预测结果，预测结果包括目标植株的品种以及是否需要授粉；在预测结果为目标植株需要授粉时，将环境温度数据和预测结果输入到预先训练的第二预测模型中，得到目标植株授粉的环境信息和授粉量，其中预测结果还包括多个授粉特征数据。根据本发明实施例的方法，能够准确判断目标植株是否需要进行授粉，并在需要授粉时给出授粉的环境信息和授粉量，以帮助目标用户完成授粉工作。","一种植株授粉信息确定方法，其特征在于，包括： 　　获取目标植株的环境温度数据和雌花图像信息； 　　将所述目标植株的雌花图像信息输入到预先训练的第一预测模型中，得到预测结果，所述预测结果包括目标植株的品种以及是否需要授粉； 　　在所述预测结果为目标植株需要授粉时，将所述环境温度数据和所述预测结果输入到预先训练的第二预测模型中，得到所述目标植株授粉的环境信息和授粉量，其中所述预测结果还包括多个授粉特征数据。","","中移（成都）信息通信科技有限公司 |\n中国移动通信集团有限公司","中移成都信息通信科技有限公司|中国移动通信集团有限公司","中移成都信息通信科技有限公司|中国移动通信集团有限公司","李超 |\n刘林海 |\n何明 |\n张李秋","李超","","2020/12/21","2022-07-08","2022/07/08","","G06V 10/764|G06V 10/82|G06V 10/40|G06K  9/62|A01H  1/02","G06V 10/764","","",13,4,7,14,"1.00","","","","","","","CN","",0,0,0,0,0,0,0,"0.0",0,0,0,0,"",0,0,"分类任务 |\n网络模型 |\n模型训练 |\n分类准确率 |\n训练样本集 |\n输入特征 |\n训练参数 |\n损失函数 |\n训练阶段 |\n训练模块 |\n全连接层 |\n注意力机制 |\ngprs信号","图像分类 |\n特征融合 |\n全局特征 |\n提取网络 |\n目标特征 |\n卷积操作 |\n检测网络 |\n图像特征 |\n局部特征提取","分类识别 |\n目标检测","gun propellant |\n激活函数 |\n模型参数 |\nguillermondii |\n输出向量 |\n类间距离 |\n模型复杂度","","","公开","2022.07.08 公开 公开","","北京东方亿思专利代理有限责任公司; 赵秀芹","四川省","610041 四川省成都市中国（四川）自由贸易试验区成都高新区交子大道575号J座6楼"]
[{"$f":"HYPERLINK(\"https://www.patentics.cn/invokexml.do?sx=showpatent_cn&sf=ShowPatent&spn=CN114690017A_CN&sx=showpatent_cn&sv=03506fb9\",\"CN114690017A\")","v":"CN114690017A"},"CN202011568580.6","CN",null,"芯片测试装置","本发明提供了一种芯片测试装置，其包括固定架、连接柱、夹持部以及间距调节组件。连接柱设置于固定架上，夹持部设置于固定架，夹持部包括多个夹持单元，夹持单元包括第一夹持部和第二夹持部，第一夹持部与第二夹持部之间形成用于夹持芯片管脚的开口，第一夹持部与第二夹持部中的一者与连接柱电连接，间距调节组件设置于固定架，间距调节组件包括第一调节组件和第二调节组件，第一调节组件与第二调节组件之间通过联动调节件连接，多个第一夹持部和第二夹持部分别连接于第一调节组件和第二调节组件。本发明实施例提供的芯片测试装置能够使芯片管脚与测试装置快速且有效实现电连接，降低操作难度。","一种芯片测试装置，其特征在于，包括： 　　固定架； 　　连接柱，设置于所述固定架上； 　　夹持部，设置于所述固定架，所述夹持部包括多个夹持单元，所述夹持单元包括第一夹持部和第二夹持部，所述第一夹持部与所述第二夹持部之间形成用于夹持芯片管脚的开口，所述第一夹持部与所述第二夹持部中的一者与所述连接柱电连接； 　　间距调节组件，设置于所述固定架，所述间距调节组件包括第一调节组件和第二调节组件，所述第一调节组件与所述第二调节组件之间通过联动调节件连接，以使得所述第一调节组件与所述第二调节组件联动，多个所述第一夹持部和所述第二夹持部分别连接于所述第一调节组件和所述第二调节组件，以实现各个夹持单元中的所述第一夹持部与所述第二夹持部之间的分合。","","中移（成都）信息通信科技有限公司 |\n中国移动通信集团有限公司","中移成都信息通信科技有限公司|中国移动通信集团有限公司","中移成都信息通信科技有限公司|中国移动通信集团有限公司","何宁","何宁","","2020/12/25","2022/07/01","2022/07/01","","G01R 31/28","G01R 31/28","","",13,1,0,11,"1.20","","","","","","","CN","",0,0,0,0,0,0,0,"0.0",0,0,0,0,"",0,0,"活动件 |\n调节臂 |\n固定件 |\n夹持单元 |\n夹持部","调节件 |\n调节组件 |\n调节轮 |\n调节块 |\n夹持块 |\n转动调节 |\n调节机构 |\nconvoluted signal |\n滑动杆 |\ncontroller parameter","传动齿条 |\n连接轴 |\nnac1 |\nnadph-cytochrome p450 reductase |\n啮合状态 |\n传动齿轮啮合 |\n啮合连接 |\n转轴同轴 |\n同轴连接 |\n轮齿 |\n传动连接","联动调节 |\n直线位移 |\n移动件连接","","","公开","2022.07.01 公开 公开","","北京东方亿思专利代理有限责任公司; 娜拉","四川省","610041 四川省成都市中国（四川）自由贸易试验区成都高新区交子大道575号J座6楼"]
[{"$f":"HYPERLINK(\"https://www.patentics.cn/invokexml.do?sx=showpatent_cn&sf=ShowPatent&spn=CN114642341A_CN&sx=showpatent_cn&sv=d64c5355\",\"CN114642341A\")","v":"CN114642341A"},"CN202011534121.6","CN",null,"化妆镜","本发明涉及一种化妆镜，包括基座、框架组件、镜面组件和调整组件。基座具有容纳腔；框架组件，设置于基座，框架组件包括第一框架和第二框架，第一框架与第二框架通过沿第一方向延伸的转动轴可转动连接，第二框架设置于基座上；镜面组件包括可弯折连接的两个以上镜面，各镜面与第一框架通过沿第二方向延伸的另一转动轴可转动连接，第一方向与第二方向相交；调整组件设置于容纳腔。整组件可以控制多个镜面绕沿第二方向延伸的转动轴在第一框架内转动以及控制设置有多个镜面的第一框架绕沿第一方向延伸的转动轴在第二框架内转动，使得镜面可呈现更多的角度，进而使使用者能够更好的对面部进行修饰，提升使用者的化妆体验，优化化妆效果。","一种化妆镜，其特征在于，包括： 　　基座，具有容纳腔； 　　框架组件，设置于所述基座，所述框架组件包括第一框架和第二框架，所述第一框架与所述第二框架通过沿第一方向延伸的转动轴可转动连接，所述第二框架设置于所述基座上； 　　镜面组件，包括可弯折连接的两个以上镜面，各所述镜面与所述第一框架通过沿第二方向延伸的另一转动轴可转动连接，所述第一方向与所述第二方向相交； 　　调整组件，设置于所述容纳腔，以用于调整各所述镜面相对于所述第一框架以及所述第一框架相对于所述第二框架的转动角度。","","中移（成都）信息通信科技有限公司 |\n中国移动通信集团有限公司","中移成都信息通信科技有限公司|中国移动通信集团有限公司","中移成都信息通信科技有限公司|中国移动通信集团有限公司","窦文","窦文","","2020-12-21","2022/06/21","2022/06/21","","A47G  1/04","A47G  1/04","","",13,1,0,15,"0.88","","","","","","","CN","",0,0,0,0,0,0,0,"0.0",0,0,0,0,"",0,0,"化妆镜 |\n照射角度 |\n补光 |\n可弯折 |\n灯槽 |\nled灯带","角度调整 |\nalphavirus replication |\n观察角度 |\n可转动连接 |\nhard red winter |\n转动角度","化妆台 |\nambient device |\n球铰接","化妆效果 |\n妆容 |\n眼部 |\n眉毛 |\n人体面部 |\n脸部 |\n下巴 |\n嘴唇 |\n眼线笔 |\nmuscular branch |\n脸颊 |\n唇彩","","","公开","2022.06.21 公开 公开\n\n2022.07.08 实质审查的生效 实质审查的生效\n申请日=2020.12.21","","北京东方亿思专利代理有限责任公司; 娜拉","四川省","610041 四川省成都市中国（四川）自由贸易试验区成都高新区交子大道575号J座6楼"]
[{"$f":"HYPERLINK(\"https://www.patentics.cn/invokexml.do?sx=showpatent_cn&sf=ShowPatent&spn=CN114638981A_CN&sx=showpatent_cn&sv=73faf684\",\"CN114638981A\")","v":"CN114638981A"},"CN202011389534.X","CN",null,"离散物体的分类方法、装置、设备及计算机存储介质","本公开涉及离散物体的分类方法、装置、设备及计算机存储介质，方法包括采集离散物体的第一图像，采用胶囊网络和频域分解方式分别对第一图像处理，并将分别得到胶囊张量和频域张量进行融合，继而得到张量融合数据；根据张量融合数据，从预设类别中确定第一图像对应的离散物体的类别；本公开通过频域分解得到离散物体图像中频域特征信息的频域张量，以及通过胶囊网络提取离散物体图像中的基本特征得到胶囊张量，通过将两种张量融合对离散物体进行更加准确的识别，继而实现准确分类，能够有效解决现有卷积神经网络对实体特征识别能力薄弱的问题，适用于离散物体的数字图像细粒度分类识别，保证识别正确率。","一种离散物体的分类方法，其特征在于，所述方法包括： 　　采集所述离散物体的第一图像； 　　采用胶囊网络，对所述第一图像进行目标特征提取，输出所述第一图像的胶囊张量； 　　将所述胶囊张量与所述第一图像的频域张量进行融合，得到所述第一图像的张量融合数据；其中所述频域张量，是采用频域分解方式，对所述第一图像进行频域信息特征提取得到的； 　　根据所述张量融合数据，从预设类别中，确定所述第一图像对应的所述离散物体的类别。","","中移（成都）信息通信科技有限公司 |\n中国移动通信集团有限公司","中移成都信息通信科技有限公司|中国移动通信集团有限公司","中移成都信息通信科技有限公司|中国移动通信集团有限公司","陈建 |\n李泽源 |\n周剑","陈建","","2020/12/01","2022/06/17","2022/06/17","","G06V 10/764|G06V 10/80|G06V 10/82|G06V 20/68|G06K  9/62|G06N  3/04","G06V 10/764","","",10,4,6,12,"0.91","","","","","","","CN","",0,0,0,0,0,0,0,"0.0",0,0,0,0,"",0,0,"特征提取方法 |\n特征融合 |\n卷积网络 |\n卷积神经网络 |\n分类识别 |\n卷积处理 |\n深度学习 |\n图像特征 |\n识别效果 |\n图像数据集 |\n物体分类方法 |\n信息特征提取 |\n特征信息提取","卷积计算 |\nmalate transporter |\n损失函数 |\n全连接层 |\n人工神经网络 |\n加速训练 |\n训练样本数据 |\nfeature access","神经网络架构 |\n前馈神经网络 |\n归一化模块","目标特征提取 |\n大规模数据集 |\n动态路由算法","","","公开","2022.06.17 公开 公开\n\n2022.07.05 实质审查的生效 实质审查的生效\n申请日=2020.12.01","","北京东方亿思专利代理有限责任公司; 赵秀芹","四川省","610041 四川省成都市中国（四川）自由贸易试验区成都高新区交子大道575号J座6楼"]
[{"$f":"HYPERLINK(\"https://www.patentics.cn/invokexml.do?sx=showpatent_cn&sf=ShowPatent&spn=CN114639030A_CN&sx=showpatent_cn&sv=e2be4e5b\",\"CN114639030A\")","v":"CN114639030A"},"CN202011382133.1","CN",null,"兴趣信息确定的方法、装置、设备及存储介质","本发明实施例公开了一种兴趣信息确定的方法、装置、设备及存储介质。从第一拍摄设备获取目标对象对应的第一待分析图像集，以及从第二拍摄设备获取目标对象对应的第二待分析图像集；根据第一待分析图像集从预设信息库中获取与目标对象对应的目标标识，以及根据第一待分析图像集从预设特征库中获取与目标对象对应的第一特征标识；根据第二待分析图像集确定目标对象在所处场所的位置区域以及在位置区域的停留时长；根据目标标识、第一特征标识、位置区域以及停留时长确定目标对象的兴趣信息。本发明实施例解决了现有方案中存在的难以准确确定学生兴趣方向的问题，从而实现准确确定学生的兴趣方向。","一种兴趣信息确定的方法，其特征在于，所述方法包括： 　　从第一拍摄设备获取目标对象对应的第一待分析图像集，以及从第二拍摄设备获取目标对象对应的第二待分析图像集； 　　根据所述第一待分析图像集从预设信息库中获取与所述目标对象对应的目标标识，以及根据所述第一待分析图像集从预设特征库中获取与所述目标对象对应的第一特征标识； 　　根据所述第二待分析图像集确定所述目标对象在所处场所的位置区域以及在所述位置区域的停留时长； 　　根据所述目标标识、第一特征标识、位置区域以及停留时长确定所述目标对象的兴趣信息。","","中移（成都）信息通信科技有限公司 |\n中国移动通信集团有限公司","中移成都信息通信科技有限公司|中国移动通信集团有限公司","中移成都信息通信科技有限公司|中国移动通信集团有限公司","李廷龙 |\n刘朋 |\n黄铁脉","李廷龙","","2020/12/01","2022/06/17","2022/06/17","","G06V 20/40|G06V 20/52|G06V 40/16|G06V 40/20|G06K  9/62|G06Q 50/20|G06V 10/764","G06V 20/40","","",13,4,6,14,"1.00","","","","","","","CN","",0,0,0,0,0,0,0,"0.0",0,0,0,0,"",0,0,"特征信息 |\nhard filled gelatin capsule |\n匹配结果 |\n目标对象 |\n特征库 |\n信息库 |\n特征标识 |\n匹配单元 |\n获取目标 |\n属性信息 |\nhaploidentical donor","特征类型 |\n匹配程度 |\n行为信息 |\n用户行为 |\n推荐信息 |\n推荐结果 |\n建议信息","对象识别 |\n人脸特征 |\n人脸图像 |\n识别图像 |\n识别单元 |\n特征提取单元 |\n人像图像 |\n目标图像 |\n特征图像 |\n区分目标","food waste processor |\n人脸识别 |\n人脸特征识别","","","公开","2022.06.17 公开 公开\n\n2022.07.05 实质审查的生效 实质审查的生效\n申请日=2020.12.01","","北京东方亿思专利代理有限责任公司; 赵秀芹","四川省","610041 四川省成都市中国（四川）自由贸易试验区成都高新区交子大道575号J座6楼"]
[{"$f":"HYPERLINK(\"https://www.patentics.cn/invokexml.do?sx=showpatent_cn&sf=ShowPatent&spn=CN114639008A_CN&sx=showpatent_cn&sv=9b776399\",\"CN114639008A\")","v":"CN114639008A"},"CN202011381274.1","CN",null,"遥感图像建筑物提取方法、装置、设备及计算机存储介质","本申请提供了一种遥感图像建筑物提取方法、装置、设备及计算机存储介质。该遥感图像中的建筑物提取方法，包括：获取遥感图像；利用局部二值模式，将遥感图像生成特征图；基于特征图，利用均值漂移分割算法确定多个地物对象；基于多个地物对象，进行建筑物提取，得到建筑物提取结果。根据本申请实施例，能够更加准确地进行遥感图像中的建筑物提取。","一种遥感图像中的建筑物提取方法，其特征在于，包括： 　　获取遥感图像； 　　利用局部二值模式LBP，将所述遥感图像生成特征图； 　　基于所述特征图，利用均值漂移分割算法确定多个地物对象； 　　基于多个所述地物对象，进行建筑物提取，得到建筑物提取结果。","","中移（成都）信息通信科技有限公司 |\n中国移动通信集团有限公司","中移成都信息通信科技有限公司|中国移动通信集团有限公司","中移成都信息通信科技有限公司|中国移动通信集团有限公司","张澜","张澜","","2020/12/01","2022/06/17","2022/06/17","","G06V 20/10|G06V 10/40|G06K  9/62|G06T  7/10|G06V 10/764|G06V 10/774","G06V 20/10","","",12,4,5,12,"1.07","","","","","","","CN","",0,0,0,0,0,0,0,"0.0",0,0,0,0,"",0,0,"分割算法 |\n纹理特征 |\n局部二值模式 |\n建筑物检测 |\nhome entertainment |\n图像分割 |\n均值漂移算法 |\n结构算子 |\nl2tp |\nl-香芹醇","分类方法 |\n特征提取 |\n目标模型 |\n分类算法 |\n训练样本 |\n支持向量机 |\n基于语义 |\n特征向量 |\n样本特征 |\n模型训练 |\nmalaria parasite","图像分类 |\n监督分类 |\n提取算法 |\n向量维数 |\n计算机视觉 |\n多尺度多特征","原始遥感影像 |\n建筑物提取","","","公开","2022.06.17 公开 公开\n\n2022.07.05 实质审查的生效 实质审查的生效\n申请日=2020.12.01","","北京东方亿思专利代理有限责任公司; 赵秀芹","四川省","610041 四川省成都市中国（四川）自由贸易试验区成都高新区交子大道575号J座6楼"]
[{"$f":"HYPERLINK(\"https://www.patentics.cn/invokexml.do?sx=showpatent_cn&sf=ShowPatent&spn=CN114640670A_CN&sx=showpatent_cn&sv=a3330198\",\"CN114640670A\")","v":"CN114640670A"},"CN202011380749.5","CN",null,"虚拟现实VR信息共享的方法、装置及设备","本申请实施例提供了一种虚拟现实VR信息共享的方法、装置及设备，其中，方法包括：获取受控端的数量、共享VR展示内容的信息和第一共享策略，当第一共享策略为并发拉流策略时，获取云端的服务器信息，当云端的服务器信息满足受控端的数量的访问需求时，获取控制端的网络信息，当控制端的网络信息满足受控端的数量的访问需求时，向受控端发送访问权限信息，访问权限信息包括共享VR展示内容的信息，以用于受控端根据共享VR展示内容的信息从云端获取共享VR展示内容，结合当前的云端服务器资源、网络情况以及共享信息采取相应的共享策略，能够根据用户的选择进行高效地信息共享，提高用户体验。","一种虚拟现实VR信息共享的方法，应用于控制端，其特征在于，包括： 　　获取受控端的数量、共享VR展示内容的信息和第一共享策略； 　　当所述第一共享策略为并发拉流策略时，获取所述云端的服务器信息； 　　当所述云端的服务器信息满足所述受控端的数量的访问需求时，获取所述控制端的网络信息； 　　当所述控制端的网络信息满足所述受控端的数量的访问需求时，向所述受控端发送访问权限信息，所述访问权限信息包括所述共享VR展示内容的信息，以用于所述受控端根据所述共享VR展示内容的信息从所述云端获取所述共享VR展示内容。","","中移（成都）信息通信科技有限公司 |\n中国移动通信集团有限公司","中移成都信息通信科技有限公司|中国移动通信集团有限公司","中移成都信息通信科技有限公司|中国移动通信集团有限公司","曾琦娟 |\n唐健明 |\n彭丹 |\n范涛 |\n张瑞","曾琦娟","","2020/11/30","2022/06/17","2022/06/17","","H04L 67/10|H04L 67/141|G06F  9/451|H04L 67/52|H04L  9/40","H04L 67/10","","",13,6,9,17,"0.85","","","","","","","CN","",0,0,0,0,0,0,0,"0.0",0,0,0,0,"",0,0,"equipment identifier |\n获取云端 |\n信息共享方法 |\n同步展示 |\n发送共享 |\n会议场景 |\n访问云端 |\n工业标准架构 |\n云端获取 |\n判断云端 |\n获取共享","云渲染 |\n渲染效率 |\n内存调度 |\n硬件资源 |\n访问需求 |\n数据安全性 |\ndsp源程序 |\n渲染技术 |\n可用内存 |\n并发访问 |\n容灾","共享信息 |\n教师端 |\n共享设备 |\n学生端 |\n服务器信息","渲染数据 |\n网络带宽信息 |\n下载内容 |\n渲染模块","","","公开","2022.06.17 公开 公开\n\n2022.07.05 实质审查的生效 实质审查的生效\n申请日=2020.11.30","","北京东方亿思专利代理有限责任公司; 赵秀芹","四川省","610041 四川省成都市中国（四川）自由贸易试验区成都高新区交子大道575号J座6楼"]
[{"$f":"HYPERLINK(\"https://www.patentics.cn/invokexml.do?sx=showpatent_cn&sf=ShowPatent&spn=CN114617030A_CN&sx=showpatent_cn&sv=a46e576a\",\"CN114617030A\")","v":"CN114617030A"},"CN202011467792.5","CN",null,"一种植株栽培方法、装置","本发明实施例提供了一种植株栽培方法、装置，方法包括：获取在预设周期的多个目标时间，采集到的目标植株的多个图像信息；提取多个图像信息中目标植株的至少一个特征数据；将目标植株的至少一个特征数据输入到预先训练的预测模型中，得到目标植株的品种及对预设的多种物质的需求信息；在多种物质的需求信息中，至少一种物质的需求信息不为空时，根据目标植株的品种及对预设的多种物质的需求，确定目标植株需求的多种物质中每种物质的基础值；根据每种物质的基础值，控制浇灌单元为目标植株提供其所需物质。根据本发明实施例的方法，能够实现植物栽培中所需物质的自动补充。","一种植株栽培方法，其特征在于，包括： 　　获取在预设周期的多个目标时间，采集到的目标植株的多个图像信息； 　　提取所述多个图像信息中目标植株的至少一个特征数据； 　　将所述目标植株的至少一个特征数据输入到预先训练的预测模型中，得到所述目标植株的品种及对预设的多种物质的需求信息； 　　在所述多种物质的需求信息中，至少一种物质的所述需求信息不为空时，根据所述目标植株的品种及对预设的多种物质的需求，确定所述目标植株需求的多种物质中每种物质的基础值； 　　根据所述每种物质的基础值，控制浇灌单元为所述目标植株提供其所需物质。","","中移（成都）信息通信科技有限公司 |\n中国移动通信集团有限公司","中移成都信息通信科技有限公司|中国移动通信集团有限公司","中移成都信息通信科技有限公司|中国移动通信集团有限公司","李超 |\n孙文超","李超","","2020/12/14","2022/06/14","2022/06/14","","A01G 22/00|A01G 27/00|A01C 23/04|G06V 20/10|G06V 10/82|G06N  3/04|G06N  3/08|G06Q 50/02","A01G 22/00","","",13,2,3,16,"0.84","","","","","","","CN","",0,0,0,0,0,0,0,"0.0",0,0,0,0,"",0,0,"植物栽培 |\n植物品种 |\n浇水 |\n正常生长 |\n土壤湿度 |\n栽培方法 |\n土壤湿润 |\n栽培装置 |\n种植环境 |\n营养液 |\n复合肥 |\n光合作用 |\n耐旱植物 |\n喜湿植物 |\n土壤微量元素 |\n观赏性植物","栽培管理 |\n种植株 |\n植株特征 |\n盆栽植株 |\n盆植株 |\n植株品种 |\n植株叶片","肥料溶解 |\n栽培系统 |\n植物生长变化 |\n自动浇灌","光照条件 |\n盆栽土壤 |\n叶片图像","","","公开","2022.06.14 公开 公开\n\n2022.07.01 实质审查的生效 实质审查的生效\n申请日=2020.12.14","","北京东方亿思专利代理有限责任公司; 赵秀芹","四川省","610041 四川省成都市中国（四川）自由贸易试验区成都高新区交子大道575号J座6楼"]
[{"$f":"HYPERLINK(\"https://www.patentics.cn/invokexml.do?sx=showpatent_cn&sf=ShowPatent&spn=CN114630356A_CN&sx=showpatent_cn&sv=b257c6dc\",\"CN114630356A\")","v":"CN114630356A"},"CN202011436589.1","CN",null,"一种基站确定方法、装置、设备及存储介质","本发明实施例提供了一种基站确定方法、装置、设备及存储介质，方法包括：获取来自5G小基站的性能数据信息，性能数据信息包括多个特征数据；将多个特征数据输入到预先训练的第一预测模型中，得到5G小基站的多个特征预测数据；在5G小基站的任一特征预测数据不满足预设条件时，确定5G小基站为目标5G小基站。根据本发明实施例的方法，能够通过模型预测目标5G小基站，提高了确定目标5G小基站的效率，节约了人工成本，而且相比依据个人经验判断的方法，更加便于推广使用。","一种基站确定方法，其特征在于，包括： 　　获取来自5G小基站的性能数据信息，所述性能数据信息包括多个特征数据； 　　将所述多个特征数据输入到预先训练的第一预测模型中，得到所述5G小基站的多个特征预测数据； 　　在所述5G小基站的任一特征预测数据不满足预设条件时，确定所述5G小基站为目标5G小基站。","","中移（成都）信息通信科技有限公司 |\n中国移动通信集团有限公司 |\n西藏先锋绿能环保科技股份有限公司","中移成都信息通信科技有限公司|中国移动通信集团有限公司|西藏先锋绿能环保科技股份有限公司","中移成都信息通信科技有限公司|中国移动通信集团有限公司|西藏先锋绿能环保科技股份有限公司","杨绍晖 |\n郭洋 |\n王涛 |\n王倩 |\n姚少彬","杨绍晖","","2020/12/11","2022/06/14","2022/06/14","","H04W 24/06|G06K  9/62","H04W 24/06","","",11,4,8,10,"1.21","","","","","","","CN","",0,0,0,0,0,0,0,"0.0",0,0,0,0,"",0,0,"标签样本 |\n泛化误差 |\n误差反向传播算法 |\n负样本数据 |\n网络评估","训练参数 |\n损失函数 |\n多层前馈网络 |\n模型参数","模型训练 |\ncyclic diolefin |\n数据训练 |\n机器学习模型 |\n样本训练 |\n训练样本集 |\n深度学习网络 |\n训练模块 |\n监督学习 |\n正样本数据 |\n训练和测试 |\n特征预测 |\n过度拟合 |\ngprs信号 |\n自动编码器","bp神经网络模型 |\nguillermondii |\ngun propellant |\n模型预测 |\n历史数据信息","","","公开","2022.06.14 公开 公开\n\n2022.07.01 实质审查的生效 实质审查的生效\n申请日=2020.12.11","","北京东方亿思专利代理有限责任公司; 赵秀芹","四川省","610041 四川省成都市中国（四川）自由贸易试验区成都高新区交子大道575号J座6楼"]
[{"$f":"HYPERLINK(\"https://www.patentics.cn/invokexml.do?sx=showpatent_cn&sf=ShowPatent&spn=CN114615528A_CN&sx=showpatent_cn&sv=146b3f45\",\"CN114615528A\")","v":"CN114615528A"},"CN202011394175.7","CN",null,"VR视频的播放方法、系统、设备及介质","本申请公开了一种VR视频的播放方法、系统、设备及介质，该方法包括：从云服务器获取分类目录的虚拟现实VR数据；向用户设备发送分类目录的VR数据；接收用户设备发送的针对分类目录中目标VR数据的第一控制信号；根据第一控制信号将分类目录中目标VR数据解码转化为第一可观看视频；向用户设备发送第一可观看视频，以用于用户设备播放第一可观看视频。根据本申请实施例的技术方案，缩短了用户获得VR画面的时延，提高了影像画面显示的清晰度和流畅度，进而提高了用户临场体验效果。","一种虚拟现实VR视频的播放方法，其特征在于，包括： 　　从云服务器获取分类目录的虚拟现实VR数据； 　　向用户设备发送分类目录的VR数据； 　　接收用户设备发送的针对所述分类目录中目标VR数据的第一控制信号； 　　根据所述第一控制信号将所述分类目录中目标VR数据解码转化为第一可观看视频； 　　向用户设备发送所述第一可观看视频，以用于所述用户设备播放所述第一可观看视频。","","中移（成都）信息通信科技有限公司 |\n中国移动通信集团有限公司","中移成都信息通信科技有限公司|中国移动通信集团有限公司","中移成都信息通信科技有限公司|中国移动通信集团有限公司","陈兴 |\n侯漫秋 |\n张庭锐 |\n方宇 |\n李建阳","陈兴","","2020/12/03","2022/06/10","2022/06/10","","H04N 21/41|H04N 21/44|H04N 21/462","H04N 21/41","","",13,6,9,11,"1.31","","","","","","","CN","",0,0,0,0,0,0,0,"0.0",0,0,0,0,"",0,0,"播放系统 |\n播放方法 |\n视频播放 |\n播放方式 |\n视频类 |\n观看视频 |\n播放设备 |\n视频数据 |\n流畅度 |\n电视剧 |\n图片数据 |\n图片类 |\n扬声器播放 |\nhdmi |\n卡顿","vr设备 |\nvirtual reality |\nvr技术 |\n虚拟现实vr |\n虚拟世界 |\n体验效果 |\n沉浸","交互式 |\n动漫 |\n电影 |\n输出设备","运算能力 |\n直接传输 |\n服务器 |\n数据传输","","","公开","2022.06.10 公开 公开\n\n2022.06.28 实质审查的生效 实质审查的生效\n申请日=2020.12.03","","北京东方亿思专利代理有限责任公司; 赵秀芹","四川省","610041 四川省成都市中国（四川）自由贸易试验区成都高新区交子大道575号J座6楼"]
[{"$f":"HYPERLINK(\"https://www.patentics.cn/invokexml.do?sx=showpatent_cn&sf=ShowPatent&spn=CN114597723A_CN&sx=showpatent_cn&sv=592a4577\",\"CN114597723A\")","v":"CN114597723A"},"CN202011416268.5","CN",null,"可旋转连接结构","本申请提供了一种可旋转连接结构。该可旋转连接结构，包括：铰链固定端和铰链活动端；铰链固定端的端部设置有用于接线的固定端接线端子；铰链活动端的端部设置有用于接线的活动端接线端子；铰链固定端与铰链活动端通过转轴活动连接，转轴的内部设置有固定端调节杆和活动端调节杆，以调节铰链的开合角度。根据本申请实施例，能够自适应调节铰链的开合角度。","一种可旋转连接结构，其特征在于，包括： 　　铰链固定端和铰链活动端； 　　所述铰链固定端的端部设置有用于接线的固定端接线端子； 　　所述铰链活动端的端部设置有用于接线的活动端接线端子； 　　所述铰链固定端与所述铰链活动端通过转轴活动连接，所述转轴的内部设置有固定端调节杆和活动端调节杆，以调节铰链的开合角度。","","中移（成都）信息通信科技有限公司 |\n中国移动通信集团有限公司","中移成都信息通信科技有限公司|中国移动通信集团有限公司","中移成都信息通信科技有限公司|中国移动通信集团有限公司","王杨 |\n李廷龙 |\n黄铁脉 |\n刘朋","王杨","","2020/12/07","2022/06/07","2022/06/07","","H01R 35/00|H01R 13/502","H01R 35/00","","",10,1,0,13,"0.78","","","","","","","CN","",0,0,0,0,0,0,0,"0.0",0,0,0,0,"",0,0,"开合角度 |\n调节铰链 |\n调节杆 |\n角度调节 |\n节时 |\n调节固定 |\n可调节角度 |\n旋转角度","铰链结构 |\n铰链转轴 |\n固定片 |\n固定端 |\n活动端 |\n连接耳 |\n可折叠 |\n可旋转连接结构 |\n铰链固定","相对转动 |\n张紧状态 |\n张紧弹簧 |\n自由旋转 |\n连接轴 |\ngmr信号 |\n反向旋转 |\n3,5-二碘胺基苯","铰链旋转 |\n拉出 |\n杆复位 |\n多余线","","","公开","2022.06.07 公开 公开\n\n2022.06.24 实质审查的生效 实质审查的生效\n申请日=2020.12.07","","北京东方亿思专利代理有限责任公司; 娜拉","四川省","610041 四川省成都市中国（四川）自由贸易试验区成都高新区交子大道575号J座6楼"]
[{"$f":"HYPERLINK(\"https://www.patentics.cn/invokexml.do?sx=showpatent_cn&sf=ShowPatent&spn=CN114594600A_CN&sx=showpatent_cn&sv=9b399de4\",\"CN114594600A\")","v":"CN114594600A"},"CN202011396547.X","CN",null,"近眼显示系统、固定装置及其信号处理方法、设备及介质","本申请实施例提供一种近眼显示系统、固定装置及其信号处理方法、设备及介质。该固定装置包括：滤波模块，与近眼显示设备的扬声器连接，用于在扬声器将交流电信号转换为声信号的过程中，接收扬声器发送的交流电信号；以及，对交流电信号进行滤波处理，得到低频信号；振动模块，与滤波模块连接，用于以低频信号的频率进行振动。根据本申请实施例，能够通过控制近眼显示设备的头戴装置振动的方式，提升用户的使用体验。","一种固定装置，其特征在于，所述固定装置用于将近眼显示设备固定于用户头部，所述固定装置包括： 　　滤波模块，与所述近眼显示设备的扬声器连接，用于在所述扬声器将交流电信号转换为声信号的过程中，接收所述扬声器发送的交流电信号；以及，对所述交流电信号进行滤波处理，得到低频信号； 　　振动模块，与所述滤波模块连接，用于以所述低频信号的频率进行振动。","","中移（成都）信息通信科技有限公司 |\n中国移动通信集团有限公司","中移成都信息通信科技有限公司|中国移动通信集团有限公司","中移成都信息通信科技有限公司|中国移动通信集团有限公司","刘朋 |\n黄铁脉 |\n李廷龙","刘朋","","2020/12/03","2022/06/07","2022/06/07","","G02B 27/01|H04R  3/04","G02B 27/01","","",13,5,1,17,"0.81","","","","","","","CN","",0,0,0,0,0,0,0,"0.0",0,0,0,0,"",0,0,"输出设备 |\n信号处理设备 |\n应用处理器 |\n电子信号 |\nradio frequency","硬件结构 |\n专用处理器 |\n有形 |\n可编程逻辑电路 |\nasic |\n存储程序 |\n专用集成电路 |\n程序产品 |\n计算机 |\n电子电路 |\ncentral processing unit |\n多个总线 |\n机器可读介质 |\n固件","equipment identifier |\n传输介质 |\n大容量存储器 |\n工业标准架构 |\n硬盘驱动器 |\n软盘驱动器 |\n外围组件","用户佩戴 |\n振动单元 |\n振动模块","","","公开","2022.06.07 公开 公开\n\n2022.06.24 实质审查的生效 实质审查的生效\n申请日=2020.12.03","","北京东方亿思专利代理有限责任公司; 赵秀芹","四川省","610041 四川省成都市中国（四川）自由贸易试验区成都高新区交子大道575号J座6楼"]
[{"$f":"HYPERLINK(\"https://www.patentics.cn/invokexml.do?sx=showpatent_cn&sf=ShowPatent&spn=CN114598454A_CN&sx=showpatent_cn&sv=9d9528c4\",\"CN114598454A\")","v":"CN114598454A"},"CN202011395065.2","CN",null,"密钥生成及身份认证方法、装置、设备及计算机存储介质","本发明实施例提供了一种密钥生成及身份认证方法、装置、设备及计算机存储介质。该方法包括：接收用户端发送的登录请求，所述登录请求包括用户端标识，以及用户端根据用户端标识和第一密钥生成的登录参数，根据所述登录参数计算验证参数。向注册中心设备发送会话密钥协商请求，所述会话密钥协商请求包括所述登录参数及所述验证参数，接收所述注册中心设备发送的响应消息，所述响应消息包括会话协商参数，根据所述会话协商参数生成会话密钥。能够在多服务器架构下实现网页和移动端的身份认证，提高了服务器的计算效率，提高了用户体验。","一种密钥生成及身份认证方法，其特征在于，所述方法应用于服务器，所述方法包括： 　　接收用户端发送的登录请求，所述登录请求包括用户端标识，以及用户端根据用户端标识和第一密钥生成的登录参数，所述第一密钥为所述用户端在注册过程中由注册中心设备根据所述用户端标识和第二密钥生成，所述第二密钥为所述用户在注册过程中根据用户端标识、第一密码和第一生物特征生成的密钥；所述登录参数是所述用户端在注册过程中，由注册中心设备根据所述用户端标识和所述第一密钥生成的参数； 　　根据所述登录参数计算验证参数； 　　向注册中心设备发送会话密钥协商请求，所述会话密钥协商请求包括所述登录参数、所述验证参数，以用于所述注册中心根据所述登录参数对所述用户端进行身份验证，用户端身份验证通过时，计算会话协商参数； 　　接收所述注册中心设备发送的响应消息，所述响应消息包括会话协商参数； 　　根据所述会话协商参数生成会话密钥； 　　向所述用户端发送所述会话密钥。","","中移（成都）信息通信科技有限公司 |\n中国移动通信集团有限公司","中移成都信息通信科技有限公司|中国移动通信集团有限公司","中移成都信息通信科技有限公司|中国移动通信集团有限公司","温翔 |\n李晓民 |\n金宏彬 |\n赵勇","温翔","","2020/12/03","2022/06/07","2022/06/07","","H04L  9/08|H04L  9/40|G06F 21/31|G06F 21/32|G06F 21/45","H04L  9/08","","",13,8,8,26,"0.56","","","","","","","CN","",0,0,0,0,0,0,0,"0.0",0,0,0,0,"",0,0,"发送验证 |\n认证设备 |\n生成密钥 |\n认证信息 |\n密钥生成 |\n登录验证 |\n登录信息 |\n注册请求 |\nisochromene |\n身份标识 |\n标识生成 |\n用户端标识","安全信道 |\n会话密钥协商 |\n猜测攻击 |\n注册过程 |\n单向哈希函数 |\n密钥协商请求","用户身份 |\n合法用户 |\n身份验证 |\n身份认证方法 |\nisolated dc/dc converter |\n生物特征信息","身份认证服务器 |\n用户合法 |\n密钥验证 |\n发送登录请求","","","公开","2022.06.07 公开 公开\n\n2022.06.24 实质审查的生效 实质审查的生效\n申请日=2020.12.03","","北京东方亿思专利代理有限责任公司; 赵秀芹","四川省","610041 四川省成都市中国（四川）自由贸易试验区成都高新区交子大道575号J座6楼"]
[{"$f":"HYPERLINK(\"https://www.patentics.cn/invokexml.do?sx=showpatent_cn&sf=ShowPatent&spn=CN114585079A_CN&sx=showpatent_cn&sv=b64b9dc1\",\"CN114585079A\")","v":"CN114585079A"},"CN202011391129.1","CN",null,"一种融合定位方法、装置、设备及计算机存储介质","本发明实施例提供一种融合定位方法、装置、设备及计算机存储介质，涉及无线通信领域，用以通过LMF直接指示UE进行融合定位，避免定位交互流程的混乱。所述方法包括：基于配置信令，对预先获取的定位数据按照预设要求进行筛选，在筛选后的定位数据满足预设数量要求的情况下，切换至融合定位模式；将多个定位能力信息打包在一个LTE定位协议LPP消息中，以生成第一信令，将多个请求信息打包在一个LPP消息中，以生成第二信令；向LMF依次上报第一信令及第二信令；接收LMF下发的第三信令，辅助信令包括与多个请求信息一一对应的多个辅助信息；向LMF上报第四信令，第四信令包括与多个辅助信息一一对应的多个位置信息。","一种融合定位方法，应用于用户设备端UE，其特征在于，所述方法包括： 　　基于配置信令，对预先获取的定位数据按照预设要求进行筛选，在筛选后的定位数据满足预设数量要求的情况下，切换至融合定位模式，其中，所述配置信令是由位置管理功能端LMF下发的； 　　将多个定位能力信息打包在一个LTE定位协议LPP消息中，以生成第一信令，将多个请求信息打包在一个LPP消息中，以生成第二信令，其中，所述多个定位能力信息，与所述UE在所述融合定位模式下所支持的多个定位方式一一对应，所述多个请求信息用于请求所述UE在所述融合定位模式下所需要的多个辅助信息； 　　向所述LMF依次上报所述第一信令及所述第二信令； 　　接收所述LMF下发的第三信令，所述辅助信令包括与所述多个请求信息一一对应的多个辅助信息； 　　向所述LMF上报第四信令，所述第四信令包括与所述多个辅助信息一一对应的多个位置信息。","","中移（成都）信息通信科技有限公司 |\n中国移动通信集团有限公司","中移成都信息通信科技有限公司|中国移动通信集团有限公司","中移成都信息通信科技有限公司|中国移动通信集团有限公司","罗柯 |\n唐小勇 |\n朱磊 |\n游正朋","罗柯","","2020/12/02","2022/06/03","2022/06/03","","H04W 64/00|H04W  4/029","H04W 64/00","","",13,6,11,26,"0.56","","","","","","","CN","",0,0,0,0,0,0,0,"0.0",0,0,0,0,"",0,0,"定位辅助数据 |\n观察到达时间差 |\nue直接 |\n3gpp标准 |\n小区id |\n网络辅助 |\n辅助信令 |\n定位架构 |\nlte定位协议","用户设备 |\nue之间 |\nue开启 |\n配置信令 |\n信令交互 |\n上报单元 |\n信令指示 |\nwlan网络 |\n信息元素 |\n无线接入网接入 |\n协议数据单元","定位辅助信息 |\n定位测量 |\n定位信令 |\n位置信令 |\n请求定位 |\n定位流程 |\n定位能力信息 |\n传输辅助数据","通信链路 |\n信号测量 |\n传输信息","","","公开","2022.06.03 公开 公开\n\n2022.06.21 实质审查的生效 实质审查的生效\n申请日=2020.12.02","","北京东方亿思专利代理有限责任公司; 赵秀芹","四川省","610041 四川省成都市中国（四川）自由贸易试验区成都高新区交子大道575号J座6楼"]
[{"$f":"HYPERLINK(\"https://www.patentics.cn/invokexml.do?sx=showpatent_cn&sf=ShowPatent&spn=CN114579411A_CN&sx=showpatent_cn&sv=8a933de6\",\"CN114579411A\")","v":"CN114579411A"},"CN202011389522.7","CN",null,"容量规划信息确定方法、装置、设备及计算机存储介质","本申请提供了一种容量规划信息确定方法、装置、设备及计算机存储介质。该容量规划信息确定方法，包括：在将目标微服务放置于沙箱环境的情况下，线性增加外部负载，获取监测数据；利用监测数据进行回归拟合，构建性能模型；其中，性能模型表征多维资源度量和微服务容量之间的关联；利用性能模型确定目标微服务的容量规划信息。根据本申请实施例，能够提高测试微服务的通用性和运维效率。","一种容量规划信息确定方法，其特征在于，包括： 　　在将目标微服务放置于沙箱环境的情况下，线性增加外部负载，获取监测数据； 　　利用所述监测数据进行回归拟合，构建性能模型；其中，所述性能模型表征多维资源度量和微服务容量之间的关联； 　　利用所述性能模型确定所述目标微服务的容量规划信息。","","中移（成都）信息通信科技有限公司 |\n中国移动通信集团有限公司","中移成都信息通信科技有限公司|中国移动通信集团有限公司","中移成都信息通信科技有限公司|中国移动通信集团有限公司","赵博 |\n种璟 |\n张勇 |\n罗旋 |\n翟臣","赵博","","2020/12/01","2022/06/03","2022/06/03","","G06F 11/34|G06F 11/30","G06F 11/34","","",12,4,5,13,"0.99","","","","","","","CN","",0,0,0,0,0,0,0,"0.0",0,0,0,0,"",0,0,"云计算环境 |\n工作负载 |\n物理设备 |\n物理服务器 |\n数据中心 |\n基于容器 |\n计算密集型 |\n计算机网络 |\n网络拓扑结构","云应用 |\n应用组件 |\n服务部署 |\n应用程序接口 |\n共享计算 |\n管理复杂性 |\n服务代理 |\n代理机制","容量规划 |\nbcg液 |\n资源使用 |\n系统资源 |\n资源消耗 |\n多维资源 |\n服务性能 |\n资源利用率","数据库访问 |\n环境变量 |\n调用关系 |\nmysql数据库 |\n文件配置 |\n沙箱技术 |\n持久化存储","","","公开","2022.06.03 公开 公开\n\n2022.06.21 实质审查的生效 实质审查的生效\n申请日=2020.12.01","","北京东方亿思专利代理有限责任公司; 赵秀芹","四川省","610041 四川省成都市中国（四川）自由贸易试验区成都高新区交子大道575号J座6楼"]
[{"$f":"HYPERLINK(\"https://www.patentics.cn/invokexml.do?sx=showpatent_cn&sf=ShowPatent&spn=CN114585012A_CN&sx=showpatent_cn&sv=cb387b50\",\"CN114585012A\")","v":"CN114585012A"},"CN202011389269.5","CN",null,"无线信号强度的确定方法、装置、设备及存储介质","本申请实施例提供了一种无线信号强度的确定方法、装置、设备及存储介质，该无线信号强度的确定方法包括：根据设置于预设位置的光学测距仪发送的墙体信息确定室内空间分布信息；根据设置于预设位置的室内射频天线的配置参数生成的模拟信号强度分布信息，以及室内空间分布信息生成模拟信号强度分布网格信息；根据基于室内射频天线发送的实际信号确定的测量信号强度分布信息与模拟信号强度分布信息计算衰减系数；根据衰减系数修正模拟信号分布网格信息，确定目标信号强度分布网格信息；本申请实施例能够解决现有技术中无线网络确定方法的效率较低的问题。","一种无线信号强度的确定方法，其特征在于，包括： 　　根据设置于预设位置的光学测距仪发送的墙体信息确定室内空间分布信息； 　　根据设置于所述预设位置的室内射频天线的配置参数生成的模拟信号强度分布信息，以及所述室内空间分布信息生成模拟信号强度分布网格信息； 　　根据基于所述室内射频天线发送的实际信号确定的测量信号强度分布信息与所述模拟信号强度分布信息计算衰减系数； 　　根据所述衰减系数修正所述模拟信号分布网格信息，确定目标信号强度分布网格信息。","","中移（成都）信息通信科技有限公司 |\n中国移动通信集团有限公司","中移成都信息通信科技有限公司|中国移动通信集团有限公司","中移成都信息通信科技有限公司|中国移动通信集团有限公司","吴巧玲 |\n吴一凡 |\n何明 |\n郭洋","吴巧玲","","2020/12/01","2022/06/03","2022/06/03","","H04W 24/08","H04W 24/08","","",13,4,5,23,"0.60","","","","","","","CN","",0,0,0,0,0,0,0,"0.0",0,0,0,0,"",0,0,"无线信号强度 |\n干扰源 |\n基站信号 |\nradio frequency |\n信号覆盖 |\n路测 |\n定向天线 |\n空间区域 |\n测量信号强度 |\n天线分析 |\n通信链路","光纤介质 |\n信号强度分布 |\n覆盖优化 |\n室内无线 |\n网络优化 |\n强度分布信息 |\n空间分布信息","传输介质 |\nagp |\n多个总线 |\n通信接口 |\n程序产品 |\n处理器 |\n机器可读介质 |\n存储介质 |\n计算机指令 |\n工业标准架构","基站信息 |\n墙体信息","","","公开","2022.06.03 公开 公开\n\n2022.06.21 实质审查的生效 实质审查的生效\n申请日=2020.12.01","","北京东方亿思专利代理有限责任公司; 赵秀芹","四川省","610041 四川省成都市中国（四川）自由贸易试验区成都高新区交子大道575号J座6楼"]
[{"$f":"HYPERLINK(\"https://www.patentics.cn/invokexml.do?sx=showpatent_cn&sf=ShowPatent&spn=CN114582472A_CN&sx=showpatent_cn&sv=69be0429\",\"CN114582472A\")","v":"CN114582472A"},"CN202011385179.9","CN",null,"信息的推荐方法、装置、设备及存储介质","本申请实施例提供了一种信息的推荐方法、装置、设备及存储介质，该信息的推荐方法包括：获取用户输入的疾病描述信息；根据疾病描述信息确定疾病类型和病情程度信息；根据疾病类型确定医生信息；根据医生信息、医生信息对应的第一评分信息和病情程度信息，确定目标评分信息；其中，第一评分信息表征医生的受欢迎程度，目标评分信息表征医生与疾病类型的匹配程度；本申请实施例能够解决现有网上挂号时在线推荐医生的方法推荐的医生与用户提供的疾病描述信息匹配合理性较低的问题。","一种信息的推荐方法，其特征在于，包括： 　　获取用户输入的疾病描述信息； 　　根据所述疾病描述信息确定疾病类型和病情程度信息； 　　根据所述疾病类型确定医生信息； 　　根据所述医生信息、所述医生信息对应的第一评分信息和所述病情程度信息，确定目标评分信息；其中，所述第一评分信息表征医生的受欢迎程度，所述目标评分信息表征医生与所述疾病类型的匹配程度。","","中移（成都）信息通信科技有限公司 |\n中国移动通信集团有限公司","中移成都信息通信科技有限公司|中国移动通信集团有限公司","中移成都信息通信科技有限公司|中国移动通信集团有限公司","刘胜涛 |\n李超 |\n何明 |\n张李秋","刘胜涛","","2020/12/01","2022/06/03","2022/06/03","","G16H 40/20|G16H 50/70","G16H 40/20","","",12,4,7,11,"1.18","","","","","","","CN","",0,0,0,0,0,0,0,"0.0",0,0,0,0,"",0,0,"分词模型 |\n疾病类型 |\n目标词汇 |\n疾病名称 |\n症状输入 |\n关键词表 |\n停用词 |\n疾病向量 |\n疾病描述信息 |\n专家级别","推荐方法 |\n推荐系统 |\n用户推荐 |\n评分信息","余弦相似度 |\n标签数据 |\n向量化 |\n词向量 |\n数据训练 |\n匹配程度 |\n分类模型 |\n特征输入 |\n输入向量 |\n人工智能 |\n量化方法 |\n线性神经元","向量特征 |\n量化模型 |\n向量维度 |\n在线推荐","","","公开","2022.06.03 公开 公开\n\n2022.06.21 实质审查的生效 实质审查的生效\n申请日=2020.12.01","","北京东方亿思专利代理有限责任公司; 赵秀芹","四川省","610041 四川省成都市中国（四川）自由贸易试验区成都高新区交子大道575号J座6楼"]
[{"$f":"HYPERLINK(\"https://www.patentics.cn/invokexml.do?sx=showpatent_cn&sf=ShowPatent&spn=CN114569416A_CN&sx=showpatent_cn&sv=00fd822b\",\"CN114569416A\")","v":"CN114569416A"},"CN202011384573.0","CN",null,"一种导盲系统及方法","本申请实施例提供了一种导盲系统及方法，系统包括手持设备和穿戴设备，所述手持设备设置有用于向所述穿戴设备发送交互指令的按钮模块；所述穿戴设备包括摄像头模块、无线通信模块、处理器和语音播报模块；所述摄像头模块用于采集周围物体的实时信息；所述无线通信模块用于接收所述手持设备发送的所述交互指令；所述处理器用于对所述实时信息和所述交互指令进行分析处理，得到导盲建议信息并发送给所述语音播报模块；所述语音播报模块用于接收所述导盲建议信息并进行播报。根据本申请实施提供的例导盲系统及方法，能够根据使用者的交互命令提供基于周围实时信息的导盲建议。","一种导盲系统，其特征在于，包括：手持设备和穿戴设备； 　　所述手持设备设置有用于向所述穿戴设备发送交互指令的按钮模块； 　　所述穿戴设备包括摄像头模块、无线通信模块、处理器和语音播报模块； 　　所述摄像头模块用于采集周围物体的实时信息； 　　所述无线通信模块用于接收所述手持设备发送的所述交互指令； 　　所述处理器用于对所述实时信息和所述交互指令进行分析处理，得到导盲建议并发送给所述语音播报模块； 　　所述语音播报模块用于接收所述导盲建议并进行播报。","","中移（成都）信息通信科技有限公司 |\n中国移动通信集团有限公司","中移成都信息通信科技有限公司|中国移动通信集团有限公司","中移成都信息通信科技有限公司|中国移动通信集团有限公司","沈俊乾 |\n李超 |\n何明 |\n张李秋","沈俊乾","","2020/12/01","2022/06/03","2022/06/03","","A61H  3/06|G08B 21/02|G10L 15/22","A61H  3/06","","",12,2,2,14,"0.89","","","","","","","CN","",0,0,0,0,0,0,0,"0.0",0,0,0,0,"",0,0,"语音提醒 |\n语音功能 |\n语音控制 |\n穿戴设备 |\n导盲手杖 |\n语音指令 |\n语音播报模块 |\n扬声器模块 |\n语音识别模块","运动状态 |\n感知模块 |\n距离检测 |\n距离信息 |\n环境信息 |\n距离数据 |\n定位信息 |\n距离传感器","行走路线 |\n定位导航模块 |\n身体姿态 |\n导航提示 |\n交互控制 |\n感知环境 |\n路况信息 |\n导航信息 |\n右转指令 |\n卫星定位系统","出行安全 |\n干预系统 |\n导盲机器人","","","公开","2022.06.03 公开 公开\n\n2022.06.21 实质审查的生效 实质审查的生效\n申请日=2020.12.01","","北京东方亿思专利代理有限责任公司; 赵秀芹","四川省","610041 四川省成都市中国（四川）自由贸易试验区成都高新区交子大道575号J座6楼"]
[{"$f":"HYPERLINK(\"https://www.patentics.cn/invokexml.do?sx=showpatent_cn&sf=ShowPatent&spn=CN114582501A_CN&sx=showpatent_cn&sv=c1885e8b\",\"CN114582501A\")","v":"CN114582501A"},"CN202011384264.3","CN",null,"心理测评结果的评估方法、装置、设备和存储介质","本申请公开了一种心理测评结果的评估方法、装置、设备和存储介质，评估方法包括：获取测评对象针对心理测评问卷填写的测评数据，以及所述测评对象在填写所述心理测评问卷的过程中的行为数据；将所述测评数据和所述行为数据输入至心理状态预测模型中，得到所述测评对象的心理状态预测结果；根据所述心理状态预测结果和所述测评对象的心理测评结果是否一致，对所述心理测评结果进行评估，所述心理测评结果是至少根据所述测评数据得到的心理测评结果。本申请公开的方法，能够对心理测评结果进行评估，从而确定心理测评结果能否代表测评对象的真实心理状态。","一种心理测评结果的评估方法，其特征在于，包括： 　　获取测评对象针对心理测评问卷填写的测评数据，以及所述测评对象在填写所述心理测评问卷的过程中的行为数据； 　　将所述测评数据和所述行为数据输入至心理状态预测模型中，得到所述测评对象的心理状态预测结果； 　　根据所述心理状态预测结果和所述测评对象的心理测评结果是否一致，对所述心理测评结果进行评估，所述心理测评结果是至少根据所述测评数据得到的心理测评结果。","","中移（成都）信息通信科技有限公司 |\n中国移动通信集团有限公司","中移成都信息通信科技有限公司|中国移动通信集团有限公司","中移成都信息通信科技有限公司|中国移动通信集团有限公司","唐晓霁 |\n王旭浩 |\n柳岸 |\n杨了 |\n张璐璐","唐晓霁","","2020/12/01","2022/06/03","2022/06/03","","G16H 50/30|G16H 10/20|A61B  5/16|A61B  5/00","G16H 50/30","","",12,4,9,14,"0.94","","","","","","","CN","",0,0,0,0,0,0,0,"0.0",0,0,0,0,"",0,0,"测评数据 |\n目标特征数据 |\n评估模块 |\n测评结果 |\n行为数据 |\n状态预测模型 |\n心理状态","状态特征 |\n数据预测 |\n数据输入 |\n评估结果 |\ngun propellant |\n模型预测 |\n评估方法 |\n评分 |\n维度 |\ncontents delivery network |\n提取表征 |\n分类器","数据处理 |\nmation |\nperipheral component interconnect |\n外设部件互连 |\n可编程逻辑电路 |\nisa |\nssd","平均池化 |\n前端总线 |\n池化处理","","","公开","2022.06.03 公开 公开\n\n2022.06.21 实质审查的生效 实质审查的生效\n申请日=2020.12.01","","北京东方亿思专利代理有限责任公司; 赵秀芹","四川省","610041 四川省成都市中国（四川）自由贸易试验区成都高新区交子大道575号J座6楼"]
[{"$f":"HYPERLINK(\"https://www.patentics.cn/invokexml.do?sx=showpatent_cn&sf=ShowPatent&spn=CN114585078A_CN&sx=showpatent_cn&sv=91a32bf2\",\"CN114585078A\")","v":"CN114585078A"},"CN202011384057.8","CN",null,"定位方法、装置、电子设备及计算机存储介质","本申请提供了一种定位方法、装置、电子设备及计算机存储介质。该定位方法，包括：获取终端的采样数据；基于预设的指纹库内栅格中的每一基站的概率分布密度曲线，利用贝叶斯概率模型，计算出终端处于目标栅格的联合概率；基于联合概率，解算终端所在的目标位置。根据本申请实施例，能够提高定位精度。","一种定位方法，其特征在于，包括： 　　获取终端的采样数据； 　　基于预设的指纹库内栅格中的每一基站的概率分布密度曲线，利用贝叶斯概率模型，计算出所述终端处于目标栅格的联合概率； 　　基于所述联合概率，解算所述终端所在的目标位置。","","中移（成都）信息通信科技有限公司 |\n中国移动通信集团有限公司","中移成都信息通信科技有限公司|中国移动通信集团有限公司","中移成都信息通信科技有限公司|中国移动通信集团有限公司","兰天 |\n何明 |\n苏自翔 |\n吕铮","兰天","","2020/12/01","2022/06/03","2022/06/03","","H04W 64/00|H04W  4/029","H04W 64/00","","",12,4,5,16,"0.81","","","","","","","CN","",0,0,0,0,0,0,0,"0.0",0,0,0,0,"",0,0,"贝叶斯公式 |\n贝叶斯算法 |\n概率转移矩阵 |\n真实数据 |\n样本数据采集 |\n贝叶斯概率模型","概率分布函数 |\n概率分布模型 |\n迭代优化 |\n样本矢量 |\n数学期望 |\n迭代方法 |\ncu离子还原 |\n迭代求解 |\n正态分布参数","数据样本 |\n先验概率 |\n迭代更新 |\n聚类中心 |\n概率计算 |\nlipoprotein binding |\n输出分类 |\n最大概率 |\n加权计算 |\n梯度下降法 |\n深度神经网络","k均值聚类算法 |\n联合概率 |\n自适应更新","","","公开","2022.06.03 公开 公开\n\n2022.06.21 实质审查的生效 实质审查的生效\n申请日=2020.12.01","","北京东方亿思专利代理有限责任公司; 赵秀芹","四川省","610041 四川省成都市中国（四川）自由贸易试验区成都高新区交子大道575号J座6楼"]
[{"$f":"HYPERLINK(\"https://www.patentics.cn/invokexml.do?sx=showpatent_cn&sf=ShowPatent&spn=CN114578843A_CN&sx=showpatent_cn&sv=1b473e3e\",\"CN114578843A\")","v":"CN114578843A"},"CN202011383495.2","CN",null,"飞行路径规划方法、装置、飞行器及存储介质","本公开公开了一种飞行路径规划方法、装置、飞行器及存储介质，其中，飞行路径规划方法包括：获取飞行申请空域、飞行起点和飞行终点；根据预设算法确定从飞行起点到飞行终点的多条子路径段，其中，多条子路径段中每条子路径段的起点和终点均在申请空域的禁飞区之外，多条子路径段依次连接组成飞行起点到飞行终点的完整路径，且多条子路径段中每条子路径段的长度均小于预设长度；根据多条子路径段，确定从飞行起点到飞行终点的目标飞行路径。该方法通过将起点和终点之间的飞行路径分成多个子路径，从而可以实现多个子路径并行规划避障，大大提高路径规划的工作效率，从而解决了现有技术飞行器的飞行路径规划耗时久的问题。","一种飞行路径规划方法，其特征在于，包括： 　　获取飞行申请空域、飞行起点和飞行终点； 　　根据预设算法确定从所述飞行起点到飞行终点的多条子路径段，其中，所述多条子路径段中每条子路径段的起点和终点均在所述申请空域的禁飞区之外，所述多条子路径段依次连接组成所述飞行起点到飞行终点的完整路径，且所述多条子路径段中每条子路径段的长度均小于预设长度； 　　根据所述多条子路径段，确定从所述飞行起点到所述飞行终点的目标飞行路径。","","中移（成都）信息通信科技有限公司 |\n中国移动通信集团有限公司","中移成都信息通信科技有限公司|中国移动通信集团有限公司","中移成都信息通信科技有限公司|中国移动通信集团有限公司","张聪 |\n李泽源 |\n周剑 |\n邱裕鹤","张聪","","2020/12/01","2022/06/03","2022/06/03","","G05D  1/10","G05D  1/10","","",10,4,7,15,"0.73","","","","","","","CN","",0,0,0,0,0,0,0,"0.0",0,0,0,0,"",0,0,"路径规划方法 |\n路径生成 |\n禁飞区 |\nidiom |\n路径段 |\n路径规划模块 |\nic水表 |\n最短路径问题 |\n路径算法 |\n路径计算","位置点 |\n距离计算 |\n目标位置 |\n实际距离 |\n路径距离 |\n空间区域 |\n最小距离","终点坐标 |\n栅格单元 |\n中点坐标 |\n坐标原点 |\n结点坐标 |\n起始点坐标 |\n三维坐标系 |\n栅格空间 |\n欧氏障碍空间 |\n栅格距离 |\n空间数据","边界距离","","","公开","2022.06.03 公开 公开\n\n2022.06.21 实质审查的生效 实质审查的生效\n申请日=2020.12.01","","北京东方亿思专利代理有限责任公司; 赵秀芹","四川省","610041 四川省成都市中国（四川）自由贸易试验区成都高新区交子大道575号J座6楼"]
[{"$f":"HYPERLINK(\"https://www.patentics.cn/invokexml.do?sx=showpatent_cn&sf=ShowPatent&spn=CN114579679A_CN&sx=showpatent_cn&sv=853eaf46\",\"CN114579679A\")","v":"CN114579679A"},"CN202011382875.4","CN",null,"空间定位数据融合方法、系统、设备及计算机存储介质","本申请公开了一种空间定位数据融合方法、系统、设备及计算机存储介质，该方法包括：获取局域地图中第一定位设备发送的报文，以及第一定位设备发送报文的时间间隔；根据报文确定第一定位设备在局域地图中的位置数据；根据位置数据确定第一定位设备的位置偏移量；根据位置偏移量和时间间隔确定定位融合位置数据；将在局域地图中的定位融合位置数据转化为第一局域地图的坐标位置，其中局域地图与第一局域地图采用不同的坐标系表示位置信息。根据本申请实施例的技术方案，融合了多层次坐标系的定位数据，实现了多源坐标值的相互转换，提高了定位精度。","一种空间定位数据融合方法，其特征在于，包括： 　　获取局域地图中第一定位设备发送的报文，以及所述第一定位设备发送报文的时间间隔； 　　根据所述报文确定所述第一定位设备在所述局域地图中的位置数据； 　　根据所述位置数据确定所述第一定位设备的位置偏移量； 　　根据所述位置偏移量和所述时间间隔确定定位融合位置数据； 　　将在所述局域地图中的所述定位融合位置数据转化为第一局域地图的坐标位置，其中所述局域地图与所述第一局域地图采用不同的坐标系表示位置信息。","","中移（成都）信息通信科技有限公司 |\n中国移动通信集团有限公司","中移成都信息通信科技有限公司|中国移动通信集团有限公司","中移成都信息通信科技有限公司|中国移动通信集团有限公司","兰天 |\n何明 |\n苏自翔 |\n吕铮 |\n杨洋 |\n张雨佳","兰天","","2020/12/01","2022/06/03","2022/06/03","","G06F 16/29","G06F 16/29","","",13,4,6,15,"0.93","","","","","","","CN","",0,0,0,0,0,0,0,"0.0",0,0,0,0,"",0,0,"空间坐标 |\n坐标位置 |\n坐标值 |\n坐标点转换 |\n坐标转换系数 |\n转换公式","地图坐标系 |\ngps坐标 |\n位置数据 |\n地图边界 |\n定位设备 |\n轨迹信息 |\n位置信息 |\n轨迹数据 |\nmac实体 |\n地理要素 |\n定位技术 |\n相对距离 |\n空间定位数据","坐标体系 |\n坐标转化 |\n坐标偏移量 |\n最小二乘法计算","基准点 |\n坐标转换方程 |\n动态坐标系 |\n位置偏移量","","","公开","2022.06.03 公开 公开\n\n2022.06.21 实质审查的生效 实质审查的生效\n申请日=2020.12.01","","北京东方亿思专利代理有限责任公司; 赵秀芹","四川省","610041 四川省成都市中国（四川）自由贸易试验区成都高新区交子大道575号J座6楼"]
[{"$f":"HYPERLINK(\"https://www.patentics.cn/invokexml.do?sx=showpatent_cn&sf=ShowPatent&spn=CN114584997A_CN&sx=showpatent_cn&sv=c35ea967\",\"CN114584997A\")","v":"CN114584997A"},"CN202011376068.1","CN",null,"干扰源定位方法、装置、设备及计算机存储介质","本发明实施例提供了一种干扰源定位方法、装置、设备及计算机存储介质。该方法包括：获取多个信号测试装置的地理位置，以及所述多个信号测试装置检测检测干扰源的干扰源方向角和干扰源的信号强度电平值，根据所述信号强度电平值确定每个干扰源的信号强度电平权重值，根据所述地理位置、所述干扰源方向角和所述信号强度电平权重值确定取样线，所述取样线表征每个信号测试装置到干扰源的距离线段，确定不同取样线的交点为干扰源的位置，能够精确地定位干扰源位置。","一种干扰源定位方法，其特征在于，包括： 　　获取多个信号测试装置的地理位置，以及所述多个信号测试装置检测检测干扰源的干扰源方向角和干扰源的信号强度电平值； 　　根据所述信号强度电平值确定每个干扰源的信号强度电平权重值； 　　根据所述地理位置、所述干扰源方向角和所述信号强度电平权重值确定取样线，所述取样线表征每个信号测试装置到干扰源的距离线段； 　　确定不同取样线的交点为干扰源的位置。","","中移（成都）信息通信科技有限公司 |\n中国移动通信集团有限公司","中移成都信息通信科技有限公司|中国移动通信集团有限公司","中移成都信息通信科技有限公司|中国移动通信集团有限公司","郭洋 |\n吴一凡 |\n何明 |\n宋譞","郭洋","","2020/11/30","2022/06/03","2022/06/03","","H04W 24/02|H04W 24/08|H04B 17/345|H04B 17/327|H04B 17/318","H04W 24/02","","",10,4,4,13,"0.83","","","","","","","CN","",0,0,0,0,0,0,0,"0.0",0,0,0,0,"",0,0,"方向角 |\n定位结果 |\n定位方法 |\n采样点 |\n经度 |\n参考点 |\n纬度值 |\n定位设备 |\n纬度起点 |\n位置确定 |\n交点 |\n绘制方法 |\n距离线段 |\n纬度终点 |\n赤道半径 |\n截距","经纬度信息 |\n地理位置 |\n地图 |\n热力图","测向 |\n干扰源定位 |\n电磁环境","信号强度 |\ndbm |\n电平值 |\n无线电信号","","","公开","2022.06.03 公开 公开\n\n2022.06.21 实质审查的生效 实质审查的生效\n申请日=2020.11.30","","北京东方亿思专利代理有限责任公司; 赵秀芹","四川省","610041 四川省成都市中国（四川）自由贸易试验区成都高新区交子大道575号J座6楼"]
[{"$f":"HYPERLINK(\"https://www.patentics.cn/invokexml.do?sx=showpatent_cn&sf=ShowPatent&spn=CN216496092U_CN&sx=showpatent_cn&sv=05688f13\",\"CN216496092U\")","v":"CN216496092U"},"CN202121261132.1","CN",null,"一种转运床","本实用新型提供一种转运床，涉及医疗器械技术领域。该转运床包括床板、床架、移动机构和侧翻机构，床架用于支撑所述床板；移动机构用于驱动所述床板相对所述床架平动，所述平动至少包括沿所述床架的宽度方向平动；侧翻机构用于驱动所述床板绕所述床架的长度方向转动，以改变所述床板与所述床架的相邻表面的夹角。本实用新型的转运床可以将转运床与转运目的地直接连接，将搬抬的方式转化为滑移的方式，降低转运的难度，从而提升了转运过程中的稳定性，进而有效降低转运过程中对病人造成二次伤害的风险。","一种转运床，其特征在于，包括： 　　床板； 　　床架，用于支撑所述床板； 　　移动机构，用于驱动所述床板相对所述床架平动，所述平动至少包括沿所述床架的宽度方向平动； 　　侧翻机构，用于驱动所述床板绕所述床架的长度方向转动，以改变所述床板与所述床架的相邻表面的夹角； 　　其中，所述移动机构设置在所述床架上并与所述侧翻机构连接，用于推动所述侧翻机构相对所述床架平动；所述移动机构包括：第一驱动电机，抵接于所述床架；第一传动件，连接所述第一驱动电机和所述侧翻机构，以带动所述侧翻机构相对所述第一驱动电机平动； 　　所述侧翻机构与所述床板连接，以带动所述床板运动；所述侧翻机构包括：第二驱动电机，与所述第一传动件连接以随所述第一传动件平动；转动轴，与所述第二驱动电机一体式固定连接或可拆卸式固定连接；第二传动件，一端与所述床板固定连接，相对所述一端的另一端固定套设于所述转动轴，用于跟随所述转动轴转动以带动所述床板相对所述床架转动。","","中移（成都）信息通信科技有限公司 |\n中国移动通信集团有限公司","中移成都信息通信科技有限公司|中国移动通信集团有限公司","中移成都信息通信科技有限公司|中国移动通信集团有限公司","黄兆玮 |\n刘一珉 |\n卞军伟 |\n廖鹏程 |\n翁倩","黄兆玮","","2021/06/07","2022/05/13","2022/05/13","2022/05/13","A61G  1/02|A61G  1/04","A61G  1/02","","",11,1,0,21,"0.53","","","","","","","CN","",0,0,0,0,0,0,0,"0.0",0,0,0,0,"",0,0,"医疗床 |\n床架 |\n床板转动 |\n转运床 |\n支撑床板 |\n病床 |\n手术床 |\n躺卧 |\n手术台 |\n床板连接 |\n床板固定 |\n调节床 |\n床板沿床 |\n地面平行 |\nlifting equipment |\n可升降床板 |\n支撑条","辅助运动 |\n传动件连接 |\n同步运动 |\n螺纹传动 |\n滚轮运动 |\n平动 |\n控制床 |\n床移动","滚轮机构 |\n多个滚轮","竖直方向 |\n刹车件 |\n支撑件 |\n支撑力","","","有效","2022.05.13 授权 授权","","北京派特恩知识产权代理有限公司; 姚文娴;张颖玲]]&gt; &lt;/AAOFItem&gt;","四川省","610041 四川省成都市中国（四川）自由贸易试验区成都高新区和乐二街150号1号楼2单元"]
[{"$f":"HYPERLINK(\"https://www.patentics.cn/invokexml.do?sx=showpatent_cn&sf=ShowPatent&spn=CN114488005A_CN&sx=showpatent_cn&sv=4d5c67bb\",\"CN114488005A\")","v":"CN114488005A"},"CN202011273400.1","CN",null,"蓝牙和可见光的融合定位方法、装置、系统、设备和介质","本申请公开了蓝牙和可见光的融合定位方法、装置、系统、设备和介质。该方法包括：获取第一测量参数，以及获取第二测量参数；获取定位偏差参数；利用所述定位偏差参数分别对所述第一测量参数和所述第二测量参数进行修正；基于修正后的第一测量参数和修正后的第二测量参数，确定所述目标终端的位置信息。根据本申请实施例提供的方案，提高了定位精度。","一种蓝牙和可见光的融合定位方法，其特征在于，所述方法包括： 　　获取第一测量参数，以及获取第二测量参数，其中，所述第一测量参数表示蓝牙信号发射装置与目标终端之间的相对位置，所述第二测量参数表示可见光信号发射装置与所述目标终端之间的相对位置； 　　获取定位偏差参数，所述定位偏差参数包括所述蓝牙信号发射装置的定位偏差数据，以及所述可见光信号发射装置的定位偏差数据； 　　利用所述定位偏差参数分别对所述第一测量参数和所述第二测量参数进行修正； 　　基于修正后的第一测量参数和修正后的第二测量参数，确定所述目标终端的位置信息。","","中移（成都）信息通信科技有限公司 |\n中国移动通信集团有限公司","中移成都信息通信科技有限公司|中国移动通信集团有限公司","中移成都信息通信科技有限公司|中国移动通信集团有限公司","吕铮 |\n兰天 |\n何明 |\n张雨佳 |\n袁军艳","吕铮","","2020/11/13","2022/05/13","2022/05/13","","G01S  5/16|G01C 21/20|H04W 64/00|H04W  4/02|H04W  4/80","G01S  5/16","","",15,5,11,14,"1.17","","","","","","","CN","",0,0,0,0,0,0,0,"0.0",0,0,0,0,"",0,0,"定位算法 |\n定位方法 |\n位置坐标 |\n三维位置信息 |\n二维坐标 |\n定位过程 |\n最小二乘法计算 |\n直角坐标系","获取定位 |\n定位设备 |\n定位数据 |\n室内定位技术 |\n定位系统 |\n导航定位 |\n室内导航 |\n超声波定位 |\n经纬度信息 |\n定位子系统 |\n定位信标 |\n融合定位 |\n厘米级定位","距离参数 |\n计算定位 |\ngp350蛋白 |\n指纹定位 |\n参考位置信息 |\n测量向量 |\n二维位置信息","lick |\n激光雷达","","","公开","2022.05.13 公开 公开\n\n2022.05.31 实质审查的生效 实质审查的生效\n申请日=2020.11.13","","北京东方亿思知识产权代理有限责任公司; 彭琼]]&gt; &lt;/AAOFItem&gt;","四川省","610041 四川省成都市中国（四川）自由贸易试验区成都高新区交子大道575号J座6楼"]
[{"$f":"HYPERLINK(\"https://www.patentics.cn/invokexml.do?sx=showpatent_cn&sf=ShowPatent&spn=CN114461888A_CN&sx=showpatent_cn&sv=f34b6034\",\"CN114461888A\")","v":"CN114461888A"},"CN202011244605.7","CN",null,"网页内容标记方法、装置、设备及计算机存储介质","根据本发明实施例中的网页内容标记方法、装置、设备及计算机存储介质，获取当前网页内的文本信息与当前网页内选取的内容之后，将文本信息与选取的内容进行比较，选取网页内的与选取内容相同的目标信息，并将目标信息与目标信息以外的信息进行区别，能够在网页内对不同的内容进行查找与标记，扩大了查找、标记的范围，提高了用户体验。","一种网页内容标记方法，其特征在于，包括： 　　获取当前网页内的文本信息； 　　获取用户在所述当前网页内选取的内容； 　　将所述内容与所述网页内的文本信息比对，选取所述网页内与所述选取内容相同的目标信息； 　　根据所述目标信息的内容将所述目标信息与所述当前网页内除所述目标信息以外信息进行区分。","","中移（成都）信息通信科技有限公司 |\n中国移动通信集团有限公司","中移成都信息通信科技有限公司|中国移动通信集团有限公司","中移成都信息通信科技有限公司|中国移动通信集团有限公司","王月凤 |\n何明 |\n李超 |\n张李秋","王月凤","","2020/11/10","2022/05/10","2022/05/10","","G06F 16/953|G06F 16/958","G06F 16/953","","",10,4,6,8,"1.37","","","","","","","CN","",0,0,0,0,0,0,0,"0.0",0,0,0,0,"",0,0,"网页内容 |\n超链接 |\nhtml文档 |\n获取页面 |\n当前页面 |\ngenerating surface |\n可扩展标记语言 |\n内容包 |\n超级链接 |\ncss语法 |\n访问页面 |\n点击事件 |\n用户点击 |\nmultiple valve |\n特定内容 |\n生成dom树 |\n用户界面 |\n浏览器访问 |\n应用软件 |\nd-sub端子模","文字内容 |\n文本信息 |\n文字信息","层叠样式表 |\n文档对象模型 |\ncss文件 |\n渲染页面 |\n2,3,4,5,6-五氟苯胺","目标信息","","","公开","2022.05.10 公开 公开\n\n2022.05.27 实质审查的生效 实质审查的生效\n申请日=2020.11.10","","北京东方亿思知识产权代理有限责任公司; 彭琼]]&gt; &lt;/AAOFItem&gt;","四川省","610041 四川省成都市中国（四川）自由贸易试验区成都高新区交子大道575号J座6楼"]
[{"$f":"HYPERLINK(\"https://www.patentics.cn/invokexml.do?sx=showpatent_cn&sf=ShowPatent&spn=CN114419562A_CN&sx=showpatent_cn&sv=f0ba3885\",\"CN114419562A\")","v":"CN114419562A"},"CN202011079488.3","CN",null,"车辆运行状态检测模型的训练方法、检测方法、装置","本发明实施例公开了一种车辆运行状态检测模型的训练方法、检测方法、装置。通过获取车辆多个时刻的图像数据；之后使用预设的初始车辆运行状态检测模型中包括的多个卷积核对图像数据进行卷积计算，得到车辆多个时刻的时序化特征；然后根据车辆多个时刻的时序化特征确定车辆的第一运行状态信息；最后根据第一运行状态信息以及预先存储的与图像数据对应的第二运行状态信息，更新初始车辆运行状态检测模型的参数，得到训练后的车辆运行状态检测模型，以用于检测车辆运行状态。本发明实施例解决了目前的技术方案中存在的无法准确识别车辆行驶方向的问题，从而实现准确识别车辆的行驶方向。","一种车辆运行状态检测模型的训练方法，其特征在于，所述训练方法包括： 　　获取车辆多个时刻的图像数据； 　　使用预设的初始车辆运行状态检测模型中包括的多个卷积核对所述图像数据进行卷积计算，得到车辆多个时刻的时序化特征； 　　根据所述车辆多个时刻的时序化特征确定车辆的第一运行状态信息； 　　根据所述第一运行状态信息以及预先存储的与所述图像数据对应的第二运行状态信息，更新所述初始车辆运行状态检测模型的参数，得到训练后的车辆运行状态检测模型。","","中移（成都）信息通信科技有限公司 |\n中国移动通信集团有限公司","中移成都信息通信科技有限公司|中国移动通信集团有限公司","中移成都信息通信科技有限公司|中国移动通信集团有限公司","孙文超 |\n李超 |\n张李秋 |\n何明","孙文超","","2020/10/10","2022/04/29","2022/04/29","","G06V 20/56|G06K  9/62|G06N  3/04|G06N  3/08|G06V 10/774|G06V 10/764","G06V 20/56","","",11,6,7,14,"0.88","","","","","","","CN","",0,0,0,0,0,0,0,"0.0",0,0,0,0,"",0,0,"目标检测算法 |\n目标识别 |\n模式识别 |\n特征提取 |\n检测模型 |\n分类方法 |\n训练方法 |\n特征数据 |\n识别效率 |\n人工智能","复杂场景 |\n光流法 |\n实际场景 |\n目标跟踪算法 |\n帧间差分法 |\n背景差分法 |\n目标定位 |\n检测目标 |\n灰度值分布 |\n图像数据输入","车辆检测 |\n道路环境 |\n自动驾驶技术 |\n自动驾驶汽车 |\n视觉计算","边界框 |\n卷积计算 |\netch recipe |\n尺度变化 |\n原始图像 |\n去除图像","","","公开","2022.04.29 公开 公开\n\n2022.05.20 实质审查的生效 实质审查的生效\n申请日=2020.10.10","","北京东方亿思专利代理有限责任公司; 彭琼","四川省","610041 四川省成都市中国（四川）自由贸易试验区成都高新区交子大道575号J座6楼"]
[{"$f":"HYPERLINK(\"https://www.patentics.cn/invokexml.do?sx=showpatent_cn&sf=ShowPatent&spn=CN114422865A_CN&sx=showpatent_cn&sv=442527c2\",\"CN114422865A\")","v":"CN114422865A"},"CN202011077881.9","CN",null,"数据传输方法、装置、设备及存储介质","本申请实施例提供一种数据传输方法、装置、设备及存储介质。该方法包括：获取医疗设备的显示图像；根据医疗设备对应的目标区域信息识别显示图像中的目标区域，得到目标区域的图像数据；向医院设备发送目标区域的图像数据。根据本申请实施例，能够获取并传输显示图像中目标区域的图像数据，即用户关心的图像数据，避免无用数据的获取与传输，提高数据传输效率。","一种数据传输方法，其特征在于，所述方法包括： 　　获取医疗设备的显示图像； 　　根据所述医疗设备对应的目标区域信息识别所述显示图像中的目标区域，得到所述目标区域的图像数据； 　　向医院设备发送所述目标区域的图像数据。","","中移（成都）信息通信科技有限公司 |\n中国移动通信集团有限公司","中移成都信息通信科技有限公司|中国移动通信集团有限公司","中移成都信息通信科技有限公司|中国移动通信集团有限公司","刘展 |\n赵小溪 |\n黄承基","刘展","","2020/10/10","2022/04/29","2022/04/29","","H04N 21/647|H04L 67/06","H04N 21/647","","",10,4,7,8,"1.38","","","","","","","CN","",0,0,0,0,0,0,0,"0.0",0,0,0,0,"",0,0,"数据传输设备 |\n数据传输装置 |\n数据传输方法 |\n传输信息 |\n数据发送单元 |\n数据转换单元 |\n数据发送模块 |\n动态调整编码 |\n数据量 |\n质量参数","数据传输量 |\n数据传输系统 |\n数据传输效率 |\n同步传输 |\n数据传输过程 |\n远程连接 |\n无线网络接入 |\n传输协议 |\n通讯协议","处理单元 |\n应用处理器 |\n外部设备 |\n图像输出 |\n图像输入接口 |\n区域信息 |\n发送图像数据","服务器 |\n获取显示 |\n接口获取 |\n交互接口","","","公开","2022.04.29 公开 公开\n\n2022.05.20 实质审查的生效 实质审查的生效\n申请日=2020.10.10","","北京东方亿思专利代理有限责任公司; 彭琼","四川省","610041 四川省成都市中国（四川）自由贸易试验区成都高新区交子大道575号J座6楼"]
[{"$f":"HYPERLINK(\"https://www.patentics.cn/invokexml.do?sx=showpatent_cn&sf=ShowPatent&spn=CN114389943A_CN&sx=showpatent_cn&sv=bd359f1c\",\"CN114389943A\")","v":"CN114389943A"},"CN202011136639.4","CN",null,"一种网络配置方法、装置、设备及计算机存储介质","本发明实施例提供了一种网络配置方法、装置、设备及计算机存储介质。方法应用于核心网设备，方法包括：获取用户设备对应的网络接入标识与切片信息集合的关联关系信息；以及，向用户设备发送存储能力查询信息，以用于用户设备根据存储能力查询信息反馈存储能力反馈信息；接收存储能力反馈信息；若存储能力反馈信息包括用户设备有保存网络接入标识与切片信息集合的关联关系信息的存储能力，则向用户设备发送配置更新指令，以用于用户设备存储网络接入标识与切片信息集合的关联关系信息。本发明实施例能够有效避免非公共网络无线资源的浪费，也使非公共网络业务的授权用户的用户设备顺利接入非公共网络。","一种网络配置方法，其特征在于，所述方法应用于核心网设备，所述方法包括： 　　获取用户设备对应的网络接入标识与切片信息集合的关联关系信息；以及，向所述用户设备发送存储能力查询信息，以用于所述用户设备根据所述存储能力查询信息反馈存储能力反馈信息； 　　接收所述存储能力反馈信息； 　　若所述存储能力反馈信息包括所述用户设备有保存网络接入标识与切片信息集合的关联关系信息的存储能力，则向所述用户设备发送配置更新指令，所述配置更新指令包括网络接入标识与切片信息集合的关联关系信息，以用于所述用户设备存储所述网络接入标识与切片信息集合的关联关系信息。","","中移（成都）信息通信科技有限公司 |\n中国移动通信集团有限公司","中移成都信息通信科技有限公司|中国移动通信集团有限公司","中移成都信息通信科技有限公司|中国移动通信集团有限公司","朱磊 |\n唐小勇 |\n罗柯 |\n游正朋","朱磊","2020/10/22","2020/10/22","2022/04/22","2022/04/22","","H04L 41/0803|H04L 41/0813","H04L 41/0803","","",10,6,6,15,"0.75","","","","","","","CN","",0,0,0,0,0,0,0,"0.0",0,0,0,0,"WO2022083698A1",1,2,"网络切片 |\n移动性管理 |\n网络选择 |\n网络功能 |\n5g核心网 |\n网络部署 |\n业务管理功能","核心网设备 |\n配置更新 |\n发送配置 |\n广播消息 |\n释放用户设备 |\n接收用户设备 |\n用户设备发送","egr支管 |\n用户终端设备 |\n移动通信网络","网络配置方法 |\n接收核心网 |\n请求接入网络 |\n网络接入请求 |\n网络名称 |\n新用户设备 |\n网络接入信息 |\n控制用户设备 |\n公共陆地移动网 |\n网络配置设备 |\n网络接入标识","","","公开","2022.04.22 公开 公开\n\n2022.05.10 实质审查的生效 实质审查的生效\n申请日=2020.10.22","","北京东方亿思专利代理有限责任公司; 彭琼","四川省","610041 四川省成都市中国（四川）自由贸易试验区成都高新区交子大道575号J座6楼"]
[{"$f":"HYPERLINK(\"https://www.patentics.cn/invokexml.do?sx=showpatent_cn&sf=ShowPatent&spn=CN114385809A_CN&sx=showpatent_cn&sv=c31d2bb7\",\"CN114385809A\")","v":"CN114385809A"},"CN202011135995.4","CN",null,"实体文本提取模型的训练方法、装置及设备","本申请实施例提供了一种实体文本提取模型的训练方法、装置及设备，该方法包括：获取训练样本集，训练样本集包括第一样本集和第二样本集；针对每个训练样本，分别执行以下操作：将原始文本输入第一模型，输出目标实体文本；将问题模板文本和目标实体文本输入第二模型，输出目标问题文本；根据目标实体文本及其对应的实体标签文本、目标问题文本及其对应的问题模板文本生成指标数据；当指标数据不满足预设阈值时，调整第一模型参数和第二模型参数；返回将原始文本输入第一模型，直至指标数据满足预设阈值，将第一模型确定为实体文本提取模型；本申请实施例能够解决现有技术中基于深度学习进行实体抽取的方法的性能较差的问题。","一种实体文本提取模型的训练方法，其特征在于，包括： 　　获取训练样本集，所述训练样本集包括第一样本集和第二样本集； 　　所述第一样本集包括多个第一训练样本，每个所述第一训练样本包括原始文本和其对应的多个实体标签文本； 　　所述第二样本集包括多个第二训练样本，每个所述第二训练样本包括根据所述实体标签文本生成的问题模板文本； 　　针对每个训练样本，分别执行以下操作： 　　将所述原始文本输入第一模型，输出目标实体文本； 　　将所述问题模板文本和所述目标实体文本输入第二模型，输出目标问题文本； 　　根据所述目标实体文本及其对应的所述实体标签文本、所述目标问题文本及其对应的所述问题模板文本生成指标数据； 　　当所述指标数据不满足预设阈值时，调整所述第一模型参数和所述第二模型参数； 　　返回所述将所述原始文本输入第一模型，直至所述指标数据满足预设阈值，将所述第一模型确定为所述实体文本提取模型。","","中移（成都）信息通信科技有限公司 |\n中国移动通信集团有限公司","中移成都信息通信科技有限公司|中国移动通信集团有限公司","中移成都信息通信科技有限公司|中国移动通信集团有限公司","柳岸 |\n马靖博 |\n袁磊 |\n黄承基","柳岸","","2020/10/22","2022/04/22","2022/04/22","","G06F 16/35|G06F 40/295|G06N  3/04|G06N  3/08","G06F 16/35","","",12,6,7,19,"0.70","","","","","","","CN","",0,0,0,0,0,0,0,"0.0",0,0,0,0,"",0,0,"命名实体识别 |\n抽取方法 |\n训练语料 |\n训练文本 |\n文本向量 |\n自然语言处理 |\n原始文本 |\n文本构建 |\n知识图谱 |\n目标文本 |\n专名识别 |\n输入文本 |\n序列到序列 |\n机器阅读理解","向量输入 |\n条件随机场模型 |\n提取模型 |\n训练模型 |\n循环神经网络 |\n训练数据集 |\n训练样本集 |\n神经网络模型 |\n卷积神经网络","d-海因酶 |\n语言模型参数 |\n前馈神经网络","深度学习方法","","","公开","2022.04.22 公开 公开\n\n2022.05.10 实质审查的生效 实质审查的生效\n申请日=2020.10.22","","北京东方亿思专利代理有限责任公司; 彭琼","四川省","610041 四川省成都市中国（四川）自由贸易试验区成都高新区交子大道575号J座6楼"]
[{"$f":"HYPERLINK(\"https://www.patentics.cn/invokexml.do?sx=showpatent_cn&sf=ShowPatent&spn=CN114385644A_CN&sx=showpatent_cn&sv=d44f6148\",\"CN114385644A\")","v":"CN114385644A"},"CN202011134883.7","CN",null,"维度数据处理方法、装置、设备及存储介质","本申请实施例提供了一种维度数据处理方法、装置、设备及存储介质，第一方面，该维度数据处理方法包括：获取应用系统源数据库数据；将应用系统源数据库数据加载到操作型数据存储ODS层中；将维度版本字段添加到ODS层中，得到目标维度数据；将目标维度数据导入Hive层中；本申请实施例解决了现有技术中大数据仓库处理缓慢变化维数据的性能较差的问题。","一种维度数据处理方法，其特征在于，包括： 　　获取应用系统源数据库数据； 　　将所述应用系统源数据库数据加载到操作型数据存储ODS层中； 　　将维度版本字段添加到ODS层中，得到目标维度数据； 　　将所述目标维度数据导入Hive层中。","","中移（成都）信息通信科技有限公司 |\n中国移动通信集团有限公司","中移成都信息通信科技有限公司|中国移动通信集团有限公司","中移成都信息通信科技有限公司|中国移动通信集团有限公司","张聪 |\n李泽源 |\n周剑 |\n邱裕鹤 |\n秦正","张聪","","2020/10/21","2022/04/22","2022/04/22","","G06F 16/23|G06F 16/2458|G06F 16/25|G06F 16/27|G06F 16/28","G06F 16/23","","",10,4,7,10,"1.10","","","","","","","CN","",0,0,0,0,0,0,0,"0.0",0,0,0,0,"",0,0,"数据库数据 |\n关系数据库 |\n关系型 |\n数据抽取 |\n海量数据 |\n数据导入 |\n数据模型 |\n数据仓库系统 |\n数据分层 |\n导入模块 |\n大型数据库 |\n维度建模 |\n数据仓库技术 |\n星型模型 |\n报表系统 |\n数据质量","数据加载 |\n快照数据 |\n数据装载 |\n存储过程 |\n数据保存 |\n数据同步 |\n更新逻辑 |\n大容量存储器","事实表 |\n数据倾斜 |\n数据库实例 |\n表结构 |\n维度数据","分层架构 |\n数据处理方法","","","公开","2022.04.22 公开 公开\n\n2022.05.10 实质审查的生效 实质审查的生效\n申请日=2020.10.21","","北京东方亿思专利代理有限责任公司; 彭琼","四川省","610041 四川省成都市中国（四川）自由贸易试验区成都高新区交子大道575号J座6楼"]
[{"$f":"HYPERLINK(\"https://www.patentics.cn/invokexml.do?sx=showpatent_cn&sf=ShowPatent&spn=CN114363796A_CN&sx=showpatent_cn&sv=205d536c\",\"CN114363796A\")","v":"CN114363796A"},"CN202011061865.0","CN",null,"牲畜离群判断方法、装置、电子设备及计算机存储介质","本发明实施例提供了一种牲畜离群判断方法、装置、电子设备及计算机存储介质。该牲畜离群判断方法，包括：获取牲畜群中各个牲畜的位置信息；针对牲畜群中的每一个牲畜，计算牲畜与其他牲畜之间的总距离，得到总距离集合；将总距离集合中的最小总距离对应的牲畜的位置信息，确定为牲畜群的中心点；依次确定中心点与各个牲畜之间的目标距离；若目标距离满足预设离群条件，则确定牲畜离群。根据本发明实施例的牲畜离群判断方法、装置、电子设备及计算机存储介质，能够较低成本地判断牲畜是否离群。","一种牲畜离群判断方法，其特征在于，包括： 　　获取牲畜群中各个牲畜的位置信息； 　　针对所述牲畜群中的每一个牲畜，计算所述牲畜与其他牲畜之间的总距离，得到总距离集合； 　　将所述总距离集合中的最小总距离对应的牲畜的位置信息，确定为所述牲畜群的中心点； 　　依次确定所述中心点与各个所述牲畜之间的目标距离； 　　若所述目标距离满足预设离群条件，则确定所述牲畜离群。","","中移（成都）信息通信科技有限公司 |\n中国移动通信集团有限公司","中移成都信息通信科技有限公司|中国移动通信集团有限公司","中移成都信息通信科技有限公司|中国移动通信集团有限公司","卢国君","卢国君","","2020/09/30","2022/04/15","2022/04/15","","H04W  4/02|H04W  4/029|H04W  4/30|H04L 67/52|H04L 67/55|A01K 29/00","H04W  4/02","","",10,4,7,10,"1.10","","","","","","","CN","",0,0,0,0,0,0,0,"0.0",0,0,0,0,"",0,0,"定位终端 |\n地理位置信息 |\n定位数据 |\n距离阈值 |\n定位设备 |\n定位信息 |\n距离计算","报警方法 |\n牧群 |\n设备识别号 |\nequipment identifier |\n报警请求 |\n报警规则 |\n光纤介质 |\n云端存储","agp |\n判断搜索 |\n报警平台 |\n采集定位","硬件设备 |\n大容量存储器 |\n电可擦除 |\neeprom |\n服务器 |\n传输信息 |\nassets |\n通信接口 |\ncentral processing unit |\n只读存储器","","","公开","2022.04.15 公开 公开\n\n2022.05.03 实质审查的生效 实质审查的生效\n申请日=2020.09.30","","北京东方亿思专利代理有限责任公司; 彭琼","四川省","610041 四川省成都市中国（四川）自由贸易试验区成都高新区交子大道575号J座6楼"]
[{"$f":"HYPERLINK(\"https://www.patentics.cn/invokexml.do?sx=showpatent_cn&sf=ShowPatent&spn=CN114360513A_CN&sx=showpatent_cn&sv=dc503d18\",\"CN114360513A\")","v":"CN114360513A"},"CN202011057608.X","CN",null,"一种音频识别方法、装置、计算设备及存储介质","本发明实施例公开了一种音频识别方法、装置、计算设备及存储介质，该方法可以包括：获取第一音频中的语音音频，语音音频包括多帧语音音频信号；基于语音音频和目标耳蜗听觉模型，确定与多帧语音音频信号相关的伽玛通频率倒谱信息；其中，伽玛通频率倒谱信息包括多帧语音音频信号中相邻的至少两帧语音音频信号的关联伽玛通频率倒谱信息和多帧语音音频信号中每帧语音音频信号的伽玛通频率倒谱信息；根据伽玛通频率倒谱信息和每帧语音音频信号的基音频率特征，识别语音音频中至少一个目标对象对应的音频。以解决现有技术中音频识别效率低的问题。","一种音频识别方法，其特征在于，所述方法包括： 　　获取第一音频中的语音音频，所述语音音频包括多帧语音音频信号； 　　基于所述语音音频和目标耳蜗听觉模型，确定与所述多帧语音音频信号相关的伽玛通频率倒谱信息；其中，所述伽玛通频率倒谱信息包括所述多帧语音音频信号中相邻的至少两帧语音音频信号的关联伽玛通频率倒谱信息和所述多帧语音音频信号中每帧语音音频信号的伽玛通频率倒谱信息； 　　根据所述伽玛通频率倒谱信息和所述每帧语音音频信号的基音频率特征，识别所述语音音频中至少一个目标对象对应的音频。","","中移（成都）信息通信科技有限公司 |\n中国移动通信集团有限公司","中移成都信息通信科技有限公司|中国移动通信集团有限公司","中移成都信息通信科技有限公司|中国移动通信集团有限公司","窦文 |\n张李秋 |\n李超","窦文","","2020/09/30","2022/04/15","2022/04/15","","G10L 15/06|G10L 15/08|G10L 15/20|G10L 25/24","G10L 15/06","","",13,4,10,13,"1.09","","","","","","","CN","",0,0,0,0,0,0,0,"0.0",0,0,0,0,"",0,0,"声学特征 |\n语音特征 |\nlipoprotein binding |\nd-海因酶 |\n特征提取模块 |\n特征融合模块 |\n优化模型参数 |\n循环神经网络 |\n神经网络模型","带噪语音 |\nheteroarylene group |\ngas permeable material |\n基音频率 |\n含噪语音 |\n帧语音信号","听觉模型 |\n语音基音 |\n语音提取 |\n语音序列 |\n语音降噪 |\n语音频谱 |\n语音识别过程 |\n语音音频信号 |\n语音信号处理 |\n语音信号转换 |\ngde算法","语音环境 |\n说话人识别 |\n语音识别技术 |\n语音识别能力","","","公开","2022.04.15 公开 公开\n\n2022.05.03 实质审查的生效 实质审查的生效\n申请日=2020.09.30","","北京东方亿思专利代理有限责任公司; 彭琼","四川省","610041 四川省成都市中国（四川）自由贸易试验区成都高新区交子大道575号J座6楼"]
[{"$f":"HYPERLINK(\"https://www.patentics.cn/invokexml.do?sx=showpatent_cn&sf=ShowPatent&spn=CN114339744A_CN&sx=showpatent_cn&sv=7ad64e55\",\"CN114339744A\")","v":"CN114339744A"},"CN202011078296.0","CN",null,"一种通信方法、装置、设备及存储介质","本申请公开了一种通信方法、装置、设备及存储介质，具体为：在5G专网中，第一用户端与第二用户端进行信道探测，确定对应的信道特征信息；第一用户端利用预设量化算法，对所述信道特征信息进行量化处理，得到所述信道特征信息对应的第一量化值；第一用户端根据所述第一量化值，利用预设密钥算法与第二用户端进行密钥协商，确定会话密钥；第一用户端基于会话密钥与第二用户端进行通信。根据本申请实施例，能够增强无线信道安全性，提升5G专网通信传输的安全性。","一种通信方法，其特征在于，所述方法应用于5G专网，包括： 　　第一用户端与第二用户端进行信道探测，确定对应的信道特征信息； 　　第一用户端利用预设量化算法，对所述信道特征信息进行量化处理，得到所述信道特征信息对应的第一量化值； 　　第一用户端根据所述第一量化值，利用预设密钥算法与第二用户端进行密钥协商，确定会话密钥； 　　所述第一用户端基于所述会话密钥与所述第二用户端进行通信。","","中移（成都）信息通信科技有限公司 |\n中国移动通信集团有限公司","中移成都信息通信科技有限公司|中国移动通信集团有限公司","中移成都信息通信科技有限公司|中国移动通信集团有限公司","何明 |\n兰天 |\n宋琪 |\n苏自翔 |\n王俊 |\n张力","何明","","2020/10/10","2022/04/12","2022/04/12","","H04W 12/0431|H04W 12/00|H04W 24/08|H04B 17/30|H04B 17/318","H04W 12/0431","","",10,4,8,17,"0.65","","","","","","","CN","",0,0,0,0,0,0,0,"0.0",0,0,0,0,"",0,0,"衰落信道 |\n小尺度衰落 |\n合法信道 |\n多径衰落 |\n信道探测 |\n多普勒扩展 |\n相干时间 |\n单输入单输出 |\n信道脉冲响应","信道特征信息 |\n无线信道特征 |\n窃听信道 |\n线性最小均方误差 |\n误码率性能 |\n信道特征值 |\nhemicyanine dye |\n多径时延扩展 |\n信道特征参数 |\n瑞利衰落模型 |\n无线信道模型 |\n白色高斯噪声 |\n无线空间信道 |\n无线信道参数 |\n误码率曲线图","无线通信信道 |\n通信方法 |\n通信双方","比特误码率 |\n接收信号强度值","","","公开","2022.04.12 公开 公开\n\n2022.04.29 实质审查的生效 实质审查的生效\n申请日=2020.10.10","","北京东方亿思专利代理有限责任公司; 贺晨笛","四川省","610041 四川省成都市中国（四川）自由贸易试验区成都高新区交子大道575号J座6楼"]
[{"$f":"HYPERLINK(\"https://www.patentics.cn/invokexml.do?sx=showpatent_cn&sf=ShowPatent&spn=CN114328503A_CN&sx=showpatent_cn&sv=b91a3c79\",\"CN114328503A\")","v":"CN114328503A"},"CN202011065167.8","CN",null,"基于哈希表管理数据的方法、装置、设备及存储介质","本发明实施例提供了一种基于哈希表管理数据的方法、装置、设备及存储介质，该方法包括：获取目标数据；根据预设策略确定目标数据对应的关键码；通过第一哈希表对应的第一哈希函数计算关键码，以获取关键码对应的索引地址；获取索引地址对应的第二哈希表；通过第二哈希表对应的第二哈希函数计算关键码，以获取关键码对应的存储地址；将目标数据存储在存储地址对应的存储位置；本发明实施例能够解决现有技术中内存缓存效率较低的技术问题。","一种基于哈希表管理数据的方法，其特征在于，所述哈希表包括第一哈希表和多个第二哈希表，所述第一哈希表包括多个索引地址，每个所述索引地址均关联有一个所述第二哈希表，每个所述第二哈希表均包括多个存储地址，所述方法包括： 　　获取目标数据； 　　根据预设策略确定所述目标数据对应的关键码； 　　通过所述第一哈希表对应的第一哈希函数计算所述关键码，以获取所述关键码对应的所述索引地址； 　　获取所述索引地址对应的所述第二哈希表； 　　通过所述第二哈希表对应的第二哈希函数计算所述关键码，以获取所述关键码对应的所述存储地址； 　　将所述目标数据存储在所述存储地址对应的存储位置。","","中移（成都）信息通信科技有限公司 |\n中国移动通信集团有限公司","中移成都信息通信科技有限公司|中国移动通信集团有限公司","中移成都信息通信科技有限公司|中国移动通信集团有限公司","赵博 |\n罗旋 |\n张勇 |\n杨了","赵博","","2020/09/30","2022/04/12","2022/04/12","","G06F 16/22|G06F 16/23|G06F 16/2455|G06F 16/2457","G06F 16/22","","",12,4,5,12,"1.07","","","","","","","CN","",0,0,0,0,0,0,0,"0.0",0,0,0,0,"",0,0,"数据访问 |\n更新数据 |\n内存数据库 |\n内存空间 |\n数据更新 |\n查询数据 |\n数据缓存 |\n查询效率 |\n数据库数据 |\n目标数据 |\n数据查询 |\n管理数据 |\n修改操作 |\n数据库存储","存储位置 |\n地址存储 |\n数据结构 |\n大容量存储器 |\n存储器总线","数据存储地址 |\n索引地址 |\n并发操作 |\n哈希表结构 |\nequipment identifier","内存缓存 |\n缓存方法 |\n访问效率 |\n缓存技术 |\n数据处理效率","","","公开","2022.04.12 公开 公开\n\n2022.04.29 实质审查的生效 实质审查的生效\n申请日=2020.09.30","","北京东方亿思专利代理有限责任公司; 彭琼","四川省","610041 四川省成都市中国（四川）自由贸易试验区成都高新区交子大道575号J座6楼"]
[{"$f":"HYPERLINK(\"https://www.patentics.cn/invokexml.do?sx=showpatent_cn&sf=ShowPatent&spn=CN114255201A_CN&sx=showpatent_cn&sv=943fd123\",\"CN114255201A\")","v":"CN114255201A"},"CN202010952171.X","CN",null,"一种图像分类方法、装置、设备及计算机存储介质","本发明实施例提供了一种图像分类方法、装置、设备及计算机存储介质。该方法包括：获取训练图像；基于卷积神经网络中的第一卷积神经网络层对训练图像进行卷积计算，得到第一特征图；基于卷积神经网络中的第二卷积神经网络层对第一特征图进行卷积计算，得到第二特征图；基于卷积神经网络中的第三卷积神经网络层拼接第二特征图、预先获取的裸眼视力向量以及预先获取的矫正视力向量，得到五维向量；基于五维向量对卷积神经网络进行训练，得到图像分类模型。该模型不仅能够提取图像中的特征信息，还以患者矫正视力与裸眼视力作为辅助诊断因素，综合图像与患者的相关数据，提高了分类准确度。","一种图像分类模型训练方法，其特征在于，所述方法包括： 　　获取训练图像； 　　基于卷积神经网络中的第一卷积神经网络层对所述训练图像进行卷积计算，得到第一特征图； 　　基于所述卷积神经网络中的第二卷积神经网络层对所述第一特征图进行卷积计算，得到第二特征图，其中，所述卷积计算用于对所述第一特征图进行特征图裁剪，所述第二特征图是所述第一特征图进行裁剪后的特征图； 　　基于所述卷积神经网络中的第三卷积神经网络层拼接所述第二特征图、预先获取的裸眼视力向量以及预先获取的矫正视力向量，得到五维向量； 　　基于所述五维向量对所述卷积神经网络进行训练，得到图像分类模型。","","中移（成都）信息通信科技有限公司 |\n中国移动通信集团有限公司","中移成都信息通信科技有限公司|中国移动通信集团有限公司","中移成都信息通信科技有限公司|中国移动通信集团有限公司","王旭浩 |\n杨了 |\n胡冉杰 |\n马靖博 |\n黄承基","王旭浩","","2020/09/11","2022/03/29","2022/03/29","","G06T  7/00|G06V 10/774|G06V 10/764|G06V 10/82|G06K  9/62|G06N  3/04|G06N  3/08","G06T  7/00","","",12,6,8,14,"0.96","","","","","","","CN","",0,0,0,0,0,0,0,"0.0",0,0,0,0,"",0,0,"训练图像 |\n语义分割 |\n眼底图像 |\n图像特征提取 |\n提取图像 |\n目标检测 |\n图像特征信息 |\n待处理图像","池化操作 |\n最大池化 |\n卷积计算 |\n卷积模块 |\n池化处理 |\n图像分类方法 |\n显著性检测 |\n分类准确度 |\n图像分类装置","卷积神经网络 |\n神经网络训练 |\n全连接层 |\n神经网络层 |\n模型训练方法 |\n分类模型 |\nsoftmax函数 |\n训练模块 |\n特征向量 |\n训练数据 |\n归一化处理","糖尿病视网膜病变","","","公开","2022.03.29 公开 公开\n\n2022.04.15 实质审查的生效 实质审查的生效\n申请日=2020.09.11","","北京东方亿思专利代理有限责任公司; 彭琼","四川省","610041 四川省成都市中国（四川）自由贸易试验区成都高新区交子大道575号J座6楼"]
[{"$f":"HYPERLINK(\"https://www.patentics.cn/invokexml.do?sx=showpatent_cn&sf=ShowPatent&spn=CN114202494A_CN&sx=showpatent_cn&sv=d982cae8\",\"CN114202494A\")","v":"CN114202494A"},"CN202010899451.9","CN",null,"基于细胞分类模型分类细胞的方法、装置及设备","本申请实施例提供了一种基于细胞分类模型分类细胞的方法、装置及设备，该基于细胞分类模型分类细胞的方法包括：获取目标细胞图像；将目标细胞图像输入第一卷积神经网络进行特征提取，输出多个第一粗分类特征；将多个第一粗分类特征与目标细胞图像输入拼接层进行特征拼接，输出拼接特征；将拼接特征输入第二卷积神经网络进行特征提取，输出多个精分类特征；将多个精分类特征输入第一卷积神经网络进行特征提取，输出多个第二粗分类特征，多个第二粗分类特征包括目标粗分类特征，目标粗分类特征标识有目标细胞图像的粗分类结果；本申请实施例能够解决现有的肿瘤细胞分类模型对细胞分类精度较低的问题。","一种基于细胞分类模型分类细胞的方法，其特征在于，所述细胞分类模型包括，级联的第一卷积神经网络、拼接层第和二卷积神经网络； 　　所述方法包括： 　　获取目标细胞图像； 　　将所述目标细胞图像输入所述第一卷积神经网络进行特征提取，输出多个第一粗分类特征； 　　将所述多个第一粗分类特征与所述目标细胞图像输入所述拼接层进行特征拼接，输出拼接特征； 　　将所述拼接特征输入所述第二卷积神经网络进行特征提取，输出多个精分类特征，所述多个精分类特征包括目标精分类特征，所述目标精分类特征标识有所述目标细胞图像的精分类结果； 　　将所述多个精分类特征输入所述第一卷积神经网络进行特征提取，输出多个第二粗分类特征，所述多个第二粗分类特征包括目标粗分类特征，所述目标粗分类特征标识有所述目标细胞图像的粗分类结果。","","中移（成都）信息通信科技有限公司 |\n中国移动通信集团有限公司","中移成都信息通信科技有限公司|中国移动通信集团有限公司","中移成都信息通信科技有限公司|中国移动通信集团有限公司","杨了 |\n杨适睿 |\n唐明轩 |\n左东奇 |\n唐晓霁","杨了","","2020/08/31","2022/03/18","2022/03/18","","G06T  7/00|G06V 10/774|G06V 10/764|G06V 10/82|G06K  9/62","G06T  7/00","","",10,5,7,17,"0.66","","","","","","","CN","",0,0,0,0,0,0,0,"0.0",0,0,0,0,"",0,0,"卷积神经网络 |\n训练分类器 |\n神经网络模型 |\n训练样本集 |\n分类模型 |\n特征输入 |\n训练方法 |\n模型训练 |\n深度学习 |\n类别标签 |\ngprs信号 |\n特征提取模块 |\n特征生成 |\n图像输入","训练特征 |\n输出特征 |\n交叉熵损失函数 |\n全连接层 |\n全局特征 |\n分类精度 |\n级联神经网络 |\n特征拼接 |\n反向传播 |\n粗分类特征","目标模型 |\n最大类间方差法","计算机辅助诊断系统","","","公开","2022.03.18 公开 公开\n\n2022.04.05 实质审查的生效 实质审查的生效\n申请日=2020.08.31","","北京东方亿思专利代理有限责任公司; 彭琼","四川省","610041 四川省成都市中国（四川）自由贸易试验区成都高新区交子大道575号J座6楼"]
[{"$f":"HYPERLINK(\"https://www.patentics.cn/invokexml.do?sx=showpatent_cn&sf=ShowPatent&spn=CN114202664A_CN&sx=showpatent_cn&sv=2f5d1771\",\"CN114202664A\")","v":"CN114202664A"},"CN202010897037.4","CN",null,"突变扫频数据修正方法、装置、设备及计算机存储介质","本申请实施例提供了一种突变扫频数据修正方法、装置、设备及计算机存储介质，该突变扫频数据修正方法包括：获取突变扫频数据相应的路段的情景标记；当情景标记满足修正条件时，获取历史扫频数据；根据历史扫频数据修正突变扫频数据；本申请实施例的突变扫频数据修正方法、装置、设备及计算机存储介质，首先获取突变扫频数据相应的路段的情景标记，在判断出情景标记满足修正条件时，获取历史扫频数据，再根据所述历史扫频数据修正所述突变扫频数据，实现了扫频数据中异常扫频数据的修复。","一种突变扫频数据修正方法，其特征在于，包括： 　　获取突变扫频数据相应的路段的情景标记； 　　当所述情景标记满足修正条件时，获取历史扫频数据； 　　根据所述历史扫频数据修正所述突变扫频数据。","","中移（成都）信息通信科技有限公司 |\n中国移动通信集团有限公司","中移成都信息通信科技有限公司|中国移动通信集团有限公司","中移成都信息通信科技有限公司|中国移动通信集团有限公司","胡楠 |\n何明 |\n郭洋","胡楠","","2020/08/31","2022/03/18","2022/03/18","","G06V 10/72|G06V 10/82|G06V 20/00|G06K  9/62|G06N  3/04","G06V 10/72","","",10,4,4,8,"1.36","","","","","","","CN","",0,0,0,0,0,0,0,"0.0",0,0,0,0,"",0,0,"真实数据 |\n数据预处理 |\n数据缺失 |\n修正模块 |\nguided-mode resonance effect |\n特征数据 |\n历史数据 |\n异常数据","gun propellant |\n数据训练 |\nlstm层 |\n神经网络 |\n输出结果 |\n数据输入 |\n权重矩阵 |\nlstm模型 |\nxt输入 |\n过拟合 |\n输出信息 |\nsigmoid函数 |\nwih","运算过程 |\n双曲正切函数 |\n修正方法 |\n神经元连接 |\n矩阵相乘","可编程逻辑电路 |\nisa |\n工业标准架构 |\n光纤介质 |\n外围组件","","","公开","2022.03.18 公开 公开\n\n2022.04.05 实质审查的生效 实质审查的生效\n申请日=2020.08.31","","北京东方亿思专利代理有限责任公司; 彭琼","四川省","610041 四川省成都市中国（四川）自由贸易试验区成都高新区交子大道575号J座6楼"]
[{"$f":"HYPERLINK(\"https://www.patentics.cn/invokexml.do?sx=showpatent_cn&sf=ShowPatent&spn=CN114187224A_CN&sx=showpatent_cn&sv=3c849436\",\"CN114187224A\")","v":"CN114187224A"},"CN202010863223.6","CN",null,"肺部疾病识别模型的训练方法、肺部疾病识别方法及装置","本申请公开了一种肺部疾病识别模型的训练方法、肺部疾病识别方法及装置。具体包括：获取电子计算机断层扫描CT图像样本，其中，所述CT图像样本包括样本CT图像和样本CT图像的样本标签；根据预设第一截取条件，对CT图像样本进行截取操作，得到包含病症区域的第一体数据；将第一体数据输入待训练的肺部疾病识别模型的第一双路径网络，确定病症区域的位置信息；根据预设第二截取条件和位置信息，对第一体数据进行截取操作，得到第二体数据；将第二体数据输入待训练的肺部疾病识别模型的目标分类网络，进行迭代训练，得到目标肺部疾病识别模型。根据本申请实施例，可以提高肺部疾病识别模型的训练速度。","一种肺部疾病识别模型的训练方法，其特征在于，包括： 　　获取电子计算机断层扫描CT图像样本，其中，所述CT图像样本包括样本CT图像和样本CT图像的样本标签； 　　根据预设第一截取条件，对所述CT图像样本进行截取操作，得到包含病症区域的第一体数据； 　　将所述第一体数据输入待训练的肺部疾病识别模型的第一双路径网络，确定所述病症区域的位置信息； 　　根据预设第二截取条件和所述位置信息，对所述第一体数据进行截取操作，得到第二体数据； 　　将所述第二体数据输入待训练的肺部疾病识别模型的目标分类网络，进行迭代训练，得到目标肺部疾病识别模型。","","中移（成都）信息通信科技有限公司 |\n中国移动通信集团有限公司","中移成都信息通信科技有限公司|中国移动通信集团有限公司","中移成都信息通信科技有限公司|中国移动通信集团有限公司","左东奇 |\n胡冉杰 |\n杨了 |\n唐明轩 |\n黄承基","左东奇","","2020/08/25","2022/03/15","2022/03/15","","G06T  7/00","G06T  7/00","","",15,7,10,20,"0.83","","","","","","","CN","",0,0,0,0,0,0,0,"0.0",0,0,0,0,"",0,0,"图像样本 |\n卷积网络 |\n卷积神经网络 |\n提取特征 |\n特征提取 |\n目标检测方法 |\n分类网络 |\n残差网络 |\n提取网络 |\n深度学习模型 |\n分类识别 |\n方法训练 |\n识别准确率","卷积操作 |\n最大池化 |\n训练样本 |\n交叉熵损失函数 |\n网络输入 |\n迭代训练 |\nguaran gum |\n归一化处理 |\n逻辑回归模型","目标分类 |\n模型识别 |\n模型训练方法","battery behavior |\n图像预处理过程","","","公开","2022.03.15 公开 公开\n\n2022.04.01 实质审查的生效 实质审查的生效\n申请日=2020.08.25","","北京东方亿思专利代理有限责任公司; 彭琼","四川省","610041 四川省成都市中国（四川）自由贸易试验区成都高新区交子大道575号J座6楼"]
[{"$f":"HYPERLINK(\"https://www.patentics.cn/invokexml.do?sx=showpatent_cn&sf=ShowPatent&spn=CN114189907A_CN&sx=showpatent_cn&sv=a8606688\",\"CN114189907A\")","v":"CN114189907A"},"CN202010858857.2","CN",null,"服务质量QoS配置方法、装置、设备及介质","本发明实施例提供了服务质量QoS配置方法、装置、设备及介质。该服务质量QoS配置方法包括：下发服务质量QoS管理信息至基站，基站是连接移动边缘计算MEC设备的基站；其中，QoS管理信息包括小区标识符列表、用户信息、QoS参数和业务信息，小区标识符列表中的一个小区标识符对应一个基站，QoS管理信息用于指示基站创建与其连接的用户设备UE之间的至少一个虚拟承载。本发明实施例能够降低网络改造和建设的维护复杂度和成本，以及解决QoS保障存在的时延问题。","一种服务质量QoS配置方法，其特征在于，应用于服务器，所述方法包括： 　　下发服务质量QoS管理信息至基站，所述基站是连接移动边缘计算MEC设备的基站；其中，所述QoS管理信息包括小区标识符列表、用户信息、QoS参数和业务信息，所述小区标识符列表中的一个小区标识符对应一个所述基站，所述QoS管理信息用于指示所述基站创建与其连接的用户设备UE之间的至少一个虚拟承载。","","中移（成都）信息通信科技有限公司 |\n中国移动通信集团有限公司","中移成都信息通信科技有限公司|中国移动通信集团有限公司","中移成都信息通信科技有限公司|中国移动通信集团有限公司","王彦 |\n杜建伟","王彦","","2020/08/24","2022/03/15","2022/03/15","","H04W 28/24|H04L 41/5003","H04W 28/24","","",12,6,10,19,"0.71","","","","","","","CN","",0,0,0,0,0,0,0,"0.0",0,0,0,0,"",0,0,"qos参数 |\n分组数据汇聚协议 |\n业务承载 |\ns1接口 |\nmulti-service switch |\n核心网网元 |\n无线承载 |\n配置更新 |\n下行数据包 |\n演进型基站 |\n签约用户 |\n下行用户 |\n移动用户标识 |\n服务质量类别标识","服务网关 |\n虚拟承载 |\n互联网协议第6版 |\n传输层协议 |\n上行业务数据流 |\n互联网协议第4版 |\ndiameter协议 |\n配置设备","3gpp标准 |\n服务质量qos |\n通信链路 |\n第三代合作伙伴项目","地址解析协议 |\n端到端业务 |\n网际互连协议 |\n传输控制协议/网际协议","","","公开","2022.03.15 公开 公开\n\n2022.04.01 实质审查的生效 实质审查的生效\n申请日=2020.08.24","","北京东方亿思专利代理有限责任公司; 彭琼","四川省","610041 四川省成都市中国（四川）自由贸易试验区成都高新区交子大道575号J座6楼"]
[{"$f":"HYPERLINK(\"https://www.patentics.cn/invokexml.do?sx=showpatent_cn&sf=ShowPatent&spn=CN114153307A_CN&sx=showpatent_cn&sv=62aa2b50\",\"CN114153307A\")","v":"CN114153307A"},"CN202010921231.1","CN",null,"场景区块化处理方法、装置、电子设备及计算机存储介质","本发明实施例提供了一种场景区块化处理方法、装置、电子设备及计算机存储介质。该场景区块化处理方法，包括：根据预设模型，建立虚拟场景；获取实际场景的布局信息；根据布局信息，对虚拟场景进行区块化处理。根据本发明实施例的场景区块化处理方法、装置、电子设备及计算机存储介质，能够提高虚拟现实的安全性。","一种场景区块化处理方法，其特征在于，包括： 　　根据预设模型，建立虚拟场景； 　　获取实际场景的布局信息； 　　根据所述布局信息，对所述虚拟场景进行区块化处理。","","中移（成都）信息通信科技有限公司 |\n中国移动通信集团有限公司","中移成都信息通信科技有限公司|中国移动通信集团有限公司","中移成都信息通信科技有限公司|中国移动通信集团有限公司","曾琦娟 |\n唐健明 |\n彭丹 |\n郑伟 |\n曾艳","曾琦娟","","2020/09/04","2022/03/08","2022/03/08","","G06F  3/01|G06T 19/00","G06F  3/01","","",10,4,7,6,"1.84","","","","","","","CN","",0,0,0,0,0,0,0,"0.0",0,0,0,0,"",0,0,"equipment identifier |\n云渲染 |\n渲染参数 |\n布局信息","现实场景 |\n虚拟场景 |\n场景区域 |\n虚拟现实 |\n虚拟目标 |\n头显 |\n目标图 |\n实际场景","工业标准架构 |\n前端总线 |\n映射虚拟 |\n加速图形端口 |\nerom","处理器 |\n多个总线 |\n固件 |\n电子设备 |\n代码段 |\n大容量存储器 |\ncentral processing unit |\n处理单元 |\nisa |\n存储器总线 |\nasic |\n设备组件 |\n外围组件","","","公开","2022.03.08 公开 公开\n\n2022.03.25 实质审查的生效 实质审查的生效\n申请日=2020.09.04","","北京东方亿思专利代理有限责任公司; 彭琼","四川省","610041 四川省成都市中国（四川）自由贸易试验区成都高新区交子大道575号J座6楼"]
[{"$f":"HYPERLINK(\"https://www.patentics.cn/invokexml.do?sx=showpatent_cn&sf=ShowPatent&spn=CN114155594A_CN&sx=showpatent_cn&sv=717537c0\",\"CN114155594A\")","v":"CN114155594A"},"CN202010823720.3","CN",null,"行为识别方法、装置、设备和存储介质","本申请实施例提供了一种行为识别方法、装置、设备和存储介质，该方法包括：获取当前时刻对应的第一图像；在第一图像包含目标对象的情况下，获取当前时刻之后的多帧第二图像；确定多帧第二图像中的包含目标对象的目标图像；在目标图像数量与第二图像数量的比值大于预设阈值的情况下，向正方阵模型输入第一图像和多帧第二图像，得到正方阵图像；向训练好的行为识别模型输入正方阵图像，得到目标对象的行为识别结果。本申请能够解决无法实现目标对象行为的精准识别的问题。","一种行为识别方法，其特征在于，包括： 　　获取当前时刻对应的第一图像； 　　在所述第一图像包含目标对象的情况下，获取所述当前时刻之后的多帧第二图像； 　　确定所述多帧第二图像中的包含所述目标对象的目标图像； 　　在目标图像数量与第二图像数量的比值大于预设阈值的情况下，向正方阵模型输入所述第一图像和所述多帧第二图像，得到正方阵图像； 　　向训练好的行为识别模型输入所述正方阵图像，得到所述目标对象的行为识别结果。","","中移（成都）信息通信科技有限公司 |\n中国移动通信集团有限公司","中移成都信息通信科技有限公司|中国移动通信集团有限公司","中移成都信息通信科技有限公司|中国移动通信集团有限公司","孙文超 |\n李超 |\n张李秋","孙文超","","2020/08/17","2022/03/08","2022/03/08","","G06V 40/20|G06V 10/62|G06V 10/764|G06V 10/774|G06V 10/82|G06K  9/62|G06N  3/04|G06N  3/08","G06V 40/20","","",10,4,7,12,"0.92","","","","","","","CN","",0,0,0,0,0,0,0,"0.0",0,0,0,0,"",0,0,"目标识别 |\n模式识别 |\n计算机视觉 |\n人工智能技术","图像特征 |\n特征提取 |\n深度学习 |\n提取特征 |\n目标检测模型 |\n图像输入 |\n卷积神经网络 |\n神经网络模型 |\n分类模型 |\n学习方法 |\n模型训练方法 |\n前馈神经网络 |\n人工神经网络 |\n行为识别模型 |\n神经网络分类 |\n输入训练样本","识别方法 |\n识别精度 |\n识别效果 |\neye exam","识别图像 |\n图像识别技术","","","公开","2022.03.08 公开 公开\n\n2022.03.25 实质审查的生效 实质审查的生效\n申请日=2020.08.17","","北京东方亿思专利代理有限责任公司; 彭琼","四川省","610041 四川省成都市中国（四川）自由贸易试验区成都高新区交子大道575号J座6楼"]
[{"$f":"HYPERLINK(\"https://www.patentics.cn/invokexml.do?sx=showpatent_cn&sf=ShowPatent&spn=CN215954365U_CN&sx=showpatent_cn&sv=714b7297\",\"CN215954365U\")","v":"CN215954365U"},"CN202121263581.X","CN",null,"一种信息管理设备","本实用新型公开了一种信息管理设备，所述信息管理设备包括：存放信息的信息终端；容置所述信息终端的箱体，所述箱体的侧面或顶面开设有操作所述信息终端的操作窗口，所述箱体设置有用于封闭所述操作窗口的封闭板；与所述封闭板连接的第一驱动部件，所述第一驱动部件具有打开所述操作窗口的打开状态和关闭所述操作窗口的关闭状态；对操作者进行身份识别的密钥识别仪；控制部件，所述密钥识别仪、所述第一驱动部件均与所述控制部件电气连接，所述控制部件能够根据所述密钥识别仪的触发信息控制所述第一驱动部件运动，以驱动所述封闭板从所述关闭状态切换至所述打开状态。本实用新型的信息管理设备，信息不容易丢失、更安全。","一种信息管理设备，其特征在于，所述信息管理设备包括： 　　存放信息的信息终端； 　　容置所述信息终端的箱体，所述箱体的侧面或顶面开设有操作所述信息终端的操作窗口，所述箱体设置有用于封闭所述操作窗口的封闭板； 　　与所述封闭板连接的第一驱动部件，所述第一驱动部件具有打开所述操作窗口的打开状态和关闭所述操作窗口的关闭状态； 　　对操作者进行身份识别的密钥识别仪； 　　控制部件，所述密钥识别仪、所述第一驱动部件均与所述控制部件电气连接，所述控制部件能够根据所述密钥识别仪的触发信息控制所述第一驱动部件运动，以驱动所述封闭板从所述关闭状态切换至所述打开状态。","","中移（成都）信息通信科技有限公司 |\n中国移动通信集团有限公司","中移成都信息通信科技有限公司|中国移动通信集团有限公司","中移成都信息通信科技有限公司|中国移动通信集团有限公司","柏银 |\n黄铁脉 |\n唐丽娜 |\n杨开睿 |\n张知弦","柏银","","2021/06/07","2022/03/04","2022/03/04","2022/03/04","G07C  9/00|B65D 25/10|B65D 81/26","G07C  9/00","","",10,1,0,19,"0.53","","","","","","","CN","",0,0,0,0,0,0,0,"0.0",0,0,0,0,"",0,0,"录入信息 |\n存放信息 |\n档案 |\n信息录入 |\n纸质文件 |\n信息存储 |\n核对 |\n信息查询 |\n查询信息 |\n通讯信息 |\n私密 |\n显示查询 |\n填写 |\n记录信息 |\n口令 |\n登记 |\n人事部","管理柜 |\n读取设备 |\n信息管理设备 |\n身份识别 |\n识别仪 |\n双重保障","输入信息 |\n信息输入 |\n控制部件 |\n信息显示 |\n信息终端","箱体设置 |\n箱体内 |\n操作窗口","","","有效","2022.03.04 授权 授权","","北京派特恩知识产权代理事务所; 姚璐;张颖玲","四川省","610041 四川省成都市中国（四川）自由贸易试验区成都高新区和乐二街150号1号楼2单元"]
[{"$f":"HYPERLINK(\"https://www.patentics.cn/invokexml.do?sx=showpatent_cn&sf=ShowPatent&spn=CN114120715A_CN&sx=showpatent_cn&sv=f4be8abf\",\"CN114120715A\")","v":"CN114120715A"},"CN202010898958.2","CN",null,"低空飞行器防碰撞的方法、装置、设备及计算机存储介质","本发明实施例提供了一种低空飞行器防碰撞的方法、装置、设备及计算机存储介质，方法包括：接收预设碰撞检测区域中至少一个第一低空飞行器的第一飞行信息；接收至少一个第二边缘服务器发送的至少一个第二低空飞行器的第二飞行信息和第二通信时延；根据第一飞行信息和第二飞行信息，确定至少一个第一低空飞行器和至少一个第二低空飞行器中每两个低空飞行器之间的水平距离和高度差，当高度差小于预设高度，水平距离小于预设距离且航向夹角不大于预设航向夹角时，根据第一飞行信息、第一边缘服务器与至少一个第一低空飞行器的第一通信时延、第二飞行信息和第二通信时延生成预警信息，并向目标低空飞行器发送预警信息，可有效提高防碰撞系统的可靠性。","一种低空飞行器防碰撞的方法，其特征在于，所述方法应用于第一边缘服务器，所述方法包括： 　　接收预设碰撞检测区域中至少一个第一低空飞行器的第一飞行信息； 　　接收至少一个第二边缘服务器发送的预设碰撞检测区域中至少一个第二低空飞行器的第二飞行信息，以及所述第二边缘服务器与所述至少一个第二低空飞行器的第二通信时延； 　　根据所述第一飞行信息和所述第二飞行信息，确定所述至少一个第一低空飞行器和所述至少一个第二低空飞行器中每两个低空飞行器之间的水平距离、高度差及航向夹角； 　　当所述高度差小于预设高度，所述水平距离小于预设距离且所述航向夹角不大于预设航向夹角时，根据所述第一飞行信息、所述第一边缘服务器与所述至少一个第一低空飞行器的第一通信时延、所述第二飞行信息和所述第二通信时延生成预警信息，并向目标低空飞行器发送所述预警信息，其中，所述预警信息包括碰撞时间和碰撞位置。","","中移（成都）信息通信科技有限公司 |\n中国移动通信集团有限公司","中移成都信息通信科技有限公司|中国移动通信集团有限公司","中移成都信息通信科技有限公司|中国移动通信集团有限公司","唐兵 |\n陈盛伟 |\n周剑","唐兵","","2020/08/31","2022/03/01","2022/03/01","","G08G  5/04","G08G  5/04","","",12,4,9,17,"0.77","","","","","","","CN","",0,0,0,0,0,0,0,"0.0",0,0,0,0,"",0,0,"碰撞风险 |\n避障 |\n碰撞检测 |\n碰撞时间 |\n行驶轨迹 |\ndefective pixel correction |\n碰撞点 |\n实际距离 |\n安全距离 |\n碰撞预警系统 |\ncatalytic oxidation process |\n信息计算 |\n距离差 |\n相对距离 |\n行驶方向","ic电话 |\nidiopathic pain disorder |\nidentity number |\nidentification scheme","通信时延 |\n低空飞行器 |\n时延误差 |\nhandover procedure |\n总时延","catalytic ligand |\n基站覆盖范围 |\ncatalytic hydrogenation reaction |\n目标飞行器 |\n空域划分 |\nhandled signal","","","公开","2022.03.01 公开 公开\n\n2022.03.18 实质审查的生效 实质审查的生效\n申请日=2020.08.31","","北京东方亿思专利代理有限责任公司; 彭琼","四川省","610041 四川省成都市中国（四川）自由贸易试验区成都高新区交子大道575号J座6楼"]
[{"$f":"HYPERLINK(\"https://www.patentics.cn/invokexml.do?sx=showpatent_cn&sf=ShowPatent&spn=CN114093201A_CN&sx=showpatent_cn&sv=684df789\",\"CN114093201A\")","v":"CN114093201A"},"CN202010856332.5","CN",null,"飞行设备管理方法、装置、设备及存储介质","本申请公开了一种飞行设备管理方法、装置、设备及存储介质，该飞行设备管理方法包括：在飞行设备起飞之前，飞行设备向监管设备发送起飞请求，起飞请求包括第一鉴权信息，以用于监管设备根据第一鉴权信息对飞行设备进行鉴权，并在鉴权通过后，向飞行设备发送起飞信息；飞行设备接收到起飞信息，并执行起飞动作；在起飞之后，飞行设备获取信息发送条件；当信息发送条件满足预设条件时，飞行设备向监管设备发送实时飞行信息和第二鉴权信息，以用于监管设备根据实时飞行信息和第二鉴权信息生成控制信息；飞行设备接收到监管设备发送的控制信息；飞行设备执行与控制信息对应的飞行动作。根据本申请实施例，能够消除无人机飞行存在的安全隐患。","一种飞行设备管理方法，其特征在于，所述方法应用于飞行设备，所述方法包括： 　　在所述飞行设备起飞之前，所述飞行设备向监管设备发送起飞请求，所述起飞请求包括第一鉴权信息，以用于所述监管设备根据所述第一鉴权信息对所述飞行设备进行鉴权，并在鉴权通过后，向所述飞行设备发送起飞信息； 　　所述飞行设备接收到所述起飞信息，并执行起飞动作； 　　在起飞之后，所述飞行设备获取信息发送条件； 　　当所述信息发送条件满足预设条件时，所述飞行设备向所述监管设备发送实时飞行信息和第二鉴权信息，以用于所述监管设备根据所述实时飞行信息和所述第二鉴权信息生成控制信息； 　　所述飞行设备接收到所述监管设备发送的所述控制信息； 　　所述飞行设备执行与所述控制信息对应的飞行动作。","","中移（成都）信息通信科技有限公司 |\n中国移动通信集团有限公司","中移成都信息通信科技有限公司|中国移动通信集团有限公司","中移成都信息通信科技有限公司|中国移动通信集团有限公司","王文靖 |\n陈盛伟 |\n周剑","王文靖","","2020/08/24","2022/02/25","2022/02/25","","G08G  5/00","G08G  5/00","","",11,6,7,18,"0.68","","","","","","","CN","",0,0,0,0,0,0,0,"0.0",0,0,0,0,"",0,0,"鉴权模块 |\n数字身份 |\n签名发送 |\n身份标识信息 |\n公钥地址 |\n鉴权信息 |\n公钥加密算法 |\n发送鉴权 |\nisolex |\n认证方法 |\n校验结果 |\nemmons条件 |\n合法认证 |\n产品序列号","运营商节点 |\n监管权限 |\n设备获取信息 |\n备案信息 |\n起飞请求 |\n备案数据 |\nic电话 |\n设备管理方法","相应信息 |\n设备管理系统 |\n管理平台","联网设备 |\n身份信息 |\n云服务器 |\n信息发送","","","公开","2022.02.25 公开 公开\n\n2022.03.15 实质审查的生效 实质审查的生效\n申请日=2020.08.24","","北京东方亿思专利代理有限责任公司; 彭琼","四川省","610041 四川省成都市中国（四川）自由贸易试验区成都高新区交子大道575号J座6楼"]
[{"$f":"HYPERLINK(\"https://www.patentics.cn/invokexml.do?sx=showpatent_cn&sf=ShowPatent&spn=CN114092378A_CN&sx=showpatent_cn&sv=1fa33da2\",\"CN114092378A\")","v":"CN114092378A"},"CN202010770999.3","CN",null,"动物健康检测的方法、装置、设备及存储介质","本发明实施例公开了一种动物健康检测的方法、装置、设备及存储介质。通过获取第一目标图像，并提取第一目标图像中的动物排泄物图像信息，之后对动物排泄物图像信息进行形态和/或颜色识别，当识别所述动物排泄物图像信息得到的数据满足预设条件时，获取动物排泄物图像信息对应的动物标识信息，来对处于不健康状态的动物标识信息进行获取。本发明实施例解决了检测动物健康状况的过程中存在的检测效率低，适应性差的问题，提高了检测效率和检测适应性。","一种动物健康检测的方法，其特征在于，所述方法包括： 　　获取第一目标图像； 　　提取第一目标图像中的动物排泄物图像信息； 　　对所述动物排泄物图像信息进行形态和/或颜色识别； 　　当识别所述动物排泄物图像信息得到的数据满足预设条件时，获取所述动物排泄物图像信息对应的动物标识信息。","","中移（成都）信息通信科技有限公司 |\n中国移动通信集团有限公司","中移成都信息通信科技有限公司|中国移动通信集团有限公司","中移成都信息通信科技有限公司|中国移动通信集团有限公司","李泽源 |\n陈建 |\n周剑 |\n康恺 |\n吉玉娟","李泽源","","2020/08/04","2022/02/25","2022/02/25","","G06T  7/00|G06T  7/13|G06T  7/60|G06T  7/90|G06N  3/12","G06T  7/00","","",10,4,6,8,"1.37","","","","","","","CN","",0,0,0,0,0,0,0,"0.0",0,0,0,0,"",0,0,"背景点 |\n梯度方向 |\n轮廓点 |\n边缘点 |\nsobel算子 |\n梯度值 |\n连通区域 |\n像素点 |\n边缘像素 |\n搜索范围 |\n外接矩形 |\n轮廓图像 |\n边缘信息 |\n区域分割 |\nlipoprotein lipase gene |\n目标图像 |\ncanny边缘 |\n灰度化处理 |\n下边界","图像边界 |\n区域标记 |\n剩余图 |\nhome subscriber system |\n原始采集 |\n图像窗口","genetic algorithm |\n求取 |\n函数值 |\nsum","方差最小","","","公开","2022.02.25 公开 公开\n\n2022.03.15 实质审查的生效 实质审查的生效\n申请日=2020.08.04","","北京东方亿思专利代理有限责任公司; 彭琼","四川省","610041 四川省成都市中国（四川）自由贸易试验区成都高新区交子大道575号J座6楼"]
[{"$f":"HYPERLINK(\"https://www.patentics.cn/invokexml.do?sx=showpatent_cn&sf=ShowPatent&spn=CN114091043A_CN&sx=showpatent_cn&sv=478a6a2b\",\"CN114091043A\")","v":"CN114091043A"},"CN202010770749.X","CN",null,"一种相关性系数计算方法、装置、设备及计算机存储介质","本发明实施例提供了一种相关性系数计算方法、装置、设备及计算机存储介质。方法应用于第一设备，方法包括：基于同态加密算法获取公钥；通过公钥对第一特征变量进行同态加密，得到第二特征变量；向第二设备发送第二特征变量，以用于第二设备根据第二特征变量得到第一目标相关系数；接收第二设备发送的第一目标相关系数；使用公钥对应的私钥，对第一目标相关系数进行解密，得到第二目标相关系数。本发明实施例能够提高计算效率和降低计算时间，适用于多种相关性系数的计算。","一种相关性系数计算方法，其特征在于，所述方法应用于第一设备，所述方法包括： 　　基于同态加密算法获取公钥； 　　通过所述公钥对所述第一特征变量进行同态加密，得到第二特征变量； 　　向所述第二设备发送所述第二特征变量，以用于所述第二设备根据所述第二特征变量得到第一目标相关系数； 　　接收所述第二设备发送的所述第一目标相关系数； 　　使用所述公钥对应的私钥，对所述第一目标相关系数进行解密，得到第二目标相关系数。","","中移（成都）信息通信科技有限公司 |\n中国移动通信集团有限公司","中移成都信息通信科技有限公司|中国移动通信集团有限公司","中移成都信息通信科技有限公司|中国移动通信集团有限公司","游正朋 |\n唐小勇 |\n朱磊 |\n罗柯","游正朋","","2020/08/04","2022/02/25","2022/02/25","","G06F 21/60|G06F 21/62|H04L  9/00|H04L  9/08|H04L  9/40","G06F 21/60","","",14,6,10,14,"1.11","","","","","","","CN","",0,0,0,0,0,0,0,"0.0",0,0,0,0,"",0,0,"同态加密 |\ncyclic test |\ncyclative condensation |\n参与方 |\n密文 |\n明文数据 |\n加密数据 |\n公钥加密 |\n私钥解密 |\n加密处理 |\n加密模块 |\n数据安全","联邦 |\n计算开销 |\n计算效率 |\n数据隐私","目标变量 |\n特征变量 |\n归一化处理 |\n特征数据 |\n数据特征 |\n原始数据 |\n皮尔森相关 |\n学习模型 |\n模型训练","协方差 |\n组数据 |\n相关性系数 |\n相关系数","","","公开","2022.02.25 公开 公开\n\n2022.03.15 实质审查的生效 实质审查的生效\n申请日=2020.08.04","","北京东方亿思专利代理有限责任公司; 彭琼","四川省","610041 四川省成都市中国（四川）自由贸易试验区成都高新区交子大道575号J座6楼"]
[{"$f":"HYPERLINK(\"https://www.patentics.cn/invokexml.do?sx=showpatent_cn&sf=ShowPatent&spn=CN114095521A_CN&sx=showpatent_cn&sv=de1892dc\",\"CN114095521A\")","v":"CN114095521A"},"CN202010730255.9","CN",null,"一种遥感数据的存储方法、装置、设备及存储介质","本发明公开了一种遥感数据的存储方法、装置、设备及存储介质。所述遥感数据的存储方法，应用于服务器，包括：接收目标无人机发送的目标数据；其中，所述目标数据包括遥感数据和飞行数据；将所述遥感数据存储在星际文件系统IPFS中；将所述飞行数据以及所述遥感数据的哈希值存储在区块链中。根据本发明实施例，能够有效提高数据的准确性和可靠性，进而可以有效提高基于前述数据的分析结果的准确性。","一种遥感数据的存储方法，应用于服务器，其特征在于，包括： 　　接收目标无人机发送的目标数据；其中，所述目标数据包括遥感数据和飞行数据； 　　将所述遥感数据存储在星际文件系统IPFS中； 　　将所述飞行数据以及所述遥感数据的哈希值存储在区块链中。","","中移（成都）信息通信科技有限公司 |\n中国移动通信集团有限公司","中移成都信息通信科技有限公司|中国移动通信集团有限公司","中移成都信息通信科技有限公司|中国移动通信集团有限公司","李泽源 |\n周剑 |\n陈建 |\n徐晓东 |\n左莹莹","李泽源","","2020/07/27","2022/02/25","2022/02/25","","H04L 67/12|H04L 67/10|H04L  9/40|H04L 67/1097","H04L 67/12","","",12,6,10,12,"1.13","","","","","","","CN","",0,0,0,0,0,0,0,"0.0",0,0,0,0,"",0,0,"区块链 |\n不可篡改 |\n智能合约 |\n区块发送 |\n资产管理 |\n上链过程 |\n追溯数据 |\n目标服务器","存储方法 |\n信息存储 |\n数据存储 |\n文件上传 |\n目标数据 |\n分布式文件存储系统","唯一标识 |\n加密模块 |\n私钥解密 |\n注册模块 |\n密钥加密 |\n发送加密 |\n公钥加密 |\nisolated rabbit |\n公钥接收模块 |\n身份标识 |\n身份识别码 |\n密钥生成模块 |\n服务器接收 |\n密钥解密模块","私钥加密 |\n恶意篡改 |\n解密加密","","","公开","2022.02.25 公开 公开\n\n2022.03.15 实质审查的生效 实质审查的生效\n申请日=2020.07.27","","北京东方亿思专利代理有限责任公司; 彭琼","四川省","610041 四川省成都市中国（四川）自由贸易试验区成都高新区交子大道575号J座6楼"]
[{"$f":"HYPERLINK(\"https://www.patentics.cn/invokexml.do?sx=showpatent_cn&sf=ShowPatent&spn=CN114071648A_CN&sx=showpatent_cn&sv=883c1d4f\",\"CN114071648A\")","v":"CN114071648A"},"CN202010770457.6","CN",null,"信息配置方法、装置、设备及介质","本申请公开了一种信息配置方法、装置、设备及介质，涉及移动通信技术领域。其中，该信息配置方法应用于信息配置装置，信息配置装置包括第一模块和第二模块，该信息配置方法包括：第一模块接收对第一目标封闭接入组CAG的第一配置请求；第一模块根据第一配置请求，配置第一目标CAG的第一控制参数；第一模块将配置后的第一控制参数发送至第二模块；第二模块根据接收的第一控制参数，配置第一目标CAG的第二控制参数。根据本申请实施例，能够提高CAG的配置效率。","一种信息配置方法，其特征在于，所述方法应用于信息配置装置，所述信息配置装置包括第一模块和第二模块，所述方法包括： 　　第一模块接收对第一目标封闭接入组CAG的第一配置请求； 　　所述第一模块根据所述第一配置请求，配置第一目标CAG的第一控制参数； 　　所述第一模块将配置后的所述第一控制参数发送至第二模块； 　　所述第二模块根据接收的所述第一控制参数，配置所述第一目标CAG的第二控制参数。","","中移（成都）信息通信科技有限公司 |\n中国移动通信集团有限公司","中移成都信息通信科技有限公司|中国移动通信集团有限公司","中移成都信息通信科技有限公司|中国移动通信集团有限公司","朱磊 |\n唐小勇 |\n罗柯 |\n游正朋 |\n林岩","朱磊","2020/08/04","2020/08/04","2022/02/18","2022/02/18","","H04W 48/08|H04W 48/16","H04W 48/08","","",13,4,7,7,"2.00","","","","","","","CN","",0,0,0,0,0,0,0,"0.0",0,0,0,0,"WO2022028497A1",1,2,"网络配置 |\n网络功能 |\n接入控制策略 |\n核心网设备 |\n管理功能 |\n网络切片技术 |\n虚拟网络 |\n配置请求 |\n切片配置 |\n切片标识 |\n物理网络 |\n新用户设备","公共陆地移动网络 |\n通信链路 |\n第三代合作伙伴计划 |\negr支管 |\n小区接入网络 |\n封闭接入 |\n访问网络 |\n计算机网络","配置装置 |\n信息配置 |\n配置参数 |\n小区切换 |\n配置信息 |\n目标小区","多个总线 |\n通信接口 |\n外围组件","","","公开","2022.02.18 公开 公开\n\n2022.03.08 实质审查的生效 实质审查的生效\n申请日=2020.08.04","","北京东方亿思专利代理有限责任公司; 彭琼","四川省","610041 四川省成都市中国（四川）自由贸易试验区成都高新区交子大道575号J座6楼"]
[{"$f":"HYPERLINK(\"https://www.patentics.cn/invokexml.do?sx=showpatent_cn&sf=ShowPatent&spn=CN215819162U_CN&sx=showpatent_cn&sv=dfe63b13\",\"CN215819162U\")","v":"CN215819162U"},"CN202121325042.4","CN",null,"通讯基站通风系统","本申请公开了一种通讯基站通风系统。其中，该通讯基站通风系统包括：基站房体；至少两个沿所述基站房体的高度方向间隔设置的排风通道；其中，各所述排风通道之间互不连通，各所述排风通道上设置至少一个用于供所述基站房体内的气流导入至所述排风通道内的进气装置及至少一个用于将所述排风通道内的气流排出至所述基站房体之外的排气装置。可以基于沿基站房体的高度方向布置的至少两个独立工作的排风通道对基站房体内的气流进行排气，可以有效改善基站房体内垂直方向上的气流的换热均匀性，并增强换热效率，从而更好地满足通讯基站的散热需求。","一种通讯基站通风系统，其特征在于，包括： 　　基站房体； 　　至少两个沿所述基站房体的高度方向间隔设置的排风通道； 　　其中，各所述排风通道之间互不连通，各所述排风通道上设置至少一个用于供所述基站房体内的气流导入至所述排风通道内的进气装置及至少一个用于将所述排风通道内的气流排出至所述基站房体之外的排气装置。","","中移（成都）信息通信科技有限公司 |\n中国移动通信集团有限公司","中移成都信息通信科技有限公司|中国移动通信集团有限公司","中移成都信息通信科技有限公司|中国移动通信集团有限公司","黄铁脉 |\n柏银 |\n刘朋 |\n刘睿 |\n廖志红","黄铁脉","","2021/06/15","2022/02/11","2022/02/11","2022/02/11","H05K  7/20","H05K  7/20","","",10,1,0,9,"1.13","","","","","","","CN","",0,0,0,0,0,0,0,"0.0",0,0,0,0,"",0,0,"排气扇 |\n排风通道 |\n进风口 |\n热空气 |\n室内温度传感器 |\n基站通风系统 |\nmultimodal camera |\n房间 |\n热气流 |\n室外温度值","biot-savart定律 |\n通风散热 |\n扇叶","站房 |\n卡接连接 |\n卡接件 |\n舱体 |\n配合结构 |\n通讯基站","过滤气流 |\n进气装置 |\n控制排气装置 |\n基站房体 |\nhydrogen-rich water","","","有效","2022.02.11 授权 授权","","北京派特恩知识产权代理事务所; 姚文娴;张颖玲","四川省","610041 四川省成都市中国（四川）自由贸易试验区成都高新区和乐二街150号1号楼2单元"]
[{"$f":"HYPERLINK(\"https://www.patentics.cn/invokexml.do?sx=showpatent_cn&sf=ShowPatent&spn=CN113963685A_CN&sx=showpatent_cn&sv=531776f6\",\"CN113963685A\")","v":"CN113963685A"},"CN202010701470.6","CN",null,"基于自然语言处理的文档演示控制方法、装置及设备","本发明实施例提供了一种基于自然语言处理的文档演示控制方法、装置及设备，该基于自然语言处理的文档演示控制方法包括：获取实时语音；通过NLP处理实时语音生成语音语义特征信息；通过将语音语义特征信息与文档语义特征信息比对，确定语音语义特征信息对应的文档语义特征信息；根据确定到的文档语义特征信息，以及文档语义特征信息与操作指令的映射关系，确定目标操作指令；执行目标操作指令；本发明实施例能够根据用户的语音实时控制文档演示进度，解决了现有技术中文档演示控制方法便捷性较差的问题。","一种基于自然语言处理NLP的文档演示控制方法，其特征在于，包括： 　　获取实时语音； 　　通过NLP处理所述实时语音生成语音语义特征信息； 　　通过将所述语音语义特征信息与文档语义特征信息比对，确定所述语音语义特征信息对应的所述文档语义特征信息； 　　根据确定到的所述文档语义特征信息，以及所述文档语义特征信息与操作指令的映射关系，确定目标操作指令； 　　执行所述目标操作指令。","","中移（成都）信息通信科技有限公司 |\n中国移动通信集团有限公司","中移成都信息通信科技有限公司|中国移动通信集团有限公司","中移成都信息通信科技有限公司|中国移动通信集团有限公司","马靖博 |\n柳岸 |\n胡冉杰 |\n王旭浩 |\n黄承基","马靖博","","2020/07/20","2022/01/21","2022/01/21","","G10L 15/02|G10L 15/18|G10L 15/26|G06F  3/0484|G06F  3/16","G10L 15/02","","",12,4,5,14,"0.92","","","","","","","CN","",0,0,0,0,0,0,0,"0.0",0,0,0,0,"",0,0,"语义解析 |\n句子 |\n词性标注 |\n原句 |\n文本信息 |\n语句 |\n分词 |\n词语 |\n停用词 |\n文本位置 |\n语气词 |\n文本性 |\n段落","自然语言处理 |\nnlp |\n向量化 |\n词向量 |\n语义特征 |\ncrf模型 |\n条件随机场 |\n方法训练 |\n标注标准","语音识别 |\n语音转换 |\n语音语义 |\n语音处理 |\n用户语音 |\n语音控制","指令操作 |\n代码段","","","公开","2022.01.21 公开 公开\n\n2022.02.15 实质审查的生效 实质审查的生效\n申请日=2020.07.20","","北京东方亿思专利代理有限责任公司; 彭琼","四川省","610041 四川省成都市中国（四川）自由贸易试验区成都高新区交子大道575号J座6楼"]
[{"$f":"HYPERLINK(\"https://www.patentics.cn/invokexml.do?sx=showpatent_cn&sf=ShowPatent&spn=CN113950072A_CN&sx=showpatent_cn&sv=fc2b8a43\",\"CN113950072A\")","v":"CN113950072A"},"CN202010684996.8","CN",null,"网关分流的方法、装置、设备及存储介质","本发明实施例公开了一种网关分流的方法、装置、设备及存储介质。通过在接收到多接入边缘计算MEC设备的网际互连协议地址IP或MEC设备下线消息时，启动计时器开始计时；当计时器的计时时长超过第一预设时长时，无效IP或MEC设备下线消息。本发明实施例解决了分流策略自动化配置过程中存在的乒乓效应问题，实现无乒乓效应的分流策略自动化配置过程，保障了高可靠应用场景的业务连续性以及运营商绑定边缘计算平台的需求。","一种网关分流的方法，其特征在于，应用于网管设备，所述方法包括： 　　在接收到多接入边缘计算MEC设备的网际互连协议地址IP或MEC设备下线消息时，启动计时器开始计时； 　　当所述计时器的计时时长超过第一预设时长时，无效所述IP或所述MEC设备下线消息。","","中移（成都）信息通信科技有限公司 |\n中国移动通信集团有限公司","中移成都信息通信科技有限公司|中国移动通信集团有限公司","中移成都信息通信科技有限公司|中国移动通信集团有限公司","陈妍玉 |\n唐小勇 |\n陆宏霞 |\n朱磊","陈妍玉","","2020/07/16","2022/01/18","2022/01/18","","H04W 24/02|H04W 28/12","H04W 24/02","","",14,6,6,16,"0.95","","","","","","","CN","",0,0,0,0,0,0,0,"0.0",0,0,0,0,"",0,0,"网关配置 |\n网管设备 |\n网关执行 |\n网关接收 |\n心跳消息 |\n发送配置 |\nip分流 |\n心跳检测 |\n网关发送 |\n心跳信息 |\n发送响应 |\n触发网关 |\ndns查询请求 |\n域名系统协议 |\n注册认证过程","分流策略 |\n数据流量 |\n业务连续性 |\n设备分配 |\n分配带宽 |\n带宽需求 |\n数据分流 |\n基站转发","配置策略 |\n业务应用 |\n交互过程 |\n边缘计算 |\n策略配置","运营商网络 |\n网际互连协议 |\n通信链路 |\n移动通信网络","","","公开","2022.01.18 公开 公开\n\n2022.02.08 实质审查的生效 实质审查的生效\n申请日=2020.07.16","","北京东方亿思专利代理有限责任公司; 彭琼","四川省","610041 四川省成都市中国（四川）自由贸易试验区成都高新区交子大道575号J座6楼"]
[{"$f":"HYPERLINK(\"https://www.patentics.cn/invokexml.do?sx=showpatent_cn&sf=ShowPatent&spn=CN113949617A_CN&sx=showpatent_cn&sv=7be07787\",\"CN113949617A\")","v":"CN113949617A"},"CN202010684282.7","CN",null,"一种组网系统、方法、设备及计算机存储介质","本发明实施例提供一种组网系统、方法、设备及计算机存储介质。该组网系统包括业务处理模块和管理模块；管理模块，用于接收业务策略信息；根据业务策略信息，生成业务策略信息的业务处理策略和对应业务处理策略的指令，并向业务处理模块发送业务处理策略和指令；业务处理模块，用于根据指令，执行业务处理策略。本发明能够降低行业专网维护成本，简化网络复杂度，有利于实现行业专网的推广和应用。","一种组网系统，其特征在于，所述系统包括业务处理模块和管理模块； 　　所述管理模块，用于接收业务策略信息；根据所述业务策略信息，生成所述业务策略信息的业务处理策略和对应所述业务处理策略的指令，并向所述业务处理模块发送所述业务处理策略和所述指令； 　　所述业务处理模块，用于根据所述指令，执行所述业务处理策略。","","中移（成都）信息通信科技有限公司 |\n中国移动通信集团有限公司","中移成都信息通信科技有限公司|中国移动通信集团有限公司","中移成都信息通信科技有限公司|中国移动通信集团有限公司","陆宏霞 |\n唐小勇 |\n陈妍玉","陆宏霞","","2020/07/16","2022/01/18","2022/01/18","","H04L 41/0631|H04L 41/0695|H04L 41/0823|H04L 41/0893|H04L 41/0896","H04L 41/0631","","",12,4,1,6,"2.11","","","","","","","CN","",0,0,0,0,0,0,0,"0.0",0,0,0,0,"",0,0,"网络能力 |\n网络架构 |\n控制平面 |\n数据业务 |\n服务网关 |\n专用网络 |\n管理功能 |\n执行网络 |\n外部网络 |\ndeformation resistance |\n网络网关","用户业务 |\n域名系统 |\n网关资源 |\n应用层协议 |\n分流策略 |\n策略信息 |\ndns服务器 |\n互联网协议第6版 |\n管理策略 |\n核心网网元 |\n业务处理模块 |\n核心网设备 |\n传输网络层","组网方法 |\n边缘计算","移动网络 |\n无线接入网络 |\n无线访问网络 |\n通用分组无线服务 |\n移动通信网络 |\n电信基础设施","","","公开","2022.01.18 公开 公开\n\n2022.02.08 实质审查的生效 实质审查的生效\n申请日=2020.07.16","","北京东方亿思专利代理有限责任公司; 彭琼","四川省","610041 四川省成都市中国（四川）自由贸易试验区成都高新区交子大道575号J座6楼"]
[{"$f":"HYPERLINK(\"https://www.patentics.cn/invokexml.do?sx=showpatent_cn&sf=ShowPatent&spn=CN113947265A_CN&sx=showpatent_cn&sv=aba5aae0\",\"CN113947265A\")","v":"CN113947265A"},"CN202010680128.2","CN",null,"训练资源配置模型的方法、装置、设备及计算机存储介质","本发明实施例提供了一种训练资源配置模型的方法、装置、设备及计算机存储介质；该训练资源配置模型的方法包括：获取预设区域内所有医院的急救出车记录信息，急救出车记录信息包括：病人特征和急救资源；基于急救出车记录信息生成训练样本集，训练样本集指示出病人特征与急救资源的对应关系；基于训练样本集，训练神经网络模型作为资源配置模型；根据本发明实施例的训练资源配置模型的方法，能够根据急救出车记录信息训练出反映病人特征与急救资源映射的资源配置模型，利用该资源配置模型能够迅速且准确的得到待急救病人特征应配置的急救资源配置信息，解决了凭借人工经验决定急救资源配置不准确且缓慢的问题。","一种训练资源配置模型的方法，其特征在于，包括： 　　获取预设区域内所有医院的急救出车记录信息，所述急救出车记录信息包括：病人特征和急救资源； 　　基于所述急救出车记录信息生成训练样本集，所述训练样本集指示出所述病人特征与所述急救资源的对应关系； 　　基于所述训练样本集，训练神经网络模型作为资源配置模型。","","中移（成都）信息通信科技有限公司 |\n中国移动通信集团有限公司","中移成都信息通信科技有限公司|中国移动通信集团有限公司","中移成都信息通信科技有限公司|中国移动通信集团有限公司","胡冉杰 |\n杨了 |\n柳岸 |\n左东奇 |\n黄承基","胡冉杰","","2020/07/15","2022/01/18","2022/01/18","","G06Q 10/06|G16H 40/20|G06N  3/04|G06N  3/08","G06Q 10/06","","",11,6,7,12,"1.03","","","","","","","CN","",0,0,0,0,0,0,0,"0.0",0,0,0,0,"",0,0,"神经网络参数 |\n样本特征 |\n训练模块 |\n数据特征 |\n泛化性 |\n训练样本集 |\n新特征 |\n训练后 |\n训练神经网络模型 |\ncontents stream |\n全连接 |\n特征输入 |\nloss |\n原始样本 |\n特征预测 |\n归一化处理 |\nl1正则化 |\nmalaria incidence |\n病历 |\n神经网络输出 |\n训练资源 |\n语句","维度值 |\n资源配置模型 |\n节点个数","机器学习技术 |\n决策","","","","公开","2022.01.18 公开 公开\n\n2022.02.08 实质审查的生效 实质审查的生效\n申请日=2020.07.15","","北京东方亿思专利代理有限责任公司; 彭琼","四川省","610041 四川省成都市中国（四川）自由贸易试验区成都高新区交子大道575号J座6楼"]
[{"$f":"HYPERLINK(\"https://www.patentics.cn/invokexml.do?sx=showpatent_cn&sf=ShowPatent&spn=CN113947124A_CN&sx=showpatent_cn&sv=721a5525\",\"CN113947124A\")","v":"CN113947124A"},"CN202010615017.3","CN",null,"眼底彩色图像分类模型训练方法及眼底彩色图像分类方法","本发明实施例提供了一种眼底彩色图像分类模型训练方法及眼底彩色图像分类方法。该眼底彩色图像分类模型的训练方法，包括：获取不同类别的原始眼底彩色图像；对原始眼底彩色图像进行预处理，得到目标眼底彩色图像；将目标眼底彩色图像输入第一卷积神经网络，输出目标眼底彩色图像对应的眼底血管图像；获取目标眼底彩色图像对应的患者年龄特征和患者性别特征；利用目标眼底彩色图像、眼底血管图像、患者年龄特征和患者性别特征，对第二卷积神经网络进行模型训练，得到眼底彩色图像分类模型。根据本发明实施例，能够提高眼底彩色图像的筛查分类效率和准确率。","一种眼底彩色图像分类模型的训练方法，其特征在于，包括： 　　获取不同类别的原始眼底彩色图像； 　　对所述原始眼底彩色图像进行预处理，得到目标眼底彩色图像； 　　将所述目标眼底彩色图像输入第一卷积神经网络，输出所述目标眼底彩色图像对应的眼底血管图像； 　　获取所述目标眼底彩色图像对应的患者年龄特征和患者性别特征； 　　利用所述目标眼底彩色图像、所述眼底血管图像、所述患者年龄特征和所述患者性别特征，对第二卷积神经网络进行模型训练，得到眼底彩色图像分类模型。","","中移（成都）信息通信科技有限公司 |\n中国移动通信集团有限公司","中移成都信息通信科技有限公司|中国移动通信集团有限公司","中移成都信息通信科技有限公司|中国移动通信集团有限公司","杨了 |\n王旭浩 |\n柳岸 |\n胡冉杰 |\n黄承基","杨了","","2020/06/30","2022/01/18","2022/01/18","","G06K  9/62|G06T  7/00","G06K  9/62","","",11,6,9,10,"1.24","","","","","","","CN","",0,0,0,0,0,0,0,"0.0",0,0,0,0,"",0,0,"分割网络 |\n全局特征 |\n眼底图像 |\n图像特征提取 |\n彩色图像输入 |\n视网膜图像血管 |\n主干网络 |\ncyclodepsipeptide |\n血管分割 |\n图像预处理","卷积神经网络 |\n特征映射 |\n分类网络 |\n最大池化 |\n分类方法 |\n全连接层 |\n损失函数 |\n训练样本集 |\n训练方法 |\n分类准确率 |\n模型训练 |\n特征向量 |\n分类模型 |\n分类器学习 |\n改进神经网络","卷积操作 |\n卷积运算 |\n通道图像","深度学习技术","","","公开","2022.01.18 公开 公开\n\n2022.02.08 实质审查的生效 实质审查的生效\n申请日=2020.06.30","","北京东方亿思专利代理有限责任公司; 彭琼","四川省","610041 四川省成都市中国（四川）自由贸易试验区成都高新区交子大道575号J座6楼"]
[{"$f":"HYPERLINK(\"https://www.patentics.cn/invokexml.do?sx=showpatent_cn&sf=ShowPatent&spn=CN113934922A_CN&sx=showpatent_cn&sv=ffc3e6f6\",\"CN113934922A\")","v":"CN113934922A"},"CN202010674177.5","CN",null,"一种智能推荐的方法、装置、设备及计算机存储介质","本发明实施例提供了一种智能推荐的方法、装置、设备及计算机存储介质，其中，该方法包括：获取图片中错题标识对应的错题信息，从预先设置的题目数据库中筛选与错题信息对应的推荐题目，向用户的终端推送推荐题目。根据本发明实施例获取的错题信息，精准地提取错题，分析错题的知识点，基于错题的知识点筛选推荐题目，由于错题的识别提取更加准确，因此，基于错题的知识点筛选的推荐题目也更加准确，从而使用户能够快速、便捷、准确地获取大量与错题知识点相关的题目，有效提高了用户的学习效率。","一种智能推荐的方法，其特征在于，包括： 　　获取图片中错题标识对应的错题信息； 　　从预先设置的题目数据库中筛选与所述错题信息对应的推荐题目； 　　向用户的终端推送所述推荐题目。","","中移（成都）信息通信科技有限公司 |\n中国移动通信集团有限公司","中移成都信息通信科技有限公司|中国移动通信集团有限公司","中移成都信息通信科技有限公司|中国移动通信集团有限公司","孔令凯 |\n乔丽雯 |\n刘艳蕊 |\n邢荣荣 |\n杨育 |\n龚昌博 |\n王建佳","孔令凯","","2020/07/14","2022/01/14","2022/01/14","","G06F 16/9535|G06F 16/583","G06F 16/9535","","",10,4,6,10,"1.10","","","","","","","CN","",0,0,0,0,0,0,0,"0.0",0,0,0,0,"",0,0,"标注方法 |\n条件随机场 |\n文本识别 |\nd-瓜氨酸 |\n训练数据集 |\n神经网络结构 |\n循环神经网络 |\n深度学习方法 |\n深度神经网络 |\n神经网络模型 |\n卷积神经网络","原始文本 |\n语义匹配 |\n句法分析 |\n向量表示 |\n自然语言处理 |\n余弦相似度 |\n神经语言程序学 |\n知识图谱 |\n中文分词技术 |\n文本内容分析 |\n正向最大匹配 |\n逆向最大匹配","提取文本 |\ncyp3a基因 |\n分类神经网络 |\n上下文窗口 |\nap-1 binding |\n光学字符识别","相似度计算方法 |\n多层神经网络","","","公开","2022.01.14 公开 公开\n\n2022.02.01 实质审查的生效 实质审查的生效\n申请日=2020.07.14","","北京东方亿思专利代理有限责任公司; 彭琼","四川省","610041 四川省成都市中国（四川）自由贸易试验区成都高新区交子大道575号J座6楼"]
[{"$f":"HYPERLINK(\"https://www.patentics.cn/invokexml.do?sx=showpatent_cn&sf=ShowPatent&spn=CN113935385A_CN&sx=showpatent_cn&sv=a5ac7483\",\"CN113935385A\")","v":"CN113935385A"},"CN202010598347.6","CN",null,"一种图像识别模型的训练方法、图像识别方法及装置","本发明实施例提供了一种图像识别模型的训练方法、图像识别方法及装置。图像识别模型的训练方法包括：获取第一样本病理切片的切片图像和第一样本病理切片的切片图像的预设邻域图像；以及，获取切片图像的图像特征、预设邻域图像的图像特征和第一样本病理切片的切片图像对应的分类标签；将切片图像的图像特征和预设邻域图像的图像特征结合，得到待分类样本切片；根据待分类样本切片和分类标签，对预设分类模型进行训练，得到图像识别模型。本发明实施例能够降低在根据病理切片图像进行识别判断的计算复杂度，以及降低计算成本。","一种图像识别模型的训练方法，其特征在于，所述方法包括： 　　获取第一样本病理切片的切片图像和所述第一样本病理切片的切片图像的预设邻域图像；以及， 　　获取所述切片图像的图像特征、所述预设邻域图像的图像特征和所述第一样本病理切片的切片图像对应的分类标签； 　　将所述切片图像的图像特征和所述预设邻域图像的图像特征结合，得到待分类样本切片； 　　根据所述待分类样本切片和所述分类标签，对预设分类模型进行训练，得到图像识别模型。","","中移（成都）信息通信科技有限公司 |\n中国移动通信集团有限公司","中移成都信息通信科技有限公司|中国移动通信集团有限公司","中移成都信息通信科技有限公司|中国移动通信集团有限公司","胡冉杰 |\n王旭浩 |\n马靖博 |\n唐明轩 |\n黄承基","胡冉杰","","2020/06/28","2022/01/14","2022/01/14","","G06K  9/62|G06T  7/00","G06K  9/62","","",13,6,9,15,"0.96","","","","","","","CN","",0,0,0,0,0,0,0,"0.0",0,0,0,0,"",0,0,"图像特征 |\n图像输入 |\n图像识别模型 |\n图像识别方法 |\n分类样本 |\netch recipe","病理图像 |\n医学图像 |\n病灶区域 |\n乳腺癌病理 |\n病理切片图像 |\n乳腺癌淋巴转移 |\n计算机辅助诊断","提取特征 |\n正负样本 |\n使用训练 |\n特征提取模块 |\n网络模型 |\n深度学习 |\n训练样本 |\n提取模型 |\n支持向量机 |\n机器学习算法 |\ncyclic dipeptide |\n训练分类模型 |\n传统机器学习 |\n逻辑回归模型","残差网络 |\n输出特征 |\n归一化处理","","","公开","2022.01.14 公开 公开\n\n2022.02.01 实质审查的生效 实质审查的生效\n申请日=2020.06.28","","北京东方亿思专利代理有限责任公司; 彭琼","四川省","610041 四川省成都市中国（四川）自由贸易试验区成都高新区交子大道575号J座6楼"]
[{"$f":"HYPERLINK(\"https://www.patentics.cn/invokexml.do?sx=showpatent_cn&sf=ShowPatent&spn=CN113873266A&sx=showpatent_cn&sv=9003318e\",\"CN113873266A\")","v":"CN113873266A"},"CN202010616903.8","CN",null,"弹幕显示方法、用户终端、服务器、设备及存储介质","本发明实施例提供一种弹幕显示方法、用户终端、服务器、设备及存储介质。该方法应用于用户终端，包括：获取增强现实AR场景信息和用户输入的触发信息；响应于触发信息，向服务器发送弹幕获取请求，弹幕获取请求包括AR场景信息，以用于服务器确定与AR场景信息对应的目标弹幕信息；接收服务器发送的目标弹幕信息；显示目标弹幕信息。通过本发明实施例，能够实现用户查看其他用户针对AR内容的弹幕信息，进而基于AR内容进行实时的信息共享，提高用户体验。","一种弹幕显示方法，其特征在于，所述方法应用于用户终端，所述方法包括： 　　获取增强现实AR场景信息和用户输入的触发信息； 　　响应于所述触发信息，向服务器发送所述弹幕获取请求，所述弹幕获取请求包括所述AR场景信息，以用于所述服务器确定与所述AR场景信息对应的目标弹幕信息； 　　接收所述服务器发送的所述目标弹幕信息； 　　显示所述目标弹幕信息。","","中移（成都）信息通信科技有限公司 |\n中国移动通信集团有限公司","中移成都信息通信科技有限公司|中国移动通信集团有限公司","中移成都信息通信科技有限公司|中国移动通信集团有限公司","范涛 |\n曾琦娟 |\n唐健明 |\n彭丹 |\n张瑞","范涛","","2020/06/30","2021/12/31","2021/12/31","","H04N 21/2187|H04N 21/258|H04N 21/422|H04N 21/4415|H04N 21/4788|H04N 21/488|H04N 21/81|G06F  3/01","H04N 21/2187","","",15,6,11,12,"1.38","","","","","","发明公布","CN","",0,0,0,0,0,0,0,"0.0",0,0,0,0,"",0,0,"用户展示 |\n场景信息 |\n弹幕信息 |\n终端显示 |\n用户查看 |\n接收用户 |\n触发操作 |\n虚拟信息 |\n虚拟场景 |\n输入目标","内容获取 |\n教学内容 |\n视频播放 |\n语音内容 |\n增强现实 |\n用户观看 |\n互动方式 |\n课件内容 |\n实物影像","终端获取 |\n关键词信息 |\n弹幕数据 |\n关键词匹配 |\n获取终端 |\n标识获取 |\n触发信息 |\n终端类型 |\n接收服务器","语音输入 |\n用户输入 |\n用户显示","","","公开","2021.12.31 公开 公开\n\n2022.01.21 实质审查的生效 实质审查的生效\n申请日=2020.06.30","","北京东方亿思专利代理有限责任公司; 彭琼","四川省","610041 四川省成都市中国（四川）自由贸易试验区成都高新区交子大道575号J座6楼"]
[{"$f":"HYPERLINK(\"https://www.patentics.cn/invokexml.do?sx=showpatent_cn&sf=ShowPatent&spn=CN113852479A&sx=showpatent_cn&sv=782ae4c3\",\"CN113852479A\")","v":"CN113852479A"},"CN202010599875.3","CN",null,"一种安全网络构建方法、装置、设备和计算机存储介质","本发明实施例提供了一种安全网络构建方法、装置、设备和计算机存储介质，其中安全网络构建方法，应用于安全网络系统，系统包括：配置模块、网元查找模块和网元管理模块；安全网络构建方法包括：配置模块获取至少一个网络切片的配置信息，配置信息包括网络切片的第一安全等级参数；网元查找模块获取对应第一安全等级参数的至少一个目标标准网元；网元管理模块根据至少一个目标标准网元和至少一个目标安全网元，生成路由规则；网络管理模块根据路由规则、目标标准网元和目标安全网元，确定安全网络。本发明实施例在构建安全网络的过程中，不仅能够降低网络的复杂度，而且还能降低构建成本。","一种安全网络构建方法，其特征在于，应用于安全网络系统，所述系统包括：配置模块、网元查找模块和网元管理模块；所述方法包括： 　　所述配置模块获取至少一个网络切片的配置信息，所述配置信息包括网络切片的第一安全等级参数； 　　所述网元查找模块获取对应所述第一安全等级参数的至少一个目标标准网元； 　　所述网元管理模块根据所述至少一个目标标准网元和至少一个目标安全网元，生成路由规则； 　　所述网络管理模块根据所述路由规则、目标标准网元和所述目标安全网元，确定安全网络。","","中移（成都）信息通信科技有限公司 |\n中国移动通信集团有限公司 |\n中国电子科技集团公司第三十研究所 |\n楚天龙股份有限公司","中移成都信息通信科技有限公司|中国移动通信集团有限公司|中国电子科技集团有限公司|楚天龙股份有限公司","中移成都信息通信科技有限公司|中国移动通信集团有限公司|中国电子科技集团有限公司|楚天龙股份有限公司","兰天 |\n何明 |\n苏自翔 |\n叶雷 |\n郝记生","兰天","2020/06/28","2020/06/28","2021/12/28","2021/12/28","","H04L 12/24|H04L 29/06","H04L 12/24","","",13,4,10,14,"1.01","","","","","","发明公布","CN","",0,0,0,0,0,0,0,"0.0",0,0,0,0,"WO2022001004A1",1,2,"网络功能 |\n虚拟网络 |\n软件定义网络 |\n物理网络 |\n企业网络 |\n安全需求 |\n业务支持系统 |\n虚拟管理器 |\n操作支持系统","网络业务 |\n服务功能 |\n业务部署 |\n网络服务 |\n路由规则 |\n应用程序接口","网络能力 |\n网络接入 |\n标准网元 |\n会话管理功能 |\n网络切片技术","业务功能 |\n资源管理 |\n网元管理 |\n统一数据 |\n云计算管理平台 |\n虚拟化技术 |\n虚拟化管理 |\n生命周期管理 |\n策略管理模块 |\n业务运营支撑系统","","","公开","2021.12.28 公开 公开\n\n2022.01.14 实质审查的生效 实质审查的生效\n申请日=2020.06.28","","北京东方亿思专利代理有限责任公司; 彭琼","四川省","610041 四川省成都市中国（四川）自由贸易试验区成都高新区交子大道575号J座6楼"]
[{"$f":"HYPERLINK(\"https://www.patentics.cn/invokexml.do?sx=showpatent_cn&sf=ShowPatent&spn=CN113763254A&sx=showpatent_cn&sv=f883a09c\",\"CN113763254A\")","v":"CN113763254A"},"CN202010503374.0","CN",null,"一种图像处理方法、装置、设备及计算机存储介质","本发明公开了一种图像处理方法、装置、设备及计算机存储介质。该方法包括：获取第一图像、第一图像的景深、第一图像的成像光路中存在的预设介质的介质参数、散射系数和无穷远处的大气光值；根据无穷远处的大气光值、景深、介质参数和散射系数确定第一光值；根据第一光值对第一图像进行处理，得到第二图像。这里，光源经粒子散射形成的大气光(即第一光值)的变化量随着景深的增大而减小，所以有效抑制了预设介质对第二图像的影响。","一种图像处理方法，其中，其特征在于，所述方法包括： 　　获取第一图像、所述第一图像的景深、所述第一图像的成像光路中存在的预设介质的介质参数、散射系数和无穷远处的大气光值； 　　根据所述无穷远处的大气光值、所述景深、所述介质参数和所述散射系数确定第一光值； 　　根据所述第一光值对所述第一图像进行处理，得到第二图像。","","中移（成都）信息通信科技有限公司 |\n中国移动通信集团有限公司","中移成都信息通信科技有限公司|中国移动通信集团有限公司","中移成都信息通信科技有限公司|中国移动通信集团有限公司","周紫敏 |\n唐睿 |\n贾宏 |\n侯漫秋 |\n陈兴 |\n骆平","周紫敏","","2020/06/05","2021/12/07","2021/12/07","","G06T  5/00","G06T  5/00","","",8,4,5,9,"0.99","","","","","","发明公布","CN","",0,0,0,0,0,0,0,"0.0",0,0,0,0,"",0,0,"图像对比度 |\n反射图像 |\n清晰图像 |\n亮度图像 |\n图像亮度 |\n图像像素 |\n图像处理方法 |\n增强图像 |\n成像过程 |\n图像模糊 |\n恢复图像 |\nhomogenous transition |\n生成图像 |\n原始图像 |\n输出图像 |\n图像获取系统 |\n图像处理设备","色彩通道 |\n平滑图像 |\n像素处理","图像增强方法 |\n大气散射模型 |\nretinex算法 |\nhollow core photonic crystal fiber |\n图像色彩 |\ndodecylsulfate-polyacrylamide |\n系统成像 |\n图像处理效果","散射系数 |\n增强算法 |\n动态范围压缩","","","公开","2021.12.07 公开 公开\n\n2021.12.24 实质审查的生效 实质审查的生效\n申请日=2020.06.05","","北京东方亿思专利代理有限责任公司; 彭琼","四川省","610041 四川省成都市中国（四川）自由贸易试验区成都高新区交子大道575号J座6楼"]
[{"$f":"HYPERLINK(\"https://www.patentics.cn/invokexml.do?sx=showpatent_cn&sf=ShowPatent&spn=CN113763755A&sx=showpatent_cn&sv=7b44a85c\",\"CN113763755A\")","v":"CN113763755A"},"CN202010501227.X","CN",null,"三维警示围栏制作方法、航路规划方法、飞行调整方法","本发明实施例提供了一种三维警示围栏制作方法、航路规划方法、飞行调整方法。三维警示围栏制作方法包括：获取制作区域内的至少一个基站的位置信息和基站参数信息；在预设高度范围内，根据每个基站的位置信息和基站参数信息，确定至少一个预设高度的水平层的信号覆盖信息；根据预设的信号质量等级，在每个水平层的信号覆盖信息中，确定每个水平层对应的等级信号警示围栏；根据每个水平层的信号覆盖信息中的信号警示围栏，确定制作区域的三维警示围栏。本发明实施例通过制作三维警示围栏，能够获取准确、及时的飞行区域内的信号盲区，有效避免无人机进入信号盲区，保障无人机的飞行安全。","一种三维警示围栏制作方法，其特征在于，所述方法应用于信号警示围栏制作平台，所述方法包括： 　　获取制作区域内的至少一个基站的位置信息和基站参数信息； 　　在预设高度范围内，根据每个所述基站的位置信息和所述基站参数信息，确定至少一个预设高度的水平层的信号覆盖信息； 　　根据预设的信号质量等级，在每个所述水平层的信号覆盖信息中，确定每个所述水平层对应的等级信号警示围栏； 　　根据每个所述水平层的信号覆盖信息中的信号警示围栏，确定所述制作区域的三维警示围栏。","","中移（成都）信息通信科技有限公司 |\n中国移动通信集团有限公司","中移成都信息通信科技有限公司|中国移动通信集团有限公司","中移成都信息通信科技有限公司|中国移动通信集团有限公司","陈盛伟 |\n王文靖 |\n周剑 |\n苏郁","陈盛伟","2020/06/04","2020/06/04","2021/12/07","2021/12/07","","G08G  5/00|G01C 21/20|H04W  4/021","G08G  5/00","","",14,8,9,16,"0.98","","","","","","发明公布","CN","",0,0,0,0,0,0,0,"0.0",0,0,0,0,"WO2021243893A1",1,2,"禁飞区 |\nic设计业 |\nidiomarina baltica |\nide接口电路 |\n规划范围 |\nic水表 |\n路径规划 |\n三维地图 |\nic状态 |\nidentification phase |\nidentity location |\n电子围栏 |\n电子地图 |\n空中飞行 |\n地理信息 |\nidiopathic pain disorder |\n地图中标 |\n地理范围 |\nide接口转接电路 |\n信号覆盖信息 |\n全球定位系统 |\n航路规划方法","identity response |\n覆盖盲区 |\n信号盲区 |\n管制区域","天线方向图 |\n无线信号覆盖 |\n无线网络信号","无人机飞行控制系统","","","公开","2021.12.07 公开 公开\n\n2021.12.24 实质审查的生效 实质审查的生效\n申请日=2020.06.04","","北京东方亿思专利代理有限责任公司; 彭琼","四川省","610041 四川省成都市中国（四川）自由贸易试验区成都高新区交子大道575号J座6楼"]
[{"$f":"HYPERLINK(\"https://www.patentics.cn/invokexml.do?sx=showpatent_cn&sf=ShowPatent&spn=CN113765856A&sx=showpatent_cn&sv=4e831f13\",\"CN113765856A\")","v":"CN113765856A"},"CN202010500361.8","CN",null,"身份认证方法、装置、设备和介质","本发明实施例提供了一种身份认证方法、装置、设备和介质。该方法包括：获取待认证用户的第一身份标识、第一口令和第一生物特征；根据第一身份标识、第一口令、第一生物特征和第一随机数生成第一验证信息；向服务器发送第一验证信息，以用于服务器根据第一验证信息是否满足第一预设条件判断终端是否合法，在第一验证信息满足第一预设条件的情况下，服务器确定终端合法。根据本发明实施例提供的身份认证方法、装置、设备和介质，能够实现认证信息动态加密，增加被破解难度。","一种身份认证方法，其特征在于，应用于终端，包括： 　　获取待认证用户的第一身份标识、第一口令和第一生物特征； 　　根据所述第一身份标识、所述第一口令、所述第一生物特征和第一随机数生成第一验证信息； 　　向服务器发送所述第一验证信息，以用于所述服务器根据所述第一验证信息是否满足第一预设条件判断所述终端是否合法，在所述第一验证信息满足所述第一预设条件的情况下，所述服务器确定所述终端合法。","","中移（成都）信息通信科技有限公司 |\n中国移动通信集团有限公司","中移成都信息通信科技有限公司|中国移动通信集团有限公司","中移成都信息通信科技有限公司|中国移动通信集团有限公司","温翔 |\n何明 |\n郭洋","温翔","","2020/06/04","2021/12/07","2021/12/07","","H04L 29/06|H04L  9/32","H04L 29/06","","",21,6,19,12,"1.92","","","","","","发明公布","CN","",0,0,0,0,0,0,0,"0.0",0,0,0,0,"",0,0,"cycle per instruction |\n加密值 |\n加密参数 |\n共享密钥 |\ncyclic test |\n单向加密 |\n单向哈希函数 |\n中间参数","动态口令 |\nisochromene |\n合法用户 |\n用户身份 |\n身份验证 |\n身份标识 |\n身份信息","认证设备 |\n认证信息 |\n加密卡信息 |\n身份认证方法 |\n认证用户 |\n认证装置 |\n终端合法 |\n安全信道 |\n注册口令 |\n服务器合法 |\n注册生物 |\n生物特征验证","用户登录服务器","","","公开","2021.12.07 公开 公开\n\n2021.12.24 实质审查的生效 实质审查的生效\n申请日=2020.06.04","","北京东方亿思专利代理有限责任公司; 彭琼","四川省","610041 四川省成都市中国（四川）自由贸易试验区成都高新区交子大道575号J座6楼"]
[{"$f":"HYPERLINK(\"https://www.patentics.cn/invokexml.do?sx=showpatent_cn&sf=ShowPatent&spn=CN113763465A&sx=showpatent_cn&sv=2dd409c4\",\"CN113763465A\")","v":"CN113763465A"},"CN202010489021.X","CN",null,"垃圾确定系统、模型训练的方法、确定的方法、装置","本发明实施例公开了一种垃圾确定系统、模型训练的方法、确定的方法、装置。该方法包括：从图像传感器获取图像数据和从雷达传感器获取点云数据；分别提取图像数据和点云数据中的特征数据，生成第一图像特征图和第一点云特征图；将第一图像特征图和第一点云特征图中尺寸相同物体框，进行元素融合，生成第一待测框；根据第一待测框与待确定物体预设的真实框确定垃圾确定模型。本发明实施例通过从图像传感器获取图像数据和从雷达传感器获取深度数据，来确定待确定物体的属性和位置，提高了数据感知能力，优化了实现逻辑。","一种垃圾确定系统，其特征在于，所述系统包括： 　　图像传感器，用于采集待确定物体的图像数据； 　　雷达传感器，用于采集待确定物体的点云数据； 　　现场可编程逻辑门阵列FPGA，用于对采集的待确定物体的图像数据和点云数据进行预处理； 　　图形处理器GPU，用于对预处理后的待确定物体的图像数据和点云数据进行特征提取、并进行垃圾确定模型的训练，根据训练后的垃圾确定模型确定待确定物体的属性和待确定物体的边界框； 　　通讯模块，用于所述垃圾确定系统与外界进行通讯； 　　中央处理器CPU，用于连接所述通讯模块模块、所述图形处理器GPU、以及所述现场可编程逻辑门阵列FPGA，并向所述图形处理器GPU及所述通讯模块发送指令。","","中移（成都）信息通信科技有限公司 |\n中国移动通信集团有限公司","中移成都信息通信科技有限公司|中国移动通信集团有限公司","中移成都信息通信科技有限公司|中国移动通信集团有限公司","苏自翔","苏自翔","","2020/06/02","2021/12/07","2021/12/07","","G06T  7/73|G06K  9/00|G06K  9/62","G06T  7/73","","",13,7,5,21,"0.68","","","","","","发明公布","CN","",0,0,0,0,0,0,0,"0.0",0,0,0,0,"",0,0,"目标检测 |\n图像特征 |\n物体识别 |\n图像识别算法 |\n目标图像 |\n像素级别 |\n物体图像 |\n点云数据 |\n三维边界框","特征图 |\n网络输出 |\n卷积运算 |\n金字塔 |\n卷积操作 |\n检测网络 |\n输出特征 |\n特征提取器 |\n损失函数 |\n训练方法 |\n平均融合 |\n训练模型 |\n模型训练 |\n原始输入 |\n初始参数 |\n确定模型 |\n特征数据","图像处理 |\n深度数据 |\n获取图像数据","多模型融合","","","公开","2021.12.07 公开 公开\n\n2021.12.24 实质审查的生效 实质审查的生效\n申请日=2020.06.02","","北京东方亿思专利代理有限责任公司; 彭琼","四川省","610041 四川省成都市中国（四川）自由贸易试验区成都高新区交子大道575号J座6楼"]
[{"$f":"HYPERLINK(\"https://www.patentics.cn/invokexml.do?sx=showpatent_cn&sf=ShowPatent&spn=CN113763304A&sx=showpatent_cn&sv=bd1e83ed\",\"CN113763304A\")","v":"CN113763304A"},"CN202010423118.0","CN",null,"农作物病虫害识别方法、装置、设备及介质","本发明实施例提供一种农作物病虫害识别方法、装置、设备及介质。该方法包括：获取第一农作物图像；对第一农作物图像进行RGB通道分离，得到R通道图像、G通道图像和B通道图像；对R通道图像、G通道图像和B通道图像进行二值化处理，得到R通道二值图、G通道二值图和B通道二值图；基于R通道二值图、G通道二值图和B通道二值图进行区块Blob分析，确定病虫害位置，并生成病虫害数据；将病虫害数据输入决策树模型，确定病虫害类型。如此能够快速确定病虫害位置与类型，提高识别准确率。","一种农作物病虫害识别方法，其特征在于，所述方法包括： 　　获取第一农作物图像； 　　对所述第一农作物图像进行RGB通道分离，得到R通道图像、G通道图像和B通道图像； 　　对所述R通道图像、所述G通道图像和所述B通道图像进行二值化处理，得到R通道二值图、G通道二值图和B通道二值图； 　　基于所述R通道二值图、所述G通道二值图和所述B通道二值图进行区块Blob分析，确定病虫害位置，并生成病虫害数据； 　　将所述病虫害数据输入决策树模型，确定病虫害类型。","","中移（成都）信息通信科技有限公司 |\n中国移动通信集团有限公司","中移成都信息通信科技有限公司|中国移动通信集团有限公司","中移成都信息通信科技有限公司|中国移动通信集团有限公司","黄兆玮 |\n刘一珉 |\n卞军伟 |\n廖鹏程 |\n翁倩 |\n刘伟","黄兆玮","","2020/05/19","2021/12/07","2021/12/07","","G06T  7/00|G06T  7/11|G06T  7/136|G06T  7/187|G06T  7/60|G06T  7/70","G06T  7/00","","",10,4,7,14,"0.79","","","","","","发明公布","CN","",0,0,0,0,0,0,0,"0.0",0,0,0,0,"",0,0,"二值图 |\n二值化处理 |\n行分割 |\nrgb颜色空间 |\n像元 |\nr通道图像 |\n局部阈值法 |\n全局阈值法 |\nhold period","像素特征 |\n迭代阈值法 |\n对比度增强 |\n图像处理技术 |\nrgb通道 |\n果实图像 |\n先验信息","待识别 |\n识别方法 |\n样本集 |\n识别准确率 |\n子样本 |\n损失函数 |\n模型处理 |\n迁移学习 |\n样本数据 |\n数据集 |\n数据特征 |\n过拟合现象 |\n作物叶片 |\n病害类型","haplotype data","","","公开","2021.12.07 公开 公开\n\n2021.12.24 实质审查的生效 实质审查的生效\n申请日=2020.05.19","","北京东方亿思专利代理有限责任公司; 彭琼","四川省","610041 四川省成都市中国（四川）自由贸易试验区成都高新区交子大道575号J座6楼"]
[{"$f":"HYPERLINK(\"https://www.patentics.cn/invokexml.do?sx=showpatent_cn&sf=ShowPatent&spn=CN113727395A&sx=showpatent_cn&sv=9565a6a3\",\"CN113727395A\")","v":"CN113727395A"},"CN202010453914.9","CN",null,"服务质量控制方法、装置、设备及介质","本发明实施例提供一种服务质量控制方法、装置、设备及介质。该方法应用于多接入边缘计算MEC服务器，包括：获取用户设备UE的第一服务质量QoS参数，其中，UE与所述MEC服务器连接；向操作维护OAM实体发送QoS信息，其中，QoS信息包括UE的第一QoS参数和UE的UE标识，以用于OAM实体向基站发送QoS信息，基站根据QoS信息中的UE标识确定UE是否入网，当确定UE入网时，根据QoS信息生成无线资源控制RRC连接重配置信息，并向UE发送RRC连接重配置信息。通过本发明实施例，能够在UE使用MEC本地的业务时，只对UE所在基站进行QoS参数更新。","一种服务质量QoS控制方法，其特征在于，所述方法应用于多接入边缘计算MEC服务器，所述方法包括： 　　获取用户设备UE的第一QoS参数； 　　向操作维护OAM实体发送QoS信息，其中，所述QoS信息包括所述UE的第一QoS参数和所述UE的UE标识，以用于所述OAM实体向基站发送所述QoS信息，所述基站根据所述QoS信息中的所述UE标识确定所述UE是否入网，当确定所述UE入网时，根据所述QoS信息生成无线资源控制RRC连接重配置信息，并向所述UE发送所述RRC连接重配置信息。","","中移（成都）信息通信科技有限公司 |\n中国移动通信集团有限公司","中移成都信息通信科技有限公司|中国移动通信集团有限公司","中移成都信息通信科技有限公司|中国移动通信集团有限公司","吴洪亮 |\n何明 |\n郭洋","吴洪亮","","2020/05/26","2021/11/30","2021/11/30","","H04W 28/24|H04W 76/19","H04W 28/24","","",18,8,16,25,"0.81","","","","","","发明公布","CN","",0,0,0,0,0,0,0,"0.0",0,0,0,0,"",0,0,"qos等级 |\n服务质量qos参数 |\n重配置信息 |\n承载请求 |\n修改承载 |\nqos控制方法 |\n服务质量类别标识 |\nqos控制策略 |\n服务质量控制方法","ue接入 |\nrrc连接 |\n无线资源控制 |\n用户设备 |\n业务空口 |\n基站获取 |\n基站发送 |\n连接重配置","qos信息 |\n核心网 |\n实体发送 |\n移动性管理实体 |\nmme发送 |\n接入网节点 |\n签约数据 |\n国际移动用户识别码","计费规则 |\n实体触发 |\n业务类型 |\n业务触发","","","公开","2021.11.30 公开 公开\n\n2021.12.17 实质审查的生效 实质审查的生效\n申请日=2020.05.26","","北京东方亿思专利代理有限责任公司; 彭琼","四川省","610041 四川省成都市中国（四川）自由贸易试验区成都高新区交子大道575号J座6楼"]
[{"$f":"HYPERLINK(\"https://www.patentics.cn/invokexml.do?sx=showpatent_cn&sf=ShowPatent&spn=CN113727453A&sx=showpatent_cn&sv=2cad865a\",\"CN113727453A\")","v":"CN113727453A"},"CN202010453835.8","CN",null,"资源调度的方法、装置、系统及存储介质","本发明公开了资源调度的方法、装置、系统及存储介质。该方法包括：向基站发送设备信息；设备信息包括CPE中缓冲寄存器的优先级，以用于基站根据CPE中缓冲寄存器的优先级向目标设备发送待发送数据；向基站发送用于存储待发送数据的缓冲寄存器的第一存储容量信息，以用于基站根据第一存储容量信息确定所述待发送数据的资源调度信息；接收基站发送的资源调度信息；根据资源调度信息和CPE中缓冲寄存器的优先级，向基站发送待发送数据，能够提高数据转发的效率。","一种资源调度的方法，其特征在于，应用于客户端设备CPE，所述方法包括： 　　向基站发送设备信息；所述设备信息包括所述CPE中缓冲寄存器的优先级，以用于所述基站根据所述CPE中缓冲寄存器的优先级向目标设备发送待发送数据； 　　向所述基站发送用于存储所述待发送数据的缓冲寄存器的第一存储容量信息，以用于所述基站根据所述第一存储容量信息确定所述待发送数据的资源调度信息； 　　接收所述基站发送的资源调度信息； 　　根据所述资源调度信息和所述CPE中缓冲寄存器的优先级，向所述基站发送所述待发送数据。","","中移（成都）信息通信科技有限公司 |\n中国移动通信集团有限公司","中移成都信息通信科技有限公司|中国移动通信集团有限公司","中移成都信息通信科技有限公司|中国移动通信集团有限公司","唐飞","唐飞","","2020/05/26","2021/11/30","2021/11/30","","H04W 72/12","H04W 72/12","","",12,6,10,12,"1.13","","","","","","发明公布","CN","",0,0,0,0,0,0,0,"0.0",0,0,0,0,"",0,0,"基站分配 |\n优先发送 |\n调度发送 |\n资源调度信息 |\n基站发送数据 |\n上行调度请求 |\n基站发送设备 |\n窄带物联网 |\n基站接收 |\n调度资源","核心网 |\n接入服务 |\n接入方式 |\n通信链路 |\n发送设备信息 |\n签约用户 |\n移动管理节点","待发送数据包 |\n传输信息 |\n设备发送 |\n业务数据 |\nwifi设备 |\n终端设备 |\n接收终端","数据转发 |\n转发数据 |\n转发效率 |\n优先级值","","","公开","2021.11.30 公开 公开\n\n2021.12.17 实质审查的生效 实质审查的生效\n申请日=2020.05.26","","北京东方亿思专利代理有限责任公司; 彭琼","四川省","610041 四川省成都市中国（四川）自由贸易试验区成都高新区交子大道575号J座6楼"]
[{"$f":"HYPERLINK(\"https://www.patentics.cn/invokexml.do?sx=showpatent_cn&sf=ShowPatent&spn=CN214801462U&sx=showpatent_cn&sv=52cfb6f3\",\"CN214801462U\")","v":"CN214801462U"},"CN202023106355.9","CN",null,"植物授粉装置及无人机","本实用新型实施例提供一种植物授粉装置及无人机，植物授粉装置包括：箱体，具有多个出料口；信息采集器，设置于箱体，所述信息采集器用于采集授粉对象信息以及环境信息；供水系统，设置于所述箱体，供水系统包括水箱和水量控制组件，水量控制组件根据所述授粉对象信息和/或环境信息，由水箱取水输送至箱体并通过至少一个出料口出射；供粉系统，设置于箱体，供粉系统包括粉仓和出粉量控制组件，出粉量控制组件根据授粉对象信息，由粉仓输粉至箱体并通过至少一个出料口出射。本实用新型提供的植物授粉装置能够针对植物提供个性化的授粉量和水分，保证植物授粉效率并提高授粉的成功率。","一种植物授粉装置，其特征在于，包括： 　　箱体，具有多个出料口； 　　信息采集器，设置于所述箱体，所述信息采集器用于采集授粉对象信息以及环境信息； 　　供水系统，设置于所述箱体，所述供水系统包括水箱和水量控制组件，所述水量控制组件根据所述授粉对象信息和/或所述环境信息，由所述水箱取水输送至所述箱体并通过至少一个所述出料口出射； 　　供粉系统，设置于所述箱体，所述供粉系统包括粉仓和出粉量控制组件，所述出粉量控制组件根据所述授粉对象信息，由所述粉仓输粉至所述箱体并通过至少一个所述出料口出射。","","中移（成都）信息通信科技有限公司 |\n中国移动通信集团有限公司","中移成都信息通信科技有限公司|中国移动通信集团有限公司","中移成都信息通信科技有限公司|中国移动通信集团有限公司","刘林海 |\n李超 |\n何明 |\n张李秋","刘林海","","2020/12/21","2021/11/23","2021/11/23","2021/11/23","A01H  1/02|A01G 25/00|B64C 39/02|B64D  1/18","A01H  1/02","","",13,2,0,18,"0.74","","","","","","实用新型","CN","",0,0,0,0,0,0,0,"0.0",0,0,0,0,"",0,0,"腔体内壁 |\n内壁分离 |\n壳体底壁 |\n叶片转动 |\n电磁部件 |\n形变状态 |\ncollagen cell |\n配合部","相对运动 |\n控制组件 |\n反向运动 |\n往复运动 |\n弹性件 |\n运动体 |\n直线位移 |\n反向移动 |\nipd管芯 |\n磁力作用 |\niptv外网 |\n控制活塞杆 |\n弹性势能","授粉装置 |\n湿度调整 |\n花粉量","种植物 |\ndiol chain extender |\n花柱 |\n目标植物","","","有效","2021.11.23 授权 授权","","北京东方亿思专利代理有限责任公司; 赵秀芹","四川省","610041 四川省成都市中国（四川）自由贸易试验区成都高新区交子大道575号J座6楼"]
[{"$f":"HYPERLINK(\"https://www.patentics.cn/invokexml.do?sx=showpatent_cn&sf=ShowPatent&spn=CN113691486A&sx=showpatent_cn&sv=34c68c6c\",\"CN113691486A\")","v":"CN113691486A"},"CN202010427235.4","CN",null,"报文修改的方法、装置、设备及存储介质","本发明实施例公开了一种报文修改的方法、装置、设备及存储介质。该方法包括：获取报文，报文包括协议信息；获取报文的关键字段，并通过查询关键字段匹配规则表获得关键字段匹配信息，关键字段匹配信息包括报文修改动作信息；从预设的修改规则中获取与协议信息中的第一协议，以及关键字段匹配信息中的第一关键字段匹配信息相符合的第一修改规则，第一修改规则包括报文修改动作信息；根据第一修改规则和与第一修改规则对应的修改动作参数对报文进行修改，得到修改后的第一报文。本发明实施例的报文修改的方法、装置、设备及存储介质，可以提升数据包转发处理的灵活性。","一种报文修改的方法，其特征在于，所述方法包括： 　　获取报文，所述报文包括协议信息； 　　获取所述报文的关键字段，并通过查询关键字段匹配规则表获得关键字段匹配信息，所述关键字段匹配信息包括报文修改动作信息； 　　从预设的修改规则中获取与所述协议信息中的第一协议，以及所述关键字段匹配信息中的第一关键字段匹配信息相符合的第一修改规则，所述第一修改规则包括所述报文修改动作信息； 　　根据所述第一修改规则和与所述第一修改规则对应的修改动作参数对所述报文进行修改，得到修改后的第一报文。","","中移（成都）信息通信科技有限公司 |\n中国移动通信集团有限公司","中移成都信息通信科技有限公司|中国移动通信集团有限公司","中移成都信息通信科技有限公司|中国移动通信集团有限公司","王森 |\n桑建 |\n曾达 |\n沈玲 |\n张雨昕","王森","","2020/05/19","2021/11/23","2021/11/23","","H04L 29/06","H04L 29/06","","",12,4,9,13,"1.01","","","","","","发明公布","CN","",0,0,0,0,0,0,0,"0.0",0,0,0,0,"",0,0,"规则表 |\n字段内容 |\n增加字段 |\n数据配置 |\n摘要字段 |\n修改字段 |\n替换字段 |\n匹配规则 |\n字段位置 |\n校验字段 |\n关键字段 |\n配置数据库","报文协议 |\n协议类型 |\n报文修改 |\n表项配置 |\n数据报文 |\n协议报文头 |\n获取报文 |\n字节长度 |\n目的mac地址 |\n应用层协议报文 |\n剥离报文 |\n多核多线程","协议信息 |\n字段协议 |\n数据库表项","转发处理过程 |\n数据包转发 |\n报文转发处理","","","公开","2021.11.23 公开 公开\n\n2021.12.10 实质审查的生效 实质审查的生效\n申请日=2020.05.19","","北京东方亿思专利代理有限责任公司; 彭琼","四川省","610041 四川省成都市中国（四川）自由贸易试验区成都高新区交子大道575号J座6楼"]
[{"$f":"HYPERLINK(\"https://www.patentics.cn/invokexml.do?sx=showpatent_cn&sf=ShowPatent&spn=CN113688289A&sx=showpatent_cn&sv=fdf69af4\",\"CN113688289A\")","v":"CN113688289A"},"CN202010426463.X","CN",null,"数据包关键字段匹配方法、装置、设备及存储介质","本发明实施例公开了一种数据包关键字段匹配方法、装置、设备及存储介质。该方法包括：获取数据包，数据包包括待匹配规则表；获取待匹配规则表中规则索引号最大的规则索引号对应的匹配规则，并获取匹配规则中第一个关键字段对应的数据结构；从数据包中获取与数据结构相关的关键字段；对关键字段执行与数据结构相关的关键字段匹配算法。本发明实施例的数据包关键字段匹配方法、装置、设备及存储介质，使得数据包关键字段获取与协议处理代码相对独立，提升了数据包转发处理的灵活性。","一种数据包关键字段匹配方法，其特征在于，所述方法包括： 　　获取数据包，所述数据包包括待匹配规则表； 　　获取所述待匹配规则表中规则索引号最大的规则索引号对应的匹配规则，并获取所述匹配规则中第一关键字段对应的关键字段结构； 　　从所述数据包中获取与所述关键字段结构相关的关键字段； 　　对所述关键字段执行与所述关键字段相关的关键字段匹配算法。","","中移（成都）信息通信科技有限公司 |\n中国移动通信集团有限公司","中移成都信息通信科技有限公司|中国移动通信集团有限公司","中移成都信息通信科技有限公司|中国移动通信集团有限公司","杨雷 |\n陈庆勇 |\n桑建 |\n曾艳","杨雷","","2020/05/19","2021/11/23","2021/11/23","","G06F 16/903|G06F 16/901|H04L 29/06","G06F 16/903","","",14,4,8,9,"1.68","","","","","","发明公布","CN","",0,0,0,0,0,0,0,"0.0",0,0,0,0,"",0,0,"规则表 |\n匹配项 |\n哈希表 |\n匹配规则 |\n字段内容 |\n字节数组 |\n字节长度 |\n判断数据 |\n哈希算法","缓存表 |\n协议类型 |\n掩码匹配 |\nmac地址表 |\n路由转发表 |\n转发处理 |\n转发信息 |\n目的ip地址 |\n数据报文 |\n转发表项 |\n目的mac地址 |\n转发数据包 |\n数据包转发 |\n多核多线程","数据配置 |\n配置规则 |\n配置数据库 |\n依赖关系","最长匹配 |\n字段结构 |\n查找算法 |\n协议关键字段","","","公开","2021.11.23 公开 公开\n\n2021.12.10 实质审查的生效 实质审查的生效\n申请日=2020.05.19","","北京东方亿思专利代理有限责任公司; 彭琼","四川省","610041 四川省成都市中国（四川）自由贸易试验区成都高新区交子大道575号J座6楼"]
[{"$f":"HYPERLINK(\"https://www.patentics.cn/invokexml.do?sx=showpatent_cn&sf=ShowPatent&spn=CN113691639A&sx=showpatent_cn&sv=d577d708\",\"CN113691639A\")","v":"CN113691639A"},"CN202010426052.0","CN",null,"端口标识解析的方法、装置、设备及存储介质","本发明实施例公开了一种端口标识解析的方法、装置、设备及存储介质。该方法包括：获取端口标识；将所述端口标识和预设端口类型二元组中的端口类型标识掩码进行与运算，得到端口类型标识；当得到的端口类型标识与所述预设端口类型二元组中的端口类型标识掩码对应的端口类型标识相同时，确定所述端口标识的端口类型为所述端口类型标识对应的端口类型，并将所述端口标识和所述端口类型标识掩码的反码进行与运算，得到目标端口号。本发明实施例的端口标识解析的方法、装置、设备及存储介质，扩展了解析出的数据。","一种端口标识解析的方法，其特征在于，所述方法包括： 　　获取端口标识； 　　将所述端口标识和预设端口类型二元组中的端口类型标识掩码进行与运算，得到端口类型标识； 　　当得到的端口类型标识与所述预设端口类型二元组中的端口类型标识掩码对应的端口类型标识相同时，确定所述端口标识的端口类型为所述端口类型标识对应的端口类型，并将所述端口标识和所述端口类型标识掩码的反码进行与运算，得到目标端口号。","","中移（成都）信息通信科技有限公司 |\n中国移动通信集团有限公司","中移成都信息通信科技有限公司|中国移动通信集团有限公司","中移成都信息通信科技有限公司|中国移动通信集团有限公司","黄铁脉 |\n唐健明 |\n李廷龙 |\n刘朋 |\n王森","黄铁脉","","2020/05/19","2021/11/23","2021/11/23","","H04L 29/12","H04L 29/12","","",18,4,8,11,"1.73","","","","","","发明公布","CN","",0,0,0,0,0,0,0,"0.0",0,0,0,0,"",0,0,"虚拟端口 |\n子接口 |\n物理端口 |\nvlan端口 |\n虚拟局域网 |\n标识端口 |\n2-氯-4-氨基苯酚 |\n网络接口标识 |\n网络端口 |\n板卡标识 |\nhard magnetic alloy |\n以太网端口 |\n捆绑端口 |\n网络接口类型","接口id |\n以太网类型 |\n端口类型 |\n内部数据结构","目标端口号 |\nmpls隧道 |\ndelayed clock signal |\ndelay-and-sum","dehumidification system |\n通用路由封装 |\n多协议标签交换 |\n网际互连协议 |\n网络端口标识 |\n互联网安全协议 |\n虚拟专用网络","","","公开","2021.11.23 公开 公开\n\n2021.12.10 实质审查的生效 实质审查的生效\n申请日=2020.05.19","","北京东方亿思专利代理有限责任公司; 彭琼","四川省","610041 四川省成都市中国（四川）自由贸易试验区成都高新区交子大道575号J座6楼"]
[{"$f":"HYPERLINK(\"https://www.patentics.cn/invokexml.do?sx=showpatent_cn&sf=ShowPatent&spn=CN113688852A&sx=showpatent_cn&sv=b32e3de0\",\"CN113688852A\")","v":"CN113688852A"},"CN202010424057.X","CN",null,"树木种群分类方法、装置、设备及介质","本发明实施例提供一种树木种群分类方法、装置、设备及介质。该方法包括：获取训练图像；提取训练图像的形态学断面MP特征，得到训练图像的第一特征矩阵；提取训练图像的形态学属性剖面AP特征，得到训练图像的第二特征矩阵；基于第一特征矩阵和第二特征矩阵训练支持向量机，得到树木种群分类模型，基于树木种群分类模型对待分类图像进行分类，得到树木种群分类结果。通过本发明实施例，不仅能够实现小样本训练分类模型，减少训练量，缩短训练时间，还能够提高树木种群分类准确度。","一种树木种群分类模型训练方法，其特征在于，所述方法包括： 　　获取训练图像； 　　提取所述训练图像的形态学断面MP特征，得到所述训练图像的第一特征矩阵； 　　提取所述训练图像的形态学属性剖面AP特征，得到所述训练图像的第二特征矩阵； 　　基于所述第一特征矩阵和所述第二特征矩阵训练支持向量机，得到树木种群分类模型。","","中移（成都）信息通信科技有限公司 |\n中国移动通信集团有限公司","中移成都信息通信科技有限公司|中国移动通信集团有限公司","中移成都信息通信科技有限公司|中国移动通信集团有限公司","杨添","杨添","","2020/05/19","2021/11/23","2021/11/23","","G06K  9/62|G06K  9/00","G06K  9/62","","",13,6,9,13,"1.11","","","","","","发明公布","CN","",0,0,0,0,0,0,0,"0.0",0,0,0,0,"",0,0,"分类图像 |\nsar图像 |\n输入图像 |\n矩不变量 |\n灰度图像 |\n结构元素 |\n灰度化处理","特征矩阵 |\n训练图像 |\n特征提取 |\n分类方法 |\n分类效果 |\n支持向量机 |\n训练数据 |\n分类模型 |\n小样本训练 |\n识别模型 |\n训练模块 |\n模型训练方法 |\n训练时间","lipophilic derivative |\n分类准确度 |\n过拟合现象 |\n多项式核函数 |\n线性核函数 |\n矩阵元素 |\n属性剖面 |\n合成孔径雷达sar","分类模块","","","公开","2021.11.23 公开 公开\n\n2021.12.10 实质审查的生效 实质审查的生效\n申请日=2020.05.19","","北京东方亿思专利代理有限责任公司; 彭琼","四川省","610041 四川省成都市中国（四川）自由贸易试验区成都高新区交子大道575号J座6楼"]
[{"$f":"HYPERLINK(\"https://www.patentics.cn/invokexml.do?sx=showpatent_cn&sf=ShowPatent&spn=CN113691572A&sx=showpatent_cn&sv=99e379d2\",\"CN113691572A\")","v":"CN113691572A"},"CN202010423401.3","CN",null,"一种数据转发方法、装置、设备及计算机存储介质","本发明实施例提供了一种数据转发方法、装置、设备及计算机存储介质，数据转发方法应用于网关设备，网关设备包括用户空间单元和内核空间单元，内核空间单元包括虚拟网络设备子单元；数据转发方法包括：获取转发数据；通过虚拟网络设备子单元，以及预先建立的虚拟网络设备子单元的共享内存与网关设备连接的网络设备的映射关系，向用户空间单元发送转发数据，以用于用户空间单元向网络设备发送转发数据。本发明实施例能够避免大量修改控制平面应用单元，降低开发难度，实现减少额外的工作量。","一种数据转发方法，其特征在于，所述方法应用于网关设备，所述网关设备包括用户空间单元和内核空间单元，所述内核空间单元包括虚拟网络设备子单元；所述方法包括： 　　获取转发数据； 　　通过所述虚拟网络设备子单元，以及预先建立的虚拟网络设备子单元的共享内存与所述网关设备连接的网络设备的映射关系，向所述用户空间单元发送所述转发数据，以用于所述用户空间单元向所述网络设备发送所述转发数据。","","中移（成都）信息通信科技有限公司 |\n中国移动通信集团有限公司","中移成都信息通信科技有限公司|中国移动通信集团有限公司","中移成都信息通信科技有限公司|中国移动通信集团有限公司","曾艳 |\n桑建 |\n刘朋 |\n杨雷 |\n王森","曾艳","","2020/05/19","2021/11/23","2021/11/23","","H04L 29/08|H04L 29/06","H04L 29/08","","",10,4,7,12,"0.92","","","","","","发明公布","CN","",0,0,0,0,0,0,0,"0.0",0,0,0,0,"",0,0,"转发功能 |\n数据平面 |\n网络功能 |\n虚拟局域网 |\n报文转发 |\n转发数据 |\n路由协议 |\n数据转发方法 |\n域名系统 |\n网关设备 |\n控制平面 |\n发送数据报文 |\n动态主机配置协议 |\n转发模块 |\n虚拟专用网络 |\n接收数据报文 |\n数据转发设备 |\n虚拟网络设备子单元","进程间通信 |\n内核空间 |\n用户空间","文件传输协议 |\n硬件网络设备 |\n套接字接口 |\ntcp/ip协议栈 |\n传输控制协议/网际协议","共享内存","","","公开","2021.11.23 公开 公开\n\n2021.12.10 实质审查的生效 实质审查的生效\n申请日=2020.05.19","","北京东方亿思专利代理有限责任公司; 彭琼","四川省","610041 四川省成都市中国（四川）自由贸易试验区成都高新区交子大道575号J座6楼"]
[{"$f":"HYPERLINK(\"https://www.patentics.cn/invokexml.do?sx=showpatent_cn&sf=ShowPatent&spn=CN113688373A&sx=showpatent_cn&sv=b41294f1\",\"CN113688373A\")","v":"CN113688373A"},"CN202010423049.3","CN",null,"滑动解锁方法、装置、设备和介质","本发明公开了滑动解锁方法、装置、设备和介质。该方法包括：接收用户在目标设备的初始解锁界面上的多次滑动输入，其中，解锁界面预设有多个解锁图标，每次滑动输入是针对任一解锁图标的输入；在多次滑动输入的特征与预设滑动解锁特征一致的情况下，显示目标设备解锁后的界面，其中，多次滑动输入的特征包括每次滑动输入所针对的解锁图标的标识以及每次滑动输入的滑动方向。根据本发明实施例提供的滑动解锁方法、装置、设备和介质，可以提高屏幕解锁的安全性。","一种滑动解锁方法，其特征在于，所述方法包括： 　　接收用户在目标设备的初始解锁界面上的多次滑动输入，其中，所述解锁界面预设有多个解锁图标，每次滑动输入是针对任一所述解锁图标的输入； 　　在所述多次滑动输入的特征与预设滑动解锁特征一致的情况下，显示所述目标设备解锁后的界面，其中，多次滑动输入的特征包括每次滑动输入所针对的解锁图标的标识以及每次滑动输入的滑动方向。","","中移（成都）信息通信科技有限公司 |\n中国移动通信集团有限公司","中移成都信息通信科技有限公司|中国移动通信集团有限公司","中移成都信息通信科技有限公司|中国移动通信集团有限公司","孙一鸣 |\n张心雷","孙一鸣","","2020/05/19","2021/11/23","2021/11/23","","G06F 21/36","G06F 21/36","","",10,4,7,15,"0.73","","","","","","发明公布","CN","",0,0,0,0,0,0,0,"0.0",0,0,0,0,"",0,0,"屏幕解锁 |\n解锁密码 |\n解锁信息 |\n认证界面 |\n解锁次数 |\n输入接收模块","解锁界面 |\n滑动轨迹 |\n滑动输入 |\n滑动操作 |\n接收用户 |\n快捷图标 |\n界面输入 |\n显示界面 |\n应用程序界面 |\n用户输入 |\n目标应用程序 |\n选择操作 |\nhard confectionery |\n用户点击","解锁方法 |\n电子设备 |\n智能设备","3-f-2-pyridyl |\n滑动解锁 |\n用户解锁 |\n显示解锁 |\n解锁图标 |\n解锁条件 |\n解锁模式 |\n解锁特征","","","公开","2021.11.23 公开 公开\n\n2021.12.10 实质审查的生效 实质审查的生效\n申请日=2020.05.19","","北京东方亿思专利代理有限责任公司; 彭琼","四川省","610041 四川省成都市中国（四川）自由贸易试验区成都高新区交子大道575号J座6楼"]
[{"$f":"HYPERLINK(\"https://www.patentics.cn/invokexml.do?sx=showpatent_cn&sf=ShowPatent&spn=CN214754102U&sx=showpatent_cn&sv=ef026e7f\",\"CN214754102U\")","v":"CN214754102U"},"CN202022983006.9","CN",null,"天线支撑机构及天线装置","本申请涉及一种天线支撑机构及天线装置，包括：壳体，壳体具有容纳部和位于壳体的一端且与容纳部连通的开口；升降组件，升降组件设置于壳体，升降组件用于与待支撑天线连接，升降组件用于驱动天线在第一位置和第二位置之间移动，在第一位置天线处于容纳部，在第二位置天线伸出壳体设置；盖板，盖板被配置为选择性盖合于开口，盖板用于保护处于容纳部的天线。本申请的天线支撑机构通过设置壳体、盖板和升降组件，不使用天线时升降组件可带动天线移至壳体的容纳部，盖板封堵住壳体的开口，以对天线进行保护，需要使用天线时升降组件可带动天线伸出壳体，升降可自动带动天线移入或伸出壳体的容纳部，自动化程度高。","一种天线支撑机构，其特征在于，包括： 　　壳体，所述壳体具有容纳部和位于所述壳体的一端且与所述容纳部连通的开口； 　　升降组件，所述升降组件设置于所述壳体，所述升降组件用于与待支撑天线连接，所述升降组件用于驱动所述天线在第一位置和第二位置之间移动，在所述第一位置所述天线处于所述容纳部，在所述第二位置所述天线伸出所述壳体设置； 　　盖板，所述盖板被配置为选择性盖合于所述开口，所述盖板用于保护处于所述容纳部的所述天线。","","中移（成都）信息通信科技有限公司 |\n中国移动通信集团有限公司","中移成都信息通信科技有限公司|中国移动通信集团有限公司","中移成都信息通信科技有限公司|中国移动通信集团有限公司","胡楠 |\n何明 |\n郭洋 |\n黄益","胡楠","","2020/12/11","2021/11/16","2021/11/16","2021/11/16","H01Q  1/12|H01Q  1/10","H01Q  1/12","","",10,2,0,11,"0.94","","","","","","实用新型","CN","",0,0,0,0,0,0,0,"0.0",0,0,0,0,"",0,0,"天线固定 |\n固定天线 |\n调整天线 |\n车载天线 |\n天线装置 |\n天线旋转 |\n天线连接 |\ninvasive therapy","ip-ip网关 |\n壳体设置 |\n盖合 |\n容纳部 |\n组件连接 |\n组件包 |\n凹陷形 |\n固定部 |\n柱形 |\n第一位置 |\n第二位置 |\n导向部","升降组件 |\n固定组件 |\n升降机构 |\n固定机构 |\n支撑机构 |\n固定支撑","旋转驱动件 |\nio芯片 |\n多棱柱 |\n外齿轮啮合","","","有效","2021.11.16 授权 授权","","北京东方亿思专利代理有限责任公司; 娜拉","四川省","610041 四川省成都市中国（四川）自由贸易试验区成都高新区交子大道575号J座6楼"]
[{"$f":"HYPERLINK(\"https://www.patentics.cn/invokexml.do?sx=showpatent_cn&sf=ShowPatent&spn=CN113640694A&sx=showpatent_cn&sv=c3b7df79\",\"CN113640694A\")","v":"CN113640694A"},"CN202010338436.7","CN",null,"纹波噪声测试探头以及测试装置","本发明公开了一种纹波噪声测试探头以及测试装置。纹波噪声测试探头包括：探针组件，包括正极探针和接地探针；至少一个隔直电容组件，包括两个以上隔直电容以及转接电极，各隔直电容包括第一电极和第二电极，各隔直电容的第一电极均与正极探针电连接，转接电极包括第一端和第二端，转接电极和两个以上隔直电容通过其中一者相对另一者变换位置，使得转接电极的第一端与两个以上隔直电容的第二电极择一电连接；同轴电缆，包括探测连接部和接地连接部，探测连接部与转接电极的第二端电连接，接地连接部与接地探针电连接。本发明实施例提供的纹波噪声测试探头能够设置合理的隔直电容，提高纹波测试的准确性。","一种纹波噪声测试探头，其特征在于，包括： 　　探针组件，包括正极探针和接地探针，所述正极探针用于连接待测电源的正极，所述接地探针用于连接所述待测电源的负极； 　　至少一个隔直电容组件，包括两个以上隔直电容以及转接电极，各所述隔直电容包括第一电极和第二电极，各所述隔直电容的第一电极均与所述正极探针电连接，所述转接电极包括第一端和第二端，所述转接电极和所述两个以上隔直电容通过其中一者相对另一者变换位置，使得所述转接电极的所述第一端与两个以上所述隔直电容的所述第二电极择一电连接； 　　同轴电缆，包括探测连接部和接地连接部，所述探测连接部与所述转接电极的所述第二端电连接，所述接地连接部与所述接地探针电连接。","","中移（成都）信息通信科技有限公司 |\n中国移动通信集团有限公司","中移成都信息通信科技有限公司|中国移动通信集团有限公司","中移成都信息通信科技有限公司|中国移动通信集团有限公司","何宁 |\n何明 |\n郭洋","何宁","","2020/04/26","2021/11/12","2021/11/12","","G01R 31/40|G01R  1/04|G01R 29/26","G01R 31/40","","",10,2,0,19,"0.54","","","","","","发明公布","CN","",0,0,0,0,0,0,0,"0.0",0,0,0,0,"",0,0,"电容组件 |\n电容串联 |\ndc3 |\n去耦电容 |\n电容并联 |\nemc |\n浪涌电压","测试电路 |\n测试回路 |\n测试电压 |\n测试点 |\n测试探针 |\n示波器 |\n测试探头 |\n噪声测试 |\n测试装置 |\n测试效率 |\n连接待测","电磁兼容 |\n电磁干扰 |\n直流信号 |\n小信号 |\n输入阻抗 |\n电源纹波 |\n寄生参数 |\n交流电信号","接地探针 |\n待测电源 |\n电源测试 |\n纹波测试","","","公开","2021.11.12 公开 公开\n\n2021.11.30 实质审查的生效 实质审查的生效\n申请日=2020.04.26","","北京东方亿思专利代理有限责任公司; 娜拉","四川省","610041 四川省成都市中国（四川）自由贸易试验区成都高新区交子大道575号J座6楼"]
[{"$f":"HYPERLINK(\"https://www.patentics.cn/invokexml.do?sx=showpatent_cn&sf=ShowPatent&spn=CN113616235A&sx=showpatent_cn&sv=9dd25c12\",\"CN113616235A\")","v":"CN113616235A"},"CN202010376559.X","CN",null,"超声检测方法、装置、系统、设备、存储介质及超声探头","本发明实施例提供了一种超声检测方法、装置、系统、设备、存储介质及超声探头，该方法包括：在利用超声探头检测目标对象的过程中，获取超声探头与用户当前操作相关联的当前目标信息和当前超声图像信息；将当前目标信息和当前超声图像信息发送给服务器；接收服务器返回的目标调整信息；以目标输出方式输出目标调整信息。本发明能够根据用户的当前操作调整下一步的超声检测手法，提高超声检测的效率。","一种超声检测方法，其特征在于，所述方法用于终端设备，所述方法包括： 　　在利用超声探头检测目标对象的过程中，获取所述超声探头与用户当前操作相关联的当前目标信息和当前超声图像信息； 　　将所述当前目标信息和所述当前超声图像信息发送给服务器，以用于所述服务器根据所述当前目标信息、所述当前超声图像信息和神经网络模型，确定目标调整信息，其中，所述目标调整信息为从所述当前目标信息调整至用户下一步操作对应的目标信息的调整信息； 　　接收所述服务器返回的所述目标调整信息； 　　以目标输出方式输出所述目标调整信息。","","中移（成都）信息通信科技有限公司 |\n中国移动通信集团有限公司","中移成都信息通信科技有限公司|中国移动通信集团有限公司","中移成都信息通信科技有限公司|中国移动通信集团有限公司","李楠 |\n胡冉杰 |\n陈长龙","李楠","","2020/05/07","2021/11/09","2021/11/09","","A61B  8/00|A61B  8/08","A61B  8/00","","",13,7,8,16,"0.91","","","","","","发明公布","CN","",0,0,0,0,0,0,0,"0.0",0,0,0,0,"",0,0,"目标对象 |\n目标信息 |\n检测目标 |\n获取目标 |\n目标区域","点位置信息 |\n初始位置信息 |\n位姿信息 |\n空间姿态 |\n方向信息 |\n坐标信息","gprs信号 |\n神经网络模型 |\n输出信息 |\n训练后 |\n训练方法 |\n训练样本 |\n模型训练 |\n样本集 |\n数据集 |\ncnn模型 |\n输出训练 |\nconvolutional |\n卷积神经网络 |\n模型参数 |\n训练过程","超声影像 |\n获取超声 |\n超声图像信息 |\n超声探头","","","公开","2021.11.09 公开 公开\n\n2021.11.26 实质审查的生效 实质审查的生效\n申请日=2020.05.07","","北京东方亿思专利代理有限责任公司; 彭琼","四川省","610041 四川省成都市中国（四川）自由贸易试验区成都高新区交子大道575号J座6楼"]
[{"$f":"HYPERLINK(\"https://www.patentics.cn/invokexml.do?sx=showpatent_cn&sf=ShowPatent&spn=CN113628411A&sx=showpatent_cn&sv=63ec4876\",\"CN113628411A\")","v":"CN113628411A"},"CN202010376372.X","CN",null,"婴儿安全预警的系统、方法、设备及计算机存储介质","本发明实施例提供了一种婴儿安全预警的系统、方法、设备及计算机存储介质，该系统包括：感知采集单元，用于根据高清双目摄像头和飞行时间ToF传感器实时感知多个待测对象，获取多个待测对象的数字图像数据；ACAP单元，用于根据锥视体点云3D物体检测F-PointNet算法和数字图像数据得到多个待测对象的3D信息；ACAP单元，还用于根据多个待测对象的3D信息确定多个待测对象之间的距离变化趋势；5G通讯单元，用于当距离变化趋势满足预设条件时，输出预警信息。本发明能够在婴儿发生危险之前发出告警提示，有效保障婴儿的生命安全。","一种婴儿安全预警的系统，其特征在于，所述系统包括感知采集单元、自适应计算机加速平台ACAP单元和5G通讯单元，所述感知采集单元包括高清双目摄像头和飞行时间ToF传感器； 　　所述感知采集单元，用于根据所述高清双目摄像头和所述ToF传感器实时感知多个待测对象，获取所述多个待测对象的数字图像数据； 　　所述ACAP单元，用于根据锥视体点云3D物体检测F-PointNet算法和所述数字图像数据得到所述多个待测对象的3D信息； 　　所述ACAP单元，还用于根据所述多个待测对象的3D信息确定所述多个待测对象之间的距离变化趋势； 　　所述5G通讯单元，用于当所述距离变化趋势满足预设条件时，输出预警信息，所述预警信息用于提示用户所述待测对象出现异常。","","中移（成都）信息通信科技有限公司 |\n中国移动通信集团有限公司","中移成都信息通信科技有限公司|中国移动通信集团有限公司","中移成都信息通信科技有限公司|中国移动通信集团有限公司","苏自翔 |\n周辉","苏自翔","","2020/05/07","2021/11/09","2021/11/09","","G08B 21/02|G06K  9/00|G06K  9/62","G08B 21/02","","",14,4,6,27,"0.55","","","","","","发明公布","CN","",0,0,0,0,0,0,0,"0.0",0,0,0,0,"",0,0,"运算能力 |\n图形处理器 |\n硬件模块 |\ngraphics processing unit |\n硬件系统 |\n硬件平台 |\n内存接口 |\nddr3内存 |\n双倍速率 |\ndouble data rate |\nextensible interface |\n嵌入式操作系统 |\ndsp","目标识别 |\n字图像 |\n3d点云 |\n物体检测 |\nsimultaneous localization |\n多任务 |\n图像数据输入 |\n分割网络 |\n人工智能 |\n深度图 |\n边界框 |\n深度神经网络","内存带宽 |\nmacbeth reflective densitometer |\n估计网络","偏置参数 |\nproposal","","","公开","2021.11.09 公开 公开\n\n2021.11.26 实质审查的生效 实质审查的生效\n申请日=2020.05.07","","北京东方亿思专利代理有限责任公司; 彭琼","四川省","610041 四川省成都市中国（四川）自由贸易试验区成都高新区交子大道575号J座6楼"]
[{"$f":"HYPERLINK(\"https://www.patentics.cn/invokexml.do?sx=showpatent_cn&sf=ShowPatent&spn=CN113630239A&sx=showpatent_cn&sv=b007a782\",\"CN113630239A\")","v":"CN113630239A"},"CN202010376353.7","CN",null,"信息获取方法、装置、设备及存储介质","本申请公开了一种信息获取方法、装置、设备及存储介质，涉及网络通信技术领域。该方法包括：接收量子流和量子比特流；从所述量子流中提取目标量子状态的第一量子分流，从所述量子比特流中提取目标量子状态的第一量子比特分流；按照所述目标量子状态的预设量子比特，对所述第一量子分流进行解码，得到第二量子比特分流；基于所述第一量子比特分流和所述第二量子比特分流的匹配度，确定所述目标量子状态的目标预设量子比特；根据确定出的所述目标量子状态的所述目标预设量子比特，获取量子状态和量子比特的对应信息。根据本申请实施例，能够提高秘钥的获取效率。","一种信息获取方法，其特征在于，所述方法包括： 　　接收量子流和量子比特流； 　　从所述量子流中提取目标量子状态的第一量子分流，从所述量子比特流中提取目标量子状态的第一量子比特分流； 　　按照所述目标量子状态的预设量子比特，对所述第一量子分流进行解码，得到第二量子比特分流； 　　基于所述第一量子比特分流和所述第二量子比特分流的匹配度，确定所述目标量子状态的目标预设量子比特； 　　根据确定出的所述目标量子状态的所述目标预设量子比特，获取量子状态和量子比特的对应信息。","","中移（成都）信息通信科技有限公司 |\n中国移动通信集团有限公司","中移成都信息通信科技有限公司|中国移动通信集团有限公司","中移成都信息通信科技有限公司|中国移动通信集团有限公司","石宇辰","石宇辰","","2020/05/07","2021/11/09","2021/11/09","","H04L  9/08|H04B 10/70","H04L  9/08","","",13,4,7,15,"0.93","","","","","","发明公布","CN","",0,0,0,0,0,0,0,"0.0",0,0,0,0,"",0,0,"传输信息 |\n量子密钥分发 |\n发送量子 |\n获取量子 |\n通信数据 |\nqkd系统 |\n量子比特信息 |\n秘钥 |\n量子加密技术 |\n接收量子","光纤介质 |\nerom |\nearom |\n无限带宽","传输介质 |\n代码段 |\n固件 |\n存储介质 |\n机器可读介质 |\n大容量存储器 |\nassets |\neeprom |\n只读存储器 |\n可改写 |\n可擦除 |\n软盘","量子状态 |\n目标量子","","","公开","2021.11.09 公开 公开\n\n2021.11.26 实质审查的生效 实质审查的生效\n申请日=2020.05.07","","北京东方亿思专利代理有限责任公司; 赵秀芹","四川省","610041 四川省成都市中国（四川）自由贸易试验区成都高新区交子大道575号J座6楼"]
[{"$f":"HYPERLINK(\"https://www.patentics.cn/invokexml.do?sx=showpatent_cn&sf=ShowPatent&spn=CN113556722A&sx=showpatent_cn&sv=76aa58eb\",\"CN113556722A\")","v":"CN113556722A"},"CN202010337436.5","CN",null,"一种无线网络用户识别的方法、装置、设备及存储介质","本发明公开了本发明实施例提供一种无线网络用户识别的方法、装置、设备及存储介质，具体包括：获取移动网络用户的多个维度的用户特征信息；根据多个维度的用户特征信息，利用预设的多维度因子识别算法对用户进行识别，得到用户识别分数；根据用户识别分数，确定所述用户的用户类型，以得到识别结果，其中，用户类型包括第一类型用户和第二类型用户，第一类型用户为预设应用场景下的用户，第二类型用户为不属于所述预设应用场景下的用户。根据本发明实施例，能够有效地提高专网用户识别的准确性和效率。","一种无线网络用户识别的方法，其特征在于，所述方法应用于移动边缘计算服务端，包括： 　　获取移动网络用户的多个维度的用户特征信息； 　　根据所述多个维度的用户特征信息，利用预设的多维度因子识别算法对所述用户进行识别，得到用户识别分数； 　　根据所述用户识别分数，确定所述用户的用户类型，以得到识别结果； 　　其中，所述用户类型包括第一类型用户和第二类型用户，所述第一类型用户为预设应用场景下的用户，所述第二类型用户为不属于所述预设应用场景下的用户。","","中移（成都）信息通信科技有限公司 |\n中国移动通信集团有限公司","中移成都信息通信科技有限公司|中国移动通信集团有限公司","中移成都信息通信科技有限公司|中国移动通信集团有限公司","林岩 |\n杜建伟","林岩","","2020/04/26","2021/10/26","2021/10/26","","H04W  8/18|H04W  8/20","H04W  8/18","","",10,4,7,15,"0.73","","","","","","发明公布","CN","",0,0,0,0,0,0,0,"0.0",0,0,0,0,"",0,0,"网络使用 |\n网络用户 |\n用户接入 |\n电信用户 |\n网络资源 |\n专用网络 |\n网络体验 |\n用户连接 |\n服务质量 |\n用户类型 |\n核心网结构 |\n统一接入认证","移动网络 |\n网络类型 |\nwifi网络 |\n接入无线网 |\n用户终端设备 |\n无线网络 |\n交互通信 |\n注册入网 |\n无线接入网络","设备接入网络 |\n用户识别方法 |\n入网注册 |\nirig标准 |\n核心网通信","边缘计算 |\n交互过程 |\n信息交互 |\n管理功能","","","公开","2021.10.26 公开 公开\n\n2021.11.12 实质审查的生效 实质审查的生效\n申请日=2020.04.26","","北京东方亿思专利代理有限责任公司; 彭琼","四川省","610041 四川省成都市中国（四川）自由贸易试验区成都高新区交子大道575号J座6楼"]
[{"$f":"HYPERLINK(\"https://www.patentics.cn/invokexml.do?sx=showpatent_cn&sf=ShowPatent&spn=CN113553276A&sx=showpatent_cn&sv=da15ab5a\",\"CN113553276A\")","v":"CN113553276A"},"CN202010337167.2","CN",null,"连接关系确定的方法、装置、系统及存储介质","本发明公开了连接关系确定的方法、装置、系统及存储介质。该方法包括：获取目标板卡的板卡标识；根据板卡标识和预先构建的板卡类型与硬件组件之间的映射关系库，确定目标硬件组件；板卡类型与硬件组件之间的映射关系包括板卡标识与板卡类型之间的对应关系；根据板卡标识和预先构建的板卡与参数配置之间的映射关系库，确定目标板卡与目标参数之间的配置关系；根据目标硬件组件和预先构建的硬件组件映射关系库，确定目标硬件组件之间的映射关系；根据目标硬件组件、目标板卡与目标参数之间的配置关系和目标硬件组件之间的映射关系，确定目标板卡中硬件组件之间的连接关系，能够提高板卡中的硬件组件的可扩展性和可维护性。","一种连接关系确定的方法，其特征在于，所述方法包括： 　　获取目标板卡的板卡标识； 　　根据所述板卡标识和预先构建的板卡类型与硬件组件之间的映射关系库，确定目标硬件组件；板卡类型与硬件组件之间的映射关系包括所述板卡标识与板卡类型之间的对应关系； 　　根据所述板卡标识和预先构建的板卡与参数配置之间的映射关系库，确定所述目标板卡与目标参数之间的配置关系； 　　根据所述目标硬件组件和预先构建的硬件组件映射关系库，确定所述目标硬件组件之间的映射关系； 　　根据所述目标硬件组件、所述目标板卡与目标参数之间的配置关系和所述目标硬件组件之间的映射关系，确定所述目标板卡中硬件组件之间的连接关系。","","中移（成都）信息通信科技有限公司 |\n中国移动通信集团有限公司","中移成都信息通信科技有限公司|中国移动通信集团有限公司","中移成都信息通信科技有限公司|中国移动通信集团有限公司","桑建 |\n魏远伦 |\n杨鑫","桑建","","2020/04/26","2021/10/26","2021/10/26","","G06F 13/10|G06F 13/40","G06F 13/10","","",10,4,7,13,"0.85","","","","","","发明公布","CN","",0,0,0,0,0,0,0,"0.0",0,0,0,0,"",0,0,"接口配置 |\n板卡标识 |\n硬件映射 |\nip encapsulating security payload |\n网络处理器 |\n外围组件 |\n对外接口 |\n组件映射 |\n软件映射 |\n外部接口 |\n硬件接口类型 |\n通信设备软件 |\n虚拟局域网","前端总线 |\n以太网交换芯片 |\n机框设备 |\n互联接口 |\n硬件板卡 |\n无限带宽 |\n加速图形端口 |\n工业标准架构","结构数组 |\n目标板卡 |\n接口类型信息","接口集合 |\n板卡类型信息 |\n目标接口 |\n配置文件 |\n接口标识","","","公开","2021.10.26 公开 公开\n\n2021.11.12 实质审查的生效 实质审查的生效\n申请日=2020.04.26","","北京东方亿思专利代理有限责任公司; 彭琼","四川省","610041 四川省成都市中国（四川）自由贸易试验区成都高新区交子大道575号J座6楼"]
[{"$f":"HYPERLINK(\"https://www.patentics.cn/invokexml.do?sx=showpatent_cn&sf=ShowPatent&spn=CN113553275A&sx=showpatent_cn&sv=59ff42d9\",\"CN113553275A\")","v":"CN113553275A"},"CN202010337161.5","CN",null,"连接关系确定的方法、装置、设备及存储介质","本发明公开了连接关系确定的方法、装置、设备及存储介质。该方法包括：从预先构建的板卡与硬件之间的映射关系库，确定第一板卡预先配置的第一板槽接口；当第二板卡的接口信息中不包括第二板槽接口时，确定第一板槽接口与第三板卡是否有连接关系；当第二板卡的接口信息中不包括第二板槽接口，且第一板槽接口的连接信息中不包括第一板槽接口与第三板卡的连接关系时，将第一板槽接口确定为第二板卡的第二板槽接口，得到第一板槽接口与第二板卡的连接关系，提高了在通信设备中配置板卡的可扩展性以及可维护性。","一种连接关系确定的方法，其特征在于，所述方法包括： 　　从预先构建的板卡与硬件之间的映射关系库，确定第一板卡预先配置的第一板槽接口； 　　当第二板卡的接口信息中不包括第二板槽接口时，确定所述第一板槽接口与第三板卡是否有连接关系； 　　当第二板卡的接口信息中不包括第二板槽接口，且所述第一板槽接口的连接信息中不包括所述第一板槽接口与所述第三板卡的连接关系时，将所述第一板槽接口确定为所述第二板卡的第二板槽接口，得到所述第一板槽接口与所述第二板卡的连接关系。","","中移（成都）信息通信科技有限公司 |\n中国移动通信集团有限公司","中移成都信息通信科技有限公司|中国移动通信集团有限公司","中移成都信息通信科技有限公司|中国移动通信集团有限公司","唐健明 |\n陈庆勇 |\n种璟 |\n刘朋 |\n黄铁脉","唐健明","","2020/04/26","2021/10/26","2021/10/26","","G06F 13/10|G06F 13/40","G06F 13/10","","",10,4,5,10,"1.09","","","","","","发明公布","CN","",0,0,0,0,0,0,0,"0.0",0,0,0,0,"",0,0,"外围组件 |\nip encapsulating security payload |\n硬件设备 |\n存储器总线 |\n通信接口 |\n多个总线 |\n通用串行总线 |\n大容量存储器 |\n硬件资源 |\n硬件结构 |\n软件模块 |\n软盘驱动器","外部接口 |\n接口类型 |\n对外接口 |\n板卡标识 |\n板卡连接 |\n硬件芯片 |\n硬件板卡 |\n插槽接口","前端总线 |\n加速图形端口 |\n工业标准架构 |\n无限带宽 |\n光纤介质 |\n软件映射 |\n软件可移植性 |\n外部硬件接口","互联接口 |\n板卡模块 |\n板卡类型","","","公开","2021.10.26 公开 公开\n\n2021.11.12 实质审查的生效 实质审查的生效\n申请日=2020.04.26","","北京东方亿思专利代理有限责任公司; 彭琼","四川省","610041 四川省成都市中国（四川）自由贸易试验区成都高新区交子大道575号J座6楼"]
[{"$f":"HYPERLINK(\"https://www.patentics.cn/invokexml.do?sx=showpatent_cn&sf=ShowPatent&spn=CN113553559A&sx=showpatent_cn&sv=1a73f4a3\",\"CN113553559A\")","v":"CN113553559A"},"CN202010337138.6","CN",null,"一种解锁方法、装置、设备及计算机存储介质","本发明公开了一种解锁方法、装置、设备及计算机存储介质。该方法包括：在电子设备处于锁屏状态且处于第一操作系统的情况下，接收用户输入的指纹信息；若根据预设数据库中的指纹模板信息确定指纹信息与第二操作系统中的第二指纹标识相匹配，则确定第一操作系统的第一数据库中是否包括第二指纹标识，其中，预设数据库包括用于解锁第一操作系统和第二操作系统的指纹信息的指纹标识；第一数据库包括第一指纹标识，和与第一指纹标识具有目标映射关系的第二指纹标识；若第一数据库中包括第二指纹标识，则控制电子设备进入第一操作系统。根据本发明实施例，能够解决用户在通过指纹解锁双系统的电子设备选择受限的问题。","一种解锁方法，应用于电子设备，其特征在于，所述电子设备包括第一操作系统和第二操作系统，所述方法包括： 　　在所述电子设备处于锁屏状态且处于第一操作系统的情况下，接收用户输入的指纹信息； 　　若根据预设数据库中的指纹模板信息确定所述指纹信息与所述第二操作系统中的第二指纹标识相匹配，则确定所述第一操作系统的第一数据库中是否包括所述第二指纹标识，其中，所述预设数据库包括用于解锁所述第一操作系统和所述第二操作系统的指纹信息的指纹标识；所述第一数据库包括第一指纹标识，和与所述第一指纹标识具有目标映射关系的所述第二指纹标识，所述第一指纹标识对应的指纹信息用于解锁所述第一操作系统； 　　若所述第一数据库中包括所述第二指纹标识，则控制所述电子设备进入所述第一操作系统。","","中移（成都）信息通信科技有限公司 |\n中国移动通信集团有限公司","中移成都信息通信科技有限公司|中国移动通信集团有限公司","中移成都信息通信科技有限公司|中国移动通信集团有限公司","刘耕 |\n骆平","刘耕","","2020/04/26","2021/10/26","2021/10/26","","G06F 21/32","G06F 21/32","","",12,4,10,15,"0.88","","","","","","发明公布","CN","",0,0,0,0,0,0,0,"0.0",0,0,0,0,"",0,0,"指纹数据 |\n指纹信息 |\n指纹验证 |\n敏感数据 |\n可信执行环境 |\n指纹模板信息 |\n加密文件 |\n用户录入 |\nisolation by distance |\n记录指纹 |\n信息验证 |\nisogenic |\nisopeptidase activity","解锁方法 |\n指纹解锁 |\n指纹采集 |\n指纹图像 |\n电子设备 |\n指纹传感器","指纹校验 |\n指纹图片 |\nisolated atrial amyloid |\n完成指纹 |\n切换操作系统 |\n判断指纹","指纹标识 |\n第二操作系统 |\n第一操作系统 |\nequipment identifier |\n标识匹配 |\n匹配成功","","","公开","2021.10.26 公开 公开\n\n2021.11.12 实质审查的生效 实质审查的生效\n申请日=2020.04.26","","北京东方亿思专利代理有限责任公司; 赵秀芹","四川省","610041 四川省成都市中国（四川）自由贸易试验区成都高新区交子大道575号J座6楼"]
[{"$f":"HYPERLINK(\"https://www.patentics.cn/invokexml.do?sx=showpatent_cn&sf=ShowPatent&spn=CN113553125A&sx=showpatent_cn&sv=32c8b4b4\",\"CN113553125A\")","v":"CN113553125A"},"CN202010336880.5","CN",null,"可信应用程序的调用方法、装置、设备及计算机存储介质","本发明实施例提供了一种可信应用程序的调用方法、装置、设备及计算机存储介质。该可信应用程序的调用方法，包括：接收客户端应用程序发送的第一通信信息；判断第一通信信息是否满足预设条件；若第一通信信息满足预设条件，则控制客户端应用程序调用客户端应用程序对应的可信应用程序。根据本发明实施例的可信应用程序的调用方法、装置、设备及计算机存储介质，能够更加安全地进行可信应用程序的调用。","一种可信应用程序的调用方法，其特征在于，包括： 　　接收客户端应用程序发送的第一通信信息； 　　判断所述第一通信信息是否满足预设条件； 　　若所述第一通信信息满足所述预设条件，则控制所述客户端应用程序调用所述客户端应用程序对应的可信应用程序。","","中移（成都）信息通信科技有限公司 |\n中国移动通信集团有限公司","中移成都信息通信科技有限公司|中国移动通信集团有限公司","中移成都信息通信科技有限公司|中国移动通信集团有限公司","刘耕 |\n骆平","刘耕","","2020/04/26","2021/10/26","2021/10/26","","G06F  9/448|G06F 21/51","G06F  9/448","","",10,4,8,8,"1.38","","","","","","发明公布","CN","",0,0,0,0,0,0,0,"0.0",0,0,0,0,"",0,0,"安全存储区 |\nrsa加密算法 |\ndes加密算法 |\n加密口令 |\n获取解密 |\nmd5加密算法 |\n合法性检测 |\n可信操作系统 |\n可信应用程序 |\nequipment identifier","可信执行环境 |\ncvd金刚石层 |\n加密传输 |\n加密过程 |\n密钥对 |\n信息加密 |\nemmons条件 |\n加密模块 |\n合法签名 |\n密文信息 |\nisolated rabbit |\n密钥生成模块 |\n业务操作 |\n信息安全技术","调用方 |\n执行代码 |\n程序调用 |\n应用程序接口","客户端应用程序","","","公开","2021.10.26 公开 公开\n\n2021.11.12 实质审查的生效 实质审查的生效\n申请日=2020.04.26","","北京东方亿思专利代理有限责任公司; 彭琼","四川省","610041 四川省成都市中国（四川）自由贸易试验区成都高新区交子大道575号J座6楼"]
[{"$f":"HYPERLINK(\"https://www.patentics.cn/invokexml.do?sx=showpatent_cn&sf=ShowPatent&spn=CN113547527A&sx=showpatent_cn&sv=ebcac9b7\",\"CN113547527A\")","v":"CN113547527A"},"CN202010336855.7","CN",null,"幼教机器人及幼教机器人系统","本发明实施例提供了一种幼教机器人及幼教机器人系统。该幼教机器人，包括：机器人主体；通信组件，用于向云服务器发送虚拟现实VR云渲染请求，并接收云服务器发送的VR云渲染结果；VR显示模块，VR显示模块包括：设置于机器人主体头部的观察窗和设置于观察窗内部的显示单元；显示单元，用于基于VR云渲染结果，显示VR云渲染结果对应的VR教学资源场景。根据本发明实施例的幼教机器人及幼教机器人系统，能够在幼儿教学场景中，避免幼儿的佩戴疲劳。","一种幼教机器人，其特征在于，包括： 　　机器人主体； 　　通信组件，用于向云服务器发送虚拟现实VR云渲染请求，并接收所述云服务器发送的VR云渲染结果； 　　VR显示模块，所述VR显示模块包括：设置于所述机器人主体头部的观察窗和设置于所述观察窗内部的显示单元； 　　所述显示单元，用于基于所述VR云渲染结果，显示所述VR云渲染结果对应的VR教学资源场景。","","中移（成都）信息通信科技有限公司 |\n中国移动通信集团有限公司","中移成都信息通信科技有限公司|中国移动通信集团有限公司","中移成都信息通信科技有限公司|中国移动通信集团有限公司","张瑞 |\n曾琦娟 |\n唐健明 |\n范涛 |\n李廷龙","张瑞","","2020/04/26","2021/10/26","2021/10/26","","B25J 11/00|B25J  5/00|G09B  5/02","B25J 11/00","","",10,2,0,15,"0.69","","","","","","发明公布","CN","",0,0,0,0,0,0,0,"0.0",0,0,0,0,"",0,0,"vr技术 |\n虚拟现实技术 |\nvr系统 |\naugmented reality |\n沉浸感 |\nvirtual reality |\nvr眼镜 |\n虚拟现实vr |\n头戴式 |\n全景摄像头 |\n远程医疗 |\n视角","增强现实 |\n虚拟空间 |\n显示全景 |\n全景视频信息 |\n方位信息","交互体验 |\n交互方式 |\n交互操作 |\n幼教 |\n教育 |\n教学资源 |\n教学技术 |\n人性化 |\n表情交互","机器人头部 |\n机器人系统 |\n佩戴式","","","公开","2021.10.26 公开 公开\n\n2021.11.12 实质审查的生效 实质审查的生效\n申请日=2020.04.26","","北京东方亿思专利代理有限责任公司; 彭琼","四川省","610041 四川省成都市中国（四川）自由贸易试验区成都高新区交子大道575号J座6楼"]
[{"$f":"HYPERLINK(\"https://www.patentics.cn/invokexml.do?sx=showpatent_cn&sf=ShowPatent&spn=CN113554048A&sx=showpatent_cn&sv=0cf4fab7\",\"CN113554048A\")","v":"CN113554048A"},"CN202010336465.X","CN",null,"数据识别方法、装置、设备及存储介质","本申请公开了一种数据识别方法、装置、设备及存储介质，涉及边缘智能技术领域。该方法包括：获取待识别数据；基于第一模型对所述待识别数据进行识别处理，得到所述待识别数据的识别结果；其中，所述第一模型为采用预设网格搜索算法对预先获取的第二模型进行训练后得到。根据本申请实施例，能够提高边缘设备识别数据时的识别准确率。","一种数据识别方法，其特征在于，所述方法应用于边缘设备，所述方法包括： 　　获取待识别数据； 　　基于第一模型对所述待识别数据进行识别处理，得到所述待识别数据的识别结果； 　　其中，所述第一模型为采用预设网格搜索算法对预先获取的第二模型进行训练后得到。","","中移（成都）信息通信科技有限公司 |\n中国移动通信集团有限公司","中移成都信息通信科技有限公司|中国移动通信集团有限公司","中移成都信息通信科技有限公司|中国移动通信集团有限公司","张李秋 |\n何明 |\n李超 |\n孙文超 |\n刘林海","张李秋","","2020/04/26","2021/10/26","2021/10/26","","G06K  9/62|G06K  9/00","G06K  9/62","","",13,4,6,8,"1.75","","","","","","发明公布","CN","",0,0,0,0,0,0,0,"0.0",0,0,0,0,"",0,0,"模型训练 |\n训练模型 |\n训练数据 |\n初始模型 |\n网络模型 |\n迁移学习 |\n训练模块 |\ngun propellant |\n数据集合","超参数 |\n迭代训练 |\n训练阶段 |\n训练过程 |\ncycloplatin |\n训练次数 |\n输入样本 |\n激活函数","模型识别 |\n识别准确率 |\n识别方法 |\n目标检测算法","模型初始化 |\n模型计算量 |\n优化模型参数 |\n提升模型 |\n模型优化 |\n搜索算法 |\n输入训练样本 |\n输入数据样本","","","公开","2021.10.26 公开 公开\n\n2021.11.12 实质审查的生效 实质审查的生效\n申请日=2020.04.26","","北京东方亿思专利代理有限责任公司; 彭琼","四川省","610041 四川省成都市中国（四川）自由贸易试验区成都高新区交子大道575号J座6楼"]
[{"$f":"HYPERLINK(\"https://www.patentics.cn/invokexml.do?sx=showpatent_cn&sf=ShowPatent&spn=CN113556740A&sx=showpatent_cn&sv=9e575654\",\"CN113556740A\")","v":"CN113556740A"},"CN202010264684.1","CN",null,"身份认证系统及方法","本发明实施例提供一种身份认证系统及方法。该系统包括：基站，用于当用户设备UE进入预设范围时，与UE建立通信连接，获取UE的用户识别卡SIM卡信息，并将基站身份标识ID和SIM卡信息发送至运营商核心网；运营商核心网，用于根据SIM卡信息对SIM卡进行认证，当SIM卡认证通过时，确定基站ID对应的服务设备ID，并将服务设备ID和SIM卡信息中的用户ID发送至服务器；服务器，用于根据服务设备ID与用户ID确定UE在服务设备上的权限。通过本发明实施例，能够基于运营商核心网进行身份认证，提高身份认证的安全性，缩短认证时间，优化用户体验。","一种身份认证系统，其特征在于，所述系统包括： 　　基站，用于当用户设备UE进入预设范围时，与所述UE建立通信连接，获取所述UE的用户识别卡SIM卡信息，并将基站身份标识ID和所述SIM卡信息发送至运营商核心网； 　　所述运营商核心网，用于根据所述SIM卡信息对SIM卡进行认证，当所述SIM卡认证通过时，确定所述基站ID对应的服务设备ID，并将所述服务设备ID和所述SIM卡信息中的用户ID发送至服务器； 　　所述服务器，用于根据所述服务设备ID与所述用户ID确定所述UE在服务设备上的权限。","","中移（成都）信息通信科技有限公司 |\n中国移动通信集团有限公司","中移成都信息通信科技有限公司|中国移动通信集团有限公司","中移成都信息通信科技有限公司|中国移动通信集团有限公司","朱怡","朱怡","","2020/04/07","2021/10/26","2021/10/26","","H04W 12/06|G07C  1/10|G07C  9/27|H04W 12/40|H04W 12/72|H04W 12/73","H04W 12/06","","",10,2,5,22,"0.48","","","","","","发明公布","CN","",0,0,0,0,0,0,0,"0.0",0,0,0,0,"",0,0,"sim卡信息 |\n物联网设备 |\narrhythmogenic right ventricular dysplasia |\n身份认证系统 |\n身份认证方法 |\n生物识别 |\n指纹信息 |\n用户隐私 |\nsim卡密钥","用户识别卡 |\nsim卡认证 |\nenvironmentally benign reaction |\neod状态 |\n传输信息","身份鉴权 |\n运营商核心网 |\n身份认证方案 |\n认证时间 |\n身份认证技术 |\n移动管理功能","服务设备 |\n发送服务 |\n设备id |\n身份标识id |\n权限信息 |\n手机号码具 |\n获取服务","","","公开","2021.10.26 公开 公开\n\n2021.11.12 实质审查的生效 实质审查的生效\n申请日=2020.04.07","","北京东方亿思专利代理有限责任公司; 彭琼","四川省","610041 四川省成都市中国（四川）自由贸易试验区成都高新区交子大道575号J座6楼"]
[{"$f":"HYPERLINK(\"https://www.patentics.cn/invokexml.do?sx=showpatent_cn&sf=ShowPatent&spn=CN113538646A&sx=showpatent_cn&sv=1dd6ceb5\",\"CN113538646A\")","v":"CN113538646A"},"CN202010316839.1","CN",null,"物体数字化系统、方法、服务端、客户端及存储介质","本发明实施例公开了本发明实施例提供了一种物体数字化系统、方法、服务端、客户端及存储介质。系统包括：客户端，用于获取物体的第一表面特征信息；服务端，用于根据物体的第一表面特征信息进行渲染生成物体的模型的信息，并向客户端发送模型的信息；客户端，还用于显示模型。本发明实施例通过将扫描能力与计算能力分离，降低了终端设备的成本，促进了物体数字化技术的普及。","一种物体数字化系统，其特征在于， 　　客户端，用于获取物体的第一表面特征信息； 　　服务端，用于根据所述物体的第一表面特征信息进行渲染生成所述物体的模型的信息，并向所述客户端发送所述模型的信息； 　　所述客户端，还用于显示所述模型。","","中移（成都）信息通信科技有限公司 |\n中国移动通信集团有限公司","中移成都信息通信科技有限公司|中国移动通信集团有限公司","中移成都信息通信科技有限公司|中国移动通信集团有限公司","曾艳 |\n李晟 |\n孔令凯 |\n冯烨","曾艳","","2020/04/21","2021/10/22","2021/10/22","","G06T 15/00|G06T 17/00","G06T 15/00","","",15,6,7,10,"1.63","","","","","","发明公布","CN","",0,0,0,0,0,0,0,"0.0",0,0,0,0,"",0,0,"信息获取 |\n扫描模块 |\n路径规划模块","扫描数据 |\n获取扫描 |\n扫描设备 |\n三维扫描仪 |\n实物 |\n获取物体 |\n扫描物体 |\n点云数据 |\n采集图像 |\n进行扫描 |\n实时姿态信息 |\n低精度","信息生成 |\n交互模块 |\n获取客户 |\n服务端 |\n客户端获取 |\n平台系统 |\n信息比对","三维模型信息 |\n空间坐标信息 |\n渲染模块 |\n模型渲染 |\n三维数字化","","","公开","2021.10.22 公开 公开\n\n2021.11.09 实质审查的生效 实质审查的生效\n申请日=2020.04.21","","北京东方亿思专利代理有限责任公司; 彭琼","四川省","610041 四川省成都市中国（四川）自由贸易试验区成都高新区交子大道575号J座6楼"]
[{"$f":"HYPERLINK(\"https://www.patentics.cn/invokexml.do?sx=showpatent_cn&sf=ShowPatent&spn=CN113538604A&sx=showpatent_cn&sv=0fedfa57\",\"CN113538604A\")","v":"CN113538604A"},"CN202010316150.9","CN",null,"图像生成方法、装置、设备及介质","本发明实施例提供一种图像生成方法、装置、设备及介质。该方法包括：获取训练图像；基于信道注意网络中的编码器处理训练图像，生成第一特征图，基于信道注意网络中的解码器处理训练图像，生成第二特征图；基于信道注意网络中的多通道注意力模块对第一特征图和第二特征图进行整合，生成第三特征图；基于第三特征图对信道注意网络进行训练，得到图像生成模型；基于该模型对待处理图像进行处理，得到图像生成结果。如此能够获得带有多通道注意力模块的图像生成模型，该模型可以在不需要配对数据的情况下将输入图像从一个域转换为多个域，而且，基于该模型生成目标图像，不仅可以提高图像平移任务的性能，还可以减少计算参数，提高图像生成效果。","一种图像生成模型训练方法，其特征在于，所述方法包括： 　　获取训练图像； 　　基于信道注意网络中的编码器处理所述训练图像，生成第一特征图，以及基于所述信道注意网络中的解码器处理所述训练图像，生成第二特征图； 　　基于所述信道注意网络中的多通道注意力模块对所述第一特征图和所述第二特征图进行整合，生成第三特征图； 　　基于所述第三特征图对所述信道注意网络进行训练，得到图像生成模型； 　　其中，所述信道注意网络是将所述多通道注意力模块添加至U-Net模型中并进行调整而得到的，所述信道注意网络中的编码器和解码器之间跳跃连接。","","中移（成都）信息通信科技有限公司 |\n中国移动通信集团有限公司","中移成都信息通信科技有限公司|中国移动通信集团有限公司","中移成都信息通信科技有限公司|中国移动通信集团有限公司","梁玲玲 |\n张璐璐 |\n郭丽茹","梁玲玲","","2020/04/21","2021/10/22","2021/10/22","","G06T  9/00","G06T  9/00","","",12,6,5,14,"0.94","","","","","","发明公布","CN","",0,0,0,0,0,0,0,"0.0",0,0,0,0,"",0,0,"特征映射 |\n训练图像 |\n目标域 |\n全连接层 |\n特征图 |\n注意力机制 |\n反卷积层 |\n特征向量 |\n特征解码 |\n训练模块 |\n图像特征 |\n向量输入 |\n模型训练方法 |\n模型生成 |\n图像翻译模型","损失函数 |\n激活函数 |\n梯度爆炸 |\n超参数 |\n平均池化 |\n正则化参数 |\n训练时间 |\n池化函数 |\n梯度消失","跳跃连接 |\n线性整流 |\n全局平均 |\n卷积提取","图像生成模型","","","公开","2021.10.22 公开 公开\n\n2021.11.09 实质审查的生效 实质审查的生效\n申请日=2020.04.21","","北京东方亿思专利代理有限责任公司; 彭琼","四川省","610041 四川省成都市中国（四川）自由贸易试验区成都高新区交子大道575号J座6楼"]
[{"$f":"HYPERLINK(\"https://www.patentics.cn/invokexml.do?sx=showpatent_cn&sf=ShowPatent&spn=CN113532588A&sx=showpatent_cn&sv=549ae667\",\"CN113532588A\")","v":"CN113532588A"},"CN202010310772.0","CN",null,"水位获取方法、装置、设备及存储介质","本申请公开了一种水位获取方法、装置、设备及存储介质，涉及遥感通信技术领域。该方法包括：获取待测区域对应的目标卫星的目标观测数据；从所述目标观测数据中分解出目标多路径反射信号；根据预设识别条件，从所述目标多路径反射信号中识别出水面反射信号；对所述水面反射信号进行频谱分析，得到所述目标观测数据对应的目标反射高度；根据所述目标反射高度，获取所述待测区域的水位。根据本申请实施例，能够提高获取的水位的准确度。","一种水位获取方法，其特征在于，所述方法包括： 　　获取待测区域对应的目标卫星的目标观测数据； 　　从所述目标观测数据中分解出目标多路径反射信号； 　　根据预设识别条件，从所述目标多路径反射信号中识别出水面反射信号； 　　对所述水面反射信号进行频谱分析，得到所述目标观测数据对应的目标反射高度； 　　根据所述目标反射高度，获取所述待测区域的水位。","","中移（成都）信息通信科技有限公司 |\n中国移动通信集团有限公司","中移成都信息通信科技有限公司|中国移动通信集团有限公司","中移成都信息通信科技有限公司|中国移动通信集团有限公司","吕铮 |\n兰天 |\n何明","吕铮","","2020/04/20","2021/10/22","2021/10/22","","G01F 23/28|G06K  9/62","G01F 23/28","","",13,4,9,13,"1.09","","","","","","发明公布","CN","",0,0,0,0,0,0,0,"0.0",0,0,0,0,"",0,0,"观测信号 |\nenergize |\n解析信号 |\n信号频谱 |\n直射信号 |\n原始信号 |\n模态混叠 |\n信号分解 |\n信噪比数据 |\n目标信号 |\n本征模态函数 |\nhigh level switch |\n多路径信号 |\nhigh drivability","liposomal delivery system |\n经验模态分解 |\n估计结果 |\n先验信息 |\n估计精度 |\ncyclic steam stimulation |\n联合估计算法","噪声分布 |\n目标观测数据","相关性系数 |\n奇异值分解 |\n求取目标 |\nlipid nanocapsules |\n主成分分析","","","公开","2021.10.22 公开 公开\n\n2021.11.09 实质审查的生效 实质审查的生效\n申请日=2020.04.20","","北京东方亿思专利代理有限责任公司; 赵秀芹","四川省","610041 四川省成都市中国（四川）自由贸易试验区成都高新区交子大道575号J座6楼"]
[{"$f":"HYPERLINK(\"https://www.patentics.cn/invokexml.do?sx=showpatent_cn&sf=ShowPatent&spn=CN113538573A&sx=showpatent_cn&sv=76aedea2\",\"CN113538573A\")","v":"CN113538573A"},"CN202010310618.3","CN",null,"服饰关键点定位方法、装置、电子设备及计算机存储介质","本发明实施例提供了一种服饰关键点定位方法、装置、电子设备及计算机存储介质。该服饰关键点定位方法，包括：获取待服饰关键点定位的服饰图像和服饰图像对应的热力图；将服饰图像和服饰图像对应的热力图进行特征融合，得到融合图像；将融合图像输入预设的服饰关键点定位模型，输出服饰图像对应的定位结果图像；其中，服饰关键点定位模型是利用训练集对第一多域多任务网络进行模型训练得到的，训练集是基于样本服饰图像、样本服饰图像对应的热力图进行特征融合得到的，第一多域多任务网络包括回归任务网络。根据本发明实施例的服饰关键点定位方法、装置、电子设备及计算机存储介质，能够更加准确地进行服饰关键点定位。","一种服饰关键点定位方法，其特征在于，包括： 　　获取待服饰关键点定位的服饰图像和所述服饰图像对应的热力图； 　　将所述服饰图像和所述服饰图像对应的热力图进行特征融合，得到融合图像； 　　将所述融合图像输入预设的服饰关键点定位模型，输出所述服饰图像对应的定位结果图像； 　　其中，所述服饰关键点定位模型是利用训练集对第一多域多任务网络进行模型训练得到的，所述训练集是基于样本服饰图像、所述样本服饰图像对应的热力图进行特征融合得到的，所述第一多域多任务网络包括回归任务网络。","","中移（成都）信息通信科技有限公司 |\n中国移动通信集团有限公司","中移成都信息通信科技有限公司|中国移动通信集团有限公司","中移成都信息通信科技有限公司|中国移动通信集团有限公司","何明 |\n张李秋 |\n李超 |\n刘林海","何明","","2020/04/20","2021/10/22","2021/10/22","","G06T  7/73|G06K  9/62|G06N  3/04|G06N  3/08","G06T  7/73","","",13,4,10,18,"0.79","","","","","","发明公布","CN","",0,0,0,0,0,0,0,"0.0",0,0,0,0,"",0,0,"网络训练 |\n网络输出 |\ncyclic dependency |\n深度学习网络 |\n特征融合 |\n卷积神经网络 |\n残差网络 |\n最大池化 |\n神经网络层 |\n全连接层 |\n输入图片 |\n特征提取 |\n反向传播 |\n学习速率 |\n模型参数 |\nmobilenet网络","分类任务 |\n训练样本 |\n训练过程 |\n模型训练 |\n注意力机制 |\n训练模块 |\n特征向量 |\n分类模型","模型收敛速度 |\n平均池化 |\n卷积变换 |\n稠密网络 |\n关键点定位方法","深度学习技术","","","公开","2021.10.22 公开 公开\n\n2021.11.09 实质审查的生效 实质审查的生效\n申请日=2020.04.20","","北京东方亿思专利代理有限责任公司; 彭琼","四川省","610041 四川省成都市中国（四川）自由贸易试验区成都高新区交子大道575号J座6楼"]
[{"$f":"HYPERLINK(\"https://www.patentics.cn/invokexml.do?sx=showpatent_cn&sf=ShowPatent&spn=CN113536844A&sx=showpatent_cn&sv=c47453cd\",\"CN113536844A\")","v":"CN113536844A"},"CN202010298714.0","CN",null,"人脸对比方法、装置、设备及介质","本发明实施例公开了一种人脸对比方法、装置、设备及介质。该方法包括：获取第一图片包括的第一人脸的人脸特征和人脸角度特征；获取第二图片包括的第二人脸的人脸特征和人脸角度特征；根据第一人脸的人脸特征和第二人脸的人脸特征，确定第一人脸和第二人脸的人脸特征距离；根据第一人脸的人脸角度特征和第二人脸的人脸角度特征，确定第一人脸和第二人脸的人脸角度特征距离；根据人脸特征距离和人脸角度特征距离，确定第一人脸和第二人脸是否为同一人脸。本发明实施例的人脸对比方法、装置、设备及介质，能够提高人脸对比的准确性。","一种人脸对比方法，其特征在于，所述方法包括： 　　获取第一图片包括的第一人脸的人脸特征和人脸角度特征； 　　获取第二图片包括的第二人脸的人脸特征和人脸角度特征； 　　根据所述第一人脸的人脸特征和所述第二人脸的人脸特征，确定所述第一人脸和所述第二人脸的人脸特征距离； 　　根据所述第一人脸的人脸角度特征和所述第二人脸的人脸角度特征，确定所述第一人脸和所述第二人脸的人脸角度特征距离； 　　根据所述人脸特征距离和所述人脸角度特征距离，确定所述第一人脸和所述第二人脸是否为同一人脸。","","中移（成都）信息通信科技有限公司 |\n中国移动通信集团有限公司","中移成都信息通信科技有限公司|中国移动通信集团有限公司","中移成都信息通信科技有限公司|中国移动通信集团有限公司","李晟 |\n孔令凯 |\n白义 |\n李关乐 |\n冯烨 |\n赵海秀 |\n陈小虎 |\n王玉龙","李晟","","2020/04/16","2021/10/22","2021/10/22","","G06K  9/00|G06K  9/62","G06K  9/00","","",10,4,7,7,"1.57","","","","","","发明公布","CN","",0,0,0,0,0,0,0,"0.0",0,0,0,0,"",0,0,"特征距离 |\n特征向量 |\nconvolutional neural network |\n卷积神经网络 |\n加权求和 |\nn维特征 |\n维数 |\n权重值","识别人脸 |\n人脸特征 |\n人脸识别算法 |\n待识别图片 |\n图片中 |\n人脸角度 |\n人脸识别结果 |\n图像处理技术 |\n人脸识别技术","关键点坐标 |\ncomputer vision library |\n相机标定 |\n内参矩阵 |\n计算机视觉库 |\n畸变系数 |\n对比方法 |\n角度特征 |\n基准图片","嘴角 |\nmusic station |\n右眼角","","","公开","2021.10.22 公开 公开\n\n2021.11.09 实质审查的生效 实质审查的生效\n申请日=2020.04.16","","北京东方亿思专利代理有限责任公司; 彭琼","四川省","610041 四川省成都市中国（四川）自由贸易试验区成都高新区交子大道575号J座6楼"]
[{"$f":"HYPERLINK(\"https://www.patentics.cn/invokexml.do?sx=showpatent_cn&sf=ShowPatent&spn=CN113515222A&sx=showpatent_cn&sv=ecd37615\",\"CN113515222A\")","v":"CN113515222A"},"CN202010227506.1","CN",null,"一种功能开启方法、装置、设备及计算机存储介质","本发明公开了一种功能开启方法、装置、设备及计算机存储介质。该方法包括：在电子设备处于熄屏状态的情况下，接收用户对电子设备的显示屏的第一输入；响应于第一输入，确定第一输入的第一触控时长；从预先设置的触控时长与配置功能的关联关系中查询与第一触控时长相关联的第一功能；控制电子设备启动第一功能。本发明实施例，通过在电子设备处于熄屏状态的情况下，识别用户按压屏幕的第一触控时长来实现一些预先设置好的功能，能够提高开启电子设备快捷功能的使用便捷度。","一种功能开启方法，应用于电子设备，其特征在于，所述方法包括： 　　在所述电子设备处于熄屏状态的情况下，接收用户对所述电子设备的显示屏的第一输入； 　　响应于所述第一输入，确定所述第一输入的第一触控时长； 　　从预先设置的触控时长与配置功能的关联关系中查询与所述第一触控时长相关联的第一功能； 　　控制所述电子设备启动所述第一功能。","","中移（成都）信息通信科技有限公司 |\n中国移动通信集团有限公司","中移成都信息通信科技有限公司|中国移动通信集团有限公司","中移成都信息通信科技有限公司|中国移动通信集团有限公司","桑建 |\n魏远伦 |\n杨鑫","桑建","","2020/03/27","2021/10/19","2021/10/19","","G06F  3/0488|H04M  1/72403","G06F  3/0488","","",8,4,5,10,"0.89","","","","","","发明公布","CN","",0,0,0,0,0,0,0,"0.0",0,0,0,0,"",0,0,"控制电子设备 |\n物理按键 |\n物理键 |\n快捷功能","equipment identifier |\n半导体存储器设备","处理器 |\n可编程 |\n硬件架构 |\n计算设备 |\n大容量存储器 |\n软盘驱动器 |\nassets |\neeprom |\n只读存储器 |\nasic |\n多个总线 |\n硬盘驱动器 |\n外围组件 |\napplication specific integrated circuit |\ncd-rom |\n存储器总线 |\n可擦除 |\n通信接口 |\nisa |\n机器可读介质","终端技术","","","公开","2021.10.19 公开 公开\n\n2021.11.05 实质审查的生效 实质审查的生效\n申请日=2020.03.27","","北京东方亿思专利代理有限责任公司; 赵秀芹","四川省","610041 四川省成都市中国（四川）自由贸易试验区成都高新区交子大道575号J座6楼"]
[{"$f":"HYPERLINK(\"https://www.patentics.cn/invokexml.do?sx=showpatent_cn&sf=ShowPatent&spn=CN113498149A&sx=showpatent_cn&sv=70c8c531\",\"CN113498149A\")","v":"CN113498149A"},"CN202010261138.2","CN",null,"基于网络切片的双连接方法、装置、设备及介质","本发明实施例提供一种基于网络切片的双连接方法、装置、设备及介质。该方法包括：将用户设备UE的硬件资源虚拟化为第一虚拟机VM和第二VM，其中，第一应用App在第一VM上运行，第二App在第二VM上运行；当基于UE的签约信息将UE驻留在专业网络切片以及通用网络切片时，第一App与专业网络切片绑定，第二App与通用网络切片绑定。通过本发明实施例，能够提高业务执行效率以及终端的硬件资源利用率，优化用户体验。","一种基于网络切片的双连接方法，其特征在于，所述方法包括： 　　将用户设备UE的硬件资源虚拟化为第一虚拟机VM和第二VM，其中，第一应用App在所述第一VM上运行，第二App在所述第二VM上运行； 　　当基于所述UE的签约信息将所述UE驻留在专业网络切片以及通用网络切片时，所述第一App与所述专业网络切片绑定，所述第二App与所述通用网络切片绑定。","","中移（成都）信息通信科技有限公司 |\n中国移动通信集团有限公司","中移成都信息通信科技有限公司|中国移动通信集团有限公司","中移成都信息通信科技有限公司|中国移动通信集团有限公司","唐飞","唐飞","","2020/04/03","2021/10/12","2021/10/12","","H04W 48/16|H04W 76/15","H04W 48/16","","",12,4,5,14,"0.92","","","","","","发明公布","CN","",0,0,0,0,0,0,0,"0.0",0,0,0,0,"",0,0,"网络功能 |\n网络架构 |\n专用网络 |\n通用网络 |\n移动宽带 |\n计算机网络 |\n接入网络 |\n软件定义网络 |\n物理网络 |\n专业网络 |\n专网业务 |\n端到端网络 |\n第三代合作伙伴计划","虚拟化技术 |\n物理服务器 |\n硬件虚拟化 |\n硬件资源 |\nddc总线 |\n虚拟机监视器 |\n逻辑设备 |\n传统服务器 |\n资源虚拟 |\n应用共享 |\n特殊服务器 |\n计算机物理资源","执行业务 |\n服务类型 |\n应用程序请求 |\n用户级别","终端访问 |\n应用服务器","","","公开","2021.10.12 公开 公开\n\n2021.10.29 实质审查的生效 实质审查的生效\n申请日=2020.04.03","","北京东方亿思专利代理有限责任公司; 彭琼","四川省","610041 四川省成都市中国（四川）自由贸易试验区成都高新区交子大道575号J座6楼"]
[{"$f":"HYPERLINK(\"https://www.patentics.cn/invokexml.do?sx=showpatent_cn&sf=ShowPatent&spn=CN113459701A&sx=showpatent_cn&sv=d35a9974\",\"CN113459701A\")","v":"CN113459701A"},"CN202010245182.4","CN",null,"智能矫正笔及矫正方法","本发明公开了一种智能矫正笔及矫正方法，智能矫正笔包括：笔本体，笔本体具有相对的笔尖和笔帽；检测部，设置于笔本体，用于检测使用者手的实时握持信息；控制单元，根据实时握持信息定制出正确的握持信息；标识部，设置于笔本体，用于标识出正确的握持信息。根据不同使用者的实时握持信息，可以为使用者提供对应的正确的握持信息，使得使用者能够直观认识正确的握持信息，并根据正确的握持信息进行握笔书写，为不同使用者精准匹配正确的握持信息，提高使用者握持姿势的正确性以及矫正效果。","一种智能矫正笔，其特征在于，包括： 　　笔本体(1)，所述笔本体(1)具有相对的笔尖(11)和笔帽(12)； 　　检测部(2)，设置于所述笔本体(1)，用于检测使用者手的实时握持信息； 　　控制单元，根据所述实时握持信息定制出正确的握持信息； 　　标识部(3)，设置于所述笔本体(1)，用于标识出所述正确的握持信息。","","中移（成都）信息通信科技有限公司 |\n中国移动通信集团有限公司","中移成都信息通信科技有限公司|中国移动通信集团有限公司","中移成都信息通信科技有限公司|中国移动通信集团有限公司","李廷龙 |\n刘朋 |\n黄铁脉 |\n唐健明 |\n范涛","李廷龙","","2020/03/31","2021/10/01","2021/10/01","","B43K 29/00","B43K 29/00","","",11,2,5,13,"0.89","","","","","","发明公布","CN","",0,0,0,0,0,0,0,"0.0",0,0,0,0,"",0,0,"握持位置 |\n握笔姿势 |\n触摸点 |\n笔尖 |\n握持姿势 |\n手势 |\n触控位置 |\n触控部 |\n检测触控 |\n中指 |\n笔本体 |\n书写过程 |\n笔身 |\n写字 |\n笔芯 |\n握持信息","绝对坐标 |\n标准姿势 |\n基准坐标 |\n位置图像 |\n加速度检测 |\n压力信息 |\n姿态信息 |\n位置计算","坐标信息 |\n图像标识 |\n位置范围","标识部 |\n点位","","","公开","2021.10.01 公开 公开\n\n2021.10.26 实质审查的生效 实质审查的生效\n申请日=2020.03.31","","北京东方亿思专利代理有限责任公司; 娜拉","四川省","610041 四川省成都市中国（四川）自由贸易试验区成都高新区交子大道575号J座6楼"]
[{"$f":"HYPERLINK(\"https://www.patentics.cn/invokexml.do?sx=showpatent_cn&sf=ShowPatent&spn=CN113470806A&sx=showpatent_cn&sv=8d3263fb\",\"CN113470806A\")","v":"CN113470806A"},"CN202010244924.1","CN",null,"病情检测模型的确定方法、装置、设备及计算机存储介质","本发明公开了一种病情检测模型的确定方法、装置、设备及计算机存储介质。该方法包括：获取多个预设医疗分支节点中的每个预设医疗分支节点的第一病情检测子模型及其对应的第一特征矩阵，第一特征矩阵用于表示训练第一病情检测子模型的第一病情样本数据对应的多个第一特征之间的比重；根据多个第一病情检测子模型及其分别对应的第一特征矩阵确定第一病情检测中心模型；将第一病情检测中心模型分发至每个预设医疗分支节点，以使每个预设医疗分支节点根据第一病情检测中心模型识别待检测病情样本数据的病情类别值。根据本发明的实施例，能够大幅提高病情样本数据的数量，提高提高模型的泛化能力，进而更好的检测多种类的疾病。","一种病情检测模型的确定方法，其特征在于，所述方法包括： 　　获取多个预设医疗分支节点中的每个预设医疗分支节点的第一病情检测子模型及其对应的第一特征矩阵，所述第一特征矩阵用于表示训练所述第一病情检测子模型的第一病情样本数据对应的多个第一特征之间的比重； 　　根据多个所述第一病情检测子模型及其分别对应的所述第一特征矩阵确定第一病情检测中心模型； 　　将所述第一病情检测中心模型分发至每个所述预设医疗分支节点，以使所述每个预设医疗分支节点根据所述第一病情检测中心模型识别待检测病情样本数据的病情类别值。","","中移（成都）信息通信科技有限公司 |\n中国移动通信集团有限公司","中移成都信息通信科技有限公司|中国移动通信集团有限公司","中移成都信息通信科技有限公司|中国移动通信集团有限公司","杨了 |\n唐小勇 |\n黄承基","杨了","","2020/03/31","2021/10/01","2021/10/01","","G16H 50/20|G16H 50/70","G16H 50/20","","",10,6,6,16,"0.70","","","","","","发明公布","CN","",0,0,0,0,0,0,0,"0.0",0,0,0,0,"",0,0,"训练数据 |\n方法训练 |\n训练模型 |\n模型训练 |\n训练样本数据 |\n子模型 |\n欠拟合 |\n类别特征 |\n特征数据 |\n模型识别 |\n迭代训练 |\n特征矩阵 |\n肺部ct影像 |\n深度学习技术 |\n筛查模型 |\n智能检测模型 |\n数据输入","数据分布 |\n数据样本 |\n样本数量 |\n新样本 |\n子集输入 |\n过拟合现象 |\n迭代更新","模型更新 |\n医疗数据 |\n多源异构 |\n综合分析模型","训练条件","","","公开","2021.10.01 公开 公开\n\n2021.10.26 实质审查的生效 实质审查的生效\n申请日=2020.03.31","","北京东方亿思专利代理有限责任公司; 赵秀芹","四川省","610041 四川省成都市中国（四川）自由贸易试验区成都高新区交子大道575号J座6楼"]
[{"$f":"HYPERLINK(\"https://www.patentics.cn/invokexml.do?sx=showpatent_cn&sf=ShowPatent&spn=CN113448430A&sx=showpatent_cn&sv=13ef2d96\",\"CN113448430A\")","v":"CN113448430A"},"CN202010222088.7","CN",null,"文本纠错的方法、装置、设备和计算机可读存储介质","本发明实施例提供一种文本纠错的方法、装置、设备和计算机可读存储介质。该文本纠错方法包括：显示语音识别文本；接收用户眼睛在语音识别文本的聚焦点，确定聚焦点的驻留信息，驻留信息包括驻留时长；当驻留时长满足预设条件时，确定聚焦点对应的待修改文本，并显示待修改文本的候选文本；当聚焦点移动时，确定对应聚焦点移动时刻的候选文本；将待修改文本修改为对应聚焦点移动时刻的候选文本。本发明实施例能够在无需用户输入的情况下，方便、快捷的纠正文本出现的错误识别，并且能够实现快速、准确的纠正文本错误。","一种文本纠错的方法，其特征在于，所述方法包括： 　　显示语音识别文本； 　　接收用户眼睛在所述语音识别文本的聚焦点，确定所述聚焦点的驻留信息，所述驻留信息包括驻留时长； 　　当所述驻留时长满足预设条件时，确定所述聚焦点对应的待修改文本，并显示所述待修改文本的候选文本； 　　当所述聚焦点移动时，确定对应所述聚焦点移动时刻的候选文本； 　　将所述待修改文本修改为对应所述聚焦点移动时刻的候选文本。","","中移（成都）信息通信科技有限公司 |\n中国移动通信集团有限公司","中移成都信息通信科技有限公司|中国移动通信集团有限公司","中移成都信息通信科技有限公司|中国移动通信集团有限公司","谭敏","谭敏","","2020/03/26","2021/09/28","2021/09/28","","G06F  3/01|G06F  3/0487|G10L 15/26","G06F  3/01","","",10,4,5,12,"0.91","","","","","","发明公布","CN","",0,0,0,0,0,0,0,"0.0",0,0,0,0,"",0,0,"语音文本 |\n语音识别结果 |\n待识别语音 |\n语音信息识别 |\n语音数据 |\n接收语音信息 |\n语音识别率","识别文本 |\n文本纠错方法 |\n文本信息 |\n文本语句 |\n候选文本 |\n模糊匹配 |\n句子 |\n历史输入 |\n语法规则 |\n修改文本 |\n搜索引擎 |\n关联对象","文本错误 |\n7-tetrahydro-indazol-1-yl |\n文本位置 |\n组合词 |\n识别错误","输入信息 |\n用户输入 |\n输出信息 |\n单元识别","","","公开","2021.09.28 公开 公开\n\n2021.10.22 实质审查的生效 实质审查的生效\n申请日=2020.03.26","","北京东方亿思专利代理有限责任公司; 彭琼","四川省","610041 四川省成都市中国（四川）自由贸易试验区成都高新区交子大道575号J座6楼"]
[{"$f":"HYPERLINK(\"https://www.patentics.cn/invokexml.do?sx=showpatent_cn&sf=ShowPatent&spn=CN113449893A&sx=showpatent_cn&sv=ea428eb7\",\"CN113449893A\")","v":"CN113449893A"},"CN202010216430.2","CN",null,"虫害预测模型训练的方法、虫害预测的方法及装置","本发明公开了一种虫害预测模型训练的方法、虫害预测的方法及装置，包括：获取多个环境因素特征数据和虫害类型数据；根据预设的匹配规则，确定每个环境因素特征数据与虫害类型数据的匹配度；根据每个环境因素特征数据和对应的所述匹配度，确定多个训练样本数据；将多个训练样本数据与所述虫害类型数据输入待训练虫害预测模型进行迭代训练，以确定目标虫害预测模型。本发明的技术方案，基于经过相关性处理的样本数据训练得到目标虫害预测模型，使用该目标虫害预测模型对虫害预测，提高了对病虫害预测的准确性和效率。","一种虫害预测模型训练的方法，其特征在于，包括： 　　获取多个环境因素特征数据和虫害类型数据； 　　根据预设的匹配规则，确定每个所述环境因素特征数据与所述虫害类型数据的匹配度； 　　根据每个所述环境因素特征数据和对应的所述匹配度，确定多个训练样本数据； 　　将所述多个训练样本数据与所述虫害类型数据输入待训练虫害预测模型进行迭代训练，以确定目标虫害预测模型。","","中移（成都）信息通信科技有限公司 |\n中国移动通信集团有限公司","中移成都信息通信科技有限公司|中国移动通信集团有限公司","中移成都信息通信科技有限公司|中国移动通信集团有限公司","黄兆玮 |\n刘一珉 |\n卞军伟 |\n廖鹏程 |\n詹海鹏","黄兆玮","","2020/03/25","2021/09/28","2021/09/28","","G06Q 10/04|G06Q 10/06|G06Q 50/02","G06Q 10/04","","",13,7,8,13,"1.12","","","","","","发明公布","CN","",0,0,0,0,0,0,0,"0.0",0,0,0,0,"",0,0,"训练样本数据 |\n模型训练 |\n训练参数 |\n学习算法 |\n迭代训练 |\n训练模块 |\n匹配模型 |\n方法训练 |\n深度学习方法 |\n特征数据 |\n卷积神经网络","gun propellant |\ngvr |\n标准化处理 |\n人工神经网络方法 |\n模型建立 |\nguillotine device |\n数据预处理","模型参数 |\n特征矩阵 |\n表示模型 |\n损失函数 |\n归一化处理 |\ncutting front |\n特征向量矩阵 |\n梯度下降算法","对数似然函数","","","公开","2021.09.28 公开 公开\n\n2021.10.22 实质审查的生效 实质审查的生效\n申请日=2020.03.25","","北京东方亿思专利代理有限责任公司; 赵秀芹","四川省","610041 四川省成都市中国（四川）自由贸易试验区成都高新区交子大道575号J座6楼"]
[{"$f":"HYPERLINK(\"https://www.patentics.cn/invokexml.do?sx=showpatent_cn&sf=ShowPatent&spn=CN113449549A&sx=showpatent_cn&sv=7705ef46\",\"CN113449549A\")","v":"CN113449549A"},"CN202010216402.0","CN",null,"提示信息生成方法、装置、设备及存储介质","本发明公开了一种提示信息生成方法、装置、设备及存储介质。该方法包括：获取目标人物所在区域的目标区域图像；使用预设的物体检测模型检测目标区域图像中的目标物体，确定目标物体的位置信息和类型信息；对目标物体进行测距，确定目标物体与目标人物的距离信息；根据位置信息、类型信息和距离信息，生成提示信息；提示信息用于提示目标人物避开目标物体，能够使得视力障碍者出行无需携带体积大的出行工具，降低了出行成本，提高避障的准确性和全面性，更好的保证了视力障碍人群的安全出行。","一种提示信息生成方法，其特征在于，所述方法包括： 　　获取目标人物所在区域的目标区域图像； 　　使用预设的物体检测模型检测目标区域图像中的目标物体，确定所述目标物体的位置信息和类型信息； 　　对所述目标物体进行测距，确定所述目标物体与所述目标人物的距离信息； 　　根据所述位置信息、所述类型信息和所述距离信息，生成提示信息；所述提示信息用于提示所述目标人物避开所述目标物体。","","中移（成都）信息通信科技有限公司 |\n中国移动通信集团有限公司","中移成都信息通信科技有限公司|中国移动通信集团有限公司","中移成都信息通信科技有限公司|中国移动通信集团有限公司","陈庆勇 |\n马玉涛 |\n桑建 |\n莫小波 |\n杜犁新","陈庆勇","","2020/03/25","2021/09/28","2021/09/28","","G06K  9/00|G01S 15/08|G06K  9/62|G06N  3/04","G06K  9/00","","",10,4,7,13,"0.85","","","","","","发明公布","CN","",0,0,0,0,0,0,0,"0.0",0,0,0,0,"",0,0,"目标识别 |\n样本图像 |\n物体检测 |\n目标人 |\n图像输入 |\n图像数据库","检测模型 |\n获取样本 |\ngprs信号 |\n使用训练 |\n样本训练 |\n训练模块 |\n训练样本集 |\n模型训练 |\n训练集 |\n算法模型 |\n损失函数 |\n池化层 |\n卷积层 |\n模型检测 |\n生成方法","etch recipe |\nssd算法 |\n目标区域图像 |\n图像目标 |\n图像采集设备","获取目标 |\n标签信息","","","公开","2021.09.28 公开 公开\n\n2021.10.22 实质审查的生效 实质审查的生效\n申请日=2020.03.25","","北京东方亿思专利代理有限责任公司; 彭琼","四川省","610041 四川省成都市中国（四川）自由贸易试验区成都高新区交子大道575号J座6楼"]
[{"$f":"HYPERLINK(\"https://www.patentics.cn/invokexml.do?sx=showpatent_cn&sf=ShowPatent&spn=CN113448820A&sx=showpatent_cn&sv=d98b330f\",\"CN113448820A\")","v":"CN113448820A"},"CN202010215797.2","CN",null,"网页测试方法及装置","本申请公开了一种网页测试方法及装置，涉及计算机技术领域。该方法包括：获取第一配置数据；所述第一配置数据，基于录制的网页测试过程而生成，所述第一配置数据至少包括测试步骤；展示所述第一配置数据；响应于用户对所述测试步骤的编辑操作，对所述第一配置数据进行编辑，并生成第二配置数据，以使测试设备基于所述第二配置数据以及编辑后的所述第一配置数据进行网页测试。根据本申请实施例，能够降低网页测试对用户编程能力的要求。","一种网页测试方法，其特征在于，所述方法包括： 　　获取第一配置数据；所述第一配置数据，基于录制的网页测试过程而生成，所述第一配置数据至少包括测试步骤； 　　展示所述第一配置数据； 　　响应于用户对所述测试步骤的编辑操作，对所述第一配置数据进行编辑，并生成第二配置数据，以使测试设备基于所述第二配置数据以及编辑后的所述第一配置数据进行网页测试。","","中移（成都）信息通信科技有限公司 |\n中国移动通信集团有限公司","中移成都信息通信科技有限公司|中国移动通信集团有限公司","中移成都信息通信科技有限公司|中国移动通信集团有限公司","马建均 |\n朱磊","马建均","","2020/03/25","2021/09/28","2021/09/28","","G06F 11/36","G06F 11/36","","",13,6,10,10,"1.45","","","","","","发明公布","CN","",0,0,0,0,0,0,0,"0.0",0,0,0,0,"",0,0,"测试用例 |\n配置项 |\n配置数据 |\n调用函数 |\n函数调用 |\n浏览器测试 |\n修改代码 |\n调用结果 |\n测试框架 |\n编程语言开发","自动化测试 |\n测试内容 |\n测试参数 |\n测试步骤 |\n日志记录模块 |\n测试服务 |\n测试数据","gene-clean |\n浏览器页面 |\n元素属性 |\n生成测试脚本 |\n提升网页 |\n参数展示 |\n图片链接 |\n编辑模块 |\n生成网页 |\n查找方式 |\n统一资源定位符","generalized lloyd algorithm |\nequipment identifier","","","公开","2021.09.28 公开 公开\n\n2021.10.22 实质审查的生效 实质审查的生效\n申请日=2020.03.25","","北京东方亿思专利代理有限责任公司; 赵秀芹","四川省","610041 四川省成都市中国（四川）自由贸易试验区成都高新区交子大道575号J座6楼"]
[{"$f":"HYPERLINK(\"https://www.patentics.cn/invokexml.do?sx=showpatent_cn&sf=ShowPatent&spn=CN113448428A&sx=showpatent_cn&sv=c2cfcdf6\",\"CN113448428A\")","v":"CN113448428A"},"CN202010215210.8","CN",null,"一种视线焦点的预测方法、装置、设备及计算机存储介质","本发明公开了一种视线焦点的预测方法、装置、设备及计算机存储介质。该方法包括：获取用户在第一时刻的第一视线矢量信息；根据第一视线矢量信息，从预先配置的数据库中确定与第一视线矢量信息相匹配的第二视线矢量信息，第二视线矢量信息包括与第二视线矢量对应的第二时刻，根据第二时刻和预设时间间隔信息确定第三时刻；根据第三时刻从数据库中确定第三时刻对应的第三视线矢量信息；基于数据库确定第三视线矢量信息对应的第三视线焦点坐标。根据本发明实施例，通过确定与用户当前实际的第一视线矢量信息相匹配的第二视线矢量信息，进而预测出用户在下一时刻的视线焦点坐标，能够快速准确的预测用户视线焦点。","一种视线焦点的预测方法，其中，其特征在于，所述方法包括： 　　获取用户在第一时刻的第一视线矢量信息； 　　根据所述第一视线矢量信息，从预先配置的数据库中确定与所述第一视线矢量信息相匹配的第二视线矢量信息，所述第二视线矢量信息包括与所述第二视线矢量信息对应的第二时刻，所述数据库包括：视线矢量信息、任意两个所述视线矢量信息之间的关联关系、所述视线矢量信息对应的视线焦点坐标和所述视线矢量信息对应的时刻； 　　根据所述第二时刻和预设时间间隔信息确定第三时刻； 　　根据所述第三时刻从所述数据库中确定所述第三时刻对应的第三视线矢量信息； 　　基于所述数据库确定所述第三视线矢量信息对应的第三视线焦点坐标。","","中移（成都）信息通信科技有限公司 |\n中国移动通信集团有限公司","中移成都信息通信科技有限公司|中国移动通信集团有限公司","中移成都信息通信科技有限公司|中国移动通信集团有限公司","杨鑫 |\n陈庆勇 |\n桑建 |\n魏远伦 |\n曾艳","杨鑫","","2020/03/24","2021/09/28","2021/09/28","","G06F  3/01|G06F 16/56|G06F 16/583|G06T  7/246|G06T  7/62|G06T 15/00|G06T 19/00","G06F  3/01","","",10,4,7,11,"1.00","","","","","","发明公布","CN","",0,0,0,0,0,0,0,"0.0",0,0,0,0,"",0,0,"视线焦点 |\n虚拟现实图像 |\n瞳孔中心 |\n用户眼睛 |\n眼球运动 |\n视线矢量 |\n用户眼球 |\n焦点坐标","虚拟世界 |\n虚拟环境 |\n环境映射 |\n物体模型 |\n子场景 |\n三维虚拟场景 |\n跟踪用户 |\nvirtual reality |\n虚拟现实技术","关注点 |\n运动参数 |\n跟踪模块 |\n移动轨迹 |\n目标对象 |\n中心坐标 |\n热力图","纹理映射 |\n渲染计算 |\n渲染模块 |\nequipment identifier |\n画面绘制","","","公开","2021.09.28 公开 公开\n\n2021.10.22 实质审查的生效 实质审查的生效\n申请日=2020.03.24","","北京东方亿思专利代理有限责任公司; 赵秀芹","四川省","610041 四川省成都市中国（四川）自由贸易试验区成都高新区交子大道575号J座6楼"]
[{"$f":"HYPERLINK(\"https://www.patentics.cn/invokexml.do?sx=showpatent_cn&sf=ShowPatent&spn=CN113452464A&sx=showpatent_cn&sv=bd230caa\",\"CN113452464A\")","v":"CN113452464A"},"CN202010215119.6","CN",null,"时间校准方法、装置、设备及介质","本发明实施例公开了一种时间校准方法、装置、设备及介质。该方法包括：每隔预设第一周期，检测移动设备管理MDM客户端与MDM服务器的通信连接状态；若检测到通信连接状态为断开状态，获取终端设备与MDM服务器前一次的同步时间、检测次数以及第一时间；检测次数为同步时间至检测到通信连接状态为断开状态时，检测通信连接状态的次数；第一时间为检测到通信连接状态为断开状态时终端设备的时间；每隔预设第二周期，获取终端设备的第二时间；根据同步时间、检测次数、第一时间以及第二时间，校准终端设备的时间。本发明实施例的时间校准方法、装置、设备及介质，能够对终端设备的时间进行校准，进而能够提高数据安全。","一种时间校准方法，其特征在于，所述方法包括： 　　每隔预设第一周期，检测移动设备管理MDM客户端与MDM服务器的通信连接状态； 　　若检测到所述通信连接状态为断开状态，获取终端设备与所述MDM服务器前一次的同步时间、检测次数以及第一时间；所述检测次数为所述同步时间至检测到所述通信连接状态为断开状态时，检测所述通信连接状态的次数；所述第一时间为检测到所述通信连接状态为断开状态时所述终端设备的时间； 　　每隔预设第二周期，获取所述终端设备的第二时间； 　　根据所述同步时间、所述检测次数、所述第一时间以及所述第二时间，校准所述终端设备的时间。","","中移（成都）信息通信科技有限公司 |\n中国移动通信集团有限公司","中移成都信息通信科技有限公司|中国移动通信集团有限公司","中移成都信息通信科技有限公司|中国移动通信集团有限公司","岳大林 |\n张庭锐 |\n侯漫秋 |\n唐睿","岳大林","","2020/03/24","2021/09/28","2021/09/28","","H04J  3/06","H04J  3/06","","",10,4,7,18,"0.61","","","","","","发明公布","CN","",0,0,0,0,0,0,0,"0.0",0,0,0,0,"",0,0,"可穿戴设备 |\n检测用户 |\n用户设置 |\n计步器 |\n横竖屏切换 |\n触摸事件 |\n时间检测","应用处理器 |\n输入设备 |\n调制解调处理器 |\n调用存储 |\n硬件结构 |\n收发信息 |\n设备通信 |\n输出功能","智能手机 |\n掌上电脑 |\n移动设备 |\n平板电脑 |\n终端设备 |\n个人电脑 |\n宽带互联网访问 |\n浏览网页 |\n播放功能 |\n流式媒体","通话过程 |\n通话模式 |\ngde算法 |\nmistletoe |\ngant |\n接收声音","","","公开","2021.09.28 公开 公开\n\n2021.10.22 实质审查的生效 实质审查的生效\n申请日=2020.03.24","","北京东方亿思专利代理有限责任公司; 彭琼","四川省","610041 四川省成都市中国（四川）自由贸易试验区成都高新区交子大道575号J座6楼"]
[{"$f":"HYPERLINK(\"https://www.patentics.cn/invokexml.do?sx=showpatent_cn&sf=ShowPatent&spn=CN113449126A&sx=showpatent_cn&sv=4d76cddb\",\"CN113449126A\")","v":"CN113449126A"},"CN202010211703.4","CN",null,"图像检索方法、装置、电子设备及计算机存储介质","本发明实施例公开了一种图像检索方法、装置、电子设备及计算机存储介质。该图像检索方法，包括：获取待检索图像的压缩向量；基于压缩向量和预设码本，分别确定压缩向量与预设码本中各个码字之间的距离；其中，预设码本为基于样本训练图像，利用梯度下降算法确定的码本；码字表征样本训练图像所属的类别信息；将各个距离中最小距离对应的码字，确定为目标码字；从目标码字对应的数据库中确定待检索图像的目标图像。根据本发明实施例，能够提高图像检索的精确度。","一种图像检索方法，其特征在于，包括： 　　获取待检索图像的压缩向量； 　　基于所述压缩向量和预设码本，分别确定所述压缩向量与所述预设码本中各个码字之间的距离；其中，所述预设码本为基于样本训练图像，利用梯度下降算法确定的码本；所述码字表征所述样本训练图像所属的类别信息； 　　将各个所述距离中最小距离对应的码字，确定为目标码字； 　　从所述目标码字对应的数据库中确定所述待检索图像的目标图像。","","中移（成都）信息通信科技有限公司 |\n中国移动通信集团有限公司","中移成都信息通信科技有限公司|中国移动通信集团有限公司","中移成都信息通信科技有限公司|中国移动通信集团有限公司","曾艳 |\n陈庆勇 |\n桑建 |\n张青松 |\n马飞泉","曾艳","","2020/03/24","2021/09/28","2021/09/28","","G06F 16/51|G06F 16/55|G06F 16/583|G06K  9/62","G06F 16/51","","",10,4,7,15,"0.73","","","","","","发明公布","CN","",0,0,0,0,0,0,0,"0.0",0,0,0,0,"",0,0,"映射函数 |\ncutting front |\n输入矢量 |\n矢量编码 |\n迭代过程 |\n矢量映射 |\n梯度下降算法 |\n量化编码 |\n迭代次数 |\n量化损失 |\n穷尽搜索 |\n更新公式 |\n优化目标函数 |\n禁忌搜索方法","图像检索方法 |\n近似最优解 |\ninteractive operation |\ndichanthelium |\nkmeans算法 |\n压缩向量 |\n局部搜索算法 |\n禁忌搜索算法","差异度量 |\n离散取值 |\n原始矢量 |\n待检索图像","矢量量化方法 |\n最大期望算法 |\n最小二乘问题","","","公开","2021.09.28 公开 公开\n\n2021.10.22 实质审查的生效 实质审查的生效\n申请日=2020.03.24","","北京东方亿思专利代理有限责任公司; 彭琼","四川省","610041 四川省成都市中国（四川）自由贸易试验区成都高新区交子大道575号J座6楼"]
[{"$f":"HYPERLINK(\"https://www.patentics.cn/invokexml.do?sx=showpatent_cn&sf=ShowPatent&spn=CN113395715A&sx=showpatent_cn&sv=3e74a934\",\"CN113395715A\")","v":"CN113395715A"},"CN202010169450.9","CN",null,"基站物理层的测试方法、装置、设备及存储介质","本申请公开了一种基站物理层的测试方法、装置、设备及存储介质，涉及移动通信技术领域。该方法包括：将预先获取的待测基站的天线数据，转换为通用公共无线电接口CPRI数据；将所述CPRI数据发送至所述待测基站的基带物理层单元，以使所述基带物理层单元基于预设物理层参数，对所述CPRI数据进行解调，并将生成的解调数据上传至预先部署在所述待测基站的模拟协议栈单元；从所述模拟协议栈单元读取所述解调数据，并基于所述解调数据，生成所述待测基站物理层的测试结果。根据本申请实施例，能够降低基站物理层的测试成本。","一种基站物理层的测试方法，其特征在于，所述方法包括： 　　将预先获取的待测基站的天线数据，转换为通用公共无线电接口CPRI数据； 　　将所述CPRI数据发送至所述待测基站的基带物理层单元，以使所述基带物理层单元基于预设物理层参数，对所述CPRI数据进行解调，并将生成的解调数据上传至预先部署在所述待测基站的模拟协议栈单元；所述预设物理层参数，由所述模拟协议栈单元基于测试用例参数生成； 　　从所述模拟协议栈单元读取所述解调数据，并基于所述解调数据，生成所述待测基站物理层的测试结果。","","中移（成都）信息通信科技有限公司 |\n中国移动通信集团有限公司","中移成都信息通信科技有限公司|中国移动通信集团有限公司","中移成都信息通信科技有限公司|中国移动通信集团有限公司","何明 |\n郭洋 |\n韩丽娟","何明","","2020/03/12","2021/09/14","2021/09/14","","H04W 24/02|H04W 24/08","H04W 24/02","","",13,6,7,20,"0.72","","","","","","发明公布","CN","",0,0,0,0,0,0,0,"0.0",0,0,0,0,"",0,0,"public radio interface |\n信道模拟 |\n物理层单元 |\n物理层测试 |\ncpri接口 |\n无限带宽 |\n工业标准架构 |\n光纤介质 |\n模拟协议","前端总线 |\n外围组件 |\n天线数据 |\npci-express |\npci-x","物理层参数 |\n物理层性能 |\n射频单元 |\n2g基站 |\n配置基带 |\n射频器件 |\n测试设备 |\n基站设计 |\n5g基站","协议栈 |\n传输信息 |\n通信接口 |\n多个总线 |\nagp |\n通信链路 |\n时钟同步 |\n无线电接口","","","公开","2021.09.14 公开 公开\n\n2021.10.01 实质审查的生效 实质审查的生效\n申请日=2020.03.12","","北京东方亿思专利代理有限责任公司; 赵秀芹","四川省","610041 四川省成都市中国（四川）自由贸易试验区成都高新区交子大道575号J座6楼"]
[{"$f":"HYPERLINK(\"https://www.patentics.cn/invokexml.do?sx=showpatent_cn&sf=ShowPatent&spn=CN113391844A&sx=showpatent_cn&sv=95115377\",\"CN113391844A\")","v":"CN113391844A"},"CN202010169338.5","CN",null,"多操作系统控制方法、装置、设备及介质","本发明实施例公开了一种多操作系统控制方法、装置、设备及介质。该方法应用于安装有至少两个操作系统的终端设备，该方法包括：检测终端设备是否满足操作系统关闭条件；若终端设备满足操作系统关闭条件，关闭后台运行的操作系统。本发明实施例的多操作系统控制方法、装置、设备及介质，通过关闭后台运行的操作系统，能够降低内存和CPU资源的占用，提高占用显示资源的操作系统中程序的运行速度和效率。","一种多操作系统控制方法，其特征在于，所述方法应用于安装有至少两个操作系统的终端设备，所述方法包括： 　　检测所述终端设备是否满足操作系统关闭条件； 　　若所述终端设备满足所述操作系统关闭条件，关闭后台运行的操作系统。","","中移（成都）信息通信科技有限公司 |\n中国移动通信集团有限公司","中移成都信息通信科技有限公司|中国移动通信集团有限公司","中移成都信息通信科技有限公司|中国移动通信集团有限公司","刘耕 |\n骆平 |\n普波","刘耕","","2020/03/12","2021/09/14","2021/09/14","","G06F  9/4401|G06F  9/50","G06F  9/4401","","",11,4,7,6,"2.00","","","","","","发明公布","CN","",0,0,0,0,0,0,0,"0.0",0,0,0,0,"",0,0,"应用处理器 |\n调制解调处理器 |\n游戏程序 |\n调用存储 |\n图形处理器 |\n双操作系统 |\n播放功能 |\n关闭模块 |\n程序运行 |\n操作系统切换 |\n存储操作系统 |\n启动模块 |\n启动操作系统","输入设备 |\n触摸事件 |\ngant |\n用户设置 |\n检测用户 |\n物理键盘 |\n视觉输出 |\n输出功能 |\n触摸操作 |\n触摸信息","可穿戴设备 |\n终端设备 |\ngde算法 |\n通话模式 |\n通话过程","掌上电脑 |\n平板电脑 |\n浏览网页 |\n笔记本电脑","","","公开","2021.09.14 公开 公开\n\n2021.10.01 实质审查的生效 实质审查的生效\n申请日=2020.03.12","","北京东方亿思专利代理有限责任公司; 彭琼","四川省","610041 四川省成都市中国（四川）自由贸易试验区成都高新区交子大道575号J座6楼"]
[{"$f":"HYPERLINK(\"https://www.patentics.cn/invokexml.do?sx=showpatent_cn&sf=ShowPatent&spn=CN113311936A&sx=showpatent_cn&sv=148045cc\",\"CN113311936A\")","v":"CN113311936A"},"CN202010125581.7","CN",null,"基于AR的语音点评方法、装置、设备及存储介质","本发明实施例提供了一种基于AR的语音点评方法、装置、设备及存储介质，该方法用于客户端，包括：识别接收到的用户录入的第一语音信息，得到第一识别结果，第一识别结果包括第一关键词；当第一关键词为预设点评关键词时，向服务器发送认证请求信息，认证请求信息包括用户标识、客户端标识和场景标识；接收服务器发送的认证令牌；根据第一关键词和认证令牌触发点评模式，并接收用户录入的第二语音信息；向服务器发送第二语音信息、用户标识、客户端标识和点评场景数据，点评场景数据包括当前实物场景图片和所述用户开始点评时的虚拟影像的一帧。本发明能够实现对AR内容的语音点评，满足了用户的点评需求，提升了用户的AR应用使用体验。","一种基于AR的语音点评方法，其特征在于，所述方法用于客户端，所述方法包括： 　　识别接收到的用户录入的第一语音信息，得到第一识别结果，所述第一识别结果包括第一关键词； 　　当所述第一关键词为预设点评关键词时，向服务器发送认证请求信息，所述认证请求信息包括用户标识、客户端标识和场景标识，所述认证请求信息用于所述服务器根据所述用户标识、所述客户端标识和所述场景标识生成认证令牌； 　　接收所述服务器发送的所述认证令牌； 　　根据所述第一关键词和所述认证令牌触发点评模式，并接收所述用户录入的第二语音信息； 　　向所述服务器发送所述第二语音信息、所述用户标识、所述客户端标识和点评场景数据，所述点评场景数据包括当前实物场景图片和所述用户开始点评时的虚拟影像的一帧，其中，所述第二语音信息是所述用户对所述点评场景数据对应的场景的点评信息。","","中移（成都）信息通信科技有限公司 |\n中国移动通信集团有限公司","中移成都信息通信科技有限公司|中国移动通信集团有限公司","中移成都信息通信科技有限公司|中国移动通信集团有限公司","范涛 |\n唐健明 |\n曾琦娟 |\n李廷龙 |\n张瑞","范涛","","2020/02/27","2021/08/27","2021/08/27","","G06F  3/01|G06Q 30/02|G06Q 50/20|G06T 19/00|G10L 15/22|H04L 29/06","G06F  3/01","G06F3","G06F3/011",13,6,9,24,"0.60","","","","","","发明公布","CN","",0,0,0,0,0,0,0,"0.0",0,0,0,0,"",0,0,"用户录入 |\n信息分享 |\n场景标识 |\n当前用户 |\n接收用户 |\n弹幕 |\n软件开发工具包 |\n点评信息 |\n播放内容 |\n虚拟信息 |\n服务器端接口 |\n用户点评","语音信息 |\n语音数据 |\n第二识别结果 |\n第一识别结果 |\n输入信息","客户端获取 |\n请求服务器 |\n接收服务器 |\n用户标识 |\n从服务器 |\n服务器存储 |\n请求信息 |\n接收客户端 |\n客户端发送 |\n标识生成 |\n客户端标识","场景数据 |\n当前场景","","","公开","2021.08.27 公开 公开\n\n2021.09.14 实质审查的生效 实质审查的生效\n申请日=2020.02.27","","北京东方亿思专利代理有限责任公司; 彭琼","四川省","610041 四川省成都市中国（四川）自由贸易试验区成都高新区交子大道575号J座6楼"]
[{"$f":"HYPERLINK(\"https://www.patentics.cn/invokexml.do?sx=showpatent_cn&sf=ShowPatent&spn=CN113314203A&sx=showpatent_cn&sv=d3679240\",\"CN113314203A\")","v":"CN113314203A"},"CN202010122384.X","CN",null,"医疗影像数据存储系统、方法、装置、设备及介质","本发明实施例公开了一种医疗影像数据存储系统、方法、装置、设备及介质。该系统包括：云端服务器和至少一个边缘节点服务器；边缘节点服务器，用于接收第一终端设备发送的医疗影像数据；存储医疗影像数据；向云端服务器发送医疗影像数据同步请求；在接收到云端服务器反馈的同步确认响应后，与云端服务器进行医疗影像数据同步；云端服务器，用于接收边缘节点服务器发送的医疗影像数据同步请求；向边缘节点服务器反馈同步确认响应；与边缘节点服务器进行医疗影像数据同步。本发明实施例的医疗影像数据存储系统、方法、装置、设备及介质，能够降低数据上传和操作时延，减少网络开销，降低云端服务器的压力。","一种医疗影像数据存储系统，其特征在于，所述系统包括：云端服务器和至少一个边缘节点服务器； 　　所述边缘节点服务器，用于接收第一终端设备发送的医疗影像数据；存储所述医疗影像数据；向所述云端服务器发送医疗影像数据同步请求；在接收到所述云端服务器反馈的同步确认响应后，与所述云端服务器进行医疗影像数据同步； 　　所述云端服务器，用于接收所述边缘节点服务器发送的医疗影像数据同步请求；向所述边缘节点服务器反馈同步确认响应；与所述边缘节点服务器进行医疗影像数据同步。","","中移（成都）信息通信科技有限公司 |\n中国移动通信集团有限公司","中移成都信息通信科技有限公司|中国移动通信集团有限公司","中移成都信息通信科技有限公司|中国移动通信集团有限公司","范清宇 |\n张钰 |\n张瀛 |\n种璟","范清宇","","2020/02/27","2021/08/27","2021/08/27","","G16H 30/20|G06F 16/51","G16H 30/20","G16H30","G16H30/20",17,7,10,11,"1.70","","","","","","发明公布","CN","",0,0,0,0,0,0,0,"0.0",0,0,0,0,"",0,0,"服务器存储 |\n数据请求 |\n更新信息 |\n访问请求 |\n同步请求 |\n更新包 |\n更新请求 |\n更新模块 |\n发送更新 |\n标识信息","备份存储 |\n数据同步 |\n存储服务 |\npacs |\n存储方法 |\n容灾 |\n数据存储 |\n存储系统","接收边缘节点 |\n边缘节点服务器 |\n医疗影像数据 |\n备份时间","数据上报 |\n云端服务器 |\n数据上传 |\n同步模块 |\n影像归档 |\n医疗机构","","","公开","2021.08.27 公开 公开\n\n2021.09.14 实质审查的生效 实质审查的生效\n申请日=2020.02.27","","北京东方亿思专利代理有限责任公司; 彭琼","四川省","610041 四川省成都市中国（四川）自由贸易试验区成都高新区交子大道575号J座6楼"]
[{"$f":"HYPERLINK(\"https://www.patentics.cn/invokexml.do?sx=showpatent_cn&sf=ShowPatent&spn=CN213987033U&sx=showpatent_cn&sv=09cd80c3\",\"CN213987033U\")","v":"CN213987033U"},"CN202022862780.4","CN",null,"一种图像采集装置及头戴设备","本申请实施例提供了一种图像采集装置及头戴设备，包括支承座、图像采集部以及水平组件；支承座包括顶壁、侧壁以及内腔，顶壁与侧壁连接，侧壁围绕在内腔外部；图像采集部转动安装在支承座上方，水平组件包括摆动件和连接杆，图像采集部安装在连接杆的一端，摆动件安装在连接杆的另一端上，摆动件位于内腔中，摆动件的重量高于图像采集部的重量。本申请实施例即使在图像采集装置剧烈摇晃时，图像采集部也能与水平面保持在同一夹角，确保采集到的图像信息准确可靠。","一种图像采集装置，其特征在于，包括： 　　支承座，所述支承座包括顶壁、侧壁以及内腔，所述顶壁与所述侧壁连接，所述侧壁围绕所述内腔； 　　图像采集部，所述图像采集部转动安装在支承座上方； 　　水平组件，所述水平组件包括摆动件和连接杆，所述图像采集部安装在所述连接杆的一端，所述摆动件安装在所述连接杆的另一端上，所述摆动件位于所述内腔中，所述摆动件的重量高于所述图像采集部的重量。","","中移（成都）信息通信科技有限公司 |\n中国移动通信集团有限公司","中移成都信息通信科技有限公司|中国移动通信集团有限公司","中移成都信息通信科技有限公司|中国移动通信集团有限公司","李超 |\n沈俊乾 |\n何明","李超","","2020/12/02","2021/08/17","2021/08/17","2021/08/17","G02B 27/01|F16M 13/02|G03B 17/56|H04N  5/225","G02B 27/01","","",10,2,0,10,"1.03","","","","","","实用新型","CN","",0,0,0,0,0,0,0,"0.0",0,0,0,0,"",0,0,"拍摄组件 |\n拍摄角度 |\n头戴设备 |\n图像采集装置 |\n摄像头本体 |\n采集部 |\n视频拍摄 |\n拍摄采集 |\n摄像机 |\n智能机器人 |\n图像信息获取 |\n拍摄盲区 |\n图像采集技术","转动组件 |\n摆动幅度 |\n相对转动 |\n转动环 |\n转动方向","弹性连接件 |\n弹性件 |\n缓冲组件 |\n摆动件连接 |\n侧壁连接 |\n提醒组件","全方位 |\n无死角 |\n全角度 |\n水平面垂直","","","有效","2021.08.17 授权 授权","","北京东方亿思专利代理有限责任公司; 赵秀芹","四川省","610041 四川省成都市中国（四川）自由贸易试验区成都高新区交子大道575号J座6楼"]
[{"$f":"HYPERLINK(\"https://www.patentics.cn/invokexml.do?sx=showpatent_cn&sf=ShowPatent&spn=CN213987298U&sx=showpatent_cn&sv=b43b5b33\",\"CN213987298U\")","v":"CN213987298U"},"CN202022653017.0","CN",null,"温度控制装置、光载无线通信装置","本实用新型公开了一种温度控制装置、光载无线通信装置。温度控制装置包括第一温度控制单元，包括第一温度感应组件、第一热泵和第一热交换元件，第一热泵和第一热交换元件分别设置于第一热交换元件相背的第一表面和第二表面；第二温度控制单元，包括第二热泵和第二温度感应组件，通过第二热泵与第一热交换元件接触设置；驱动电路，包括并联设置的第一电路和第二电路，第一电路用于控制第一温度控制单元，第二电路用于控制多个串联设置的第二温度控制单元。本实用新型实施例的温度控制装置，光载无线通信装置工作期间的温度稳定，变化幅度小，故障率低。","一种温度控制装置，用于光载无线通信装置，其特征在于，包括： 　　第一温度控制单元，包括第一温度感应组件、第一热泵和第一热交换元件，所述第一温度感应组件和所述第一热泵分别设置于所述第一热交换元件相背的第一表面和第二表面； 　　第二温度控制单元，包括第二热泵和第二温度感应组件，通过所述第二热泵与所述第一热交换元件接触设置； 　　驱动电路，包括并联设置的第一电路和第二电路，所述第一电路用于控制所述第一温度控制单元，所述第二电路用于控制多个串联设置的第二温度控制单元； 　　其中，所述第一电路根据所述第一温度感应组件反馈的环境温度调整自身的供电参数，以控制所述第一热泵的工作模式和运行参数；所述第二电路根据所述第二温度感应组件反馈的环境温度调整所述自身的供电参数，以控制所述第二热泵的工作模式和运行参数。","","中移（成都）信息通信科技有限公司 |\n中国移动通信集团有限公司","中移成都信息通信科技有限公司|中国移动通信集团有限公司","中移成都信息通信科技有限公司|中国移动通信集团有限公司","杨雷","杨雷","","2020/11/16","2021/08/17","2021/08/17","2021/08/17","G05D 23/24|H04J 14/02","G05D 23/24","","",10,2,0,17,"0.61","","","","","","实用新型","CN","",0,0,0,0,0,0,0,"0.0",0,0,0,0,"",0,0,"半导体制冷器 |\n温差 |\n热辐射 |\n制冷面 |\n热量传递 |\n热面 |\n导热材料 |\n导热能力 |\n热交换","环境温度变化 |\n温度稳定性 |\n工作温度范围 |\n工作环境温度变化","温度控制单元 |\n温度差 |\n温度控制装置 |\n设备温度 |\n温度传感器检测 |\n温度信号 |\n温度控制能力 |\n温度区间 |\n热敏电阻 |\n最低温度","制热功率 |\n工作功率 |\n能效比","","","有效","2021.08.17 授权 授权","","北京东方亿思专利代理有限责任公司; 娜拉","四川省","610041 四川省成都市中国（四川）自由贸易试验区成都高新区交子大道575号J座6楼"]
[{"$f":"HYPERLINK(\"https://www.patentics.cn/invokexml.do?sx=showpatent_cn&sf=ShowPatent&spn=CN213990675U&sx=showpatent_cn&sv=eebf2d0d\",\"CN213990675U\")","v":"CN213990675U"},"CN202022605920.X","CN",null,"一种ROF射频光接收系统","本实用新型实施例公开了一种ROF射频光接收系统，系统包括ROSA模块，以及温度控制装置，温度控制装置包括：温度采集模块与PD二极管贴合设置，温度采集模块用于生成与PD二极管的温度相对应的第一电压，温度控制电路ATC，ATC与温度采集模块连接，温度控制电路用于接收第一电压，以及在第一电压大于预设电压阈值的情况下，输出第一控制信号，半导体制冷器TEC与ATC连接，用于接收并响应第一控制信号，控制TEC的制冷端的温度降低，散热片设置于TEC的制冷端与PD二极管之间，制冷片用于将制冷端降低后的温度传递至芯片。因此本实用新型实施例提供的ROF射频光接收系统可以在ROSA模块中的PD二极管温度较高时，对PD二极管进行自动降温，提高光载无线通信的安全性。","一种ROF射频光接收系统的温度控制装置，其特征在于，所述POF射频光接收系统包括光接收次ROSA模块；所述温度控制装置，包括： 　　温度采集模块，所述温度采集模块与光电PD二极管贴合设置，所述温度采集模块用于生成与所述PD二极管的温度相对应的第一电压； 　　温度控制电路ATC，所述ATC与所述温度采集模块连接，所述温度控制电路用于接收所述第一电压，以及在所述第一电压大于预设电压阈值的情况下，输出第一控制信号； 　　半导体制冷器TEC，与所述ATC连接，用于接收并响应所述第一控制信号，控制所述TEC的制冷端的温度降低； 　　散热片，所述散热片设置于所述TEC的制冷端与所述PD二极管之间，所述制冷片用于将所述制冷端降低后的温度传递至所述芯片。","","中移（成都）信息通信科技有限公司 |\n中国移动通信集团有限公司","中移成都信息通信科技有限公司|中国移动通信集团有限公司","中移成都信息通信科技有限公司|中国移动通信集团有限公司","杨雷","杨雷","","2020/11/11","2021/08/17","2021/08/17","2021/08/17","H04B 10/60|F25B 21/02|G05D 23/24|H01L 31/024","H04B 10/60","Y02B30","Y02B30/70",10,2,0,24,"0.43","","","","","","实用新型","CN","",0,0,0,0,0,0,0,"0.0",0,0,0,0,"",0,0,"光模块 |\n光发射模块 |\n光接收模块 |\n成光信号 |\noptical subassembly |\nthermo electric cooler |\n光纤传输 |\n光纤介质 |\n光纤通信 |\n光载波","射频信号转换 |\n微波信号 |\n传输射频信号 |\n电磁干扰 |\n射频信号输出端 |\nsma接头 |\n抗干扰 |\n微带线 |\n共面波导 |\n电子对抗 |\nrof |\n特征阻抗匹配","dc3 |\nddx1基因 |\n电压转换芯片 |\n接地端 |\n负载电阻","引脚定义 |\n芯片连接 |\nbulk matter","","","有效","2021.08.17 授权 授权","","北京东方亿思专利代理有限责任公司; 彭琼","四川省","610041 四川省成都市中国（四川）自由贸易试验区成都高新区交子大道575号J座6楼"]
[{"$f":"HYPERLINK(\"https://www.patentics.cn/invokexml.do?sx=showpatent_cn&sf=ShowPatent&spn=CN213962333U&sx=showpatent_cn&sv=356e5d0e\",\"CN213962333U\")","v":"CN213962333U"},"CN202022489824.3","CN",null,"全息会议桌","本申请涉及一种全息会议桌，包括：桌台，所述桌台包括桌面和从桌面凹陷形成的容纳腔；控制屏，所述控制屏用于人机交互并生成图像信息；全息屏模块，所述全息屏模块用于对所述控制屏生成的图像信息进行全息投影；升降模块，所述升降模块的输出端与所述全息屏模块和所述控制屏连接，所述升降模块的输出端能够在第一位置和第二位置之间移动从而驱动所述全息屏模块和所述控制屏，在所述第一位置，所述全息屏模块和所述控制屏均位于所述容纳腔内，在所述第二位置，所述全息屏模块移动至所述桌面上方，所述控制屏移动至所述容纳腔的开口处。全息屏模块将控制屏上显示的画面全息投影成3D图像，参会人员可操作控制屏来控制全息屏展示给参会人员的信息。","一种全息会议桌，其特征在于，包括： 　　桌台，所述桌台包括桌面和从桌面凹陷形成的容纳腔； 　　控制屏，所述控制屏用于人机交互并生成图像信息； 　　全息屏模块，所述全息屏模块用于对所述控制屏生成的图像信息进行全息投影； 　　升降模块，所述升降模块的输出端与所述全息屏模块和所述控制屏连接，所述升降模块的输出端能够在第一位置和第二位置之间移动从而驱动所述全息屏模块和所述控制屏，在所述第一位置，所述全息屏模块和所述控制屏均位于所述容纳腔内，在所述第二位置，所述全息屏模块移动至所述桌面上方，所述控制屏移动至所述容纳腔的开口处。","","中移（成都）信息通信科技有限公司 |\n中国移动通信集团有限公司","中移成都信息通信科技有限公司|中国移动通信集团有限公司","中移成都信息通信科技有限公司|中国移动通信集团有限公司","赵剑波 |\n张文军","赵剑波","","2020/11/02","2021/08/17","2021/08/17","2021/08/17","A47B 37/00|G09F 19/18","A47B 37/00","","",12,1,0,18,"0.67","","","","","","实用新型","CN","",0,0,0,0,0,0,0,"0.0",0,0,0,0,"",0,0,"会议桌 |\n电脑显示器 |\n桌面上 |\n会议系统 |\n平板电脑 |\n主讲 |\n多媒体会议 |\n会议内容","桌台 |\n收纳腔 |\n侧面设置 |\n多方位","显示屏幕 |\n3d立体 |\n全息屏 |\n可视角度 |\n显示设备 |\n投影影像 |\n3d图像","人机交互技术 |\n全息投影技术 |\n体验 |\n操控 |\n触控电脑 |\n人与计算机 |\n视觉误差 |\n触控显示屏","","","有效","2021.08.17 授权 授权","","北京东方亿思专利代理有限责任公司; 娜拉","四川省","610041 四川省成都市中国（四川）自由贸易试验区成都高新区交子大道575号J座6楼"]
[{"$f":"HYPERLINK(\"https://www.patentics.cn/invokexml.do?sx=showpatent_cn&sf=ShowPatent&spn=CN213986640U&sx=showpatent_cn&sv=27a46d43\",\"CN213986640U\")","v":"CN213986640U"},"CN202021857132.3","CN",null,"测试装置","本申请涉及一种测试装置，包括壳体、同轴线、探针组件、转接组件以及容纳舱，通过将容纳舱可转动的连接在第一探针以及第二探针之间，并将容纳舱分隔为两个以上可安装不同电子器件的容纳单元。本申请能够快速切换容纳舱上不同的容纳单元，并使得安装在容纳单元内的电子器件与第一探针和第二探针实现电连接。以模拟多倍ESR时，不需要反复多次拆卸、焊接不同的电阻与电容，能够最大限度的降低操作难度，节省时间，能够最大限度的降低操作难度，节省操作时间。","一种测试装置，其特征在于，包括： 　　壳体(10)，具有预定的长度； 　　同轴线(20)，设置于所述壳体(10)内； 　　探针组件(30)，设置于所述壳体(10)在自身长度方向的一端且包括间隔且相对设置的第一探针(31)以及第二探针(32)，所述第一探针(31)与所述同轴线(20)电连接； 　　转接组件(40)，设置于所述探针组件(30)且包括第一转接件(41)以及第二转接件(42)，所述第一转接件(41)连接于与所述第一探针(31)且包括第一抵压部(411)，所述第二转接件(42)连接于所述第二探针(32)且包括与所述第一抵压部(411)相对设置的第二抵压部(412)； 　　容纳舱(50)，转动连接于所述第一探针(31)以及第二探针(32)之间且包括两个以上围绕转动轴线依次分布的容纳单元(51)，所述容纳单元(51)用于安装电子器件(60)，各所述容纳单元(51)能够分别转动至所述第一抵压部(411)与所述第二抵压部(412)之间并与所述第一抵压部(411)以及所述第二抵压部(412)相抵接，以切换电联接至所述第一探针(31)以及所述第二探针(32)之间的所述电子器件(60)。","","中移（成都）信息通信科技有限公司 |\n中国移动通信集团有限公司","中移成都信息通信科技有限公司|中国移动通信集团有限公司","中移成都信息通信科技有限公司|中国移动通信集团有限公司","何宁","何宁","","2020/08/31","2021/08/17","2021/08/17","2021/08/17","G01R 27/26|G01R  1/02|G01R  1/04|G01R 27/02","G01R 27/26","","",10,1,0,19,"0.53","","","","","","实用新型","CN","",0,0,0,0,0,0,0,"0.0",0,0,0,0,"",0,0,"转接组件 |\n抵压部 |\n连接件 |\n第二转接件 |\n可弹性形变 |\n杆件 |\n连接方式 |\n形变量","第一端子 |\n第二端子 |\n测试电路 |\ncoggins |\n电磁干扰 |\n电子器件 |\n电容器 |\n绝缘介质 |\n等效串联电阻","探针组件 |\n弹性件 |\n测试装置 |\n可转动 |\n侧壁设置 |\n壳体内","同轴线 |\n成对设置 |\n延伸方向 |\n并排设置 |\n转动轴线 |\n体结构","","","有效","2021.08.17 授权 授权","","北京东方亿思专利代理有限责任公司; 彭琼","四川省","610041 四川省成都市中国（四川）自由贸易试验区成都高新区交子大道575号J座6楼"]
[{"$f":"HYPERLINK(\"https://www.patentics.cn/invokexml.do?sx=showpatent_cn&sf=ShowPatent&spn=CN113126746A&sx=showpatent_cn&sv=9847a76f\",\"CN113126746A\")","v":"CN113126746A"},"CN201911421777.4","CN",null,"一种虚拟对象模型控制方法、系统及计算机可读存储介质","本发明实施例提供一种虚拟对象模型控制方法、系统及计算机可读存储介质。虚拟对象模型控制方法包括：获取目标实体对象的目标运动数据，目标实体对象与虚拟对象模型相对应；对目标运动数据进行处理，得到目标实体对象在预设关键位置点的运动向量；控制虚拟对象模型在对应位置做出与运动向量相对应的运动响应。本发明通过获取预设关键位置点的运动向量控制虚拟对象模型响应相应的动作，能降低肢体语言的融合到虚拟场景的难度。","一种虚拟对象模型控制方法，其特征在于，所述方法包括： 　　获取目标实体对象的目标运动数据，所述目标实体对象与所述虚拟对象模型相对应； 　　对所述目标运动数据进行处理，得到所述目标实体对象在预设关键位置点的运动向量； 　　控制所述虚拟对象模型在对应位置做出与运动向量相对应的运动响应。","","中移（成都）信息通信科技有限公司 |\n中国移动通信集团有限公司","中移成都信息通信科技有限公司|中国移动通信集团有限公司","中移成都信息通信科技有限公司|中国移动通信集团有限公司","唐健明 |\n曾琦娟 |\n李廷龙 |\n张瑞 |\n范涛","唐健明","","2019/12/31","2021/07/16","2021/07/16","","G06F  3/01|G06F  3/0484|G06F  3/0487|G06K  9/00","G06F  3/01","G06F3","G06F3/011",13,4,6,11,"1.27","","","","","","发明公布","CN","",0,0,0,0,0,0,0,"0.0",0,0,0,0,"",0,0,"现实场景 |\n虚拟模型 |\n虚拟场景 |\n增强现实 |\nar技术 |\n真实环境 |\n虚拟信息 |\n虚拟环境 |\n肢体语言 |\n控制虚拟 |\n虚拟显示 |\n交互形式 |\n虚拟现实装置","肢体动作 |\nforced alignment |\n手势动作 |\n背景信息 |\n采集目标","虚实融合 |\n位置变化信息 |\n身体姿态 |\n实时视频图像","关键点位置 |\n运动数据 |\n虚拟对象模型 |\n手势运动 |\n手势模型 |\n运动模型 |\n表情模型","","","公开","2021.07.16 公开 公开\n\n2021.08.03 实质审查的生效 实质审查的生效\n申请日=2019.12.31","","北京东方亿思专利代理有限责任公司; 赵秀芹","四川省","610041 四川省成都市中国（四川）自由贸易试验区成都高新区交子大道575号J座6楼"]
[{"$f":"HYPERLINK(\"https://www.patentics.cn/invokexml.do?sx=showpatent_cn&sf=ShowPatent&spn=CN113129933A&sx=showpatent_cn&sv=a0a945bb\",\"CN113129933A\")","v":"CN113129933A"},"CN201911413977.5","CN",null,"终端展示控制方法、装置、设备及计算机可读存储介质","本发明涉及一种终端展示控制方法、装置、设备及计算机可读存储介质，该屏幕展示控制方法包括：获取终端列表，终端列表包括至少一个终端信息；获取至少一个终端信息中每个终端的播放列表，播放列表包括根据终端的权限配置的多个第一可见展示文件信息；分别向至少一个终端发送第一播放指令，第一播放指令包括多个第一可见展示文件信息，第一播放指令用于使终端根据第一播放指令播放多个第一可见展示文件。本发明可以根据终端的权限配置该终端的可展示内容，以满足不同展示场景的个性化展示需求，操作灵活、简便，无需操作人员值守，降低了人力成本。","一种终端展示控制方法，其特征在于，包括： 　　获取终端列表，所述终端列表包括至少一个终端信息； 　　获取所述至少一个终端信息中每个所述终端的播放列表，所述播放列表包括根据所述终端的权限配置的多个第一可见展示文件信息； 　　分别向所述至少一个终端发送第一播放指令，所述第一播放指令包括所述多个第一可见展示文件信息，所述第一播放指令用于使所述终端根据第一播放指令播放所述多个第一可见展示文件。","","中移（成都）信息通信科技有限公司 |\n中国移动通信集团有限公司","中移成都信息通信科技有限公司|中国移动通信集团有限公司","中移成都信息通信科技有限公司|中国移动通信集团有限公司","曾艳 |\n陈庆勇 |\n桑建 |\n马玉涛 |\n代家聪","曾艳","","2019/12/31","2021/07/16","2021/07/16","","G11B 20/10|G06F  3/14|G06F 16/74","G11B 20/10","G11B20","G11B20/10527",12,6,8,13,"1.03","","","","","","发明公布","CN","",0,0,0,0,0,0,0,"0.0",0,0,0,0,"",0,0,"文件上传 |\n服务器端 |\n服务器请求 |\n从服务器 |\n内容生成 |\n用户上传 |\n文件列表 |\n文件信息 |\n实时同步 |\n接收服务器 |\n查询数据库","服务器配置 |\n后端服务器 |\n访问服务器 |\n负载均衡服务器 |\n逻辑服务器","获取播放 |\n播放请求 |\n文件播放 |\n内容展示 |\n播放内容 |\n视频文件 |\n播放文件 |\n终端接收用户 |\n本地播放 |\n播放指令 |\n演示文稿","权限配置 |\n登录指令 |\n账号登录 |\n登录接口 |\n主流浏览器","","","公开","2021.07.16 公开 公开\n\n2021.08.03 实质审查的生效 实质审查的生效\n申请日=2019.12.31","","北京东方亿思专利代理有限责任公司; 刘敏","四川省","610041 四川省成都市中国（四川）自由贸易试验区成都高新区交子大道575号J座6楼"]
[{"$f":"HYPERLINK(\"https://www.patentics.cn/invokexml.do?sx=showpatent_cn&sf=ShowPatent&spn=CN113132939A&sx=showpatent_cn&sv=4f80fba7\",\"CN113132939A\")","v":"CN113132939A"},"CN201911412334.9","CN",null,"道路通行状况信息获取方法、装置、设备及存储介质","本发明公开了一种道路通行状况信息获取方法、装置、设备及存储介质。所述道路通行状况信息获取方法包括：获取预设时间段内，目标道路上的目标基站与移动台之间的通信信号的信号强度；根据所述预设时间段及所述信号强度，确定与所述目标基站建立通信连接的所述移动台的信号强度变化率；从所述信号强度变化率中，筛选与所述目标基站建立通信连接的处于驾驶状态的移动台的信号强度变化率，得到目标信号强度变化率；根据所述目标信号强度变化率，确定道路通行状况信息。根据本发明实施例，能够获得准确性较高的各种道路的通行状况信息，从而为车辆通行提供较为及时的、准确的、全面的路况信息。","一种道路通行状况信息获取方法，其特征在于，包括： 　　获取预设时间段内，目标道路上的目标基站与移动台之间的通信信号的信号强度； 　　根据所述预设时间段及所述信号强度，确定与所述目标基站建立通信连接的所述移动台的信号强度变化率； 　　从所述信号强度变化率中，筛选与所述目标基站建立通信连接的处于驾驶状态的移动台的信号强度变化率，得到目标信号强度变化率； 　　根据所述目标信号强度变化率，确定道路通行状况信息。","","中移（成都）信息通信科技有限公司 |\n中国移动通信集团有限公司","中移成都信息通信科技有限公司|中国移动通信集团有限公司","中移成都信息通信科技有限公司|中国移动通信集团有限公司","黄恩民 |\n黄承基 |\n赵小溪","黄恩民","","2019/12/31","2021/07/16","2021/07/16","","H04W  4/40|G08G  1/01|H04W  4/021","H04W  4/40","G08G1","G08G1/0104",12,4,9,15,"0.88","","","","","","发明公布","CN","",0,0,0,0,0,0,0,"0.0",0,0,0,0,"",0,0,"信号覆盖区域 |\n基站信息 |\n基站采集 |\n基站覆盖范围 |\n基站信号 |\n覆盖区域内 |\n获取基站 |\n调度平台","路况信息 |\n目标车辆 |\n交通拥堵 |\n车辆信息 |\n车辆通行速度 |\nisdn编码 |\n交通信号灯 |\nestrogenicity |\n行驶速度 |\n信号灯信息 |\n拥堵道路 |\n车辆驾驶 |\n交通信息采集设备","道路信息 |\n实时交通信息 |\n规划线路 |\n地图信息 |\n通行信息","基站编号 |\n目标线路 |\n记录基站 |\n基站类型 |\n车载通信终端","","","公开","2021.07.16 公开 公开\n\n2021.08.03 实质审查的生效 实质审查的生效\n申请日=2019.12.31","","北京东方亿思专利代理有限责任公司; 娜拉","四川省","610041 四川省成都市中国（四川）自由贸易试验区成都高新区交子大道575号J座6楼"]
[{"$f":"HYPERLINK(\"https://www.patentics.cn/invokexml.do?sx=showpatent_cn&sf=ShowPatent&spn=CN113132430A&sx=showpatent_cn&sv=edc2ffce\",\"CN113132430A\")","v":"CN113132430A"},"CN201911411172.7","CN",null,"联盟链系统管理方法、装置、设备及计算机存储介质","本发明提供一种联盟链系统管理方法、装置、设备及计算机存储介质。联盟链系统管理方法，包括：节点标志设定步骤，对新接入到联盟链系统的节点设置节点标志，所述节点标志包括表示所述节点是普通节点的普通节点标志以及表示所述节点是共识节点的共识节点标志；以及记账管理步骤，当所述普通节点参与记账时，使所述普通节点提供工作量证明；当所述共识节点参与记账时，使所述共识节点不提供所述工作量证明而直接将数据进行存储。根据上述联盟链系统管理方法，能够降低联盟链系统的记账时间，并降低对记账节点的硬件系统的计算能力的要求。","一种联盟链系统管理方法，其特征在于，包括： 　　节点标志设定步骤，对新接入到联盟链系统的节点设置节点标志，所述节点标志包括表示所述节点是普通节点的普通节点标志以及表示所述节点是共识节点的共识节点标志；以及 　　记账管理步骤，当所述普通节点参与记账时，使所述普通节点提供工作量证明；当所述共识节点参与记账时，使所述共识节点不提供所述工作量证明而直接将数据进行存储。","","中移（成都）信息通信科技有限公司 |\n中国移动通信集团有限公司","中移成都信息通信科技有限公司|中国移动通信集团有限公司","中移成都信息通信科技有限公司|中国移动通信集团有限公司","王敏行 |\n唐睿 |\n张翔","王敏行","","2019/12/31","2021/07/16","2021/07/16","","H04L 29/08|H04L 12/24","H04L 29/08","H04L67","H04L67/104",12,4,9,12,"1.10","","","","","","发明公布","CN","",0,0,0,0,0,0,0,"0.0",0,0,0,0,"",0,0,"共识机制 |\n私有链 |\n联盟链 |\n认证节点 |\n记账节点 |\n生成区块 |\n工作量证明 |\n比特币网络交易 |\n区块数据 |\n安全存储 |\n相互信任 |\n记账过程 |\n记账管理 |\n密码学算法 |\n记账请求","企业级 |\n系统管理 |\n系统节点 |\n节点管理 |\n计算能力 |\n分布式数据存储","分布式存储 |\n计算节点 |\n节点执行 |\n边缘计算 |\n对等网络 |\n管理设备 |\n节点数量 |\n边缘服务器","服务器系统 |\n级计算机系统","","","公开","2021.07.16 公开 公开\n\n2021.08.03 实质审查的生效 实质审查的生效\n申请日=2019.12.31","","北京东方亿思专利代理有限责任公司; 杜立健","四川省","610041 四川省成都市中国（四川）自由贸易试验区成都高新区交子大道575号J座6楼"]
[{"$f":"HYPERLINK(\"https://www.patentics.cn/invokexml.do?sx=showpatent_cn&sf=ShowPatent&spn=CN113132309A&sx=showpatent_cn&sv=62734f0a\",\"CN113132309A\")","v":"CN113132309A"},"CN201911409956.6","CN",null,"数据包头部信息的获取方法、装置、设备和介质","本发明实施例提供了一种数据包头部信息的获取方法、装置、设备和介质。该方法包括：接收目标数据包；根据目标数据包的第一协议索引，在查询链表数组中确定目标数据包的当前链表；通过目标数据包的当前链表的表头项记载的第一协议索引，确定表头项记载的第一协议索引对应的目标第一协议的头部信息；将表头项记载的第一协议索引对应的目标第一协议的头部信息记录至目标数据的头部信息记录链表，得到目标数据包的头部信息。根据本发明实施例提供的数据包头部信息的获取方法、装置、设备和介质，能够提高数据包数据头部信息的获取效率。","一种数据包头部信息的获取方法，其特征在于，包括： 　　接收目标数据包； 　　根据所述目标数据包的第一协议索引，在查询链表数组中确定所述目标数据包的当前链表，其中，所述查询链表数组中的链表包括第一协议的第一协议索引和所述第一协议承载的多个第二协议的第二协议索引； 　　通过所述目标数据包的当前链表的表头项记载的第一协议索引，确定所述表头项记载的第一协议索引对应的目标第一协议的头部信息； 　　将所述表头项记载的第一协议索引对应的目标第一协议的头部信息记录至所述目标数据的头部信息记录链表，得到所述目标数据包的头部信息。","","中移（成都）信息通信科技有限公司 |\n中国移动通信集团有限公司","中移成都信息通信科技有限公司|中国移动通信集团有限公司","中移成都信息通信科技有限公司|中国移动通信集团有限公司","陈庆勇 |\n曾艳 |\n杨雷 |\n王森 |\n董冠军","陈庆勇","","2019/12/31","2021/07/16","2021/07/16","","H04L 29/06","H04L 29/06","H04L69","H04L69/22",13,4,6,14,"1.00","","","","","","发明公布","CN","",0,0,0,0,0,0,0,"0.0",0,0,0,0,"",0,0,"协议头 |\n报文头部 |\n协议报文头 |\n协议链表 |\n头部信息 |\n配置数据 |\n数据配置 |\n查询链表 |\n应用层协议报文 |\n表项信息 |\n记录表项 |\n数据包头部 |\n标识协议 |\n目标数据包","转发处理 |\n协议信息 |\n第一协议 |\n第二协议 |\n数据包转发 |\n物理端口 |\n接收数据报文 |\n协议类型字段 |\nip协议报文 |\n协议表项","协议处理 |\n多核多线程 |\n传输控制协议","数据包协议","","","公开","2021.07.16 公开 公开\n\n2021.08.03 实质审查的生效 实质审查的生效\n申请日=2019.12.31","","北京东方亿思专利代理有限责任公司; 赵秀芹","四川省","610041 四川省成都市中国（四川）自由贸易试验区成都高新区交子大道575号J座6楼"]
[{"$f":"HYPERLINK(\"https://www.patentics.cn/invokexml.do?sx=showpatent_cn&sf=ShowPatent&spn=CN113132269A&sx=showpatent_cn&sv=d413c124\",\"CN113132269A\")","v":"CN113132269A"},"CN201911408676.3","CN",null,"资源切片管理的系统、方法及计算机可读存储介质","本发明实施例提供一种资源切片管理的系统、方法及计算机可读存储介质。该系统包括：泛在资源管理功能模块、网络切片管理功能模块、计算切片管理功能模块；泛在资源管理功能模块，用于根据接收网络切片管理功能模块发送的网络切片实例的服务质量QoS性能信息调整计算切片管理功能模块的计算资源；和/或，泛在资源管理功能模块，还用于根据接收计算切片管理功能模块发送的计算资源切片实例的运算性能信息调整网络管理功能模块的网络传输资源。本发明能能够实现核心网络切片以及多接入边缘计算两个系统的深度融合，保障业务的全流程的QoS性能。","一种资源切片管理的系统，其特征在于，包括：泛在资源管理功能模块、网络切片管理功能模块、计算切片管理功能模块； 　　所述泛在资源管理功能模块，用于根据接收所述网络切片管理功能模块发送的网络切片实例的服务质量QoS性能信息调整所述计算切片管理功能模块的计算资源；和/或， 　　所述泛在资源管理功能模块，还用于根据接收所述计算切片管理功能模块发送的计算资源切片实例的运算性能信息调整网络管理功能模块的网络传输资源。","","中移（成都）信息通信科技有限公司 |\n中国移动通信集团有限公司","中移成都信息通信科技有限公司|中国移动通信集团有限公司","中移成都信息通信科技有限公司|中国移动通信集团有限公司","唐小勇 |\n刘耕 |\n赵立君 |\n王军","唐小勇","","2019/12/31","2021/07/16","2021/07/16","","H04L 12/927|H04L 12/851","H04L 12/927","H04L47","H04L47/805",13,4,1,13,"1.05","","","","","","发明公布","CN","",0,0,0,0,0,0,0,"0.0",0,0,0,0,"",0,0,"网络功能 |\n边缘计算 |\n动态选择 |\n网络资源需求 |\n服务质量qos |\n大规模物联网 |\n连接资源 |\n计算资源 |\n服务管理功能 |\n物理实体 |\n网络选择 |\n移动宽带 |\n信令交互 |\n传输业务 |\n端到端时延 |\n路由策略 |\n端到端性能 |\n无线接入网络ran |\n虚拟网络架构 |\n第三代合作伙伴计划","差异化业务 |\n资源虚拟化 |\n资源管理功能 |\n低时延高可靠","虚拟化管理 |\n生命周期管理 |\n网络传输资源","管理功能模块","","","公开","2021.07.16 公开 公开\n\n2021.08.03 实质审查的生效 实质审查的生效\n申请日=2019.12.31","","北京东方亿思专利代理有限责任公司; 赵秀芹","四川省","610041 四川省成都市中国（四川）自由贸易试验区成都高新区交子大道575号J座6楼"]
[{"$f":"HYPERLINK(\"https://www.patentics.cn/invokexml.do?sx=showpatent_cn&sf=ShowPatent&spn=CN113131211A&sx=showpatent_cn&sv=aedac5b0\",\"CN113131211A\")","v":"CN113131211A"},"CN201911407869.7","CN",null,"相控阵天线装置","本发明公开了一种相控阵天线装置，包括：电路板，具有相对的上表面和下表面，上表面设置有多个射频模块；隔离栅，设置于电路板的上表面，隔离栅包括相继分布的多个隔离单元，隔离单元围绕各射频模块的周向分布；屏蔽层，设置于所述隔离栅，屏蔽层包括与各隔离单元一一对应的屏蔽单元，以使各射频模块位于独立的屏蔽空间；辐射阵元层，设置于屏蔽层背向所述隔离栅一侧，辐射阵元层包括与各射频模块一一对应的天线辐射阵子，天线辐射阵子与射频模块电连接。天线辐射阵子通过连接器组件和射频模块电连接。各个射频模块分别密闭空间内，防止各个射频模块之间的电磁干扰，提高了信号的稳定性。","一种相控阵天线装置，其特征在于，包括： 　　电路板(1)，具有相对的上表面和下表面，所述上表面设置有多个射频模块(11)； 　　隔离栅(2)，设置于所述电路板(1)的上表面，所述隔离栅(2)包括相继分布的多个隔离单元(21)，所述隔离单元(21)围绕各所述射频模块(11)的周向分布； 　　屏蔽层(3)，设置于所述隔离栅(2)，所述屏蔽层(3)包括与各所述隔离单元一一对应的屏蔽单元(31)，以使各所述射频模块(11)位于独立的屏蔽空间； 　　辐射阵元层(4)，设置于所述屏蔽层(3)背向所述隔离栅(2)一侧，所述辐射阵元层(4)包括与各所述射频模块(11)一一对应的天线辐射阵子(41)，所述天线辐射阵子(41)与所述射频模块(11)电连接。","","中移（成都）信息通信科技有限公司 |\n中国移动通信集团有限公司 |\n四川省大见通信技术有限公司","中移成都信息通信科技有限公司|中国移动通信集团有限公司|四川省大见通信技术有限公司","中移成都信息通信科技有限公司|中国移动通信集团有限公司|四川省大见通信技术有限公司","何明 |\n郭洋 |\n许鹏 |\n邓双 |\n张亚明 |\n袁赤城","何明","","2019/12/31","2021/07/16","2021/07/16","","H01Q  1/52|H01Q  1/38|H01Q  1/50|H01Q 21/00|H01Q 21/06|H01Q 23/00","H01Q  1/52","H01Q1","H01Q1/526",13,1,0,16,"0.82","","","","","","发明公布","CN","",0,0,0,0,0,0,0,"0.0",0,0,0,0,"",0,0,"天线辐射 |\ncluster cloud |\n天线装置 |\n移相器 |\ncluster distance |\n射频通道 |\n低噪声放大器 |\n发射信号 |\n波束形成网络 |\n天线口径 |\n相控天线 |\n接收信号 |\n射频模块电连接 |\n金属辐射贴片","接收电磁波 |\n激励信号","屏蔽单元 |\n电磁干扰 |\n屏蔽空间 |\n屏蔽材料 |\n屏蔽效果","tr组件 |\n收发开关 |\nlabo jet |\n有源相控阵天线 |\n相控阵系统 |\n电子干扰","","","公开","2021.07.16 公开 公开\n\n2021.08.03 实质审查的生效 实质审查的生效\n申请日=2019.12.31","","北京东方亿思专利代理有限责任公司; 赵秀芹","四川省","610041 四川省成都市中国（四川）自由贸易试验区成都高新区交子大道575号J座6楼"]
[{"$f":"HYPERLINK(\"https://www.patentics.cn/invokexml.do?sx=showpatent_cn&sf=ShowPatent&spn=CN113127674A&sx=showpatent_cn&sv=92db8356\",\"CN113127674A\")","v":"CN113127674A"},"CN201911407361.7","CN",null,"歌单推荐方法、装置、电子设备及计算机存储介质","本发明实施例公开了一种歌单推荐方法、装置、电子设备及计算机存储介质。该歌单推荐方法包括：获取用户第一时段歌曲行为数据和用户第二时段歌曲行为数据；其中，用户第一时段歌曲行为数据所属的第一时段在用户第二时段歌曲行为数据所属的第二时段之后；利用用户第一时段歌曲行为数据和用户第二时段歌曲行为数据，确定目标歌单；向用户终端发送目标歌单。根据本发明实施例，能够提高歌单推荐的准确性。","一种歌单推荐方法，其特征在于，包括： 　　获取用户第一时段歌曲行为数据和用户第二时段歌曲行为数据；其中，所述用户第一时段歌曲行为数据所属的第一时段在所述用户第二时段歌曲行为数据所属的第二时段之后； 　　利用所述用户第一时段歌曲行为数据和所述用户第二时段歌曲行为数据，确定目标歌单； 　　向用户终端发送所述目标歌单。","","中移（成都）信息通信科技有限公司 |\n中国移动通信集团有限公司","中移成都信息通信科技有限公司|中国移动通信集团有限公司","中移成都信息通信科技有限公司|中国移动通信集团有限公司","张东浩 |\n唐睿 |\n魏远伦 |\n马玉涛 |\n张啸宇","张东浩","","2019/12/31","2021/07/16","2021/07/16","","G06F 16/635|G06F 16/638|G06F 16/683","G06F 16/635","G06F16","G06F16/639",13,4,6,7,"1.99","","","","","","发明公布","CN","",0,0,0,0,0,0,0,"0.0",0,0,0,0,"",0,0,"用户标签 |\n筛选规则 |\n筛选条件 |\n属性特征 |\n去重处理 |\n打分算法 |\n数据匹配 |\n相似性算法","推荐方法 |\n用户行为数据 |\n用户推荐 |\n歌曲标签 |\n歌单 |\n推送方法 |\n用户收藏 |\n偏好 |\n歌曲资源 |\n推荐表 |\n在线音乐 |\n用户近期 |\n歌曲试听","分值 |\n评分 |\n计算用户 |\nconsole table |\n加权求和 |\n相似性数值","标签信息","","","公开","2021.07.16 公开 公开\n\n2021.08.03 实质审查的生效 实质审查的生效\n申请日=2019.12.31","","北京东方亿思专利代理有限责任公司; 彭琼","四川省","610041 四川省成都市中国（四川）自由贸易试验区成都高新区交子大道575号J座6楼"]
[{"$f":"HYPERLINK(\"https://www.patentics.cn/invokexml.do?sx=showpatent_cn&sf=ShowPatent&spn=CN113132761A&sx=showpatent_cn&sv=d3c2ee76\",\"CN113132761A\")","v":"CN113132761A"},"CN201911406263.1","CN",null,"多媒体资源获取方法、服务器集群、用户终端设备及系统","本发明实施例公开了一种多媒体资源获取方法、服务器集群、用户终端设备及系统。该多媒体资源获取方法，应用于服务器集群，包括：接收用户终端设备发送的请求；用户终端设备包括增强现实AR设备、虚拟现实VR设备；基于请求，获取请求对应的多媒体资源；向用户终端设备发送多媒体资源。根据本发明实施例，能够实现服务器和用户终端设备之间去耦合，进而提高系统的兼容性。","一种多媒体资源获取方法，其特征在于，应用于服务器集群，包括： 　　接收用户终端设备发送的请求；所述用户终端设备包括增强现实AR设备、虚拟现实VR设备； 　　基于所述请求，获取所述请求对应的多媒体资源； 　　向所述用户终端设备发送所述多媒体资源。","","中移（成都）信息通信科技有限公司 |\n中国移动通信集团有限公司","中移成都信息通信科技有限公司|中国移动通信集团有限公司","中移成都信息通信科技有限公司|中国移动通信集团有限公司","王旭浩 |\n陈庆勇 |\n桑建 |\n梁玲玲 |\n董冠军","王旭浩","","2019/12/31","2021/07/16","2021/07/16","","H04N 21/258|H04N 21/234|H04N 21/235|H04N 21/41|H04N 21/81","H04N 21/258","H04N21","H04N21/25816",13,5,10,10,"1.44","","","","","","发明公布","CN","",0,0,0,0,0,0,0,"0.0",0,0,0,0,"",0,0,"流媒体服务器 |\n网络带宽 |\n服务器资源 |\n数据传输量 |\n服务器集群 |\n流媒体传输 |\n请求分发 |\n网络延迟","视频推流 |\n流媒体格式 |\n获取视频 |\n视频分辨率 |\n图像资源 |\n渲染服务器 |\n视音频处理 |\n视频数据编码 |\n图像渲染 |\n多媒体资源 |\n画面渲染 |\n视频渲染 |\n视频信息 |\n视频推送","分发服务器 |\n资源获取 |\n请求服务器 |\n应用服务器 |\n用户终端设备","服务器端 |\n应用程序接口 |\n云系统平台","","","公开","2021.07.16 公开 公开\n\n2021.08.03 实质审查的生效 实质审查的生效\n申请日=2019.12.31","","北京东方亿思专利代理有限责任公司; 赵秀芹","四川省","610041 四川省成都市中国（四川）自由贸易试验区成都高新区交子大道575号J座6楼"]
[{"$f":"HYPERLINK(\"https://www.patentics.cn/invokexml.do?sx=showpatent_cn&sf=ShowPatent&spn=CN113132041A&sx=showpatent_cn&sv=09401129\",\"CN113132041A\")","v":"CN113132041A"},"CN201911404750.4","CN",null,"一种数据传输延时的计算方法和装置","本发明实施例提供一种数据传输延时的计算方法和装置。该方法应用于服务器，该方法包括：接收发送设备发送的第一请求消息，向接收设备发送第二请求消息，第二请求消息用于接收设备计算获得发送设备发送的第一请求消息的请求时延Treq；接收接收设备发送的第一回复消息，向发送设备发送第二回复消息，第二回复消息用于发送设备根据第二回复消息计算发送设备发送的第一请求消息的回复时延Trsp和发送设备发送的第一请求消息的往返时延Trtt。本发明实施例能够提高端到端设备之间的传输时延的计算精度。","一种数据传输延时的计算方法，其特征在于，所述方法应用于服务器，所述方法包括： 　　接收发送设备发送的第一请求消息，所述第一请求消息包括所述发送设备发送所述第一请求消息的时间T1，所述发送设备发送所述第一请求消息时与所述服务器之间的传输时延Tdelay1，以及所述发送设备发送所述第一请求消息时与所述服务器的校准时延Tdelta1； 　　向接收设备发送第二请求消息，所述第二请求消息包括所述第一请求消息中的所述发送设备发送所述第一请求消息的时间T1，所述发送设备发送所述第一请求消息时与所述服务器之间的传输时延Tdelay1，所述发送设备发送所述第一请求消息时与所述服务器的校准时延Tdelta1，以及所述服务器接收到所述第一请求消息后，对所述第一消息的处理时间Tp1，所述第二请求消息用于所述接收设备计算获得所述发送设备发送的第一请求消息的请求时延Treq； 　　接收所述接收设备发送的第一回复消息，所述第一回复消息包括所述接收设备发送所述第一回复消息的时间T3，所述接收设备发送所述第一回复消息时与所述服务器之间的传输时延Tdelay3，所述接收设备发送所述第一回复消息时与所述服务器的校准时延Tdelta3、所述请求时延Treq，以及所述接收设备接收到所述第二请求消息后，对所述第二请求消息的处理时间Tp3； 　　向发送设备发送第二回复消息，所述第二回复消息包括所述第一回复消息中的所述接收设备发送所述第一回复消息的时间T3，所述接收设备发送所述第一回复消息时与所述服务器之间的传输时延Tdelay3，所述接收设备发送所述第一回复消息时与所述服务器的校准时延Tdelta3、所述请求时延Treq，所述接收设备接收到所述第二请求消息后，对所述第二请求消息的处理时间Tp3，以及所述服务器接收到所述第一回复消息后，对所述第一回复消息的处理时间Tp2，所述第二回复消息用于所述发送设备根据所述第二回复消息计算所述发送设备发送的第一请求消息的回复时延Trsp和所述发送设备发送的第一请求消息的往返时延Trtt。","一种数据传输延时的计算方法，其特征在于，所述方法应用于服务器，所述方法包括： 　　接收发送设备发送的第一请求消息，所述第一请求消息包括所述发送设备发送所述第一请求消息的时间T1，所述发送设备发送所述第一请求消息时与所述服务器之间的传输时延Tdelay1，以及所述发送设备发送所述第一请求消息时与所述服务器的校准时延Tdelta1； 　　其中，所述校准时延Tdelta1的计算公式为： 　　Tdelta1＝Toffset1×t/Tcycle，其中，t为所述服务器发送或者接收第一请求消息时与上次校准的时间的时间差，Tcycle为预设校准周期，Toffsetl为所述服务器的时钟偏移； 　　向接收设备发送第二请求消息，所述第二请求消息包括所述第一请求消息中的所述发送设备发送所述第一请求消息的时间T1，所述发送设备发送所述第一请求消息时与所述服务器之间的传输时延Tdelay1，所述发送设备发送所述第一请求消息时与所述服务器的校准时延Tdelta1，以及所述服务器接收到所述第一请求消息后，对所述第一请求消息的处理时间Tp1，所述第二请求消息用于所述接收设备计算获得所述发送设备发送的第一请求消息的请求时延Treq，所述请求时延Treq的计算公式为： 　　Treq＝(T1+Tdelay+Tdelta1+Tp1+Tdelay+Tdelta2+T2)/2?T1， 　　其中，Tdelay2为所述接收设备接收到所述第二请求消息时所述接收设备与与所述服务器之间的传输时延，Tdelta2为所述接收设备接收到所述第二请求消息时与所述服务器的校准时延，T2为所述接收设备接收到所述第二请求消息的时间； 　　接收所述接收设备发送的第一回复消息，所述第一回复消息包括所述接收设备发送所述第一回复消息的时间T3，所述接收设备发送所述第一回复消息时与所述服务器之间的传输时延Tdelay3，所述接收设备发送所述第一回复消息时与所述服务器的校准时延Tdelta3、所述请求时延Treq，以及所述接收设备接收到所述第二请求消息后，对所述第二请求消息的处理时间Tp3； 　　向发送设备发送第二回复消息，所述第二回复消息包括所述第一回复消息中的所述接收设备发送所述第一回复消息的时间T3，所述接收设备发送所述第一回复消息时与所述服务器之间的传输时延Tdelay3，所述接收设备发送所述第一回复消息时与所述服务器的校准时延Tdelta3、所述请求时延Treq，所述接收设备接收到所述第二请求消息后，对所述第二请求消息的处理时间Tp3，以及所述服务器接收到所述第一回复消息后，对所述第一回复消息的处理时间Tp2，所述第二回复消息用于所述发送设备根据所述第二回复消息计算所述发送设备发送的第一请求消息的回复时延Trsp和所述发送设备发送的第一请求消息的往返时延Trtt； 　　其中，所述回复时延Trsp的计算公式为： 　　Trsp＝(T3+Tdelay3+Tdelta3+Tp2+Tdelt+Tdelay4+T4)/2?T3， 　　其中，Tdelay4为所述发送设备接收到所述第二回复消息时与所述服务器之之间的传输时延，Tdelta4为所述发送设备接收到所述第二回复消息时与所述服务器的校准时延，T4为所述发送设备接收到所述第二回复消息的接收时间； 　　其中，所述往返时延Trtt的计算公式为： 　　Trtt＝(TReq+TRsp+Tp3+T4?T1)/2。","中移（成都）信息通信科技有限公司 |\n中国移动通信集团有限公司","中移成都信息通信科技有限公司|中国移动通信集团有限公司","中移成都信息通信科技有限公司|中国移动通信集团有限公司","马建均","马建均","2019/12/31","2019/12/31","2021/07/16","2021/07/16","2022/03/04","H04J  3/06|H04L 29/08","H04J  3/06","H04J3","H04J3/0667",13,6,10,19,"0.76","","","","","","发明公布","CN","","CN110557826A |\nCN109842603A |\nCN105610652A |\nCN105577349A |\nCN104993900A |\nCN102546071A |\nCN102457371A |\nCN101557255A |\nCN101330374A",9,0,9,8,0,0,"0.0",0,0,0,0,"CN113132041B",1,1,"数据包发送 |\n获取发送 |\n端设备 |\n设备发送 |\n应答报文 |\n设备接收 |\n请求消息 |\n第一请求 |\n回复消息 |\n第一消息 |\n后端服务器 |\n接收第二请求","发送报文 |\n网络时钟同步 |\n精确时钟同步协议 |\n网络时间协议","记录接收 |\n发送时间 |\n获取接收 |\n接收时间 |\n延迟请求报文","数据传输过程 |\n同步过程 |\n往返时延计算 |\n传输时延 |\n数据发送 |\n接收发送设备","","","有效","2021.07.16 公开 公开\n\n2021.08.03 实质审查的生效 实质审查的生效\n申请日=2019.12.31\n\n2022.03.04 授权 授权","","北京东方亿思专利代理有限责任公司; 赵秀芹","四川省","610041 四川省成都市中国（四川）自由贸易试验区成都高新区交子大道575号J座6楼"]
[{"$f":"HYPERLINK(\"https://www.patentics.cn/invokexml.do?sx=showpatent_cn&sf=ShowPatent&spn=CN113126026A&sx=showpatent_cn&sv=9cccbc04\",\"CN113126026A\")","v":"CN113126026A"},"CN201911404264.2","CN",null,"定位系统、方法及存储介质","本发明实施例提供了一种定位系统、方法及存储介质，该系统包括超宽带UWB定位系统、网络连接设备、边缘计算服务器，网络连接设备通过无线接口连接UWB定位系统与边缘计算服务器；UWB定位系统包括定位标签和至少三个UWB基站，至少三个UWB基站，用于根据UWB脉冲信号的传播时间来确定UWB基站与定位标签的相对位置信息，通过无线接口向网络连接设备发送相对位置信息；网络连接设备，用于根据相对位置信息确定相对位置信息的优先级，并根据优先级向边缘计算服务器发送相对位置信息；边缘计算服务器，用于根据接收到的相对位置信息确定定位标签的定位结果。本发明实施例能够解决定位系统与专网建设不兼容的问题，提高网络资源的利用率。","一种定位系统，其特征在于，包括超宽带UWB定位系统、网络连接设备、边缘计算服务器，所述网络连接设备通过无线接口连接所述UWB定位系统与所述边缘计算服务器； 　　所述UWB定位系统包括定位标签和至少三个UWB基站，所述至少三个UWB基站，用于根据UWB脉冲信号的传播时间来确定所述UWB基站与所述定位标签的相对位置信息，通过无线接口向所述网络连接设备发送所述相对位置信息； 　　所述网络连接设备，用于根据所述相对位置信息确定所述相对位置信息的优先级，并根据所述优先级向所述边缘计算服务器发送所述相对位置信息； 　　所述边缘计算服务器，用于根据接收到的所述相对位置信息确定所述定位标签的定位结果。","","中移（成都）信息通信科技有限公司 |\n中国移动通信集团有限公司","中移成都信息通信科技有限公司|中国移动通信集团有限公司","中移成都信息通信科技有限公司|中国移动通信集团有限公司","张才普","张才普","","2019/12/31","2021/07/16","2021/07/16","","G01S  5/06|G01S  5/00|G01S  5/02|H04W 64/00","G01S  5/06","G01S5","G01S5/06",13,3,5,18,"0.76","","","","","","发明公布","CN","",0,0,0,0,0,0,0,"0.0",0,0,0,0,"",0,0,"定位终端 |\n获取定位 |\n定位标签 |\n定位数据 |\n定位系统 |\n超宽带uwb |\n到达时间差定位 |\ntoa定位算法 |\n相对位置信息","定位技术 |\n定位结果 |\n定位方法 |\n定位区域 |\n边缘计算 |\nfield sampling","5g通信 |\n通信链路 |\n网络部署 |\n通信技术 |\n无线通信 |\n无线信号","解算平台 |\n定位解算 |\n多径效应 |\nuwb脉冲信号 |\nfield robotics |\n定位接收机 |\n时延差异 |\n计算定位 |\n信号传播路径","","","公开","2021.07.16 公开 公开\n\n2021.08.03 实质审查的生效 实质审查的生效\n申请日=2019.12.31","","北京东方亿思专利代理有限责任公司; 彭琼","四川省","610041 四川省成都市中国（四川）自由贸易试验区成都高新区交子大道575号J座6楼"]
[{"$f":"HYPERLINK(\"https://www.patentics.cn/invokexml.do?sx=showpatent_cn&sf=ShowPatent&spn=CN113127217A&sx=showpatent_cn&sv=da6a4a48\",\"CN113127217A\")","v":"CN113127217A"},"CN201911404064.7","CN",null,"数据发布方法、装置、设备及存储介质","本发明公开了一种数据发布方法、装置、设备及存储介质。该方法包括：将获取的多个待发布数据的数据标识加入第一线程池中，以用于数据获取端发送或接收消息队列MQ；根据每个待发布数据的数据标识，确定每个待发布数据的分布式缓存锁；根据数据标识，生成第一消息队列MQ，第一MQ包括数据标识；将第一MQ发送给数据发布端，以用于数据发布端根据第一MQ中的多个数据标识获取多个待发布数据；将多个待发布数据加入到第二线程池中，并向数据获取端发送第二MQ，发布待发布数据；第二MQ包括数据标识，能够保证多个客户端的高可用，节省资源。","一种数据发布方法，其特征在于，所述方法应用于数据获取端，所述方法包括： 　　将获取的多个待发布数据的数据标识加入第一线程池中，以用于所述数据获取端发送或接收消息队列MQ； 　　根据每个所述待发布数据的所述数据标识，确定每个所述待发布数据的分布式缓存锁； 　　根据所述数据标识，生成第一消息队列MQ，所述第一MQ包括所述数据标识； 　　将所述第一MQ发送给数据发布端，以用于所述数据发布端根据所述第一MQ中的多个数据标识获取多个待发布数据；将多个所述待发布数据加入到第二线程池中，并向所述数据获取端发送第二MQ，发布所述待发布数据；所述第二MQ包括所述数据标识。","","中移（成都）信息通信科技有限公司 |\n中国移动通信集团有限公司","中移成都信息通信科技有限公司|中国移动通信集团有限公司","中移成都信息通信科技有限公司|中国移动通信集团有限公司","王天罡","王天罡","","2019/12/30","2021/07/16","2021/07/16","","G06F  9/54|G06F  9/48|G06F  9/50|G06F  9/52","G06F  9/54","G06F9","G06F9/546",13,6,11,14,"1.04","","","","","","发明公布","CN","",0,0,0,0,0,0,0,"0.0",0,0,0,0,"",0,0,"分布式缓存 |\n删除数据 |\n更新模块 |\n数据标识 |\n接收消息队列 |\n删除模块 |\ncobalt hydroxide |\n客户端获取","数据更新 |\n更新数据库 |\n获取数据 |\n最新数据 |\n发布方法 |\n发布数据 |\n数据发布 |\n数据存储 |\n发布模块 |\n服务器端 |\n产品数据","定时任务 |\n执行数据 |\ndigital magnetic recording |\n状态更新 |\n判断任务","线程池技术 |\n事务管理 |\n执行效率 |\n异步发送 |\n消息通知机制 |\n数据库状态","","","公开","2021.07.16 公开 公开\n\n2021.08.03 实质审查的生效 实质审查的生效\n申请日=2019.12.30","","北京东方亿思专利代理有限责任公司; 赵秀芹","四川省","610041 四川省成都市中国（四川）自由贸易试验区成都高新区交子大道575号J座6楼"]
[{"$f":"HYPERLINK(\"https://www.patentics.cn/invokexml.do?sx=showpatent_cn&sf=ShowPatent&spn=CN113129880A&sx=showpatent_cn&sv=7351db3f\",\"CN113129880A\")","v":"CN113129880A"},"CN201911402081.7","CN",null,"语音自动化控制方法、装置、设备及存储介质","本发明公开了语音自动化控制方法、装置、设备及存储介质。该方法包括：接收用户的语音输入信息，所述语音输入信息包括第一指令信息；根据所述第一指令信息确定是否存在与所述第一指令信息关联的第一语音指令模型，其中，所述第一语音指令模型包括响应所述第一指令信息的至少两个操作的数据；若存在与所述第一指令信息关联的所述第一语音指令模型，则调用所述第一语音指令模型自动执行所述至少两个操作。本发明提供的语音自动化控制方法、装置、设备及存储介质，能够实现一条语音指令完成多步骤自动化操作。","一种语音自动化控制方法，其特征在于，所述方法包括： 　　接收用户的语音输入信息，并识别所述语音输入信息中的第一指令信息； 　　根据所述第一指令信息确定是否存在与所述第一指令信息关联的第一语音指令模型，其中，所述第一语音指令模型包括响应所述第一指令信息的至少两个操作的数据； 　　若存在与所述第一指令信息关联的所述第一语音指令模型，则调用所述第一语音指令模型自动执行所述至少两个操作。","","中移（成都）信息通信科技有限公司 |\n中国移动通信集团有限公司","中移成都信息通信科技有限公司|中国移动通信集团有限公司","中移成都信息通信科技有限公司|中国移动通信集团有限公司","唐睿 |\n侯漫秋 |\n方宇 |\n陈巧菊","唐睿","","2019/12/30","2021/07/16","2021/07/16","","G10L 15/22","G10L 15/22","G10L15","G10L15/22",13,4,6,11,"1.27","","","","","","发明公布","CN","",0,0,0,0,0,0,0,"0.0",0,0,0,0,"",0,0,"语音助手 |\n智能交互 |\n语音控制 |\n语音识别 |\n智能语音 |\n录制模块","应用软件 |\n用户自定义 |\n接收用户 |\n操作数据 |\n设置界面 |\n用户修改 |\n编辑模块 |\n用户操作 |\n点击界面 |\n前台 |\n控件 |\n浏览网页 |\n代码段 |\n自动执行","语音输入信息 |\n智能对话 |\n识别引擎 |\ncentral processing","语音指令信息 |\nequipment identifier |\n用户预设","","","公开","2021.07.16 公开 公开\n\n2021.08.03 实质审查的生效 实质审查的生效\n申请日=2019.12.30","","北京东方亿思专利代理有限责任公司; 段月欣","四川省","610041 四川省成都市中国（四川）自由贸易试验区成都高新区交子大道575号J座6楼"]
[{"$f":"HYPERLINK(\"https://www.patentics.cn/invokexml.do?sx=showpatent_cn&sf=ShowPatent&spn=CN113129331A&sx=showpatent_cn&sv=148a8bdc\",\"CN113129331A\")","v":"CN113129331A"},"CN201911401885.5","CN",null,"目标移动轨迹检测方法、装置、设备及计算机存储介质","本发明实施例公开了一种目标移动轨迹检测方法、装置、设备及计算机存储介质。该目标移动轨迹检测方法，包括：将预设的背景图像模型作为对比母版，对获取的实时视频进行监听采样，获取视频帧信息；当确定视频帧信息中存有非模型像素时，对非模型像素进行边界提取，确定目标模型；对比目标模型在实时视频中的关联帧数据，获取对比数据；基于对比数据，确定目标模型的移动轨迹。根据本发明实施例，能够更加准确检测目标移动轨迹。","一种目标移动轨迹检测方法，其特征在于，包括： 　　将预设的背景图像模型作为对比母版，对获取的实时视频进行监听采样，获取视频帧信息； 　　当确定所述视频帧信息中存有非模型像素时，对所述非模型像素进行边界提取，确定目标模型； 　　对比所述目标模型在所述实时视频中的关联帧数据，获取对比数据； 　　基于所述对比数据，确定所述目标模型的移动轨迹。","","中移（成都）信息通信科技有限公司 |\n中国移动通信集团有限公司","中移成都信息通信科技有限公司|中国移动通信集团有限公司","中移成都信息通信科技有限公司|中国移动通信集团有限公司","孙文超 |\n何明 |\n张李秋 |\n李超","孙文超","","2019/12/31","2021/07/16","2021/07/16","","G06T  7/246|G06T  7/13","G06T  7/246","G06T7","G06T7/251",13,4,6,19,"0.73","","","","","","发明公布","CN","",0,0,0,0,0,0,0,"0.0",0,0,0,0,"",0,0,"目标识别 |\n实际场景 |\n算法提取 |\n目标跟踪 |\n提取目标 |\n模型提取 |\n深度学习算法 |\n目标模型","前景目标 |\n背景模型 |\n多帧图像 |\n背景图像模型 |\n红外图像 |\n目标图像 |\n检测图像 |\n图像识别技术 |\n采集图像 |\n场景变化 |\n视频帧信息 |\n边缘提取技术","图像场景 |\n感兴趣目标 |\n目标运动轨迹 |\n图像信息提取","边界提取 |\n图像纹理信息 |\n目标轮廓提取 |\n区域生长算法","","","公开","2021.07.16 公开 公开\n\n2021.08.03 实质审查的生效 实质审查的生效\n申请日=2019.12.31","","北京东方亿思专利代理有限责任公司; 彭琼","四川省","610041 四川省成都市中国（四川）自由贸易试验区成都高新区交子大道575号J座6楼"]
[{"$f":"HYPERLINK(\"https://www.patentics.cn/invokexml.do?sx=showpatent_cn&sf=ShowPatent&spn=CN113128529A&sx=showpatent_cn&sv=243b39b2\",\"CN113128529A\")","v":"CN113128529A"},"CN201911391795.2","CN",null,"牲畜身份识别模型训练方法、识别方法、系统及装置","本发明实施例提供牲畜身份识别模型训练方法、识别方法、系统及装置。该方法包括：获取训练样本集，训练样本集包括目标牲畜的多个畜脸图像样本；将训练样本集输入到预先构建的目标牲畜身份识别模型中，进行模型训练，直至满足预设训练停止条件，得到训练好的目标牲畜身份识别模型；其中，目标牲畜身份识别模型为包括恒等映射的双线性卷积神经网络模型。本发明能够从复杂的场景中识别牲畜的个体身份，提升家畜畜脸识别的准确率。","一种牲畜身份识别模型训练方法，其特征在于，所述方法包括： 　　获取训练样本集，所述训练样本集包括目标牲畜的多个畜脸图像样本； 　　将所述训练样本集输入到预先构建的目标牲畜身份识别模型中，进行模型训练，直至满足预设训练停止条件，得到训练好的目标牲畜身份识别模型； 　　其中，所述目标牲畜身份识别模型为包括恒等映射的双线性卷积神经网络模型。","","中移（成都）信息通信科技有限公司 |\n中国移动通信集团有限公司","中移成都信息通信科技有限公司|中国移动通信集团有限公司","中移成都信息通信科技有限公司|中国移动通信集团有限公司","卞军伟 |\n唐睿 |\n刘一珉 |\n廖鹏程","卞军伟","","2019/12/30","2021/07/16","2021/07/16","","G06K  9/62","G06K  9/62","G06K9","G06K9/6256",13,7,6,13,"1.11","","","","","","发明公布","CN","",0,0,0,0,0,0,0,"0.0",0,0,0,0,"",0,0,"神经网络算法 |\n特征融合 |\n卷积神经网络 |\n神经网络模型 |\n识别准确率 |\n训练模块 |\n训练样本集 |\n识别模型 |\n行为检测 |\n特征提取器 |\nhard disk device |\n样本输入 |\n生成模型 |\n输出特征 |\n模型训练方法 |\n模型训练过程 |\n卷积神经网路 |\n语义特征 |\n双线性特征","图像样本 |\n图像特征 |\n图像输入 |\n识别结果","图像相似度 |\n身份特征 |\n身份识别方法","数据预处理 |\n神经网络输入","","","公开","2021.07.16 公开 公开\n\n2021.08.03 实质审查的生效 实质审查的生效\n申请日=2019.12.30","","北京东方亿思专利代理有限责任公司; 赵秀芹","四川省","610041 四川省成都市中国（四川）自由贸易试验区成都高新区交子大道575号J座6楼"]
[{"$f":"HYPERLINK(\"https://www.patentics.cn/invokexml.do?sx=showpatent_cn&sf=ShowPatent&spn=CN113127751A&sx=showpatent_cn&sv=d0e14508\",\"CN113127751A\")","v":"CN113127751A"},"CN201911391725.7","CN",null,"用户画像构建方法、装置、设备及计算机可读存储介质","本发明提供一种用户画像构建方法、装置、设备及计算机可读存储介质。该方法包括：获取第一预设周期内的第一用户通信数据和第二预设周期内的第二用户通信数据，第一用户通信数据包括第一通信对象、第一频次信息和第一时长信息，第二用户通信数据包括第二通信对象、第二频次信息和第二时长信息；根据第一通信对象、第一频次信息和第一时长信息确定第一对象信息和第二对象信息；根据第二通信对象、第二频次信息和第二时长信息确定第三对象信息和第四对象信息；根据第一对象信息、第二对象信息、第三对象信息、第四对象信息确定用户标签信息；根据用户标签信息构建用户画像。本发明有效确定用户标签信息，构建用户画像。","一种用户画像构建方法，其特征在于，所述方法包括： 　　获取第一预设周期内的第一用户通信数据和第二预设周期内的第二用户通信数据，所述第一用户通信数据包括第一通信对象、与所述第一通信对象通话的第一频次信息和第一时长信息，所述第二用户通信数据包括第二通信对象、与所述第二通信对象通话的第二频次信息和第二时长信息； 　　根据所述第一用户通信数据中的所述第一通信对象、所述第一频次信息和所述第一时长信息确定第一对象信息和第二对象信息； 　　根据所述第二用户通信数据中的所述第二通信对象、所述第二频次信息和所述第二时长信息确定第三对象信息和第四对象信息； 　　根据所述第一对象信息、第二对象信息、第三对象信息及第四对象信息确定用户标签信息； 　　根据所述用户标签信息构建用户画像。","","中移（成都）信息通信科技有限公司 |\n中国移动通信集团有限公司","中移成都信息通信科技有限公司|中国移动通信集团有限公司","中移成都信息通信科技有限公司|中国移动通信集团有限公司","詹海鹏 |\n唐睿 |\n刘一珉 |\n卞军伟 |\n廖鹏程","詹海鹏","","2019/12/30","2021/07/16","2021/07/16","","G06F 16/9536","G06F 16/9536","G06F16","G06F16/9536",10,4,4,16,"0.68","","","","","","发明公布","CN","",0,0,0,0,0,0,0,"0.0",0,0,0,0,"",0,0,"用户标签 |\n用户模型 |\n用户画像 |\nherbicide activity |\n画像构建方法 |\n分析用户 |\n交往圈 |\n社交 |\nherbal oil |\n计算用户 |\n偏好","联系对象 |\n对象信息 |\n标签信息 |\n关联对象 |\n第一用户 |\n联系信息 |\n条件信息 |\n第二用户 |\nhard turn","形象具体化 |\n标签集 |\n构建装置 |\n标签化 |\n聚合计算 |\n信息构建","时长信息 |\n通话时长阈值 |\n影响因子 |\nhaptic feedback device","","","公开","2021.07.16 公开 公开\n\n2021.08.03 实质审查的生效 实质审查的生效\n申请日=2019.12.30","","北京东方亿思专利代理有限责任公司; 赵秀芹","四川省","610041 四川省成都市中国（四川）自由贸易试验区成都高新区交子大道575号J座6楼"]
[{"$f":"HYPERLINK(\"https://www.patentics.cn/invokexml.do?sx=showpatent_cn&sf=ShowPatent&spn=CN113127214A&sx=showpatent_cn&sv=968c1181\",\"CN113127214A\")","v":"CN113127214A"},"CN201911391084.5","CN",null,"一种定时唤醒处理方法、装置、终端设备及存储介质","本发明实施例公开了一种定时唤醒处理方法、装置、终端设备及存储介质，该方法可以包括在前台操作的系统为第一系统下，接收针对第二系统中定时唤醒的设定操作；响应于设定操作，生成定时唤醒与第二系统的关联信息；通过双系统接口将指示信息从第一系统发送至第二系统，指示信息包括关联信息，请求信息用于指示第二系统根据关联信息设定定时唤醒。以解决现有技术中，在双系统架构下定时唤醒(例如闹钟)无法在两个系统间切换，影响用户使用的问题。","一种定时唤醒处理方法，应用于终端设备，所述终端设备包括双系统，所述双系统包括第一系统和第二系统，其特征在于，所述方法包括： 　　在前台操作的系统为所述第一系统下，接收针对所述第二系统中定时唤醒的设定操作； 　　响应于所述设定操作，生成所述定时唤醒与所述第二系统的关联信息； 　　通过双系统接口将指示信息从所述第一系统发送至所述第二系统，所述指示信息包括所述关联信息，所述请求信息用于指示所述第二系统根据所述关联信息设定所述定时唤醒。","","中移（成都）信息通信科技有限公司 |\n中国移动通信集团有限公司","中移成都信息通信科技有限公司|中国移动通信集团有限公司","中移成都信息通信科技有限公司|中国移动通信集团有限公司","唐睿 |\n侯漫秋 |\n张庭锐 |\n李贞","唐睿","","2019/12/30","2021/07/16","2021/07/16","","G06F  9/54","G06F  9/54","G06F9","G06F9/542",13,4,11,13,"1.10","","","","","","发明公布","CN","",0,0,0,0,0,0,0,"0.0",0,0,0,0,"",0,0,"用户设置 |\n接收用户 |\n用户操作 |\n通话过程 |\n用户提示 |\n浏览网页 |\n通话模式 |\ngant |\n用户输入 |\n显示用户","hard clay |\n设置界面 |\n提醒界面 |\nbacillus fortis |\n显示界面 |\nbacillus kaustophilus |\nbacillus nealsonii |\n系统界面 |\nbacillus popilliae","启动信息 |\n安卓系统 |\n终端设备 |\nandroid系统 |\n通知消息","检测用户 |\n可穿戴设备 |\n应用处理器 |\n触摸操作 |\n触摸事件 |\n输入设备 |\n物理键盘","","","公开","2021.07.16 公开 公开\n\n2021.08.03 实质审查的生效 实质审查的生效\n申请日=2019.12.30","","北京东方亿思专利代理有限责任公司; 赵秀芹","四川省","610041 四川省成都市中国（四川）自由贸易试验区成都高新区交子大道575号J座6楼"]
[{"$f":"HYPERLINK(\"https://www.patentics.cn/invokexml.do?sx=showpatent_cn&sf=ShowPatent&spn=CN113095109A&sx=showpatent_cn&sv=178993bf\",\"CN113095109A\")","v":"CN113095109A"},"CN201911337953.6","CN",null,"一种农作物叶面识别模型训练方法、识别方法及装置","本发明提供了一种农作物叶面识别模型训练方法、识别方法及装置，涉及图像处理领域。农作物叶面识别模型训练方法包括：获取训练样本集，训练样本集包括多个训练样本，对每个所述训练样本，分别将目标农作物图像和目标农作物图像对应的目标农作物标签图像输入到农作物叶面识别模型中，得到识别结果；根据各个目标农作物图像的识别结果及目标农作物图像对应的目标农作物标签图像，判断是否满足预设训练停止条件；若不满足，调整农作物叶面识别模型的模型参数，直至满足预设训练停止条件，得到训练后的农作物叶面识别模型。能够适应农田的复杂环境，通过提高农作物叶面边缘特征的识别精度，实现自动准确识别出目标农作物叶面。","一种农作物叶面识别模型训练方法，其特征在于，所述方法包括： 　　获取训练样本集，所述训练样本集包括多个训练样本，每个所述训练样本包括目标农作物图像和所述目标农作物图像对应的目标农作物标签图像，所述目标农作物图像和所述目标农作物标签图像中均包括目标农作物的叶面； 　　对每个所述训练样本，分别将所述目标农作物图像和所述目标农作物图像对应的目标农作物标签图像输入到农作物叶面识别模型中，得到识别结果；所述农作物叶面识别模型为包括全连接条件随机场的Unet神经网络模型； 　　根据各个所述目标农作物图像的所述识别结果及所述目标农作物图像对应的目标农作物标签图像，判断是否满足预设训练停止条件； 　　若不满足，调整所述农作物叶面识别模型的模型参数，并利用所述训练样本集训练调整后的农作物叶面识别模型，直至满足所述预设训练停止条件，得到训练后的农作物叶面识别模型。","","中移（成都）信息通信科技有限公司 |\n中国移动通信集团有限公司","中移成都信息通信科技有限公司|中国移动通信集团有限公司","中移成都信息通信科技有限公司|中国移动通信集团有限公司","卞军伟 |\n唐睿 |\n刘一珉 |\n廖鹏程 |\n董景文","卞军伟","","2019/12/23","2021/07/09","2021/07/09","","G06K  9/00|G06K  9/46|G06K  9/62|G06N  3/04|G06N  3/08|G06T  5/30|G06T  7/11","G06K  9/00","G06K9","G06K9/00657",13,6,6,17,"0.84","","","","","","发明公布","CN","",0,0,0,0,0,0,0,"0.0",0,0,0,0,"",0,0,"语义分割 |\n目标识别 |\n遥感影像 |\n图像分割 |\n边缘特征 |\n待识别图像 |\ncyclohexane oxide |\n标签图像","卷积网络 |\n卷积神经网络 |\n模型识别 |\n特征映射 |\n样本训练 |\n神经网络模型 |\n条件随机场 |\n损失函数 |\n训练样本集 |\n训练数据集 |\n识别模型 |\n训练模型 |\n模型训练过程 |\n模型训练方法 |\n整流线性单元","池化操作 |\n特征向量 |\n训练样本数 |\n原始数据集","识别精度 |\n识别方法","","","公开","2021.07.09 公开 公开\n\n2021.07.27 实质审查的生效 实质审查的生效\n申请日=2019.12.23","","北京东方亿思专利代理有限责任公司; 彭琼","四川省","610041 四川省成都市中国（四川）自由贸易试验区成都高新区交子大道575号J座6楼"]
[{"$f":"HYPERLINK(\"https://www.patentics.cn/invokexml.do?sx=showpatent_cn&sf=ShowPatent&spn=CN113095459A&sx=showpatent_cn&sv=f0002665\",\"CN113095459A\")","v":"CN113095459A"},"CN201911336306.3","CN",null,"一种信息处理方法、装置、设备及计算机存储介质","本发明公开了一种信息处理方法、装置、设备及计算机存储介质。该方法包括：获取扫频路测设备的电量信息和在预设时间段内的预设区域内多条道路的光照强度；根据光照强度、电量信息以预设及预先映射关系建立的道路光照强度与扫频路测设备的电量信息之间的映射关系，确定扫频路测设备的目标工作道路；其中，扫频路测设备上设置有电池组件和光伏发电单元，光伏发电单元用于将太阳能转换为电能，并将转换得到的电能传输给电池组件。通过根据道路的光照强度和扫频路测设备的电量信息，灵活规划扫频路测设备的工作路线，进而保证扫频路测设备的正常工作。","一种信息处理方法，其特征在于，所述方法包括： 　　获取扫频路测设备的电量信息和在预设时间段内的预设区域内多条道路的光照强度； 　　根据所述光照强度、所述电量信息以及预设映射关系，确定扫频路测设备的目标工作道路；其中，所述预设映射关系为历史道路光照强度与所述扫频路测设备的历史电量信息之间的映射关系； 　　所述扫频路测设备上设置有电池组件和光伏发电单元，所述光伏发电单元用于将太阳能转换为电能，并将转换得到的电能传输给所述电池组件。","","中移（成都）信息通信科技有限公司 |\n中国移动通信集团有限公司","中移成都信息通信科技有限公司|中国移动通信集团有限公司","中移成都信息通信科技有限公司|中国移动通信集团有限公司","何明 |\n郭洋 |\n周敏 |\n吴一凡","何明","","2019/12/23","2021/07/09","2021/07/09","","G06K 19/07|H02J  7/35","G06K 19/07","G06K19","G06K19/0704",13,5,8,17,"0.84","","","","","","发明公布","CN","",0,0,0,0,0,0,0,"0.0",0,0,0,0,"",0,0,"路测 |\n网络覆盖 |\n城市场景","充电需求 |\n电量信息 |\n剩余电量 |\n充电位置 |\n电池损耗 |\n充电次数 |\n电池电量 |\n光伏发电设备 |\n充电效率","经纬度信息 |\n无线网络信号 |\n网络信号强度 |\n位置获取单元 |\n光照信息 |\n扫频仪 |\n光纤介质 |\n时间获取","调度平台 |\n路线规划 |\n道路状态 |\n状态信息 |\n气象信息 |\n健康度 |\n路线信息 |\n道路信息 |\n调度系统 |\n信息规划","","","公开","2021.07.09 公开 公开\n\n2021.07.27 实质审查的生效 实质审查的生效\n申请日=2019.12.23","","北京东方亿思专利代理有限责任公司; 赵秀芹","四川省","610041 四川省成都市中国（四川）自由贸易试验区成都高新区交子大道575号J座6楼"]
[{"$f":"HYPERLINK(\"https://www.patentics.cn/invokexml.do?sx=showpatent_cn&sf=ShowPatent&spn=CN113052199A&sx=showpatent_cn&sv=de05acc5\",\"CN113052199A\")","v":"CN113052199A"},"CN201911384548.X","CN",null,"病情检测模型的训练方法、装置、设备及计算机存储介质","本发明公开了一种病情检测模型的训练方法、装置、设备及计算机存储介质。该方法包括：获取训练样本集，训练样本集包括多个病情样本数据，每个病情样本数据包括身份特征数据和目标指标数据；多个病情样本数据中包括有标记的病情样本数据和无标记的病情样本数据；将训练样本集输入到病情检测模型中，对病情检测模型进行迭代训练，直至满足预设训练条件，得到训练后的病情检测模型。本发明实施例根据病人的病情样本数据训练病情检测模型，基于训练后的病情检测模型检测来检测病情数据，可以提高病情检测的效率和准确率。","一种病情检测模型的训练方法，其特征在于，所述病情检测模型用于识别待检测病情样本数据的病情类别值，所述方法包括： 　　获取训练样本集，所述训练样本集包括多个病情样本数据，每个所述病情样本数据包括：身份特征数据和目标指标数据，所述目标指标数据包括生理特征指标数据、疾病特征指标数据和病史特征指标数据中的至少一个；所述多个病情样本数据中包括有标记的病情样本数据和无标记的病情样本数据； 　　将所述训练样本集输入到所述病情检测模型中，对所述病情检测模型进行迭代训练，直至满足预设训练条件，得到训练后的病情检测模型。","","中移（成都）信息通信科技有限公司 |\n中国移动通信集团有限公司","中移成都信息通信科技有限公司|中国移动通信集团有限公司","中移成都信息通信科技有限公司|中国移动通信集团有限公司","胡冉杰 |\n曹雪莹 |\n李楠 |\n张文军 |\n周冰彬","胡冉杰","","2019/12/28","2021/06/29","2021/06/29","","G06K  9/62|G16H 10/60|G16H 50/20","G06K  9/62","G06K9","G06K9/6256",13,6,9,21,"0.69","","","","","","发明公布","CN","",0,0,0,0,0,0,0,"0.0",0,0,0,0,"",0,0,"样本数据 |\n样本集合 |\n样本标签 |\n特征指标 |\n特征数据 |\n聚类方法 |\n样本空间 |\ncontents stream |\n主成分分析法 |\nlipoprotein binding |\n样本归属 |\ncutting front |\n调整模型参数","训练样本集 |\n训练模块 |\n训练方法 |\n迭代训练 |\n检测模型 |\n自编码器 |\n深度学习技术 |\n半监督聚类 |\n学习向量量化","方法训练 |\ndual lamp |\n动态特征","malassezia nana |\n样本聚类 |\n训练条件 |\n无监督聚类 |\n标记样本","","","公开","2021.06.29 公开 公开\n\n2021.07.16 实质审查的生效 实质审查的生效\n申请日=2019.12.28","","北京东方亿思专利代理有限责任公司; 赵秀芹","四川省","610041 四川省成都市中国（四川）自由贸易试验区成都高新区交子大道575号J座6楼"]
[{"$f":"HYPERLINK(\"https://www.patentics.cn/invokexml.do?sx=showpatent_cn&sf=ShowPatent&spn=CN113055426A&sx=showpatent_cn&sv=9dd2a6ef\",\"CN113055426A\")","v":"CN113055426A"},"CN201911384521.0","CN",null,"业务访问方法、装置、设备和介质","本发明实施例公开了业务访问方法、装置、设备和介质。该方法包括：在访问目标业务的过程中，确定自身进入边缘云区域；向具备访问地址分配功能的DNS发送业务访问请求，该业务请求信息用于指示具备访问地址分配功能的DNS基于业务访问请求从部署有目标业务的云端选择出适合目标终端进行访问的目标云，将部署于目标云的目标业务的访问地址作为目标访问地址，并返回携带有目标访问地址的分配信息，云端包括中心云和/或边缘云；响应分配信息，按照目标访问地址访问目标业务。根据本发明实施例提供的业务访问方法、装置、设备和介质，可以提高业务的访问质量。","一种业务访问方法，其特征在于，所述方法应用于目标终端，所述方法包括： 　　在访问目标业务的过程中，确定自身进入边缘云区域； 　　向具备访问地址分配功能的域名服务器DNS发送业务访问请求，该业务请求信息用于指示所述具备访问地址分配的DNS基于所述业务访问请求从部署有所述目标业务的云端选择出适合所述目标终端进行访问的目标云，将部署于所述目标云的目标业务的访问地址作为目标访问地址，并返回携带有所述目标访问地址的分配信息，所述云端包括中心云和/或边缘云； 　　响应所述分配信息，按照所述目标访问地址访问所述目标业务。","","中移（成都）信息通信科技有限公司 |\n中国移动通信集团有限公司","中移成都信息通信科技有限公司|中国移动通信集团有限公司","中移成都信息通信科技有限公司|中国移动通信集团有限公司","谭敏 |\n马建均","谭敏","","2019/12/28","2021/06/29","2021/06/29","","H04L 29/08|H04L 29/12","H04L 29/08","H04L67","H04L67/10",13,6,9,23,"0.63","","","","","","发明公布","CN","",0,0,0,0,0,"CN113242319A",1,"0.7",0,1,1,1,"",0,0,"请求分配 |\n域名解析 |\ndns服务器 |\n域名服务器 |\n网络质量 |\n访问质量 |\n超文本传输协议 |\n地址分配策略 |\n业务负荷量 |\n终端所连接 |\n用户数据报协议","访问目标 |\n地址列表 |\n访问处理模块 |\n访问地址 |\n本地缓存","服务器集群 |\n安全策略 |\n访问业务 |\n边缘计算 |\n业务管理 |\n云端业务 |\n云计算平台 |\n软件开发工具包 |\n业务访问方法","目标业务 |\n业务访问请求 |\n业务信息 |\n请求发送 |\n发送携带 |\n业务请求信息","","","公开","2021.06.29 公开 公开\n\n2021.07.16 实质审查的生效 实质审查的生效\n申请日=2019.12.28","","北京东方亿思专利代理有限责任公司; 赵秀芹","四川省","610041 四川省成都市中国（四川）自由贸易试验区成都高新区交子大道575号J座6楼"]
[{"$f":"HYPERLINK(\"https://www.patentics.cn/invokexml.do?sx=showpatent_cn&sf=ShowPatent&spn=CN113052596A&sx=showpatent_cn&sv=c6fb8e76\",\"CN113052596A\")","v":"CN113052596A"},"CN201911384413.3","CN",null,"基于区块链的出块方法、装置、设备和介质","本发明公开了基于区块链的出块方法、装置、设备和介质。该方法包括：在基于PoW算法从区块链网络的区块节点中选取加密结果最先满足预设第一出块条件的第一区块的过程中，获取区块节点多次对包含有第一预设难度值和第一随机数的第一区块数据进行加密运算后得到的加密结果，其中，每次进行加密运算的第一区块数据的第一随机数不同；将区块节点中加密结果最先满足预设第二出块条件的区块选取为第二区块。根据本发明实施例提供的基于区块链的出块方法、装置、设备和介质，可以提高出块速率。","一种基于区块链的出块方法，其特征在于，所述方法包括： 　　在基于工作量证明PoW算法从区块链网络的区块节点中选取加密结果最先满足预设第一出块条件的第一区块的过程中，获取所述区块节点多次对包含有第一预设难度值和第一随机数的第一区块数据进行加密运算后得到的加密结果，其中，每次进行加密运算的第一区块数据的第一随机数不同； 　　将所述区块节点中加密结果最先满足预设第二出块条件的区块选取为第二区块； 　　其中，所述预设第一出块条件包括所述加密结果的前K个数据为预设值，预设第二出块条件包括所述加密结果的一端的连续M个数值为所述预设值，M为小于K的正整数， 　　所述第二区块的出块周期m小于所述第一区块的出块周期k。","","中移（成都）信息通信科技有限公司 |\n中国移动通信集团有限公司","中移成都信息通信科技有限公司|中国移动通信集团有限公司","中移成都信息通信科技有限公司|中国移动通信集团有限公司","刘朋 |\n桑建 |\n李思睿 |\n钟亚男","刘朋","","2019/12/28","2021/06/29","2021/06/29","","G06Q 20/38|H04L  9/08","G06Q 20/38","G06Q20","G06Q20/3827",13,6,9,18,"0.80","","","","","","发明公布","CN","",0,0,0,0,0,0,0,"0.0",0,0,0,0,"",0,0,"挖矿 |\n共识机制 |\n交易数据 |\n出块 |\n区块链网络 |\npow算法 |\n区块节点 |\n算力 |\n账户 |\n工作量证明 |\n交易量 |\n运算过程 |\n奖励金","区块数据 |\n区块头 |\n哈希值 |\ncyclative condensation |\n加密运算 |\n运算结果 |\n计算区块 |\n加密结果 |\nmerkle root |\n计算哈希 |\n区块内存","15crmor","数据库 |\n存储数据 |\n数据存储 |\n存储管理模块","","","公开","2021.06.29 公开 公开\n\n2021.07.16 实质审查的生效 实质审查的生效\n申请日=2019.12.28","","北京东方亿思专利代理有限责任公司; 赵秀芹","四川省","610041 四川省成都市中国（四川）自由贸易试验区成都高新区交子大道575号J座6楼"]
[{"$f":"HYPERLINK(\"https://www.patentics.cn/invokexml.do?sx=showpatent_cn&sf=ShowPatent&spn=CN113055715A&sx=showpatent_cn&sv=0dab235d\",\"CN113055715A\")","v":"CN113055715A"},"CN201911384286.7","CN",null,"播放资源的处理方法、装置、设备及存储介质","本发明实施例提供了一种播放资源的处理方法、装置、设备及存储介质，该方法包括：接收展示端发送的申请播放信息，申请播放信息包括展示端信息；根据展示端信息识别展示端的权限，得到权限识别结果；根据权限识别结果和申请播放信息从云服务器获取展示端对应的播放资源；当接收到的用户输入的操作信息是控制播放信息时，根据控制播放信息控制展示端播放播放资源。本发明能够根据用户键入的操作信息控制展示端，在无人值守的情况下实时对播放资源进行鉴权和权限更新，提升了用户的使用体验。","一种播放资源的处理方法，其特征在于，所述方法包括： 　　接收展示端发送的申请播放信息，所述申请播放信息包括展示端信息； 　　根据所述展示端信息识别所述展示端的权限，得到权限识别结果； 　　根据所述权限识别结果和所述申请播放信息从云服务器获取所述展示端对应的播放资源； 　　当接收到的用户输入的操作信息是控制播放信息时，根据所述控制播放信息控制所述展示端播放所述播放资源。","","中移（成都）信息通信科技有限公司 |\n中国移动通信集团有限公司","中移成都信息通信科技有限公司|中国移动通信集团有限公司","中移成都信息通信科技有限公司|中国移动通信集团有限公司","桑建 |\n陈庆勇 |\n魏远伦 |\n马玉涛 |\n吴毅","桑建","","2019/12/28","2021/06/29","2021/06/29","","H04N 21/2347|G06N  3/04|G06N  3/08|G10L 15/02|G10L 15/16|G10L 15/22|G10L 15/26|G10L 25/24|H04N 21/239|H04N 21/254|H04N 21/258|H04N 21/4405|H04N 21/441|H04N 21/4627","H04N 21/2347","G06N3","G06N3/0445",13,4,6,15,"0.93","","","","","","发明公布","CN","",0,0,0,0,0,0,0,"0.0",0,0,0,0,"",0,0,"语音信息 |\n用户语音 |\n语音输入 |\n中控设备 |\ngadd基因","播放资源 |\n播放信息 |\n播放顺序 |\n播放控制信息 |\n播放地址 |\n播放载体 |\n播放视频","语音识别 |\n文本信息 |\n声学模型 |\n发音 |\n声学特征 |\n特征值信息 |\n识别结果 |\nheteroarylene group |\n输入信息 |\n语言模型 |\n识别模块 |\n拼音 |\n神经网络识别","播放文件 |\n获取播放 |\n声音文件 |\n循环播放 |\nwav |\n控制播放","","","公开","2021.06.29 公开 公开\n\n2021.07.16 实质审查的生效 实质审查的生效\n申请日=2019.12.28","","北京东方亿思专利代理有限责任公司; 赵秀芹","四川省","610041 四川省成都市中国（四川）自由贸易试验区成都高新区交子大道575号J座6楼"]
[{"$f":"HYPERLINK(\"https://www.patentics.cn/invokexml.do?sx=showpatent_cn&sf=ShowPatent&spn=CN113051983A&sx=showpatent_cn&sv=7743ebf9\",\"CN113051983A\")","v":"CN113051983A"},"CN201911384204.9","CN",null,"训练大田作物病害识别模型及大田作物病害识别的方法","本发明实施例公开了一种训练大田作物病害识别模型及大田作物病害识别的方法。该训练大田作物病害识别模型的方法，包括：获取原始大田作物病害图像；基于原始大田作物病害图像、加权dropout算法及预设的Resnet网络进行模型训练，得到大田作物病害识别模型。根据本发明实施例，能够训练出泛化能力强的大田作物病害识别模型，进而更加准确地识别大田作物病害。","一种训练大田作物病害识别模型的方法，其特征在于，包括： 　　获取原始大田作物病害图像； 　　基于所述原始大田作物病害图像、加权dropout算法及预设的Resnet网络进行模型训练，得到大田作物病害识别模型。","","中移（成都）信息通信科技有限公司 |\n中国移动通信集团有限公司","中移成都信息通信科技有限公司|中国移动通信集团有限公司","中移成都信息通信科技有限公司|中国移动通信集团有限公司","陈庆勇 |\n桑建 |\n魏远伦 |\n马飞泉 |\n寇荣","陈庆勇","","2019/12/28","2021/06/29","2021/06/29","","G06K  9/00|G06K  9/62|G06N  3/04|G06N  3/08","G06K  9/00","G06K9","G06K9/00624",13,6,7,11,"1.30","","","","","","发明公布","CN","",0,0,0,0,0,0,0,"0.0",0,0,0,0,"",0,0,"训练网络 |\n深度神经网络 |\n训练神经网络 |\n训练分类器 |\n监督学习 |\n网络层数 |\n大规模训练 |\n深度学习技术","卷积网络 |\n提取特征 |\n训练图像 |\n特征提取 |\n卷积操作 |\n生成对抗网络 |\n样本图像","算法训练 |\n训练样本 |\n训练模型 |\n模型训练 |\n训练数据 |\n训练过程 |\n训练模块 |\n网络参数 |\n算法模型","全连接层 |\n最大池化 |\nsoftmax函数 |\nguid记录 |\n激活函数 |\n特征向量","","","公开","2021.06.29 公开 公开\n\n2021.07.16 实质审查的生效 实质审查的生效\n申请日=2019.12.28","","北京东方亿思专利代理有限责任公司; 赵秀芹","四川省","610041 四川省成都市中国（四川）自由贸易试验区成都高新区交子大道575号J座6楼"]
[{"$f":"HYPERLINK(\"https://www.patentics.cn/invokexml.do?sx=showpatent_cn&sf=ShowPatent&spn=CN113052422A&sx=showpatent_cn&sv=2f2efe0a\",\"CN113052422A\")","v":"CN113052422A"},"CN201911383610.3","CN",null,"风控模型训练方法和用户信用评估方法","本发明公开了一种风控模型训练方法和用户信用评估方法。该方法包括：根据获取的原始样本数据，确定目标样本数据；目标样本数据包括用户历史行为信息、用户行为时间信息和用户行为位置信息，其中，用户历史行为信息为用户进行农业生产行为的信息；基于目标样本数据，训练得到风控模型，提高了用户信用评估准确度。","一种风控模型训练方法，其特征在于，所述方法包括： 　　根据获取的原始样本数据，确定目标样本数据；所述目标样本数据包括用户历史行为信息、用户行为时间信息和用户行为位置信息，其中，所述用户历史行为信息为用户进行农业生产行为的信息； 　　基于所述目标样本数据，训练得到风控模型。","","中移（成都）信息通信科技有限公司 |\n中国移动通信集团有限公司","中移成都信息通信科技有限公司|中国移动通信集团有限公司","中移成都信息通信科技有限公司|中国移动通信集团有限公司","詹海鹏 |\n唐睿 |\n刘一珉 |\n卞军伟 |\n廖鹏程","詹海鹏","","2019/12/28","2021/06/29","2021/06/29","","G06Q 10/06|G06F 16/215|G06Q 10/04|G06Q 30/06|G06Q 50/02","G06Q 10/06","G06Q10","G06Q10/0635",13,6,6,12,"1.19","","","","","","发明公布","CN","",0,0,0,0,0,0,0,"0.0",0,0,0,0,"",0,0,"特征工程 |\n多维度数据 |\n评分规则 |\n数据清洗 |\n大数据技术 |\n统计分析方法","信用评估方法 |\nhuman platelet-derived growth |\n信用评分方法 |\ni cell |\n评分卡模型 |\n信用评估模型 |\n信用评分模型 |\n原始样本数据","cyclic disulfide |\n特征变量 |\n特征权重 |\n特征筛选 |\n标准化处理 |\n特征选择方法 |\n线性回归算法 |\n数据特征提取 |\n效果评价指标 |\n核主成分分析 |\n弹性网络算法","行为特征 |\n用户行为 |\n业务场景 |\n信用分析模型 |\n通信行为数据","","","公开","2021.06.29 公开 公开\n\n2021.07.16 实质审查的生效 实质审查的生效\n申请日=2019.12.28","","北京东方亿思专利代理有限责任公司; 赵秀芹","四川省","610041 四川省成都市中国（四川）自由贸易试验区成都高新区交子大道575号J座6楼"]
[{"$f":"HYPERLINK(\"https://www.patentics.cn/invokexml.do?sx=showpatent_cn&sf=ShowPatent&spn=CN113050266A&sx=showpatent_cn&sv=e652bfcd\",\"CN113050266A\")","v":"CN113050266A"},"CN201911383407.6","CN",null,"天文望远镜操控方法、服务器、组件及天文望远镜","本发明公开了一种天文望远镜操控方法、服务器、组件及天文望远镜。所述天文望远镜操控方法包括：响应于具有第一使用权限的目标用户在用户终端的第一输入，确定目标天文望远镜；接收所述目标用户通过所述用户终端发送的操控天文望远镜姿态信息的指令；向所述目标天文望远镜上的天文望远镜组件发送所述指令，以使所述天文望远镜组件根据接收的所述指令操控目标天文望远镜的姿态，根据操控姿态后的目标天文望远镜，采集目标天文图像，并将所述目标天文图像编码生成图像资源。根据本发明实施例，能够使用户远程调控天文望远镜，以使天文望远镜观测到目标天文图像，不必亲自到达天文望远镜所在的真实位置，降低路途成本。","一种天文望远镜操控方法，其特征在于，包括： 　　响应于具有第一使用权限的目标用户在用户终端的第一输入，确定目标天文望远镜； 　　接收所述目标用户通过所述用户终端发送的操控天文望远镜姿态信息的指令；所述目标用户的用户终端上显示有目标天文望远镜观测的天文图像； 　　向所述目标天文望远镜上的天文望远镜组件发送所述指令，以使所述天文望远镜组件根据接收的所述指令操控所述目标天文望远镜的姿态，根据操控姿态后的目标天文望远镜，采集目标天文图像，并将所述目标天文图像编码生成图像资源。","","中移（成都）信息通信科技有限公司 |\n中国移动通信集团有限公司","中移成都信息通信科技有限公司|中国移动通信集团有限公司","中移成都信息通信科技有限公司|中国移动通信集团有限公司","马建均 |\n陈长龙","马建均","","2019/12/28","2021/06/29","2021/06/29","","G02B 23/00|H04L 29/08","G02B 23/00","G02B23","G02B23/00",13,6,8,16,"0.90","","","","","","发明公布","CN","",0,0,0,0,0,0,0,"0.0",0,0,0,0,"",0,0,"自动获取 |\n设备终端 |\n用户实时 |\n调取 |\n用户所在地 |\n实时查看 |\n显示终端 |\n送至服务器 |\n展示模块 |\n自身需求 |\n服务器连接 |\n信息交互 |\n采集目标 |\n用户管理模块 |\n实时位置信息 |\n用户需要 |\n远程操控","发布方法 |\n资源处理 |\n计费方式 |\n用户终端 |\n升级软件","vr设备 |\n实时分享 |\n图像资源 |\n媒体资源 |\n资源分享 |\n用户付费 |\nequipment identifier","资源存储","","","公开","2021.06.29 公开 公开\n\n2021.07.16 实质审查的生效 实质审查的生效\n申请日=2019.12.28","","北京东方亿思专利代理有限责任公司; 赵秀芹","四川省","610041 四川省成都市中国（四川）自由贸易试验区成都高新区交子大道575号J座6楼"]
[{"$f":"HYPERLINK(\"https://www.patentics.cn/invokexml.do?sx=showpatent_cn&sf=ShowPatent&spn=CN113052197A&sx=showpatent_cn&sv=42e249d8\",\"CN113052197A\")","v":"CN113052197A"},"CN201911382814.5","CN",null,"身份识别的方法、装置、设备和介质","本发明实施例提供了一种身份识别的方法、装置、设备和介质。该方法包括：采集目标图像的目标特征信息；将目标图像的第一行为特征信息与身份特征数据库中的第二行为特征信息依次进行匹配，得到行为特征匹配结果；若行为特征匹配结果满足预设条件，则在身份特征数据库中确定与第一行为特征信息的匹配率大于第一阈值的目标第二行为特征信息；将与目标第二行为特征信息关联的目标身份确定为目标图像的身份识别结果。根据本发明实施例提供的身份识别的方法、装置、设备和介质，能够提高身份识别结果的精准度，得到较为准确的身份识别。","一种身份识别的方法，其特征在于，包括： 　　采集目标图像的目标特征信息； 　　将所述目标特征信息中的第一行为特征信息与身份特征数据库中的第二行为特征信息依次进行匹配，得到行为特征匹配结果； 　　若所述行为特征匹配结果满足预设条件，则在所述身份特征数据库中确定与所述第一行为特征信息的匹配率大于第一阈值的目标第二行为特征信息； 　　将与所述目标第二行为特征信息关联的目标身份确定为所述目标图像的身份识别结果。","","中移（成都）信息通信科技有限公司 |\n中国移动通信集团有限公司","中移成都信息通信科技有限公司|中国移动通信集团有限公司","中移成都信息通信科技有限公司|中国移动通信集团有限公司","魏远伦 |\n陈庆勇 |\n桑建 |\n马玉涛 |\n曾艳","魏远伦","","2019/12/28","2021/06/29","2021/06/29","","G06K  9/62|G06K  9/00","G06K  9/62","G06K9","G06K9/6201",13,4,10,13,"1.09","","","","","","发明公布","CN","",0,0,0,0,0,0,0,"0.0",0,0,0,0,"",0,0,"特征数据库 |\n匹配结果 |\nforce closure |\n匹配模块 |\n目标特征信息 |\n识别结果 |\n匹配率 |\n匹配成功 |\n匹配失败 |\n提取目标 |\n特征提取单元 |\n行为特征 |\n信息关联 |\n匹配相似度 |\n特征值信息 |\n输出目标图像","目标对象 |\n采集目标","food waste processor |\n识别设备 |\n人脸识别 |\n采集用户 |\n身份特征信息 |\n身份识别系统 |\n信息对比单元","图像识别技术","","","公开","2021.06.29 公开 公开\n\n2021.07.16 实质审查的生效 实质审查的生效\n申请日=2019.12.28","","北京东方亿思专利代理有限责任公司; 赵秀芹","四川省","610041 四川省成都市中国（四川）自由贸易试验区成都高新区交子大道575号J座6楼"]
[{"$f":"HYPERLINK(\"https://www.patentics.cn/invokexml.do?sx=showpatent_cn&sf=ShowPatent&spn=CN113051905A&sx=showpatent_cn&sv=a38bbe14\",\"CN113051905A\")","v":"CN113051905A"},"CN201911382710.4","CN",null,"训练医疗命名实体识别模型及医疗命名实体识别的方法","本发明实施例公开了一种训练医疗命名实体识别模型及医疗命名实体识别的方法。该训练医疗命名实体识别模型的方法，包括：获取历史患者主诉文本数据和历史患者主诉文本数据对应的医生诊断文本数据；对历史患者主诉文本数据和医生诊断文本数据进行分词和词性标注，得到各个词向量及每个词向量对应的词性信息、标签信息；利用各个词向量及每个词向量对应的词性信息、标签信息训练目标网络结构，得到医疗命名实体识别模型。根据本发明实施例，能够训练出更加准确的医疗命名实体识别模型，进而准确地识别医疗命名实体。","一种训练医疗命名实体识别模型的方法，其特征在于，包括： 　　获取历史患者主诉文本数据和所述历史患者主诉文本数据对应的医生诊断文本数据； 　　对所述历史患者主诉文本数据和所述医生诊断文本数据进行分词和词性标注，得到各个词向量及每个所述词向量对应的词性信息、标签信息； 　　利用各个所述词向量及每个所述词向量对应的词性信息、标签信息训练目标网络结构，得到医疗命名实体识别模型。","","中移（成都）信息通信科技有限公司 |\n中国移动通信集团有限公司","中移成都信息通信科技有限公司|中国移动通信集团有限公司","中移成都信息通信科技有限公司|中国移动通信集团有限公司","柳岸","柳岸","","2019/12/28","2021/06/29","2021/06/29","","G06F 40/284|G06F 40/242|G16H 15/00","G06F 40/284","G16H15","G16H15/00",13,6,7,14,"1.02","","","","","","发明公布","CN","",0,0,0,0,0,"CN113409907A |\nCN113299375A",2,"0.31",0,2,2,1,"",0,0,"文本处理 |\n词性标注 |\n文本序列 |\n获取句子 |\n自然语言处理 |\n实体识别模块 |\n语义信息 |\n分词处理 |\n实体预测 |\n检索方法 |\n输入文本","去停用词 |\n文本预处理 |\n命名实体识别方法 |\n词性信息 |\n文本数据集 |\n最终预测结果","人工标注 |\n分类算法 |\n训练模块 |\n特征向量 |\n识别模型 |\n训练数据集 |\n神经网络结构 |\n特征提取模块","实体类型 |\n单词转换 |\n标注词性","","","公开","2021.06.29 公开 公开\n\n2021.07.16 实质审查的生效 实质审查的生效\n申请日=2019.12.28","","北京东方亿思专利代理有限责任公司; 赵秀芹","四川省","610041 四川省成都市中国（四川）自由贸易试验区成都高新区交子大道575号J座6楼"]
[{"$f":"HYPERLINK(\"https://www.patentics.cn/invokexml.do?sx=showpatent_cn&sf=ShowPatent&spn=CN113043903A&sx=showpatent_cn&sv=4696bf38\",\"CN113043903A\")","v":"CN113043903A"},"CN201911382592.7","CN",null,"无人机电池更换装置、无人机及系统","本发明公开了一种无人机电池更换装置、无人机及系统。该无人机电池更换装置，包括：电池更换通道，用于承载至少一架无人机；移动升降夹持组件，设置于电池更换通道上，用于拆装无人机的电池；其中，移动升降夹持组件包括：电池夹持装置，用于夹取或松放电池；升降杆，与电池夹持装置连接，用于升降电池夹持装置；移动组件，与升降杆连接，用于带动电池夹持装置和升降杆在电池更换通道上移动。本发明实施例提供的无人机电池更换装置结构简单，能够降低无人机电池更换成本。","一种无人机电池更换装置，其特征在于，包括： 　　电池更换通道，用于承载至少一架无人机； 　　移动升降夹持组件，设置于所述电池更换通道上，用于拆装所述无人机的电池； 　　其中，所述移动升降夹持组件包括： 　　电池夹持装置，用于夹取或松放所述电池； 　　升降杆，与所述电池夹持装置连接，用于升降所述电池夹持装置； 　　移动组件，与所述升降杆连接，用于带动所述电池夹持装置和所述升降杆在所述电池更换通道上移动。","","中移（成都）信息通信科技有限公司 |\n中国移动通信集团有限公司","中移成都信息通信科技有限公司|中国移动通信集团有限公司","中移成都信息通信科技有限公司|中国移动通信集团有限公司","王文靖 |\n陈盛伟 |\n刘长杰 |\n刘喜 |\n张杨","王文靖","","2019/12/28","2021/06/29","2021/06/29","","B60L 53/80|B64F  1/00","B60L 53/80","B60L53","B60L53/80",13,3,0,16,"0.84","","","","","","发明公布","CN","",0,0,0,0,0,0,0,"0.0",0,0,0,0,"",0,0,"电池更换 |\n电池安装 |\n充电柜 |\n更换电池 |\n充电桩 |\n电量不足 |\n充电站 |\n电池仓 |\n放电池 |\n充电电池 |\n一次电池 |\n电池电量","无人机电池 |\n亏电电池 |\n电池拆装 |\n电池运输 |\n调整电池 |\n电池夹持装置","自动更换 |\n更换装置 |\n移动升降 |\n整体移动 |\n移动组件","运载 |\n移动平台 |\ncontinuous conduction |\n指定位置 |\n运输装置","","","公开","2021.06.29 公开 公开\n\n2021.07.16 实质审查的生效 实质审查的生效\n申请日=2019.12.28","","北京东方亿思专利代理有限责任公司; 赵秀芹","四川省","610041 四川省成都市中国（四川）自由贸易试验区成都高新区交子大道575号J座6楼"]
[{"$f":"HYPERLINK(\"https://www.patentics.cn/invokexml.do?sx=showpatent_cn&sf=ShowPatent&spn=CN113055353A&sx=showpatent_cn&sv=fcc4bdff\",\"CN113055353A\")","v":"CN113055353A"},"CN201911382398.9","CN",null,"数据传输方法、装置、设备及计算机可读取介质","本发明实施例提供一种数据传输方法、装置、设备及计算机可读取介质，数据传输的方法包括：接收用户设备在第一信道上传输的第一数据信息，第一数据信息包括第一信道的标识和用户设备的标识；确定预存储的关系信息中是否包括第一信道的标识和用户设备的标识的对应关系信息；当关系信息中包括第一信道的标识和用户设备的标识的对应关系信息时，则向本地服务器发送第一数据信息。在本发明中，当第一数据信息为内部专用数据信息时，向本地服务器发送第一数据信息，能够有效提高数据传输的安全性。","一种数据传输方法，其特征在于，包括： 　　接收用户设备在第一信道上传输的第一数据信息，所述第一数据信息包括所述第一信道的标识和所述用户设备的标识； 　　确定预存储的关系信息中是否包括所述第一信道的标识和所述用户设备的标识的对应关系信息； 　　当所述关系信息中包括所述第一信道的标识和所述用户设备的标识的对应关系信息时，则向本地服务器发送所述第一数据信息。","","中移（成都）信息通信科技有限公司 |\n中国移动通信集团有限公司","中移成都信息通信科技有限公司|中国移动通信集团有限公司","中移成都信息通信科技有限公司|中国移动通信集团有限公司","郭洋 |\n何明 |\n吴洪亮 |\n李娜","郭洋","","2019/12/28","2021/06/29","2021/06/29","","H04L 29/06","H04L 29/06","H04L63","H04L63/08",13,4,10,13,"1.09","","","","","","发明公布","CN","",0,0,0,0,0,0,0,"0.0",0,0,0,0,"",0,0,"设备分配 |\n核心网设备 |\n网络切片 |\n广播消息 |\n分组数据汇聚协议 |\n下行数据包 |\n无线承载 |\n无线链路控制 |\n接收用户设备 |\n用户设备发送","无线接入网 |\n网络部署 |\n上行带宽 |\n移动宽带 |\n机器类型通信 |\n公用移动通信网","会话管理功能 |\n网络功能 |\n策略控制 |\n上行用户面数据 |\n建立会话 |\ngprs隧道协议 |\n控制平面 |\n介质访问控制层","数据转发 |\n公网地址 |\n数据传输方法 |\n直接发送 |\n数据包发送","","","公开","2021.06.29 公开 公开\n\n2021.07.16 实质审查的生效 实质审查的生效\n申请日=2019.12.28","","北京东方亿思专利代理有限责任公司; 尹红敏","四川省","610041 四川省成都市中国（四川）自由贸易试验区成都高新区交子大道575号J座6楼"]
[{"$f":"HYPERLINK(\"https://www.patentics.cn/invokexml.do?sx=showpatent_cn&sf=ShowPatent&spn=CN113055309A&sx=showpatent_cn&sv=e6fb9433\",\"CN113055309A\")","v":"CN113055309A"},"CN201911382319.4","CN",null,"资源加载方法、装置、设备及介质","本发明实施例公开了一种资源加载方法、装置、设备及介质。该方法包括：向服务器发送资源获取请求，资源获取请求用于获取基于浏览器增强现实的多个网络资源；接收服务器发送的多个网络资源；将多个网络资源加载至浏览器中。本发明实施例的资源加载方法、装置、设备及介质，能够提高网络资源的加载速度，提高基于浏览器的增强现实的响应速度以及提高用户的体验效果。","一种资源加载方法，其特征在于，所述方法包括： 　　向服务器发送资源获取请求，所述资源获取请求用于获取基于浏览器增强现实的多个网络资源； 　　接收服务器发送的所述多个网络资源； 　　将所述多个网络资源加载至浏览器中。","","中移（成都）信息通信科技有限公司 |\n中国移动通信集团有限公司","中移成都信息通信科技有限公司|中国移动通信集团有限公司","中移成都信息通信科技有限公司|中国移动通信集团有限公司","唐睿 |\n靳曜熙 |\n张庭锐 |\n方宇","唐睿","","2019/12/28","2021/06/29","2021/06/29","","H04L 12/911|H04L 29/06","H04L 12/911","H04L47","H04L47/70",13,4,9,9,"1.57","","","","","","发明公布","CN","",0,0,0,0,0,0,0,"0.0",0,0,0,0,"",0,0,"javascript |\n层叠样式表 |\n资源加载 |\njava脚本 |\n浏览器 |\n可扩展标记语言 |\njson |\najax |\n异步加载 |\nxml |\n异步请求 |\n统一资源定位符 |\nblob类型 |\n插件 |\n异步执行 |\n网页开发技术 |\ndocument类","类文件 |\n枚举 |\n加载模块 |\n回调函数 |\n加载方法 |\n代码段 |\n加载器","hessian |\n资源获取请求 |\n属性赋值 |\n提取图片 |\nsurf算法","解压 |\nhttp请求","","","公开","2021.06.29 公开 公开\n\n2021.07.16 实质审查的生效 实质审查的生效\n申请日=2019.12.28","","北京东方亿思专利代理有限责任公司; 赵秀芹","四川省","610041 四川省成都市中国（四川）自由贸易试验区成都高新区交子大道575号J座6楼"]
[{"$f":"HYPERLINK(\"https://www.patentics.cn/invokexml.do?sx=showpatent_cn&sf=ShowPatent&spn=CN113032605A&sx=showpatent_cn&sv=e4347310\",\"CN113032605A\")","v":"CN113032605A"},"CN201911352925.1","CN",null,"一种信息展示方法、装置、设备及计算机存储介质","本发明公开了一种信息展示方法、装置、设备及计算机存储介质。该方法包括：分别获取预设区域的多个用户的飞行时间TOF信息和图像信息；根据多个用户的TOF信息和图像信息确定目标用户；根据目标用户的图像信息确定至少一个第一目标信息；展示至少一个第一目标信息。通过用户的TOF信息和图像信息确定目标用户，并且根据目标用户的图像信息向目标用户提供具有针对性的目标信息，提高了信息展示的针对性。","一种信息展示方法，应用于信息展示设备，其中，其特征在于，所述方法包括： 　　分别获取预设区域的多个用户的飞行时间TOF信息和图像信息； 　　根据所述多个用户的TOF信息和图像信息确定目标用户； 　　根据所述目标用户的图像信息确定至少一个第一目标信息； 　　展示所述至少一个第一目标信息。","","中移（成都）信息通信科技有限公司 |\n中国移动通信集团有限公司","中移成都信息通信科技有限公司|中国移动通信集团有限公司","中移成都信息通信科技有限公司|中国移动通信集团有限公司","欧卓樾 |\n何明 |\n李超 |\n张李秋","欧卓樾","","2019/12/25","2021/06/25","2021/06/25","","G06F 16/54|G06Q 30/02","G06F 16/54","G06F16","G06F16/54",13,4,10,9,"1.58","","","","","","发明公布","CN","",0,0,0,0,0,0,0,"0.0",0,0,0,0,"",0,0,"信息展示方法 |\n交互内容 |\n交互信息 |\n展示信息 |\n内容匹配 |\n增强现实 |\n交互操作 |\n内容展示 |\n商品广告 |\n购物平台 |\n用户指令","手势信息 |\n目标信息 |\n手势动作 |\n用户特征信息 |\n目标用户 |\n目标手势 |\n目标动作 |\n特征标签 |\n用户画像","肢体动作 |\n分类信息 |\n动作信息 |\n标签信息","瞳孔信息 |\nfood waste processor |\n商品目标 |\n特征图像信息 |\n图像获取设备 |\n区域内用户","","","公开","2021.06.25 公开 公开\n\n2021.07.13 实质审查的生效 实质审查的生效\n申请日=2019.12.25","","北京东方亿思专利代理有限责任公司; 赵秀芹","四川省","610041 四川省成都市中国（四川）自由贸易试验区成都高新区交子大道575号J座6楼"]
[{"$f":"HYPERLINK(\"https://www.patentics.cn/invokexml.do?sx=showpatent_cn&sf=ShowPatent&spn=CN113033262A&sx=showpatent_cn&sv=da684f27\",\"CN113033262A\")","v":"CN113033262A"},"CN201911352742.X","CN",null,"模型训练方法和农作物产量预估方法","本发明公开了一种模型训练方法和农作物产量预估方法。该方法包括：获取样本归一化植被指数NDVI、样本土壤水分SM和样本中分辨率成像光谱仪MODIS遥感数据和样本农作物产量；根据样本NDVI、样本SM和样本MODIS遥感数据，确定农作物每个生长期分别对应的NDVI和SM；根据农作物每个生长期分别对应的NDVI和SM以及样本农作物产量，训练产量预估模型，提高了农作物估产精度。","一种模型训练方法，其特征在于，所述方法包括： 　　获取样本归一化植被指数NDVI、样本土壤水分SM和样本中分辨率成像光谱仪MODIS遥感数据和样本农作物产量； 　　根据所述样本NDVI、所述样本SM和所述样本MODIS遥感数据，确定农作物每个生长期分别对应的NDVI和SM； 　　根据所述农作物每个生长期分别对应的NDVI和SM以及所述样本农作物产量，训练产量预估模型。","","中移（成都）信息通信科技有限公司 |\n中国移动通信集团有限公司","中移成都信息通信科技有限公司|中国移动通信集团有限公司","中移成都信息通信科技有限公司|中国移动通信集团有限公司","刘一珉 |\n卞军伟 |\n廖鹏程 |\n董景文 |\n翁倩","刘一珉","","2019/12/25","2021/06/25","2021/06/25","","G06K  9/00|G06N  3/00|G06N  3/08|G06Q 10/04|G06Q 50/02","G06K  9/00","G06K9","G06K9/0063",13,6,9,14,"1.03","","","","","","发明公布","CN","",0,0,0,0,0,0,0,"0.0",0,0,0,0,"",0,0,"产量预测模型 |\ngummer |\n多元线性回归 |\n回归系数 |\n回归模型 |\ncyp17a1基因 |\n最小二乘法模型 |\n权值和阈值 |\n多元线性关系 |\n最优网络结构 |\n优化bp神经网络 |\n初始化bp神经网络","归一化植被指数ndvi |\n遥感影像 |\nmodis遥感数据 |\n产量预测方法 |\n卫星遥感数据 |\nconductive silicone |\n冬小麦生育期 |\n温度植被干旱指数 |\n地表土壤水分 |\n多源遥感数据融合","粒子群优化 |\n算法收敛速度 |\n全局搜索能力","适应度函数 |\n混合优化算法","","","公开","2021.06.25 公开 公开\n\n2021.07.13 实质审查的生效 实质审查的生效\n申请日=2019.12.25","","北京东方亿思专利代理有限责任公司; 赵秀芹","四川省","610041 四川省成都市中国（四川）自由贸易试验区成都高新区交子大道575号J座6楼"]
[{"$f":"HYPERLINK(\"https://www.patentics.cn/invokexml.do?sx=showpatent_cn&sf=ShowPatent&spn=CN113009414A&sx=showpatent_cn&sv=aaa4e27e\",\"CN113009414A\")","v":"CN113009414A"},"CN201911329098.4","CN",null,"信号源位置确定方法、装置、电子设备及计算机存储介质","本发明实施例公开了一种信号源位置确定方法、装置、电子设备及计算机存储介质。该信号源位置确定方法，包括：获取各个采样点的频谱扫描数据；利用任两采样点的频谱扫描数据中的采样点位置和天线波达角，确定预设数量个交叉点；聚类预设数量个交叉点，确定交叉点聚类中心并将交叉点聚类中心作为信号源位置。根据本发明实施例，能够高效率地确定信号源位置。","一种信号源位置确定方法，其特征在于，包括： 　　获取各个采样点的频谱扫描数据； 　　利用任两所述采样点的所述频谱扫描数据中的采样点位置和天线波达角，确定预设数量个交叉点； 　　聚类所述预设数量个交叉点，确定交叉点聚类中心并将所述交叉点聚类中心作为信号源位置。","","中移（成都）信息通信科技有限公司 |\n中国移动通信集团有限公司","中移成都信息通信科技有限公司|中国移动通信集团有限公司","中移成都信息通信科技有限公司|中国移动通信集团有限公司","何明 |\n郭洋 |\n许鹏 |\n彭伟智 |\n吴一凡","何明","","2019/12/20","2021/06/22","2021/06/22","","G01S  5/04|G01S  5/02","G01S  5/04","G01S5","G01S5/04",13,4,6,11,"1.27","","","","","","发明公布","CN","",0,0,0,0,0,0,0,"0.0",0,0,0,0,"",0,0,"干扰源 |\n基站数 |\n相控阵天线 |\n接收信号强度 |\nhigh gain device |\n计算信号 |\n工作频段 |\n全频段 |\ndbm |\n波达角 |\n扫频仪 |\n获取信号 |\ncoated powder |\n干扰区域 |\nhg状态","定位算法 |\n计算距离 |\n基站位置 |\n经纬度坐标 |\n源位置 |\n数据校准 |\n位置确定装置","采样点位置","agp |\n传输介质 |\n光纤介质","","","公开","2021.06.22 公开 公开\n\n2021.07.09 实质审查的生效 实质审查的生效\n申请日=2019.12.20","","北京东方亿思专利代理有限责任公司; 赵秀芹","四川省","610041 四川省成都市中国（四川）自由贸易试验区成都高新区交子大道575号J座6楼"]
[{"$f":"HYPERLINK(\"https://www.patentics.cn/invokexml.do?sx=showpatent_cn&sf=ShowPatent&spn=CN113011552A&sx=showpatent_cn&sv=d62bfc00\",\"CN113011552A\")","v":"CN113011552A"},"CN201911328994.9","CN",null,"神经网络训练方法、装置、设备及介质","本发明实施例公开了一种神经网络训练方法、装置、设备及介质。该方法包括：获取至少一个第一数据；每个第一数据为一个用户的可穿戴设备采集到的、且包括用户的人体体征数据、用户的运动数据和用户所处环境数据；利用包括至少一个基于旋转矩阵生成的决策树的孤立森林，确定至少一个第一数据中的异常第一数据和正常第一数据；基于异常第一数据和正常第一数据，训练用于识别用户的可穿戴设备采集到的数据的神经网络。本发明实施例的神经网络训练方法、装置、设备及介质，能够提高用户的可穿戴设备采集到的数据识别的准确度。","一种神经网络训练方法，其特征在于，所述方法包括： 　　获取至少一个第一数据；每个第一数据为一个用户的可穿戴设备采集到的、且包括所述用户的人体体征数据、所述用户的运动数据和所述用户所处环境数据； 　　利用包括至少一个基于旋转矩阵生成的决策树的孤立森林，确定所述至少一个第一数据中的异常第一数据和正常第一数据； 　　基于所述异常第一数据和所述正常第一数据，训练用于识别用户的可穿戴设备采集到的数据的神经网络。","","中移（成都）信息通信科技有限公司 |\n中国移动通信集团有限公司","中移成都信息通信科技有限公司|中国移动通信集团有限公司","中移成都信息通信科技有限公司|中国移动通信集团有限公司","胡冉杰 |\n李楠 |\n周冰彬 |\n张文军","胡冉杰","","2019/12/20","2021/06/22","2021/06/22","","G06N  3/04|G06N  3/08","G06N  3/04","G06N3","G06N3/0454",13,6,6,14,"1.02","","","","","","发明公布","CN","",0,0,0,0,0,0,0,"0.0",0,0,0,0,"",0,0,"概率值 |\n聚类 |\n维度 |\ncyanimide |\n加权 |\ncyclopentyl","样本数量 |\n训练样本 |\n权重参数 |\n子样本 |\n损失函数 |\n过拟合 |\n全连接 |\n激活函数 |\n神经网络训练方法 |\n决策树生成算法 |\nl1正则化 |\n正常样本 |\n异常概率","训练模块 |\n数据识别 |\n训练设备 |\n识别方法 |\n训练装置 |\n输出信息","正常数据 |\n指标数据 |\n异常值 |\n异常数据","","","公开","2021.06.22 公开 公开\n\n2021.07.09 实质审查的生效 实质审查的生效\n申请日=2019.12.20","","北京东方亿思专利代理有限责任公司; 赵秀芹","四川省","610041 四川省成都市中国（四川）自由贸易试验区成都高新区交子大道575号J座6楼"]
[{"$f":"HYPERLINK(\"https://www.patentics.cn/invokexml.do?sx=showpatent_cn&sf=ShowPatent&spn=CN113012804A&sx=showpatent_cn&sv=66e3212f\",\"CN113012804A\")","v":"CN113012804A"},"CN201911328988.3","CN",null,"症状确定方法、装置、设备及介质","本发明实施例公开了一种症状确定方法、装置、设备及介质。该方法包括：获取用户输入的病症信息；确定病症信息对应的词向量；查找与用户关联的慢性病对应的病症向量；根据词向量和病症向量，确定用户当前症状是否为慢性病的症状。本发明实施例的症状确定方法、装置、设备及介质，能够在医生未诊断之前，即可确定出用户当前症状是否为慢性病的症状，进而可以向用户反馈该慢性病对应的科室信息和检查项目，以便用户挂号和避免无必要的检查，提高用户挂号效率和节省用户资产。","一种症状确定方法，其特征在于，所述方法包括： 　　获取用户输入的病症信息； 　　确定所述病症信息对应的词向量； 　　查找与所述用户关联的慢性病对应的病症向量； 　　根据所述词向量和所述病症向量，确定所述用户当前症状是否为所述慢性病的症状。","","中移（成都）信息通信科技有限公司 |\n中国移动通信集团有限公司","中移成都信息通信科技有限公司|中国移动通信集团有限公司","中移成都信息通信科技有限公司|中国移动通信集团有限公司","柳岸 |\n李楠 |\n种璟 |\n黄承基","柳岸","","2019/12/20","2021/06/22","2021/06/22","","G16H 50/20|G06F 16/33|G06F 40/284","G16H 50/20","G16H50","G16H50/20",13,4,6,8,"1.75","","","","","","发明公布","CN","",0,0,0,0,0,0,0,"0.0",0,0,0,0,"",0,0,"词表 |\n词典 |\n分词 |\n词语 |\n句子 |\n语句 |\n用词 |\n用户反馈 |\n用户输入信息 |\n输出信息 |\n专有名词 |\n用户关联","word2vec |\n词向量 |\n向量计算 |\n已训练 |\n元组 |\n有向图 |\n有向无环图","余弦相似度 |\n概率值 |\n最大概率 |\n相似度阈值 |\n计算用户","病症信息 |\n诊疗数据 |\n室信息 |\n慢性病名称 |\n体征","","","公开","2021.06.22 公开 公开\n\n2021.07.09 实质审查的生效 实质审查的生效\n申请日=2019.12.20","","北京东方亿思专利代理有限责任公司; 赵秀芹","四川省","610041 四川省成都市中国（四川）自由贸易试验区成都高新区交子大道575号J座6楼"]
[{"$f":"HYPERLINK(\"https://www.patentics.cn/invokexml.do?sx=showpatent_cn&sf=ShowPatent&spn=CN112989292A&sx=showpatent_cn&sv=2dfb4375\",\"CN112989292A\")","v":"CN112989292A"},"CN201911304523.4","CN",null,"界面显示方法、设备及介质","本发明实施例公开了一种界面显示方法、设备及介质。该方法包括：在终端设备处于锁屏状态下，确定用户与终端设备的屏幕的交互区域；在交互区域显示终端设备锁屏前的部分界面，以用于用户获知锁屏前的界面是否包含有隐私信息。本发明实施例的界面显示方法、设备及介质，通过在交互区域显示终端设备锁屏前的部分界面，使得用户能够获知锁屏前的界面中是否包含有隐私信息，在锁屏前的界面中包含有隐私信息时，用户可以在保护隐私信息不被泄露的情况下，进行解锁操锁，能够保护隐私信息，避免隐私信息泄露，提高隐私信息的安全性。","一种界面显示方法，其特征在于，所述方法包括： 　　在终端设备处于锁屏状态下，确定用户与所述终端设备的屏幕的交互区域； 　　在所述交互区域显示所述终端设备锁屏前的部分界面，以用于所述用户获知锁屏前的界面是否包含有隐私信息。","","中移（成都）信息通信科技有限公司 |\n中国移动通信集团有限公司","中移成都信息通信科技有限公司|中国移动通信集团有限公司","中移成都信息通信科技有限公司|中国移动通信集团有限公司","靳曜熙 |\n唐睿 |\n张庭锐","靳曜熙","","2019/12/17","2021/06/18","2021/06/18","","G06F 21/30|G06F  9/451","G06F 21/30","G06F21","G06F21/30",12,4,5,11,"1.17","","","","","","发明公布","CN","",0,0,0,0,0,0,0,"0.0",0,0,0,0,"",0,0,"3-乙氧基苯甲酸 |\n通话模式 |\n显示预设 |\n显示方法 |\n交互区域 |\n终端技术 |\nhard hat |\n界面显示 |\n显示单元","输入设备 |\n检测用户 |\n物理键盘 |\n用户设置 |\n用户输入 |\ngant |\n输入单元 |\n输出功能","触摸操作 |\n触摸事件 |\n视觉输出 |\n触摸信息 |\n可收集用户 |\n指纹解锁 |\n触摸检测装置 |\n指纹传感器 |\n横竖屏切换 |\n触摸控制器","可穿戴设备 |\ngde算法 |\n应用处理器 |\n调制解调处理器 |\n宽带互联网访问","","","公开","2021.06.18 公开 公开\n\n2021.07.06 实质审查的生效 实质审查的生效\n申请日=2019.12.17","","北京东方亿思专利代理有限责任公司; 彭琼","四川省","610041 四川省成都市中国（四川）自由贸易试验区成都高新区交子大道575号J座6楼"]
[{"$f":"HYPERLINK(\"https://www.patentics.cn/invokexml.do?sx=showpatent_cn&sf=ShowPatent&spn=CN112970620A&sx=showpatent_cn&sv=9a9a6180\",\"CN112970620A\")","v":"CN112970620A"},"CN201911303157.0","CN",null,"发情状态检测的方法、装置、系统、设备和介质","本发明实施例提供了一种发情状态检测的方法、装置、系统、设备和介质。该方法包括：发送针对于目标生物的检测信号，以使目标生物的检测设备对目标生物的运动状态参数和生理特征参数进行检测，得到检测结果；接收检测设备反馈的检测结果；基于接收到的检测结果和发情状态信息数据库，对目标生物的发情状态进行预测。根据本发明实施例提供的发情状态检测的方法、装置、系统、设备和介质，能够提高生物的发情状态检测效率，提高检测结果的准确率。","一种发情状态预测的方法，其特征在于，包括： 　　发送针对于目标生物的检测信号，以使所述目标生物的检测设备对所述目标生物的运动状态参数和生理特征参数进行检测，得到检测结果； 　　接收所述检测设备反馈的检测结果； 　　基于接收到的检测结果和发情状态信息数据库，对所述目标生物的发情状态进行预测。","","中移（成都）信息通信科技有限公司 |\n中国移动通信集团有限公司","中移成都信息通信科技有限公司|中国移动通信集团有限公司","中移成都信息通信科技有限公司|中国移动通信集团有限公司","周剑 |\n康恺 |\n张震 |\n尚斌 |\n刘芷伊","周剑","","2019/12/17","2021/06/18","2021/06/18","","A01K 29/00|G06F 16/2458|G06F 16/28","A01K 29/00","A01K29","A01K29/005",13,5,7,10,"1.42","","","","","","发明公布","CN","",0,0,0,0,0,0,0,"0.0",0,0,0,0,"",0,0,"生理特征 |\n生理信息 |\n环境信息 |\n运动状态信息 |\n体温 |\n家畜 |\n输出信息","接收检测单元 |\n发情状态 |\n提示信号 |\n声音分贝 |\n提示装置 |\n信息检测技术 |\n运动状态参数 |\n声音检测装置 |\n接收检测装置 |\n检测猪","提示单元 |\n提示模块 |\n特征参数 |\n种实 |\n提示信息 |\n子单元","检测结果 |\n检测设备 |\n检测系统 |\n状态检测 |\n准确率","","","公开","2021.06.18 公开 公开\n\n2021.07.06 实质审查的生效 实质审查的生效\n申请日=2019.12.17","","北京东方亿思专利代理有限责任公司; 彭琼","四川省","610041 四川省成都市中国（四川）自由贸易试验区成都高新区交子大道575号J座6楼"]
[{"$f":"HYPERLINK(\"https://www.patentics.cn/invokexml.do?sx=showpatent_cn&sf=ShowPatent&spn=CN112990239A&sx=showpatent_cn&sv=e80bd840\",\"CN112990239A\")","v":"CN112990239A"},"CN201911282215.6","CN",null,"识别模型训练方法、辣椒疮痂病识别方法及装置","本发明公开了识别模型训练方法、辣椒疮痂病识别方法及装置。该识别模型训练方法包括：获取训练数据集；对路径聚合网络中的多个神经元进行局部连接，和/或，对路径聚合网络中的多个神经元进行权重共享，以获取辣椒疮痂病识别网络；利用训练数据集训练辣椒疮痂病识别网络，得到辣椒疮痂病识别模型。通过本发明的识别模型训练方法、辣椒疮痂病识别方法、装置、设备及介质，能够实现小样本训练识别模型，从而减少训练参数，缩短训练时间，提高识别准确度。","一种识别模型训练方法，其特征在于，所述方法包括： 　　获取训练数据集； 　　对路径聚合网络中的多个神经元进行局部连接，和/或，对所述路径聚合网络中的多个神经元进行权重共享，以获取辣椒疮痂病识别网络； 　　利用所述训练数据集训练所述辣椒疮痂病识别网络，得到辣椒疮痂病识别模型。","","中移（成都）信息通信科技有限公司 |\n中国移动通信集团有限公司","中移成都信息通信科技有限公司|中国移动通信集团有限公司","中移成都信息通信科技有限公司|中国移动通信集团有限公司","陈庆勇 |\n陈智勇 |\n桑建 |\n王旭浩 |\n梁玲玲","陈庆勇","","2019/12/13","2021/06/18","2021/06/18","","G06K  9/62","G06K  9/62","G06K9","G06K9/6268",10,6,6,11,"1.02","","","","","","发明公布","CN","",0,0,0,0,0,0,0,"0.0",0,0,0,0,"",0,0,"特征融合 |\n卷积网络 |\n卷积神经网络 |\n网络训练 |\n池化操作 |\n卷积操作 |\n全连接层 |\n损失函数 |\n最大池化 |\n训练参数 |\n神经网络层 |\n反卷积层 |\n激活函数 |\n训练过程 |\n卷积运算 |\n梯度下降法 |\nap-1 signaling |\n小样本训练","训练图像 |\n图像输入","提取特征 |\n训练样本 |\n训练数据集 |\n特征向量","识别网络 |\n深度学习 |\n训练模块 |\n识别模型 |\n模型训练方法","","","公开","2021.06.18 公开 公开\n\n2021.07.06 实质审查的生效 实质审查的生效\n申请日=2019.12.13","","北京东方亿思专利代理有限责任公司; 彭琼","四川省","610041 四川省成都市中国（四川）自由贸易试验区成都高新区交子大道575号J座6楼"]
[{"$f":"HYPERLINK(\"https://www.patentics.cn/invokexml.do?sx=showpatent_cn&sf=ShowPatent&spn=CN112953616A&sx=showpatent_cn&sv=80b4b39e\",\"CN112953616A\")","v":"CN112953616A"},"CN201911262107.2","CN",null,"一种资源分配方法、装置、设备及存储介质","本发明公开了一种资源分配方法、装置、设备及存储介质。该方法包括：分别确定传输飞行控制数据所需的第一通信资源、传输空中管制数据所需的第二通信资源和传输载荷数据所需的第三通信资源，以及空口的分配资源；根据第一通信资源、第二通信资源、第三通信资源和空口的分配资源为飞行控制数据分配第一分配资源、为空中管制数据分配第二分配资源和为载荷数据分配第三分配资源。根据本发明实施例，能够通过各通信数据所需的带宽大小和空口当前的可用带宽大小，自动调整分配给各通信数据的实际带宽大小，能保证通信数据的高可靠性传输，提高了无人机飞行的可靠性。","一种资源分配方法，其特征在于，应用于机载数据调度系统，所述方法包括： 　　分别确定传输飞行控制数据所需的第一通信资源、传输空中管制数据所需的第二通信资源和传输载荷数据所需的第三通信资源，以及空口的分配资源； 　　根据所述第一通信资源、所述第二通信资源、所述第三通信资源和所述空口的分配资源为所述飞行控制数据分配第一分配资源、为所述空中管制数据分配第二分配资源和为所述载荷数据分配第三分配资源。","","中移（成都）信息通信科技有限公司 |\n中国移动通信集团有限公司","中移成都信息通信科技有限公司|中国移动通信集团有限公司","中移成都信息通信科技有限公司|中国移动通信集团有限公司","周剑 |\n陈盛伟 |\n王文靖 |\n刘子扬 |\n覃小龙","周剑","2019/12/10","2019/12/10","2021/06/11","2021/06/11","","H04B  7/185|H04W 72/04|H04W 72/10","H04B  7/185","H04B7","H04B7/18506",12,4,9,12,"1.10","","","","","","发明公布","CN","","CN105490729A |\nCN102104874A |\nUS20120087253A1 |\nUS10396940B1",4,0,4,4,0,0,"0.0",0,0,0,0,"WO2021114839A1",1,2,"数据调度 |\n可用资源 |\n资源分配装置 |\n资源分配方法 |\n带宽分配策略 |\n数据分配资源 |\n资源分配设备","分配带宽 |\n带宽资源 |\n通信带宽 |\n优先级调度 |\n占用带宽 |\n剩余带宽 |\n实际带宽 |\n数据链路 |\n业务处理单元 |\n视频业务数据","空口时延 |\n无线空口 |\n空口传输 |\n传输带宽 |\ncongestive heart |\n空口带宽 |\n上行通信链路 |\n通信链路传输","数据传输过程 |\n数据带宽需求 |\n通道传输数据 |\n数据优先传输","","","公开","2021.06.11 公开 公开\n\n2021.07.02 实质审查的生效 实质审查的生效\n申请日=2019.12.10","","北京东方亿思专利代理有限责任公司; 彭琼","四川省","610041 四川省成都市中国（四川）自由贸易试验区成都高新区交子大道575号J座6楼"]
[{"$f":"HYPERLINK(\"https://www.patentics.cn/invokexml.do?sx=showpatent_cn&sf=ShowPatent&spn=CN112953615A&sx=showpatent_cn&sv=6076f486\",\"CN112953615A\")","v":"CN112953615A"},"CN201911262104.9","CN",null,"目标区域的信号连续覆盖方法、装置、设备及天线系统","本发明公开了一种目标区域的信号连续覆盖方法、装置、设备及天线系统。该目标区域的信号连续覆盖方法，应用于承载通信基站的航空器，方法包括：获取航空器的飞行高度、飞行轨迹最远距离、滚转角及目标区域的预设中心位置；获取通信基站的机载天线的垂直半功率角和相对预设中心位置的信号覆盖最远点位置；基于飞行高度、飞行轨迹最远距离、滚转角、预设中心位置、垂直半功率角及信号覆盖最远点位置，确定机载天线的目标下倾角；调整机载天线的当前下倾角至目标下倾角，以使信号连续覆盖区域包含目标区域。根据本发明实施例，能够实现对目标区域的信号连续覆盖，进而提高目标区域的通信服务质量。","一种目标区域的信号连续覆盖方法，其特征在于，应用于承载通信基站的航空器，所述方法包括： 　　获取所述航空器的飞行高度、飞行轨迹最远距离、滚转角及目标区域的预设中心位置； 　　获取所述通信基站的机载天线的垂直半功率角和相对所述预设中心位置的信号覆盖最远点位置； 　　基于所述飞行高度、所述飞行轨迹最远距离、所述滚转角、所述预设中心位置、所述垂直半功率角及所述信号覆盖最远点位置，确定所述机载天线的目标下倾角； 　　调整所述机载天线的当前下倾角至所述目标下倾角，以使信号连续覆盖区域包含所述目标区域。","一种目标区域的信号连续覆盖方法，其特征在于，应用于承载通信基站的航空器，所述方法包括： 　　获取所述航空器的飞行高度、飞行轨迹最远距离、滚转角及目标区域的预设中心位置； 　　获取所述通信基站的机载天线的垂直半功率角和相对所述预设中心位置的信号覆盖最远点位置； 　　基于所述飞行高度、所述飞行轨迹最远距离、所述滚转角、所述预设中心位置、所述垂直半功率角及所述信号覆盖最远点位置，确定所述机载天线的目标下倾角； 　　调整所述机载天线的当前下倾角至所述目标下倾角，以使信号连续覆盖区域包含所述目标区域。","中移（成都）信息通信科技有限公司 |\n中国移动通信集团有限公司","中移成都信息通信科技有限公司|中国移动通信集团有限公司","中移成都信息通信科技有限公司|中国移动通信集团有限公司","苏郁 |\n陈盛伟 |\n周剑 |\n王文靖 |\n张杨","苏郁","2019/12/10","2019/12/10","2021/06/11","2021/06/11","2021/09/07","H04B  7/185|H04W 16/18","H04B  7/185","H04B7","H04B7/18504",10,5,7,17,"0.66","","","","","","发明公布","CN","","JP2009171514A |\nCN109714784A |\nCN107664491A |\nCN106937300A |\nCN102938670A |\nCN102892124A |\nUS20130182790A1 |\nUS6549529",8,0,8,7,0,0,"0.0",0,0,0,0,"WO2021114842A1 |\nCN112953615B",2,2,"信号覆盖 |\n射频拉远单元 |\n最远距离 |\n基站系统 |\n覆盖区域 |\n空中基站 |\n发射功率 |\n基带处理单元 |\n通信基站 |\n区域范围 |\n通信信号 |\n传输距离 |\n无线频点 |\n通信领域","天线增益 |\n扇区天线 |\n天线覆盖 |\n天线系统 |\n天线类型 |\n下倾角 |\n天线单元 |\n平板天线 |\n2-氨基-5-碘-3-硝基吡啶 |\n自由空间损耗 |\n临时基站 |\n天线连接","机载天线 |\n天线方位角 |\n卫星通信设备 |\nidi基因","多径衰落 |\n地面终端","","","有效","2021.06.11 公开 公开\n\n2021.07.02 实质审查的生效 实质审查的生效\n申请日=2019.12.10\n\n2021.09.07 授权 授权","","北京东方亿思专利代理有限责任公司; 彭琼","四川省","610041 四川省成都市中国（四川）自由贸易试验区成都高新区交子大道575号J座6楼"]
[{"$f":"HYPERLINK(\"https://www.patentics.cn/invokexml.do?sx=showpatent_cn&sf=ShowPatent&spn=CN112951448A&sx=showpatent_cn&sv=862ff232\",\"CN112951448A\")","v":"CN112951448A"},"CN201911261090.9","CN",null,"回访的方法、装置、设备及介质","本发明实施例提供一种回访的方法、装置、设备及介质。该方法包括：向第一对象使用的第一终端发送回访任务信息；当检测到第一终端回复回访任务信息的回复时长超过预设回复时长阈值时，查询第一对象对应的授权信息；当查询到第一对象对应的授权信息，且第一终端的第一通信标识与授权信息中的第二通信标识一致时，根据第二通信标识和预设查询条件确定与第二通信标识关联的第三通信标识；向第三通信标识对应的第二终端发送第一协助信息，其中，第一协助信息用于请求第二终端的使用者协助第一对象完成回访任务信息的回复；接收第二终端发送的回访应答信息。本发明能够解决回访对象无法独立完成回访流程的问题，提高回访成功率。","一种回访的方法，其特征在于，所述方法包括： 　　向第一对象使用的第一终端发送回访任务信息； 　　当检测到所述第一终端回复所述回访任务信息的回复时长超过预设回复时长阈值时，查询所述第一对象对应的授权信息； 　　当查询到所述第一对象对应的授权信息，且所述第一终端的第一通信标识与所述授权信息中的第二通信标识一致时，根据所述第二通信标识和预设查询条件确定与所述第二通信标识关联的第三通信标识； 　　向所述第三通信标识对应的第二终端发送第一协助信息，其中，所述第一协助信息用于请求所述第二终端的使用者协助所述第一对象完成所述回访任务信息的回复； 　　接收所述第二终端发送的回访应答信息。","","中移（成都）信息通信科技有限公司 |\n中国移动通信集团有限公司","中移成都信息通信科技有限公司|中国移动通信集团有限公司","中移成都信息通信科技有限公司|中国移动通信集团有限公司","叶科 |\n黄承基 |\n谢彦昊 |\n徐志强 |\n种璟","叶科","","2019/12/10","2021/06/11","2021/06/11","","G16H 80/00","G16H 80/00","G16H80","G16H80/00",14,4,6,17,"0.88","","","","","","发明公布","CN","",0,0,0,0,0,0,0,"0.0",0,0,0,0,"",0,0,"通信标识 |\n手机号码 |\n身份标识 |\nqq账号 |\n邀请 |\n发起方 |\n授权信息 |\n身份证号码 |\n授权协议 |\n手机发送 |\n授权标识","查询请求 |\n第三终端 |\n第一终端 |\n第二终端 |\n终端发送 |\n终端设备 |\n发送模块","联系人 |\n微信账号 |\n查询模块 |\n用户反馈 |\n筛选条件 |\n查询接口 |\n填写 |\n任务信息 |\n奖励 |\n年龄区间","应答信息","","","公开","2021.06.11 公开 公开\n\n2021.07.02 实质审查的生效 实质审查的生效\n申请日=2019.12.10","","北京东方亿思专利代理有限责任公司; 彭琼","四川省","610041 四川省成都市中国（四川）自由贸易试验区成都高新区交子大道575号J座6楼"]
[{"$f":"HYPERLINK(\"https://www.patentics.cn/invokexml.do?sx=showpatent_cn&sf=ShowPatent&spn=CN112930817A&sx=showpatent_cn&sv=f2e4f18a\",\"CN112930817A\")","v":"CN112930817A"},"CN201911259387.1","CN",null,"农作物的智能种植方法、装置、系统、终端设备及介质","本发明实施例公开了一种农作物的智能种植方法、装置、系统、终端设备及介质。其中，一种农作物的智能种植方法，包括：获取农作物的实际生长指标和实际生长环境参数；判断所述实际生长环境参数是否满足第一预设条件，和/或，判断所述实际生长指标是否满足第二预设条件，当至少一个判断结果为否时，生成并展示农作物的生长环境参数调控策略。根据本发明实施例提供的一种农作物的智能种植方法、装置、系统、终端设备及介质，能够获取农作物的实际生长指标和实际生长环境参数，并根据获取的农作物的实际生长指标和实际生长环境参数通过农作物生长模型生成农作物的生长环境参数调控策略，进而提高智能种植技术的智能化、精确化。","一种农作物的智能种植方法，其特征在于，包括： 　　获取农作物的实际生长指标和实际生长环境参数； 　　判断所述实际生长环境参数是否满足第一预设条件，和/或，判断所述实际生长指标是否满足第二预设条件； 　　当至少一个判断结果为否时，生成并展示农作物的生长环境参数调控策略；其中，所述第一预设条件和第二预设条件是由农作物生长模型根据农作物的生长环境参数与农作物预期生长指标之间的第一映射关系设置得到的。","","中移（成都）信息通信科技有限公司 |\n中国移动通信集团有限公司","中移成都信息通信科技有限公司|中国移动通信集团有限公司","中移成都信息通信科技有限公司|中国移动通信集团有限公司","廖鹏程 |\n唐睿 |\n刘一珉 |\n卞军伟 |\n詹海鹏","廖鹏程","","2019/12/10","2021/06/11","2021/06/11","","A01C 21/00|A01G 22/00|G06K  9/00|G06K  9/62|G06Q 50/02","A01C 21/00","A01C21","A01C21/007",14,5,10,13,"1.18","","","","","","发明公布","CN","",0,0,0,0,0,0,0,"0.0",0,0,0,0,"",0,0,"土壤湿度 |\n土壤温度 |\n土壤肥力 |\n施肥方式 |\n作物生长模型 |\n传统种植","种植过程 |\n种植技术 |\n种植方式 |\n种植环境 |\n农业 |\n种植业 |\n人工种植","生长状况 |\n种植方法 |\n追肥 |\n生长指标 |\n复合肥 |\n干物质积累量 |\n有机肥 |\n生长情况 |\n小白菜 |\n追施氮肥 |\n最大叶","环境参数 |\n农作物生长环境 |\n土壤温湿度传感器","","","公开","2021.06.11 公开 公开\n\n2021.07.02 实质审查的生效 实质审查的生效\n申请日=2019.12.10","","北京东方亿思专利代理有限责任公司; 赵秀芹","四川省","610041 四川省成都市中国（四川）自由贸易试验区成都高新区交子大道575号J座6楼"]
[{"$f":"HYPERLINK(\"https://www.patentics.cn/invokexml.do?sx=showpatent_cn&sf=ShowPatent&spn=CN112926612A&sx=showpatent_cn&sv=8b1778b7\",\"CN112926612A\")","v":"CN112926612A"},"CN201911242738.8","CN",null,"病理图像分类模型训练方法、病理图像分类方法及装置","本发明实施例提供了病理图像分类模型训练方法、病理图像分类方法及装置。该方法包括：获取样本图像；每张样本图像包括：该样本图像的标签信息，标签信息为指示样本图像包含病理组织以及样本图像不包含病理组织的信息；包含病理组织的样本图像还包括病理组织的位置信息、尺寸信息以及方向信息；将样本图像的尺寸进行变换，得到目标样本图像，目标样本图像包括不同尺寸的样本图像；基于目标样本图像，训练多分类模型作为病理图像分类模型，能够快速识别癌症病理组织，提高了病理组织分类的速度和准确性。","一种病理图像分类模型训练方法，其特征在于，所述方法包括： 　　获取样本图像；每张样本图像包括：该样本图像的标签信息，所述标签信息为指示样本图像包含病理组织以及样本图像不包含病理组织的信息；所述包含病理组织的样本图像还包括病理组织的位置信息、尺寸信息以及方向信息； 　　将所述样本图像的尺寸进行变换，得到目标样本图像，所述目标样本图像包括不同尺寸的样本图像； 　　基于所述目标样本图像，训练多分类模型作为病理图像分类模型。","","中移（成都）信息通信科技有限公司 |\n中国移动通信集团有限公司","中移成都信息通信科技有限公司|中国移动通信集团有限公司","中移成都信息通信科技有限公司|中国移动通信集团有限公司","陈诚 |\n种璟 |\n任厚桦 |\n黄承基","陈诚","","2019/12/06","2021/06/08","2021/06/08","","G06K  9/62","G06K  9/62","G06K9","G06K9/6268",11,6,7,13,"0.95","","","","","","发明公布","CN","",0,0,0,0,0,0,0,"0.0",0,0,0,0,"",0,0,"样本图像 |\n图像特征 |\n关键点检测 |\n病理图像 |\n图像输入 |\n纹理特征 |\n目标检测 |\n乳腺癌病理 |\n灰度共生矩阵 |\n局部二值模式","深度网络 |\n卷积神经网络 |\n检测模型 |\n训练神经网络 |\n目标样本 |\n获取样本 |\n分类算法 |\n损失函数 |\ncyclic diolefin |\n训练方法 |\n训练模型 |\ngprs信号 |\n支持向量机 |\n机器学习算法","网络层数 |\n核主成分分析","图像分类方法 |\n训练分类模型 |\n图像分类装置","","","公开","2021.06.08 公开 公开\n\n2021.06.25 实质审查的生效 实质审查的生效\n申请日=2019.12.06","","北京东方亿思专利代理有限责任公司; 彭琼","四川省","610041 四川省成都市中国（四川）自由贸易试验区成都高新区交子大道575号J座6楼"]
[{"$f":"HYPERLINK(\"https://www.patentics.cn/invokexml.do?sx=showpatent_cn&sf=ShowPatent&spn=CN112770336A&sx=showpatent_cn&sv=3f192a45\",\"CN112770336A\")","v":"CN112770336A"},"CN201910998914.4","CN",null,"设备测试方法及系统","本发明实施例公开了一种设备测试方法及系统。该方法包括：根据测试需求，划分用于设备测试的网络切片；将设备测试所需的核心网用户面功能配置于网络切片的边缘云端中；将测试平台部署于边缘云端中；将待测设备接入测试平台；利用测试平台对待测设备进行测试。本发明实施例的设备测试方法及系统，使得待测设备运行在真实的无线通信网络环境下，能够提高测试结果的准确性和测试效率。","一种设备测试方法，其特征在于，所述方法包括： 　　根据测试需求，划分用于设备测试的网络切片； 　　将设备测试所需的核心网用户面功能配置于所述网络切片的边缘云端中； 　　将测试平台部署于所述边缘云端中； 　　将待测设备接入所述测试平台； 　　利用所述测试平台对所述待测设备进行测试。","","中移（成都）信息通信科技有限公司 |\n中国移动通信集团有限公司","中移成都信息通信科技有限公司|中国移动通信集团有限公司","中移成都信息通信科技有限公司|中国移动通信集团有限公司","何明 |\n兰天 |\n韩丽娟","何明","","2019/10/21","2021/05/07","2021/05/07","","H04W 24/02|H04B 17/10|H04B 17/15|H04B 17/29|H04W 24/04|H04W 24/10|H04W 88/08","H04W 24/02","H04W24","H04W24/02",12,2,6,12,"1.05","","","","","","发明公布","CN","",0,0,0,0,0,0,0,"0.0",0,0,0,0,"",0,0,"待测设备 |\n测试需求 |\n测试环境 |\n测试参数 |\n测试数据 |\n通道测试 |\n测试操作 |\n控制测试仪器 |\n接入测试平台","系统测试 |\n测试效率 |\n测试过程 |\n测试技术 |\n测试结果 |\n一致性测试 |\n离线测试","软件升级 |\n设备接入 |\n应用模块 |\n网络环境 |\n逻辑隔离 |\n硬件资源","设备测试系统 |\n待测终端 |\n射频指标测试 |\n设备测试方法 |\n发送通道 |\n数据接收通道","","","公开","2021.05.07 公开 公开\n\n2021.05.25 实质审查的生效 实质审查的生效\n申请日=2019.10.21","","北京东方亿思专利代理有限责任公司; 彭琼","四川省","610041 四川省成都市中国（四川）自由贸易试验区成都高新区交子大道575号J座6楼"]
[{"$f":"HYPERLINK(\"https://www.patentics.cn/invokexml.do?sx=showpatent_cn&sf=ShowPatent&spn=CN112752278A&sx=showpatent_cn&sv=1640bbe1\",\"CN112752278A\")","v":"CN112752278A"},"CN201911053427.7","CN",null,"网络切片生成系统、方法、装置、设备及介质","本发明实施例公开了一种网络切片生成系统、方法、装置、设备及介质。该系统包括：通信服务管理功能CSMF实体、网络切片管理功能NSMF实体、网络子切片管理功能NSSMF实体和部署于网络边缘的边缘切片管理功能ESMF实体。本发明实施例的网络切片生成系统、方法、装置、设备及介质，通过部署于网络边缘的边缘切片管理功能实体对需要其配置的参数进行配置，能够满足垂直行业用户的需求。","一种网络切片生成系统，其特征在于，所述系统包括：通信服务管理功能CSMF实体、网络切片管理功能NSMF实体、网络子切片管理功能NSSMF实体和部署于网络边缘的边缘切片管理功能ESMF实体； 　　所述CSMF实体，接收用户需求信息；根据所述用户需求信息，生成与用户需求对应的网络切片模板；将所述网络切片模板发送给所述NSMF实体；所述网络切片模板包括由所述NSMF实体配置的第一参数以及由所述ESMF实体配置的第二参数； 　　所述NSMF实体，向所述ESMF实体发送所述第二参数对应的参数信息；根据所述网络切片模板生成网络子切片模板，并配置所述第一参数；向所述NSSMF实体发送所述网络子切片模板以及经过配置的所述第一参数； 　　所述ESMF实体，接收所述NSMF实体发送的所述第二参数对应的参数信息；根据所述参数信息对所述第二参数进行配置；向所述NSSMF实体发送经过配置的所述第二参数； 　　所述NSSMF实体，接收NSMF实体发送的所述网络子切片模板和经过配置的所述第一参数，以及接收所述ESMF实体发送的经过配置的所述第二参数；根据所述网络子切片模板、所述经过配置的所述第一参数和所述经过配置的所述第二参数，生成满足用户需求的网络切片实例。","","中移（成都）信息通信科技有限公司 |\n中国移动通信集团有限公司","中移成都信息通信科技有限公司|中国移动通信集团有限公司","中移成都信息通信科技有限公司|中国移动通信集团有限公司","唐飞 |\n陈磊","唐飞","","2019/10/31","2021/05/04","2021/05/04","","H04W 24/02|H04L 12/24|H04W 28/16","H04W 24/02","H04W24","H04W24/02",11,9,6,19,"0.67","","","","","","发明公布","CN","",0,0,0,0,0,0,0,"0.0",0,0,0,0,"",0,0,"特定业务 |\n会话管理功能 |\n策略控制 |\n移动管理功能 |\n实体接收 |\n用户面 |\n实体发送 |\n接入网域 |\n核心网域 |\n空口网络 |\n配置信息 |\n物理小区标识","网络资源 |\n无线接入网络 |\n网络域 |\n网络架构 |\n网络服务 |\n网络切片技术 |\n查询网络 |\n通信服务 |\n通信链路 |\n分配虚拟 |\n创建网络","重用网络 |\n端到端网络 |\n网络功能实体 |\n服务管理功能","实体配置 |\n去激活命令","","","公开","2021.05.04 公开 公开\n\n2021.05.21 实质审查的生效 实质审查的生效\n申请日=2019.10.31","","北京东方亿思专利代理有限责任公司; 彭琼","四川省","610041 四川省成都市中国（四川）自由贸易试验区成都高新区交子大道575号J座6楼"]
[{"$f":"HYPERLINK(\"https://www.patentics.cn/invokexml.do?sx=showpatent_cn&sf=ShowPatent&spn=CN112697996A&sx=showpatent_cn&sv=0dd6fb5b\",\"CN112697996A\")","v":"CN112697996A"},"CN201911005160.4","CN",null,"土壤监测方法、装置、设备及存储介质","本发明公开了一种土壤监测方法、装置、设备及存储介质。包括：获取土壤物理参数传感器在第一时间段内采集的多个土壤采集点得到的多个第一物理参数值；多个土壤采集点为同一目标土壤的土壤采集点；确定多个第一物理参数值在第一时间段内的第一变化信息；当第一变化信息满足预设条件时，生成提示信息，提示信息用于提示农户调整土壤物理条件。根据本发明实施例，能够通过土壤温湿度传感器分析土壤物理条件变化，能够及时对土壤物理条件改良做出判断并指导农事活动，提高了土壤监测的效率和准确度。","一种土壤监测方法，其特征在于，包括： 　　获取土壤物理参数传感器在第一时间段内采集的多个土壤采集点得到的多个第一物理参数值；所述多个土壤采集点为同一目标土壤的土壤采集点； 　　确定所述多个第一物理参数值在所述第一时间段内的第一变化信息； 　　当所述第一变化信息满足预设条件时，生成提示信息，所述提示信息用于提示农户调整土壤物理条件。","","中移（成都）信息通信科技有限公司 |\n中国移动通信集团有限公司","中移成都信息通信科技有限公司|中国移动通信集团有限公司","中移成都信息通信科技有限公司|中国移动通信集团有限公司","翁倩 |\n唐睿 |\n刘一珉 |\n卞军伟 |\n廖鹏程 |\n詹海鹏","翁倩","","2019/10/22","2021/04/23","2021/04/23","","G01N 33/24","G01N 33/24","G01N33","G01N33/24",10,4,7,11,"1.00","","","","","","发明公布","CN","",0,0,0,0,0,0,0,"0.0",0,0,0,0,"",0,0,"土壤类型 |\n土壤性质 |\n土壤状况 |\n土壤条件 |\n土壤孔隙度 |\n养分含量 |\n有机质含量 |\n土壤肥沃 |\n土壤剖面 |\n农事活动 |\n土壤透水性 |\n土壤孔隙率 |\n土壤结构性 |\n土壤物理","土壤养分 |\n土壤肥力 |\n植物根系 |\n土壤状态 |\n肥力因素","土壤参数 |\n测量土壤水分 |\n土壤数据 |\n土壤水分传感器 |\n土壤温湿度 |\n土壤温度传感器 |\n土壤湿度数据","土壤水蒸发 |\nflexible wiring board","","","公开","2021.04.23 公开 公开\n\n2021.05.11 实质审查的生效 实质审查的生效\n申请日=2019.10.22","","北京东方亿思专利代理有限责任公司; 彭琼","四川省","610041 四川省成都市中国（四川）自由贸易试验区成都高新区交子大道575号J座6楼"]
[{"$f":"HYPERLINK(\"https://www.patentics.cn/invokexml.do?sx=showpatent_cn&sf=ShowPatent&spn=CN112698668A&sx=showpatent_cn&sv=1680d5cc\",\"CN112698668A\")","v":"CN112698668A"},"CN201911005114.4","CN",null,"云台设备控制方法、装置、设备及存储介质","本发明公开了云台设备控制方法、装置、设备及存储介质。该方法包括：获取无人机的位置信息和目标区域的位置信息；根据无人机的位置信息和目标区域的位置信息确定无人机相对目标区域的俯仰角和水平角；其中，水平角为根据无人机相对地面的投影点与目标区域的连线确定的第一方向与第二方向的夹角；根据俯仰角和水平角，确定云台设备的目标转动角度；根据云台设备的目标转动角度调整云台设备的实际转动角度。解决了在无人机飞行时对目标区域提供的信号不稳定、存在盲区的问题。","一种云台设备控制方法，其特征在于，所述方法包括： 　　获取无人机的位置信息和目标区域的位置信息； 　　根据所述无人机的位置信息和所述目标区域的位置信息确定所述无人机相对目标区域的俯仰角和水平角； 　　其中，所述水平角为根据所述无人机相对地面的投影点与所述目标区域的连线确定的第一方向与第二方向的夹角； 　　根据所述俯仰角和水平角，确定云台设备的目标转动角度； 　　根据所述云台设备的目标转动角度调整所述云台设备的实际转动角度。","","中移（成都）信息通信科技有限公司 |\n中国移动通信集团有限公司","中移成都信息通信科技有限公司|中国移动通信集团有限公司","中移成都信息通信科技有限公司|中国移动通信集团有限公司","刘东 |\n苏郁 |\n周剑","刘东","","2019/10/22","2021/04/23","2021/04/23","","G05D  3/20","G05D  3/20","G05D3","G05D3/20",9,5,5,13,"0.77","","","","","","发明公布","CN","",0,0,0,0,0,0,0,"0.0",0,0,0,0,"",0,0,"地面基站 |\n地面站 |\n通信卫星 |\n定位设备 |\n空中应急通信系统 |\n定位方法 |\n信号覆盖区域 |\n基站信号 |\nm2高速钢 |\n机载卫星通信系统 |\n无线信号覆盖 |\n基带处理单元","iap homolog |\nidentification index |\n固定翼无人机 |\nidiopathic multiple pigmented hemorrhagic sarcoma |\n无人机飞行姿态 |\n姿态信息 |\nibp算法 |\n姿态数据 |\n姿态变化 |\n无人机机身","定向天线 |\n机载天线 |\n基站天线 |\n抛物面天线","卫星通信设备 |\n机载通信 |\n地面控制台","","","公开","2021.04.23 公开 公开\n\n2021.05.11 实质审查的生效 实质审查的生效\n申请日=2019.10.22","","北京东方亿思专利代理有限责任公司; 彭琼","四川省","610041 四川省成都市中国（四川）自由贸易试验区成都高新区交子大道575号J座6楼"]
[{"$f":"HYPERLINK(\"https://www.patentics.cn/invokexml.do?sx=showpatent_cn&sf=ShowPatent&spn=CN112702696A&sx=showpatent_cn&sv=4dea2b4a\",\"CN112702696A\")","v":"CN112702696A"},"CN201911004911.0","CN",null,"一种定位方法、装置、设备及存储介质","本发明公开了一种定位方法、装置、设备及存储介质。该方法包括：移动通信接入系统接收定位标签设备发送的超宽带UWB脉冲信号；确定接收UWB脉冲信号的时间信息；分别向定位算法装置发送时间信息，以用于定位算法装置确定移动通信接入系统接收多个UWB脉冲信号的时间差，并基于时间差确定定位标签设备的位置信息；定位算法装置部署在服务器或移动通信接入系统的集中处理单元CU上。通过利用移动通信接入系统来实现UWB定位和定位标签设备的位置计算，既可以解决占用基站和服务器的部署空间位置的问题，还可以使用移动通信网络的回传链路回传UWB信息，节省UWB回传链路的开销。","一种定位方法，其特征在于，所述方法应用于移动通信接入系统，所述方法包括： 　　移动通信接入系统接收定位标签设备发送的超宽带UWB脉冲信号； 　　确定接收所述UWB脉冲信号的时间信息； 　　分别向定位算法装置发送所述时间信息，以用于所述定位算法装置确定所述移动通信接入系统接收多个所述UWB脉冲信号的时间差，并基于所述时间差确定所述定位标签设备的位置信息； 　　所述定位算法装置部署在服务器或移动通信接入系统的集中处理单元CU上。","","中移（成都）信息通信科技有限公司 |\n中国移动通信集团有限公司","中移成都信息通信科技有限公司|中国移动通信集团有限公司","中移成都信息通信科技有限公司|中国移动通信集团有限公司","郭洋 |\n何明 |\n李娜","郭洋","","2019/10/22","2021/04/23","2021/04/23","","H04W  4/029|G01S  5/02|H04W 28/06|H04W 64/00","H04W  4/029","","",11,4,8,14,"0.86","","","","","","发明公布","CN","",0,0,0,0,0,0,0,"0.0",0,0,0,0,"",0,0,"基站系统 |\n无线接入点 |\n无线通信链路 |\n移动通信网络 |\n通信系统 |\n路由功能 |\n分布式单元","定位服务器 |\n单基站定位 |\n室内定位 |\n定位基站 |\n定位算法 |\n获取定位 |\n定位技术 |\neucalyptus dives |\n多基站定位 |\nuwb脉冲信号 |\n接收到定位 |\n定位子系统 |\n厘米级定位精度","远端射频单元 |\nanti-cd20 antibody fragment |\n信号发射功率 |\n基站设备 |\n回传链路 |\n信号接收强度 |\n数据传输时延","基站功能 |\n通信接入 |\nmatrix dimension","","","公开","2021.04.23 公开 公开\n\n2021.05.11 实质审查的生效 实质审查的生效\n申请日=2019.10.22","","北京东方亿思专利代理有限责任公司; 彭琼","四川省","610041 四川省成都市中国（四川）自由贸易试验区成都高新区交子大道575号J座6楼"]
[{"$f":"HYPERLINK(\"https://www.patentics.cn/invokexml.do?sx=showpatent_cn&sf=ShowPatent&spn=CN112533226A&sx=showpatent_cn&sv=ad41a61c\",\"CN112533226A\")","v":"CN112533226A"},"CN201910875435.3","CN",null,"测试信息获取方法、装置、系统及计算机存储介质","本发明公开了一种测试信息获取方法、装置、系统及计算机存储介质。该测试信息获取方法，应用于系统，包括：获取各个方向的无线信号的信号方向信息；扫描第一通信频段内的无线信号，得到信号质量信息；解析各个方向的无线信号，得到信号业务信息；对信号方向信息、信号质量信息和信号业务信息进行时间同步，得到测试信息。根据本发明实施例，建立了无线信号的质量、业务感知与无线信号来源方向之间的对应关系，进而能够准确地确定测试区域网络信号和基站的覆盖情况。","一种测试信息获取方法，其特征在于，应用于系统，包括： 　　获取各个方向的无线信号的信号方向信息； 　　扫描第一通信频段内的无线信号，得到信号质量信息； 　　解析所述各个方向的无线信号，得到信号业务信息； 　　对所述信号方向信息、所述信号质量信息和所述信号业务信息进行时间同步，得到测试信息。","","中移（成都）信息通信科技有限公司 |\n中国移动通信集团有限公司 |\n四川省大见通信技术有限公司","中移成都信息通信科技有限公司|中国移动通信集团有限公司|四川省大见通信技术有限公司","中移成都信息通信科技有限公司|中国移动通信集团有限公司|四川省大见通信技术有限公司","何明 |\n郭洋 |\n许鹏 |\n张亚明 |\n田华 |\n高忻","何明","2019/09/17","2019/09/17","2021/03/19","2021/03/19","","H04W 24/02|H04B  7/08|H04B 17/309|H04J  3/06|H04W 24/08","H04W 24/02","H04W24","H04W24/02",10,4,6,10,"1.10","","","","","","发明公布","CN","",0,0,0,0,0,0,0,"0.0",0,0,0,0,"WO2021052249A1",1,2,"通信频段 |\n无线信号测试 |\n射频前端 |\n射频收发芯片 |\n天线波束 |\n天线方向图 |\n全向天线 |\n相控阵天线 |\n定向天线 |\n发射或接收 |\n信号传播路径","路测系统 |\n信号质量信息 |\n网络覆盖 |\n网络信号质量 |\n无线移动通信 |\n导频信号强度 |\n网络优化方案 |\n网络优化效率","同相正交 |\n同频信号 |\n本振频率 |\n干扰信号 |\n获取信号 |\nclosed control loop |\n直接数字合成技术","获取基站 |\n波束赋形 |\n多输入多输出 |\n下行导频信道","","","公开","2021.03.19 公开 公开\n\n2021.04.06 实质审查的生效 实质审查的生效\n申请日=2019.09.17","","北京东方亿思专利代理有限责任公司; 彭琼","四川省","610041 四川省成都市中国（四川）自由贸易试验区成都高新区交子大道575号J座6楼"]
[{"$f":"HYPERLINK(\"https://www.patentics.cn/invokexml.do?sx=showpatent_cn&sf=ShowPatent&spn=CN112448751A&sx=showpatent_cn&sv=3908d637\",\"CN112448751A\")","v":"CN112448751A"},"CN201910803018.8","CN",null,"空域无线信号质量检测方法、无人机和地面中心系统","本发明公开了一种空域无线信号质量检测方法、无人机和地面中心系统。该空域无线信号质量检测的无人机，包括电源装置、与电源装置连接的无线信号测试装置；无线信号测试装置用于接收地面中心系统发送的信号质量数据采集请求，根据信号质量数据采集请求采集网络覆盖空域内无线信号的信号质量数据，并将信号质量数据发送至地面中心系统。根据本发明实施例，能够低成本地完成空域无线信号的质量检测。","一种空域无线信号质量检测的无人机，其特征在于，所述无人机包括电源装置、与所述电源装置连接的无线信号测试装置； 　　所述无线信号测试装置用于接收地面中心系统发送的信号质量数据采集请求，根据所述信号质量数据采集请求采集网络覆盖空域内无线信号的信号质量数据，并将所述信号质量数据发送至所述地面中心系统。","","中移（成都）信息通信科技有限公司 |\n中国移动通信集团有限公司","中移成都信息通信科技有限公司|中国移动通信集团有限公司","中移成都信息通信科技有限公司|中国移动通信集团有限公司","陈盛伟 |\n王文靖 |\n周剑 |\n刘喜 |\n郭志暖","陈盛伟","2019/08/28","2019/08/28","2021/03/05","2021/03/05","","H04B  7/185|H04B 17/00|H04L  1/20","H04B  7/185","H04B7","H04B7/18519",14,5,5,15,"1.00","","","","","","发明公布","CN","","WO2010097921 |\nCN109490941A |\nCN109283296A |\nCN106814258A |\nCN105792275A",5,0,5,5,0,0,"0.0",0,0,0,0,"WO2021037210A1",1,2,"实时回传 |\n数据传输 |\n采集网络 |\n数据采集 |\n实时动态","获取无线 |\n5g基站 |\n5g通信 |\n网络信号 |\n无线信号覆盖 |\n信息交互 |\n组网 |\n网络覆盖 |\n时间同步精度 |\n5g网络 |\n信号质量检测","无线信号测试 |\n基站定位模块 |\n通信信号质量 |\n接收定位装置 |\n采集请求 |\n微型无人机 |\n无线信号质量","卫星定位模块 |\n北斗定位模块 |\ngps模块 |\n定位信号 |\ngps定位模块","","","公开","2021.03.05 公开 公开\n\n2021.03.23 实质审查的生效 实质审查的生效\n申请日=2019.08.28","","北京东方亿思专利代理有限责任公司; 彭琼","四川省","610041 四川省成都市中国（四川）自由贸易试验区成都高新区交子大道575号J座6楼"]

{"sheet":"分析库","index":1,"n_rows":0,"n_cols":0,"rows_kept":0,"cut":false,"hidden":false,"merged":[]}